Workbook

Sheet Auswertung
J6: The Wolf | K6: Mike | L6: Big Boss | M6: Zorro | P6: AoE II | Q6: =+AC6+AC18+AC30+AC42 -> 70 | X6: The Wolf | Y6: Mike | Z6: Big Boss | AA6: Zorro | AC6: 19 | AD6: AoE II
P7: RA | Q7: =+AC11+AC23+AC35+AC47 -> 69 | AC7: 16 | AD7: AoE III
B8: The Wolf | C8: Mike | D8: Big Boss | E8: Zorro | G8: =+COUNTIF('Auslosung Verteilung'!A1:A$300,"AoE II") -> 16 | H8: AoE II | J8: mit Mike | K8: mit The Wolf | L8: mit The Wolf | M8: mit The Wolf | P8: Generals | Q8: =+AC9+AC21+AC33+AC45 -> 68 | X8: mit Mike | Y8: mit The Wolf | Z8: mit The Wolf | AA8: mit The Wolf | AC8: 17 | AD8: AoM
G9: =+COUNTIF('Auslosung Verteilung'!A1:A$300,"AoE III") -> 18 | H9: AoE III | J9: =+X9+X21+X33+X45 -> 136 | K9: =+Y45 -> 36 | L9: =+Z9+Z21+Z33+Z45 -> 133 | M9: =+AA9+AA21+AA33+AA45 -> 131 | P9: AoE III | Q9: =+AC7+AC19+AC31+AC43 -> 67 | X9: 33 | Y9: 33 | Z9: 30 | AA9: 37 | AC9: 16 | AD9: Generals
B10: mit Mike | C10: mit The Wolf | D10: mit The Wolf | E10: mit The Wolf | G10: =+COUNTIF('Auslosung Verteilung'!A1:A$300,"AoM") -> 16 | H10: AoM | P10: AoM | Q10: =+AC8+AC20+AC32+AC44 -> 66 | AC10: 14 | AD10: Yuri
B11: =SUMPRODUCT(--('Auslosung Verteilung'!B$1:B$300='Auslosung Verteilung'!C$1:C$300)*--('Auslosung Verteilung'!B$1:B$300="Team A"))+SUMPRODUCT(--('Auslosung Verteilung'!B$1:B$300='Auslosung Verteilung'!C$1:C$300)*--('Auslosung Verteilung'!B$1:B$300="Team B")) -> 36 | C11: =+B$11 -> 36 | D11: =+B$14 -> 35 | E11: =+B$17 -> 29 | G11: =+COUNTIF('Auslosung Verteilung'!A1:A$300,"Generals") -> 19 | H11: Generals | J11: mit Big Boss | K11: mit Big Boss | L11: mit Mike | M11: mit Big Boss | P11: Yuri | Q11: =+AC10+AC22+AC34+AC46 -> 60 | X11: mit Big Boss | Y11: mit Big Boss | Z11: mit Mike | AA11: mit Big Boss | AC11: 18 | AD11: RA
G12: =+COUNTIF('Auslosung Verteilung'!A1:A$300,"Yuri") -> 14 | H12: Yuri | J12: =+X12+X24+X36+X48 -> 133 | K12: =+Y12+Y24+Y36+Y48 -> 131 | L12: =+Z12+Z24+Z36+Z48 -> 131 | M12: =+AA12+AA24+AA36+AA48 -> 136 | X12: 30 | Y12: 37 | Z12: 37 | AA12: 33
B13: mit Big Boss | C13: mit Big Boss | D13: mit Mike | E13: mit Big Boss | G13: =+COUNTIF('Auslosung Verteilung'!A1:A$300,"RA") -> 17 | H13: RA
B14: =SUMPRODUCT(--('Auslosung Verteilung'!B$1:B$300='Auslosung Verteilung'!D$1:D$300)*--('Auslosung Verteilung'!B$1:B$300="Team A"))+SUMPRODUCT(--('Auslosung Verteilung'!B$1:B$300='Auslosung Verteilung'!D$1:D$300)*--('Auslosung Verteilung'!B$1:B$300="Team B")) -> 35 | C14: =SUMPRODUCT(--('Auslosung Verteilung'!C$1:C$300='Auslosung Verteilung'!D$1:D$300)*--('Auslosung Verteilung'!C$1:C$300="Team A"))+SUMPRODUCT(--('Auslosung Verteilung'!C$1:C$300='Auslosung Verteilung'!D$1:D$300)*--('Auslosung Verteilung'!C$1:C$300="Team B")) -> 29 | D14: =+C$14 -> 29 | E14: =+D$17 -> 36 | J14: mit Zorro | K14: mit Zorro | L14: mit Zorro | M14: mit Mike | X14: mit Zorro | Y14: mit Zorro | Z14: mit Zorro | AA14: mit Mike
J15: =+X15+X27+X39+X51 -> 131 | K15: =+Y15+Y27+Y39+Y51 -> 133 | L15: =+Z15+Z27+Z39+Z51 -> 136 | M15: =+AA15+AA27+AA39+AA51 -> 133 | X15: 37 | Y15: 30 | Z15: 33 | AA15: 30
B16: mit Zorro | C16: mit Zorro | D16: mit Zorro | E16: mit Mike
B17: =SUMPRODUCT(--('Auslosung Verteilung'!B$1:B$300='Auslosung Verteilung'!E$1:E$300)*--('Auslosung Verteilung'!B$1:B$300="Team A"))+SUMPRODUCT(--('Auslosung Verteilung'!B$1:B$300='Auslosung Verteilung'!E$1:E$300)*--('Auslosung Verteilung'!B$1:B$300="Team B")) -> 29 | C17: =SUMPRODUCT(--('Auslosung Verteilung'!C$1:C$300='Auslosung Verteilung'!E$1:E$300)*--('Auslosung Verteilung'!C$1:C$300="Team A"))+SUMPRODUCT(--('Auslosung Verteilung'!C$1:C$300='Auslosung Verteilung'!E$1:E$300)*--('Auslosung Verteilung'!C$1:C$300="Team B")) -> 35 | D17: =SUMPRODUCT(--('Auslosung Verteilung'!D$1:D$300='Auslosung Verteilung'!E$1:E$300)*--('Auslosung Verteilung'!D$1:D$300="Team A"))+SUMPRODUCT(--('Auslosung Verteilung'!D$1:D$300='Auslosung Verteilung'!E$1:E$300)*--('Auslosung Verteilung'!D$1:D$300="Team B")) -> 36 | E17: =+C$17 -> 35
X18: The Wolf | Y18: Mike | Z18: Big Boss | AA18: Zorro | AC18: 19 | AD18: AoE II
AC19: 15 | AD19: AoE III
X20: mit Mike | Y20: mit The Wolf | Z20: mit The Wolf | AA20: mit The Wolf | AC20: 17 | AD20: AoM
X21: 31 | Y21: 31 | Z21: 33 | AA21: 36 | AC21: 14 | AD21: Generals
AC22: 18 | AD22: Yuri
X23: mit Big Boss | Y23: mit Big Boss | Z23: mit Mike | AA23: mit Big Boss | AC23: 17 | AD23: RA
X24: 33 | Y24: 36 | Z24: 36 | AA24: 31
X26: mit Zorro | Y26: mit Zorro | Z26: mit Zorro | AA26: mit Mike
X27: 36 | Y27: 33 | Z27: 31 | AA27: 33
X30: The Wolf | Y30: Mike | Z30: Big Boss | AA30: Zorro | AC30: 16 | AD30: AoE II
AC31: 18 | AD31: AoE III
X32: mit Mike | Y32: mit The Wolf | Z32: mit The Wolf | AA32: mit The Wolf | AC32: 16 | AD32: AoM
X33: 36 | Y33: 36 | Z33: 35 | AA33: 29 | AC33: 19 | AD33: Generals
AC34: 14 | AD34: Yuri
X35: mit Big Boss | Y35: mit Big Boss | Z35: mit Mike | AA35: mit Big Boss | AC35: 17 | AD35: RA
X36: 35 | Y36: 29 | Z36: 29 | AA36: 36
X38: mit Zorro | Y38: mit Zorro | Z38: mit Zorro | AA38: mit Mike
X39: 29 | Y39: 35 | Z39: 36 | AA39: 35
X42: The Wolf | Y42: Mike | Z42: Big Boss | AA42: Zorro | AC42: 16 | AD42: AoE II
AC43: 18 | AD43: AoE III
X44: mit Mike | Y44: mit The Wolf | Z44: mit The Wolf | AA44: mit The Wolf | AC44: 16 | AD44: AoM
X45: 36 | Y45: 36 | Z45: 35 | AA45: 29 | AC45: 19 | AD45: Generals
AC46: 14 | AD46: Yuri
X47: mit Big Boss | Y47: mit Big Boss | Z47: mit Mike | AA47: mit Big Boss | AC47: 17 | AD47: RA
X48: 35 | Y48: 29 | Z48: 29 | AA48: 36
X50: mit Zorro | Y50: mit Zorro | Z50: mit Zorro | AA50: mit Mike
X51: 29 | Y51: 35 | Z51: 36 | AA51: 35

Sheet Auslosung Verteilung
A1: RA | B1: The Wolf | C1: Mike | D1: Big Boss | E1: Zorro
B2: Team A | C2: Team B | D2: Team A | E2: Team B
B3: Allianz | C3: Allianz | D3: Allianz | E3: Allianz
A4: AoE III | B4: The Wolf | C4: Mike | D4: Big Boss | E4: Zorro
B5: Team B | C5: Team A | D5: Team B | E5: Team A
B6: Deutsche | C6: Holländer | D6: Holländer | E6: Deutsche
A7: AoM | B7: The Wolf | C7: Mike | D7: Big Boss | E7: Zorro
B8: Team A | C8: Team A | D8: Team B | E8: Team B
B9: Wikinger: Loki | C9: Wikinger: Odin | D9: Wikinger: Loki | E9: Wikinger: Odin
A10: Generals | B10: The Wolf | C10: Mike | D10: Big Boss | E10: Zorro
B11: Team A | C11: Team B | D11: Team A | E11: Team B
B12: AP | C12: AP | D12: AP | E12: AP
A13: RA | B13: The Wolf | C13: Mike | D13: Big Boss | E13: Zorro
B14: Team B | C14: Team B | D14: Team A | E14: Team A
B15: Soviets | C15: Soviets | D15: Soviets | E15: Soviets
A16: Yuri | B16: The Wolf | C16: Mike | D16: Big Boss | E16: Zorro
B17: Team A | C17: Team B | D17: Team A | E17: Team B
B18: Amerika | C18: Amerika | D18: Korea | E18: Korea
A19: AoE II | B19: The Wolf | C19: Mike | D19: Big Boss | E19: Zorro
B20: Team A | C20: Team B | D20: Team B | E20: Team A
B21: Slawen | C21: Goten | D21: Slawen | E21: Goten
A22: Generals | B22: The Wolf | C22: Mike | D22: Big Boss | E22: Zorro
B23: Team A | C23: Team A | D23: Team B | E23: Team B
B24: AP | C24: AP | D24: AP | E24: AP
A25: AoM | B25: The Wolf | C25: Mike | D25: Big Boss | E25: Zorro
B26: Team A | C26: Team A | D26: Team B | E26: Team B
B27: Wikinger: Loki | C27: Griechen: Poseidon | D27: Wikinger: Loki | E27: Griechen: Poseidon
A28: Yuri | B28: The Wolf | C28: Mike | D28: Big Boss | E28: Zorro
B29: Team B | C29: Team A | D29: Team A | E29: Team B
B30: Korea | C30: Korea | D30: Irak | E30: Irak
A31: AoE III | B31: The Wolf | C31: Mike | D31: Big Boss | E31: Zorro
B32: Team B | C32: Team A | D32: Team A | E32: Team B
B33: Osmanen | C33: Osmanen | D33: Deutsche | E33: Deutsche
A34: AoE II | B34: The Wolf | C34: Mike | D34: Big Boss | E34: Zorro
B35: Team A | C35: Team B | D35: Team B | E35: Team A
B36: Hunnen | C36: Kelten | D36: Hunnen | E36: Kelten
A37: RA | B37: The Wolf | C37: Mike | D37: Big Boss | E37: Zorro
B38: Team A | C38: Team A | D38: Team B | E38: Team B
B39: Soviets | C39: Soviets | D39: Soviets | E39: Soviets
A40: Generals | B40: The Wolf | C40: Mike | D40: Big Boss | E40: Zorro
B41: Team B | C41: Team A | D41: Team B | E41: Team A
B42: IBG | C42: IBG | D42: WA | E42: WA
A43: AoE III | B43: The Wolf | C43: Mike | D43: Big Boss | E43: Zorro
B44: Team A | C44: Team A | D44: Team B | E44: Team B
B45: Holländer | C45: Briten | D45: Briten | E45: Holländer
A46: AoM | B46: The Wolf | C46: Mike | D46: Big Boss | E46: Zorro
B47: Team B | C47: Team A | D47: Team A | E47: Team B
B48: Ägypter: Isis | C48: Ägypter: Isis | D48: Ägypter: Re | E48: Ägypter: Re
A49: Yuri | B49: The Wolf | C49: Mike | D49: Big Boss | E49: Zorro
B50: Team A | C50: Team B | D50: Team A | E50: Team B
B51: Great Britain | C51: Great Britain | D51: Lybien | E51: Lybien
A52: Generals | B52: The Wolf | C52: Mike | D52: Big Boss | E52: Zorro
B53: Team B | C53: Team B | D53: Team A | E53: Team A
B54: IBG | C54: AP | D54: AP | E54: IBG
A55: AoE III | B55: The Wolf | C55: Mike | D55: Big Boss | E55: Zorro
B56: Team B | C56: Team A | D56: Team B | E56: Team A
B57: Irokesen | C57: Sioux | D57: Sioux | E57: Irokesen
A58: RA | B58: The Wolf | C58: Mike | D58: Big Boss | E58: Zorro
B59: Team B | C59: Team B | D59: Team A | E59: Team A
B60: Soviets | C60: Soviets | D60: Soviets | E60: Soviets
A61: AoM | B61: The Wolf | C61: Mike | D61: Big Boss | E61: Zorro
B62: Team A | C62: Team B | D62: Team A | E62: Team B
B63: Ägypter: Re | C63: Wikinger: Odin | D63: Wikinger: Odin | E63: Ägypter: Re
A64: Generals | B64: The Wolf | C64: Mike | D64: Big Boss | E64: Zorro
B65: Team B | C65: Team B | D65: Team A | E65: Team A
B66: AP | C66: WA | D66: AP | E66: WA
A67: AoE II | B67: The Wolf | C67: Mike | D67: Big Boss | E67: Zorro
B68: Team A | C68: Team A | D68: Team B | E68: Team B
B69: Hindustanis | C69: Azteken | D69: Azteken | E69: Hindustanis
A70: AoE III | B70: The Wolf | C70: Mike | D70: Big Boss | E70: Zorro
B71: Team B | C71: Team B | D71: Team A | E71: Team A
B72: Sioux | C72: Osmanen | D72: Osmanen | E72: Sioux
A73: RA | B73: The Wolf | C73: Mike | D73: Big Boss | E73: Zorro
B74: Team A | C74: Team B | D74: Team B | E74: Team A
B75: Allianz | C75: Allianz | D75: Soviets | E75: Soviets
A76: Generals | B76: The Wolf | C76: Mike | D76: Big Boss | E76: Zorro
B77: Team A | C77: Team A | D77: Team B | E77: Team B
B78: IBG | C78: IBG | D78: IBG | E78: IBG
A79: AoM | B79: The Wolf | C79: Mike | D79: Big Boss | E79: Zorro
B80: Team B | C80: Team B | D80: Team A | E80: Team A
B81: Wikinger: Loki | C81: Ägypter: Seth | D81: Wikinger: Loki | E81: Ägypter: Seth
A82: AoE III | B82: The Wolf | C82: Mike | D82: Big Boss | E82: Zorro
B83: Team A | C83: Team A | D83: Team B | E83: Team B
B84: China | C84: Briten | D84: China | E84: Briten
A85: AoE II | B85: The Wolf | C85: Mike | D85: Big Boss | E85: Zorro
B86: Team A | C86: Team B | D86: Team A | E86: Team B
B87: Burmese | C87: Burmese | D87: Chinesen | E87: Chinesen
A88: Yuri | B88: The Wolf | C88: Mike | D88: Big Boss | E88: Zorro
B89: Team A | C89: Team A | D89: Team B | E89: Team B
B90: Yuri | C90: Great Britain | D90: Yuri | E90: Great Britain
A91: RA | B91: The Wolf | C91: Mike | D91: Big Boss | E91: Zorro
B92: Team A | C92: Team B | D92: Team A | E92: Team B
B93: Soviets | C93: Allianz | D93: Allianz | E93: Soviets
A94: AoM | B94: The Wolf | C94: Mike | D94: Big Boss | E94: Zorro
B95: Team A | C95: Team A | D95: Team B | E95: Team B
B96: Ägypter: Seth | C96: Wikinger: Loki | D96: Ägypter: Seth | E96: Wikinger: Loki
A97: AoE II | B97: The Wolf | C97: Mike | D97: Big Boss | E97: Zorro
B98: Team A | C98: Team A | D98: Team B | E98: Team B
B99: Türken | C99: Kelten | D99: Türken | E99: Kelten
A100: Yuri | B100: The Wolf | C100: Mike | D100: Big Boss | E100: Zorro
B101: Team A | C101: Team A | D101: Team B | E101: Team B
B102: Amerika | C102: Deutschland | D102: Amerika | E102: Deutschland
A103: AoE III | B103: The Wolf | C103: Mike | D103: Big Boss | E103: Zorro
B104: Team B | C104: Team B | D104: Team A | E104: Team A
B105: Franzosen | C105: Holländer | D105: Holländer | E105: Franzosen
A106: Generals | B106: The Wolf | C106: Mike | D106: Big Boss | E106: Zorro
B107: Team B | C107: Team A | D107: Team B | E107: Team A
B108: IBG | C108: WA | D108: WA | E108: IBG
A109: AoE II | B109: The Wolf | C109: Mike | D109: Big Boss | E109: Zorro
B110: Team A | C110: Team B | D110: Team B | E110: Team A
B111: Japaner | C111: Spanier | D111: Japaner | E111: Spanier
A112: RA | B112: The Wolf | C112: Mike | D112: Big Boss | E112: Zorro
B113: Team A | C113: Team B | D113: Team B | E113: Team A
B114: Soviets | C114: Soviets | D114: Soviets | E114: Soviets
A115: AoE III | B115: The Wolf | C115: Mike | D115: Big Boss | E115: Zorro
B116: Team B | C116: Team A | D116: Team B | E116: Team A
B117: China | C117: China | D117: Osmanen | E117: Osmanen
A118: Generals | B118: The Wolf | C118: Mike | D118: Big Boss | E118: Zorro
B119: Team B | C119: Team A | D119: Team A | E119: Team B
B120: AP | C120: AP | D120: IBG | E120: IBG
A121: Yuri | B121: The Wolf | C121: Mike | D121: Big Boss | E121: Zorro
B122: Team B | C122: Team A | D122: Team B | E122: Team A
B123: Lybien | C123: Russland | D123: Russland | E123: Lybien
A124: AoE II | B124: The Wolf | C124: Mike | D124: Big Boss | E124: Zorro
B125: Team B | C125: Team A | D125: Team B | E125: Team A
B126: Burmese | C126: Burmese | D126: Kelten | E126: Kelten
A127: RA | B127: The Wolf | C127: Mike | D127: Big Boss | E127: Zorro
B128: Team A | C128: Team B | D128: Team B | E128: Team A
B129: Soviets | C129: Soviets | D129: Soviets | E129: Soviets
A130: AoM | B130: The Wolf | C130: Mike | D130: Big Boss | E130: Zorro
B131: Team B | C131: Team B | D131: Team A | E131: Team A
B132: Wikinger: Odin | C132: Atlanter: Gaia | D132: Atlanter: Gaia | E132: Wikinger: Odin
A133: Generals | B133: The Wolf | C133: Mike | D133: Big Boss | E133: Zorro
B134: Team B | C134: Team A | D134: Team A | E134: Team B
B135: WA | C135: AP | D135: WA | E135: AP
A136: AoE II | B136: The Wolf | C136: Mike | D136: Big Boss | E136: Zorro
B137: Team A | C137: Team B | D137: Team B | E137: Team A
B138: Malian | C138: Teutonen | D138: Malian | E138: Teutonen
A139: AoE III | B139: The Wolf | C139: Mike | D139: Big Boss | E139: Zorro
B140: Team A | C140: Team A | D140: Team B | E140: Team B
B141: Irokesen | C141: Deutsche | D141: Irokesen | E141: Deutsche
A142: Yuri | B142: The Wolf | C142: Mike | D142: Big Boss | E142: Zorro
B143: Team A | C143: Team B | D143: Team A | E143: Team B
B144: Lybien | C144: Irak | D144: Irak | E144: Lybien
A145: AoM | B145: The Wolf | C145: Mike | D145: Big Boss | E145: Zorro
B146: Team A | C146: Team A | D146: Team B | E146: Team B
B147: Atlanter: Kronos | C147: Ägypter: Seth | D147: Atlanter: Kronos | E147: Ägypter: Seth
A148: Generals | B148: The Wolf | C148: Mike | D148: Big Boss | E148: Zorro
B149: Team B | C149: Team A | D149: Team B | E149: Team A
B150: IBG | C150: IBG | D150: AP | E150: AP
A151: RA | B151: The Wolf | C151: Mike | D151: Big Boss | E151: Zorro
B152: Team B | C152: Team A | D152: Team B | E152: Team A
B153: Soviets | C153: Soviets | D153: Soviets | E153: Soviets
A154: Yuri | B154: The Wolf | C154: Mike | D154: Big Boss | E154: Zorro
B155: Team A | C155: Team B | D155: Team A | E155: Team B
B156: Great Britain | C156: Lybien | D156: Lybien | E156: Great Britain
A157: AoM | B157: The Wolf | C157: Mike | D157: Big Boss | E157: Zorro
B158: Team B | C158: Team A | D158: Team A | E158: Team B
B159: Ägypter: Isis | C159: Griechen: Zeus | D159: Ägypter: Isis | E159: Griechen: Zeus
A160: Generals | B160: The Wolf | C160: Mike | D160: Big Boss | E160: Zorro
B161: Team B | C161: Team A | D161: Team B | E161: Team A
B162: AP | C162: AP | D162: IBG | E162: IBG
A163: AoE III | B163: The Wolf | C163: Mike | D163: Big Boss | E163: Zorro
B164: Team A | C164: Team B | D164: Team A | E164: Team B
B165: Sioux | C165: Sioux | D165: Japan | E165: Japan
A166: RA | B166: The Wolf | C166: Mike | D166: Big Boss | E166: Zorro
B167: Team A | C167: Team A | D167: Team B | E167: Team B
B168: Allianz | C168: Allianz | D168: Allianz | E168: Allianz
A169: AoE II | B169: The Wolf | C169: Mike | D169: Big Boss | E169: Zorro
B170: Team A | C170: Team A | D170: Team B | E170: Team B
B171: Vietnamesen | C171: Inkas | D171: Vietnamesen | E171: Inkas
A172: Yuri | B172: The Wolf | C172: Mike | D172: Big Boss | E172: Zorro
B173: Team B | C173: Team B | D173: Team A | E173: Team A
B174: Irak | C174: Great Britain | D174: Great Britain | E174: Irak
A175: Generals | B175: The Wolf | C175: Mike | D175: Big Boss | E175: Zorro
B176: Team A | C176: Team A | D176: Team B | E176: Team B
B177: IBG | C177: AP | D177: AP | E177: IBG
A178: AoE III | B178: The Wolf | C178: Mike | D178: Big Boss | E178: Zorro
B179: Team B | C179: Team A | D179: Team A | E179: Team B
B180: Irokesen | C180: Irokesen | D180: Briten | E180: Briten
A181: AoM | B181: The Wolf | C181: Mike | D181: Big Boss | E181: Zorro
B182: Team A | C182: Team B | D182: Team A | E182: Team B
B183: Wikinger: Loki | C183: Wikinger: Loki | D183: Griechen: Hades | E183: Griechen: Hades
A184: RA | B184: The Wolf | C184: Mike | D184: Big Boss | E184: Zorro
B185: Team B | C185: Team A | D185: Team A | E185: Team B
B186: Allianz | C186: Allianz | D186: Soviets | E186: Soviets
A187: Generals | B187: The Wolf | C187: Mike | D187: Big Boss | E187: Zorro
B188: Team B | C188: Team A | D188: Team B | E188: Team A
B189: AP | C189: AP | D189: IBG | E189: IBG
A190: AoE II | B190: The Wolf | C190: Mike | D190: Big Boss | E190: Zorro
B191: Team B | C191: Team B | D191: Team A | E191: Team A
B192: Vietnamesen | C192: Koreaner | D192: Vietnamesen | E192: Koreaner
A193: AoM | B193: The Wolf | C193: Mike | D193: Big Boss | E193: Zorro
B194: Team A | C194: Team B | D194: Team A | E194: Team B
B195: Ägypter: Re | C195: Ägypter: Re | D195: Ägypter: Isis | E195: Ägypter: Isis
A196: RA | B196: The Wolf | C196: Mike | D196: Big Boss | E196: Zorro
B197: Team A | C197: Team B | D197: Team A | E197: Team B
B198: Allianz | C198: Allianz | D198: Allianz | E198: Allianz
A199: Generals | B199: The Wolf | C199: Mike | D199: Big Boss | E199: Zorro
B200: Team B | C200: Team B | D200: Team A | E200: Team A
... 400 more rows

Sheet Die Besten
A2: C&C Generals Yuri Red Alert AoM AoE II FE AoE III
A3: 90. Pokal
B4: Spiele | C4: Abschüsse | D4: Ø | E4: Siege | F4: Nieder-lagen | G4: Diff. | H4: Spiel / Mittelw. | I4: Wertung | J4: Rang
A5: Mike | B5: =+COUNT('Auswertung AoE II'!$D$5:$D$105)+COUNT('Auswertung Yuri'!$D$5:$D$105)+COUNT('Auswertung RA'!$D$5:$D$105)+COUNT('Auswertung AoM'!$D$5:$D$105)+COUNT('Auswertung AoE III'!$D$5:$D$105)+COUNT('Auswertung Generals'!$D$5:$D$105) -> 37 | C5: =+SUM('Auswertung AoE II'!$D$4:$D$105)+SUM('Auswertung Yuri'!$D$2:$D$103)+SUM('Auswertung AoE III'!$D$3:$D$103)+SUM('Auswertung AoM'!$D$3:$D$103)+SUM('Auswertung Generals'!$D$3:$D$103)+SUM('Auswertung RA'!$D$3:$D$103) -> 5276 | D5: =+C5/IF((B5)<>0,B5,1) -> 142.5945946 | E5: =+COUNTIF('Auswertung AoE II'!$R$5:$R$104,1)+COUNTIF('Auswertung Yuri'!$R$5:$R$104,1)+COUNTIF('Auswertung RA'!$R$5:$R$104,1)+COUNTIF('Auswertung AoM'!$R$5:$R$104,1)+COUNTIF('Auswertung AoE III'!$R$5:$R$104,1)+COUNTIF('Auswertung Generals'!$R$5:$R$104,1) -> 23 | F5: =+COUNTIF('Auswertung AoE II'!$R$5:$R$104,-1)+COUNTIF('Auswertung Yuri'!$R$5:$R$104,-1)+COUNTIF('Auswertung RA'!$R$5:$R$104,-1)+COUNTIF('Auswertung AoM'!$R$5:$R$104,-1)+COUNTIF('Auswertung AoE III'!$R$5:$R$104,-1)+COUNTIF('Auswertung Generals'!$R$5:$R$104,-1) -> 14 | G5: =+E5-F5 -> 9 | H5: =+B5*(HARMEAN(IF($B$5=0,1,$B$5),IF($B$6=0,1,$B$6),IF($B$7=0,1,$B$7),IF($B$8=0,1,$B$8),IF($B$9=0,1,$B$9),IF($B$10=0,1,$B$10)))/1000 -> 1.302726008 | I5: =IF(B5=0,"-",IF(B5=0,0,ROUND(((E5/B5-F5/B5)*100+D5/10)*H5,3))) -> 50.264 | J5: =IF(B5=0,"ng",RANK(I5,$I$5:$I$10)) -> 1 | K5: =IF(IF(ISERROR(VLOOKUP(A5,Tagesliste!$A$5:$G$10,7,))=TRUE,0,VLOOKUP(A5,Tagesliste!$A$5:$G$10,7,))>0,CONCATENATE("+",IF(ISERROR(VLOOKUP(A5,Tagesliste!$A$5:$G$10,7,))=TRUE,0,VLOOKUP(A5,Tagesliste!$A$5:$G$10,7,))),IF(ISERROR(VLOOKUP(A5,Tagesliste!$A$5:$G$10,7,))=TRUE,0,VLOOKUP(A5,Tagesliste!$A$5:$G$10,7,))) -> +1
A6: Big Boss | B6: =+COUNT('Auswertung AoE II'!$F$5:$F$105)+COUNT('Auswertung Yuri'!$F$5:$F$105)+COUNT('Auswertung RA'!$F$5:$F$105)+COUNT('Auswertung AoM'!$F$5:$F$105)+COUNT('Auswertung AoE III'!$F$5:$F$105)+COUNT('Auswertung Generals'!$F$5:$F$105) -> 36 | C6: =+SUM('Auswertung AoE II'!$F$5:$F$105)+SUM('Auswertung Yuri'!$F$5:$F$103)+SUM('Auswertung AoE III'!$F$5:$F$103)+SUM('Auswertung AoM'!$F$5:$F$103)+SUM('Auswertung Generals'!$F$5:$F$103)+SUM('Auswertung RA'!$F$5:$F$103) -> 4567 | D6: =+C6/IF((B6)<>0,B6,1) -> 126.8611111 | E6: =+COUNTIF('Auswertung AoE II'!$T$5:$T$104,1)+COUNTIF('Auswertung Yuri'!$T$5:$T$104,1)+COUNTIF('Auswertung RA'!$T$5:$T$104,1)+COUNTIF('Auswertung AoM'!$T$5:$T$104,1)+COUNTIF('Auswertung AoE III'!$T$5:$T$104,1)+COUNTIF('Auswertung Generals'!$T$5:$T$104,1) -> 22 | F6: =+COUNTIF('Auswertung AoE II'!$T$5:$T$104,-1)+COUNTIF('Auswertung Yuri'!$T$5:$T$104,-1)+COUNTIF('Auswertung RA'!$T$5:$T$104,-1)+COUNTIF('Auswertung AoM'!$T$5:$T$104,-1)+COUNTIF('Auswertung AoE III'!$T$5:$T$104,-1)+COUNTIF('Auswertung Generals'!$T$5:$T$104,-1) -> 14 | G6: =+E6-F6 -> 8 | H6: =+B6*(HARMEAN(IF($B$5=0,1,$B$5),IF($B$6=0,1,$B$6),IF($B$7=0,1,$B$7),IF($B$8=0,1,$B$8),IF($B$9=0,1,$B$9),IF($B$10=0,1,$B$10)))/1000 -> 1.267517196 | I6: =IF(B6=0,"-",IF(B6=0,0,ROUND(((E6/B6-F6/B6)*100+D6/10)*H6,3))) -> 44.247 | J6: =IF(B6=0,"ng",RANK(I6,$I$5:$I$10)) -> 2 | K6: =IF(IF(ISERROR(VLOOKUP(A6,Tagesliste!$A$5:$G$10,7,))=TRUE,0,VLOOKUP(A6,Tagesliste!$A$5:$G$10,7,))>0,CONCATENATE("+",IF(ISERROR(VLOOKUP(A6,Tagesliste!$A$5:$G$10,7,))=TRUE,0,VLOOKUP(A6,Tagesliste!$A$5:$G$10,7,))),IF(ISERROR(VLOOKUP(A6,Tagesliste!$A$5:$G$10,7,))=TRUE,0,VLOOKUP(A6,Tagesliste!$A$5:$G$10,7,))) -> +1
A7: The Wolf | B7: =+COUNT('Auswertung AoE II'!$B$5:$B$105)+COUNT('Auswertung Yuri'!$B$5:$B$105)+COUNT('Auswertung RA'!$B$5:$B$105)+COUNT('Auswertung AoM'!$B$5:$B$105)+COUNT('Auswertung AoE III'!$B$5:$B$105)+COUNT('Auswertung Generals'!$B$5:$B$105) -> 37 | C7: =+SUM('Auswertung AoE II'!$B$4:$B$105)+SUM('Auswertung Yuri'!$B$2:$B$103)+SUM('Auswertung AoE III'!$B$3:$B$103)+SUM('Auswertung AoM'!$B$3:$B$103)+SUM('Auswertung Generals'!$B$3:$B$103)+SUM('Auswertung RA'!$B$3:$B$103) -> 5232 | D7: =+C7/IF((B7)<>0,B7,1) -> 141.4054054 | E7: =+COUNTIF('Auswertung AoE II'!$P$5:$P$104,1)+COUNTIF('Auswertung Yuri'!$P$5:$P$104,1)+COUNTIF('Auswertung RA'!$P$5:$P$104,1)+COUNTIF('Auswertung AoM'!$P$5:$P$104,1)+COUNTIF('Auswertung AoE III'!$P$5:$P$104,1)+COUNTIF('Auswertung Generals'!$P$5:$P$104,1) -> 19 | F7: =+COUNTIF('Auswertung AoE II'!$P$5:$P$104,-1)+COUNTIF('Auswertung Yuri'!$P$5:$P$104,-1)+COUNTIF('Auswertung RA'!$P$5:$P$104,-1)+COUNTIF('Auswertung AoM'!$P$5:$P$104,-1)+COUNTIF('Auswertung AoE III'!$P$5:$P$104,-1)+COUNTIF('Auswertung Generals'!$P$5:$P$104,-1) -> 18 | G7: =+E7-F7 -> 1 | H7: =+B7*(HARMEAN(IF($B$5=0,1,$B$5),IF($B$6=0,1,$B$6),IF($B$7=0,1,$B$7),IF($B$8=0,1,$B$8),IF($B$9=0,1,$B$9),IF($B$10=0,1,$B$10)))/1000 -> 1.302726008 | I7: =IF(B7=0,"-",IF(B7=0,0,ROUND(((E7/B7-F7/B7)*100+D7/10)*H7,3))) -> 21.942 | J7: =IF(B7=0,"ng",RANK(I7,$I$5:$I$10)) -> 3 | K7: =IF(IF(ISERROR(VLOOKUP(A7,Tagesliste!$A$5:$G$10,7,))=TRUE,0,VLOOKUP(A7,Tagesliste!$A$5:$G$10,7,))>0,CONCATENATE("+",IF(ISERROR(VLOOKUP(A7,Tagesliste!$A$5:$G$10,7,))=TRUE,0,VLOOKUP(A7,Tagesliste!$A$5:$G$10,7,))),IF(ISERROR(VLOOKUP(A7,Tagesliste!$A$5:$G$10,7,))=TRUE,0,VLOOKUP(A7,Tagesliste!$A$5:$G$10,7,))) -> +1
A8: Groo | B8: =+COUNT('Auswertung AoE II'!$H$5:$H$105)+COUNT('Auswertung Yuri'!$H$5:$H$105)+COUNT('Auswertung RA'!$H$5:$H$105)+COUNT('Auswertung AoM'!$H$5:$H$105)+COUNT('Auswertung AoE III'!$H$5:$H$105)+COUNT('Auswertung Generals'!$H$5:$H$105) -> 37 | C8: =+SUM('Auswertung AoE II'!$H$4:$H$105)+SUM('Auswertung Yuri'!$H$2:$H$103)+SUM('Auswertung AoE III'!$H$3:$H$103)+SUM('Auswertung AoM'!$H$3:$H$103)+SUM('Auswertung Generals'!$H$3:$H$103)+SUM('Auswertung RA'!$H$3:$H$103) -> 5587 | D8: =+C8/IF((B8)<>0,B8,1) -> 151 | E8: =+COUNTIF('Auswertung AoE II'!$V$5:$V$104,1)+COUNTIF('Auswertung Yuri'!$V$5:$V$104,1)+COUNTIF('Auswertung RA'!$V$5:$V$104,1)+COUNTIF('Auswertung AoM'!$V$5:$V$104,1)+COUNTIF('Auswertung AoE III'!$V$5:$V$104,1)+COUNTIF('Auswertung Generals'!$V$5:$V$104,1) -> 18 | F8: =+COUNTIF('Auswertung AoE II'!$V$5:$V$104,-1)+COUNTIF('Auswertung Yuri'!$V$5:$V$104,-1)+COUNTIF('Auswertung RA'!$V$5:$V$104,-1)+COUNTIF('Auswertung AoM'!$V$5:$V$104,-1)+COUNTIF('Auswertung AoE III'!$V$5:$V$104,-1)+COUNTIF('Auswertung Generals'!$V$5:$V$104,-1) -> 19 | G8: =+E8-F8 -> -1 | H8: =+B8*(HARMEAN(IF($B$5=0,1,$B$5),IF($B$6=0,1,$B$6),IF($B$7=0,1,$B$7),IF($B$8=0,1,$B$8),IF($B$9=0,1,$B$9),IF($B$10=0,1,$B$10)))/1000 -> 1.302726008 | I8: =IF(B8=0,"-",IF(B8=0,0,ROUND(((E8/B8-F8/B8)*100+D8/10)*H8,3))) -> 16.15 | J8: =IF(B8=0,"ng",RANK(I8,$I$5:$I$10)) -> 4 | K8: =IF(IF(ISERROR(VLOOKUP(A8,Tagesliste!$A$5:$G$10,7,))=TRUE,0,VLOOKUP(A8,Tagesliste!$A$5:$G$10,7,))>0,CONCATENATE("+",IF(ISERROR(VLOOKUP(A8,Tagesliste!$A$5:$G$10,7,))=TRUE,0,VLOOKUP(A8,Tagesliste!$A$5:$G$10,7,))),IF(ISERROR(VLOOKUP(A8,Tagesliste!$A$5:$G$10,7,))=TRUE,0,VLOOKUP(A8,Tagesliste!$A$5:$G$10,7,))) -> +3
A9: Marc | B9: =+COUNT('Auswertung AoE II'!$L5:$L$105)+COUNT('Auswertung Yuri'!$L$5:$L$105)+COUNT('Auswertung RA'!$L$5:$L$105)+COUNT('Auswertung AoM'!$L$5:$L$105)+COUNT('Auswertung AoE III'!$L$5:$L$105)+COUNT('Auswertung Generals'!$L$5:$L$105) -> 32 | C9: =+SUM('Auswertung AoE II'!$L$4:$L$105)+SUM('Auswertung Yuri'!$L$2:$L$103)+SUM('Auswertung AoE III'!$L$3:$L$103)+SUM('Auswertung AoM'!$L$3:$L$103)+SUM('Auswertung Generals'!$L$3:$L$103)+SUM('Auswertung RA'!$L$3:$L$103) -> 3591 | D9: =+C9/IF((B9)<>0,B9,1) -> 112.21875 | E9: =+COUNTIF('Auswertung AoE II'!$Z$5:$Z$104,1)+COUNTIF('Auswertung Yuri'!$Z$5:$Z$104,1)+COUNTIF('Auswertung RA'!$Z$5:$Z$104,1)+COUNTIF('Auswertung AoM'!$Z$5:$Z$104,1)+COUNTIF('Auswertung AoE III'!$Z$5:$Z$104,1)+COUNTIF('Auswertung Generals'!$Z$5:$Z$104,1) -> 12 | F9: =+COUNTIF('Auswertung AoE II'!$Z$5:$Z$104,-1)+COUNTIF('Auswertung Yuri'!$Z$5:$Z$104,-1)+COUNTIF('Auswertung RA'!$Z$5:$Z$104,-1)+COUNTIF('Auswertung AoM'!$Z$5:$Z$104,-1)+COUNTIF('Auswertung AoE III'!$Z$5:$Z$104,-1)+COUNTIF('Auswertung Generals'!$Z$5:$Z$104,-1) -> 20 | G9: =+E9-F9 -> -8 | H9: =+B9*(HARMEAN(IF($B$5=0,1,$B$5),IF($B$6=0,1,$B$6),IF($B$7=0,1,$B$7),IF($B$8=0,1,$B$8),IF($B$9=0,1,$B$9),IF($B$10=0,1,$B$10)))/1000 -> 1.126681952 | I9: =IF(B9=0,"-",IF(B9=0,0,ROUND(((E9/B9-F9/B9)*100+D9/10)*H9,3))) -> -15.524 | J9: =IF(B9=0,"ng",RANK(I9,$I$5:$I$10)) -> 5 | K9: =IF(IF(ISERROR(VLOOKUP(A9,Tagesliste!$A$5:$G$10,7,))=TRUE,0,VLOOKUP(A9,Tagesliste!$A$5:$G$10,7,))>0,CONCATENATE("+",IF(ISERROR(VLOOKUP(A9,Tagesliste!$A$5:$G$10,7,))=TRUE,0,VLOOKUP(A9,Tagesliste!$A$5:$G$10,7,))),IF(ISERROR(VLOOKUP(A9,Tagesliste!$A$5:$G$10,7,))=TRUE,0,VLOOKUP(A9,Tagesliste!$A$5:$G$10,7,))) -> -5
A10: Zorro | B10: =+COUNT('Auswertung AoE II'!$J5:$J$105)+COUNT('Auswertung Yuri'!$J$5:$J$105)+COUNT('Auswertung RA'!$J$5:$J$105)+COUNT('Auswertung AoM'!$J$5:$J$105)+COUNT('Auswertung AoE III'!$J$5:$J$105)+COUNT('Auswertung Generals'!$J$5:$J$105) -> 33 | C10: =+SUM('Auswertung AoE II'!$J$4:$J$105)+SUM('Auswertung Yuri'!$J$2:$J$103)+SUM('Auswertung AoE III'!$J$3:$J$103)+SUM('Auswertung AoM'!$J$3:$J$103)+SUM('Auswertung Generals'!$J$3:$J$103)+SUM('Auswertung RA'!$J$3:$J$103) -> 4143 | D10: =+C10/IF((B10)<>0,B10,1) -> 125.5454545 | E10: =+COUNTIF('Auswertung AoE II'!$X$5:$X$104,1)+COUNTIF('Auswertung Yuri'!$X$5:$X$104,1)+COUNTIF('Auswertung RA'!$X$5:$X$104,1)+COUNTIF('Auswertung AoM'!$X$5:$X$104,1)+COUNTIF('Auswertung AoE III'!$X$5:$X$104,1)+COUNTIF('Auswertung Generals'!$X$5:$X$104,1) -> 12 | F10: =+COUNTIF('Auswertung AoE II'!$X$5:$X$104,-1)+COUNTIF('Auswertung Yuri'!$X$5:$X$104,-1)+COUNTIF('Auswertung RA'!$X$5:$X$104,-1)+COUNTIF('Auswertung AoM'!$X$5:$X$104,-1)+COUNTIF('Auswertung AoE III'!$X$5:$X$104,-1)+COUNTIF('Auswertung Generals'!$X$5:$X$104,-1) -> 21 | G10: =+E10-F10 -> -9 | H10: =+B10*(HARMEAN(IF($B$5=0,1,$B$5),IF($B$6=0,1,$B$6),IF($B$7=0,1,$B$7),IF($B$8=0,1,$B$8),IF($B$9=0,1,$B$9),IF($B$10=0,1,$B$10)))/1000 -> 1.161890763 | I10: =IF(B10=0,"-",IF(B10=0,0,ROUND(((E10/B10-F10/B10)*100+D10/10)*H10,3))) -> -17.101 | J10: =IF(B10=0,"ng",RANK(I10,$I$5:$I$10)) -> 6 | K10: =IF(IF(ISERROR(VLOOKUP(A10,Tagesliste!$A$5:$G$10,7,))=TRUE,0,VLOOKUP(A10,Tagesliste!$A$5:$G$10,7,))>0,CONCATENATE("+",IF(ISERROR(VLOOKUP(A10,Tagesliste!$A$5:$G$10,7,))=TRUE,0,VLOOKUP(A10,Tagesliste!$A$5:$G$10,7,))),IF(ISERROR(VLOOKUP(A10,Tagesliste!$A$5:$G$10,7,))=TRUE,0,VLOOKUP(A10,Tagesliste!$A$5:$G$10,7,))) -> -1
A12: letztes Spieledatum: | B12: 08.08.2026
B15: =IF(100-('Auswertung AoE II'!B106+'Auswertung Yuri'!B106+'Auswertung AoM'!B106+'Auswertung Generals'!B106+'Auswertung AoE III'!B251+'Auswertung RA'!B106)>0,(CONCATENATE("noch ",100-('Auswertung AoE II'!B106+'Auswertung Yuri'!B106+'Auswertung AoM'!B106+'Auswertung Generals'!B106+'Auswertung AoE III'!B106+'Auswertung RA'!B106)," Spiele")),CONCATENATE("Pokalsieger: ",A5)) -> noch 63 Spiele
A18: Wertungsformel: | B18: (Siege-Niederlagen) / Spiele * 100 + Abschussdurchschnitt/10 * Harmonischen Mittelwert aller gewerteten Spiele
A25: =+Spiel_Team!A28 -> AoE III | B25: =+Spiel_Team!B28 -> 5 Spiele
A26: =+Spiel_Team!A29 -> AoM | B26: =+Spiel_Team!B29 -> 6 Spiele
A27: =+Spiel_Team!A30 -> Yuri | B27: =+Spiel_Team!B30 -> 6 Spiele
A28: =+Spiel_Team!A31 -> Generals | B28: =+Spiel_Team!B31 -> 6 Spiele
A29: =+Spiel_Team!A32 -> RA | B29: =+Spiel_Team!B32 -> 7 Spiele
A30: =+Spiel_Team!A33 -> AoE II | B30: =+Spiel_Team!B33 -> 7 Spiele
A34: Ränge in den Unterpokalen | C34: AoE II | F34: AoE III | I34: AoM
C36: =+_xlfn._xlws.FILTER(INDEX('Bestenliste AoE II'!$A$5:$J$10,_xlfn.SEQUENCE(6),{1,10}),('Die Besten'!$A$5:$A$10=A5)) -> Groo | D36: 1 | F36: =+_xlfn._xlws.FILTER(INDEX('Bestenliste AoE III'!$A$5:$J$10,_xlfn.SEQUENCE(6),{1,10}),('Die Besten'!$A$5:$A$10=A5)) -> Big Boss | G36: 1 | I36: =+_xlfn._xlws.FILTER(INDEX('Bestenliste AoM'!$A$5:$J$10,_xlfn.SEQUENCE(6),{1,10}),('Die Besten'!$A$5:$A$10=A5)) -> Mike | J36: 1
C37: =+_xlfn._xlws.FILTER(INDEX('Bestenliste AoE II'!$A$5:$J$10,_xlfn.SEQUENCE(6),{1,10}),('Die Besten'!$A$5:$A$10=A6)) -> The Wolf | D37: 2 | F37: =+_xlfn._xlws.FILTER(INDEX('Bestenliste AoE III'!$A$5:$J$10,_xlfn.SEQUENCE(6),{1,10}),('Die Besten'!$A$5:$A$10=A6)) -> Zorro | G37: 2 | I37: =+_xlfn._xlws.FILTER(INDEX('Bestenliste AoM'!$A$5:$J$10,_xlfn.SEQUENCE(6),{1,10}),('Die Besten'!$A$5:$A$10=A6)) -> Big Boss | J37: 2
C38: =+_xlfn._xlws.FILTER(INDEX('Bestenliste AoE II'!$A$5:$J$10,_xlfn.SEQUENCE(6),{1,10}),('Die Besten'!$A$5:$A$10=A7)) -> Mike | D38: 3 | F38: =+_xlfn._xlws.FILTER(INDEX('Bestenliste AoE III'!$A$5:$J$10,_xlfn.SEQUENCE(6),{1,10}),('Die Besten'!$A$5:$A$10=A7)) -> The Wolf | G38: 3 | I38: =+_xlfn._xlws.FILTER(INDEX('Bestenliste AoM'!$A$5:$J$10,_xlfn.SEQUENCE(6),{1,10}),('Die Besten'!$A$5:$A$10=A7)) -> The Wolf | J38: 3
C39: =+_xlfn._xlws.FILTER(INDEX('Bestenliste AoE II'!$A$5:$J$10,_xlfn.SEQUENCE(6),{1,10}),('Die Besten'!$A$5:$A$10=A8)) -> Marc | D39: 4 | F39: =+_xlfn._xlws.FILTER(INDEX('Bestenliste AoE III'!$A$5:$J$10,_xlfn.SEQUENCE(6),{1,10}),('Die Besten'!$A$5:$A$10=A8)) -> Groo | G39: 4 | I39: =+_xlfn._xlws.FILTER(INDEX('Bestenliste AoM'!$A$5:$J$10,_xlfn.SEQUENCE(6),{1,10}),('Die Besten'!$A$5:$A$10=A8)) -> Groo | J39: 4
C40: =+_xlfn._xlws.FILTER(INDEX('Bestenliste AoE II'!$A$5:$J$10,_xlfn.SEQUENCE(6),{1,10}),('Die Besten'!$A$5:$A$10=A9)) -> Big Boss | D40: 5 | F40: =+_xlfn._xlws.FILTER(INDEX('Bestenliste AoE III'!$A$5:$J$10,_xlfn.SEQUENCE(6),{1,10}),('Die Besten'!$A$5:$A$10=A9)) -> Marc | G40: 5 | I40: =+_xlfn._xlws.FILTER(INDEX('Bestenliste AoM'!$A$5:$J$10,_xlfn.SEQUENCE(6),{1,10}),('Die Besten'!$A$5:$A$10=A9)) -> Marc | J40: 5
C41: =+_xlfn._xlws.FILTER(INDEX('Bestenliste AoE II'!$A$5:$J$10,_xlfn.SEQUENCE(6),{1,10}),('Die Besten'!$A$5:$A$10=A10)) -> Zorro | D41: 6 | F41: =+_xlfn._xlws.FILTER(INDEX('Bestenliste AoE III'!$A$5:$J$10,_xlfn.SEQUENCE(6),{1,10}),('Die Besten'!$A$5:$A$10=A10)) -> Mike | G41: 6 | I41: =+_xlfn._xlws.FILTER(INDEX('Bestenliste AoM'!$A$5:$J$10,_xlfn.SEQUENCE(6),{1,10}),('Die Besten'!$A$5:$A$10=A10)) -> Zorro | J41: 6
C43: RA | F43: Yuri | I43: Generals
C45: =+_xlfn._xlws.FILTER(INDEX('Bestenliste RA'!$A$5:$J$10,_xlfn.SEQUENCE(6),{1,10}),('Die Besten'!$A$5:$A$10=A5)) -> Big Boss | D45: 1 | F45: =+_xlfn._xlws.FILTER(INDEX('Bestenliste Yuri'!$A$5:$J$10,_xlfn.SEQUENCE(6),{1,10}),('Die Besten'!$A$5:$A$10=A5)) -> Mike | G45: 1 | I45: =+_xlfn._xlws.FILTER(INDEX('Bestenliste Generals'!$A$5:$J$10,_xlfn.SEQUENCE(6),{1,10}),('Die Besten'!$A$5:$A$10=A5)) -> Zorro | J45: 1
C46: =+_xlfn._xlws.FILTER(INDEX('Bestenliste RA'!$A$5:$J$10,_xlfn.SEQUENCE(6),{1,10}),('Die Besten'!$A$5:$A$10=A6)) -> Marc | D46: 2 | F46: =+_xlfn._xlws.FILTER(INDEX('Bestenliste Yuri'!$A$5:$J$10,_xlfn.SEQUENCE(6),{1,10}),('Die Besten'!$A$5:$A$10=A6)) -> Big Boss | G46: 2 | I46: =+_xlfn._xlws.FILTER(INDEX('Bestenliste Generals'!$A$5:$J$10,_xlfn.SEQUENCE(6),{1,10}),('Die Besten'!$A$5:$A$10=A6)) -> The Wolf | J46: 2
C47: =+_xlfn._xlws.FILTER(INDEX('Bestenliste RA'!$A$5:$J$10,_xlfn.SEQUENCE(6),{1,10}),('Die Besten'!$A$5:$A$10=A7)) -> Mike | D47: 3 | F47: =+_xlfn._xlws.FILTER(INDEX('Bestenliste Yuri'!$A$5:$J$10,_xlfn.SEQUENCE(6),{1,10}),('Die Besten'!$A$5:$A$10=A7)) -> Groo | G47: 3 | I47: =+_xlfn._xlws.FILTER(INDEX('Bestenliste Generals'!$A$5:$J$10,_xlfn.SEQUENCE(6),{1,10}),('Die Besten'!$A$5:$A$10=A7)) -> Mike | J47: 3
C48: =+_xlfn._xlws.FILTER(INDEX('Bestenliste RA'!$A$5:$J$10,_xlfn.SEQUENCE(6),{1,10}),('Die Besten'!$A$5:$A$10=A8)) -> The Wolf | D48: 4 | F48: =+_xlfn._xlws.FILTER(INDEX('Bestenliste Yuri'!$A$5:$J$10,_xlfn.SEQUENCE(6),{1,10}),('Die Besten'!$A$5:$A$10=A8)) -> The Wolf | G48: 4 | I48: =+_xlfn._xlws.FILTER(INDEX('Bestenliste Generals'!$A$5:$J$10,_xlfn.SEQUENCE(6),{1,10}),('Die Besten'!$A$5:$A$10=A8)) -> Big Boss | J48: 4
C49: =+_xlfn._xlws.FILTER(INDEX('Bestenliste RA'!$A$5:$J$10,_xlfn.SEQUENCE(6),{1,10}),('Die Besten'!$A$5:$A$10=A9)) -> Groo | D49: 5 | F49: =+_xlfn._xlws.FILTER(INDEX('Bestenliste Yuri'!$A$5:$J$10,_xlfn.SEQUENCE(6),{1,10}),('Die Besten'!$A$5:$A$10=A9)) -> Marc | G49: 5 | I49: =+_xlfn._xlws.FILTER(INDEX('Bestenliste Generals'!$A$5:$J$10,_xlfn.SEQUENCE(6),{1,10}),('Die Besten'!$A$5:$A$10=A9)) -> Groo | J49: 5
C50: =+_xlfn._xlws.FILTER(INDEX('Bestenliste RA'!$A$5:$J$10,_xlfn.SEQUENCE(6),{1,10}),('Die Besten'!$A$5:$A$10=A10)) -> Zorro | D50: 6 | F50: =+_xlfn._xlws.FILTER(INDEX('Bestenliste Yuri'!$A$5:$J$10,_xlfn.SEQUENCE(6),{1,10}),('Die Besten'!$A$5:$A$10=A10)) -> Zorro | G50: 6 | I50: =+_xlfn._xlws.FILTER(INDEX('Bestenliste Generals'!$A$5:$J$10,_xlfn.SEQUENCE(6),{1,10}),('Die Besten'!$A$5:$A$10=A10)) -> Marc | J50: 6

Sheet Tagesliste
A1: RTS Meister des Tages
A2: =CONCATENATE("Anzahl der Spiele heute: ",COUNT(Abschusstagesliste!AC4:AC220)) -> Anzahl der Spiele heute: 7
B4: Spiele | C4: Abschüsse | D4: Ø | E4: Siege | F4: Nieder-lagen | G4: Diff. | H4: Spiel / Mittelw. | I4: Wertung | J4: Rang
A5: Groo | B5: =+COUNT(Abschusstagesliste!$G$3:$G$150) -> 7 | C5: =+SUM(Abschusstagesliste!$G$3:$G$150) -> 1310 | D5: =+C5/IF((B5)<>0,B5,1) -> 187.1428571 | E5: =+COUNTIF(Abschusstagesliste!$U$3:$U$150,1) -> 5 | F5: =+COUNTIF(Abschusstagesliste!$U$3:$U$150,-1) -> 2 | G5: =+E5-F5 -> 3 | H5: =+B5*(HARMEAN(IF($B$5=0,1,$B$5),IF($B$6=0,1,$B$6),IF($B$7=0,1,$B$7),IF($B$8=0,1,$B$8),IF($B$9=0,1,$B$9)))/10 -> 4.9 | I5: =+IF(B5=0,"-",ROUND(((E5/B5-F5/B5)*100+D5/10)*H5,3)) -> 301.7 | J5: =IF(B5=0,"ng",RANK(I5,$I$5:$I$10)) -> 1
A6: Mike | B6: =+COUNT(Abschusstagesliste!$C$3:$C$150) -> 7 | C6: =+SUM(Abschusstagesliste!$C$3:$C$150) -> 1579 | D6: =+C6/IF((B6)<>0,B6,1) -> 225.5714286 | E6: =+COUNTIF(Abschusstagesliste!$Q$3:$Q$150,1) -> 4 | F6: =+COUNTIF(Abschusstagesliste!$Q$3:$Q$150,-1) -> 3 | G6: =+E6-F6 -> 1 | H6: =+B6*(HARMEAN(IF($B$5=0,1,$B$5),IF($B$6=0,1,$B$6),IF($B$7=0,1,$B$7),IF($B$8=0,1,$B$8),IF($B$9=0,1,$B$9)))/10 -> 4.9 | I6: =+IF(B6=0,"-",ROUND(((E6/B6-F6/B6)*100+D6/10)*H6,3)) -> 180.53 | J6: =IF(B6=0,"ng",RANK(I6,$I$5:$I$10)) -> 2
A7: The Wolf | B7: =+COUNT(Abschusstagesliste!$A$3:$A$150) -> 7 | C7: =+SUM(Abschusstagesliste!$A$3:$A$150) -> 1390 | D7: =+C7/IF((B7)<>0,B7,1) -> 198.5714286 | E7: =+COUNTIF(Abschusstagesliste!$O$3:$O$150,1) -> 4 | F7: =+COUNTIF(Abschusstagesliste!$O$3:$O$150,-1) -> 3 | G7: =+E7-F7 -> 1 | H7: =+B7*(HARMEAN(IF($B$5=0,1,$B$5),IF($B$6=0,1,$B$6),IF($B$7=0,1,$B$7),IF($B$8=0,1,$B$8),IF($B$9=0,1,$B$9)))/10 -> 4.9 | I7: =+IF(B7=0,"-",ROUND(((E7/B7-F7/B7)*100+D7/10)*H7,3)) -> 167.3 | J7: =IF(B7=0,"ng",RANK(I7,$I$5:$I$10)) -> 3
A8: Big Boss | B8: =+COUNT(Abschusstagesliste!$E$3:$E$150) -> 7 | C8: =+SUM(Abschusstagesliste!$E$3:$E$150) -> 1158 | D8: =+C8/IF((B8)<>0,B8,1) -> 165.4285714 | E8: =+COUNTIF(Abschusstagesliste!$S$3:$S$150,1) -> 4 | F8: =+COUNTIF(Abschusstagesliste!$S$3:$S$150,-1) -> 3 | G8: =+E8-F8 -> 1 | H8: =+B8*(HARMEAN(IF($B$5=0,1,$B$5),IF($B$6=0,1,$B$6),IF($B$7=0,1,$B$7),IF($B$8=0,1,$B$8),IF($B$9=0,1,$B$9)))/10 -> 4.9 | I8: =+IF(B8=0,"-",ROUND(((E8/B8-F8/B8)*100+D8/10)*H8,3)) -> 151.06 | J8: =IF(B8=0,"ng",RANK(I8,$I$5:$I$10)) -> 4
A9: Zorro | B9: =+COUNT(Abschusstagesliste!$I$3:$I$150) -> 7 | C9: =+SUM(Abschusstagesliste!$I$3:$I$150) -> 1059 | D9: =+C9/IF((B9)<>0,B9,1) -> 151.2857143 | E9: =+COUNTIF(Abschusstagesliste!$W$3:$W$150,1) -> 3 | F9: =+COUNTIF(Abschusstagesliste!$W$3:$W$150,-1) -> 4 | G9: =+E9-F9 -> -1 | H9: =+B9*(HARMEAN(IF($B$5=0,1,$B$5),IF($B$6=0,1,$B$6),IF($B$7=0,1,$B$7),IF($B$8=0,1,$B$8),IF($B$9=0,1,$B$9)))/10 -> 4.9 | I9: =+IF(B9=0,"-",ROUND(((E9/B9-F9/B9)*100+D9/10)*H9,3)) -> 4.13 | J9: =IF(B9=0,"ng",RANK(I9,$I$5:$I$10)) -> 5
A10: Marc | B10: =+COUNT(Abschusstagesliste!$K$3:$K$150) -> 7 | C10: =+SUM(Abschusstagesliste!$K$3:$K$150) -> 966 | D10: =+C10/IF((B10)<>0,B10,1) -> 138 | E10: =+COUNTIF(Abschusstagesliste!$Y$3:$Y$150,1) -> 1 | F10: =+COUNTIF(Abschusstagesliste!$Y$3:$Y$150,-1) -> 6 | G10: =+E10-F10 -> -5 | H10: =+B10*(HARMEAN(IF($B$5=0,1,$B$5),IF($B$6=0,1,$B$6),IF($B$7=0,1,$B$7),IF($B$8=0,1,$B$8),IF($B$9=0,1,$B$9)))/10 -> 4.9 | I10: =+IF(B10=0,"-",ROUND(((E10/B10-F10/B10)*100+D10/10)*H10,3)) -> -282.38 | J10: =IF(B10=0,"ng",RANK(I10,$I$5:$I$10)) -> 6
A13: letztes Spieledatum: | B13: =+'Die Besten'!B12 -> 08.08.2026
A16: Wertungsformel:
B17: =+'Die Besten'!B18 -> (Siege-Niederlagen) / Spiele * 100 + Abschussdurchschnitt/10 * Harmonischen Mittelwert aller gewerteten Spiele

Sheet Spiel_Team
A1: Spiel / Team | C1: =+Spielauswahl!H9 -> AoM
A2: Auslosung für Spiel Nr. | C2: =+IF(C1="Starcraft", "II","") ->  | G2: ( Neue Teamauswahl mit STRG - t)
A3: =+'Auswertung AoE II'!B106+'Auswertung AoE III'!B106+'Auswertung RA'!B106+'Auswertung Yuri'!B106+'Auswertung AoM'!B106+'Auswertung Generals'!B106+1 -> 38 | C3: =+IF(C1="Command & Conquer Gold",#REF!,0) -> 0
C4: =+INDIRECT("'Kartenauswahl "&C1&"'!H9") -> Zufall
G5: ( Neues Spiel/Team: STRG - y ) | J5: ausgesetzt haben: Spiel / Spieler | T5: 0 Minuten 2 Sekunden
A8: Heute am | I8: 1
A9: =+'Die Besten'!B12 -> 08.08.2026 | I9: 2
A10: sind dabei: | I10: 3
I11: 4
H12: =+IF(ISNA(VLOOKUP(H13,('Die Besten'!$A$5:$K$9),13,FALSE))=TRUE,0,VLOOKUP(H13,('Die Besten'!$A$5:$K$9),13,FALSE)) -> 0 | I12: 5
B13: The Wolf | C13: Mike | D13: Big Boss | E13: Groo | F13: Marc | G13: Zorro | I13: 6
I14: 7
B15: =+HLOOKUP(B13,Teamwahl!$B$14:$L$17,3,0) -> Team A | C15: =+HLOOKUP(C13,Teamwahl!$B$14:$L$17,3,0) -> Team A | D15: =+HLOOKUP(D13,Teamwahl!$B$14:$L$17,3,0) -> Team A | E15: =+HLOOKUP(E13,Teamwahl!$B$14:$L$17,3,0) -> Team B | F15: =+HLOOKUP(F13,Teamwahl!$D$14:$N$17,3,0) -> Team B | G15: =+HLOOKUP(G13,Teamwahl!$D$14:$N$17,3,0) -> Team B | I15: 8
I16: 9
B17: =+IFERROR(HLOOKUP(B13,Teamwahl!$B$14:$L$17,4,0),"") -> Ägypter: Isis | C17: =+IFERROR(HLOOKUP(C13,Teamwahl!$B$14:$L$17,4,0),"") -> Griechen: Zeus | D17: =+IFERROR(HLOOKUP(D13,Teamwahl!$B$14:$L$17,4,0),"") -> Griechen: Hades | E17: =+IFERROR(HLOOKUP(E13,Teamwahl!$B$14:$L$17,4,0),"") -> Griechen: Hades | F17: =+IFERROR(HLOOKUP(F13,Teamwahl!$D$14:$N$17,4,0),"") -> Griechen: Zeus | G17: =+IFERROR(HLOOKUP(G13,Teamwahl!$D$14:$N$17,4,0),"") -> Ägypter: Isis | H17: =+Teamwahl!I11 -> 0 | I17: 10
A18: =+_xlfn.CONCAT("Tabellenplatz in ",C1) -> Tabellenplatz in AoM | B18: =+_xlfn._xlws.FILTER(INDEX(INDIRECT("'Bestenliste "&$C$1&"'!"&"$A$5:$M$10"),_xlfn.SEQUENCE(6),{10}),INDIRECT("'Bestenliste "&$C$1&"'!"&"$A$5:$a$10")=B13) -> 3 | C18: =+_xlfn._xlws.FILTER(INDEX(INDIRECT("'Bestenliste "&$C$1&"'!"&"$A$5:$M$10"),_xlfn.SEQUENCE(6),{10}),INDIRECT("'Bestenliste "&$C$1&"'!"&"$A$5:$a$10")=C13) -> 1 | D18: =+_xlfn._xlws.FILTER(INDEX(INDIRECT("'Bestenliste "&$C$1&"'!"&"$A$5:$M$10"),_xlfn.SEQUENCE(6),{10}),INDIRECT("'Bestenliste "&$C$1&"'!"&"$A$5:$a$10")=D13) -> 2 | E18: =+_xlfn._xlws.FILTER(INDEX(INDIRECT("'Bestenliste "&$C$1&"'!"&"$A$5:$M$10"),_xlfn.SEQUENCE(6),{10}),INDIRECT("'Bestenliste "&$C$1&"'!"&"$A$5:$a$10")=E13) -> 4 | F18: =+IFERROR(_xlfn._xlws.FILTER(INDEX(INDIRECT("'Bestenliste "&$C$1&"'!"&"$A$5:$M$10"),_xlfn.SEQUENCE(6),{10}),INDIRECT("'Bestenliste "&$C$1&"'!"&"$A$5:$a$10")=F13),"") -> 5 | G18: =+IFERROR(_xlfn._xlws.FILTER(INDEX(INDIRECT("'Bestenliste "&$C$1&"'!"&"$A$5:$M$10"),_xlfn.SEQUENCE(6),{10}),INDIRECT("'Bestenliste "&$C$1&"'!"&"$A$5:$a$10")=G13),"") -> 6 | H18: =+IF(H13<>0,IF(#REF!="NG","Neu im Pokal",#REF!),0) -> 0 | I18: 11
I19: 12
I20: 13
I21: 14
A22: Startbedingungen: | B22: =+_xlfn._xlws.FILTER(B104:L104,B102:L102=Spielauswahl!H9) -> Spieltyp: Eroberung; es dürfen keine Titanen gebaut werden !; Sieger ist das Team mit den meisten Punkten nach 55 Minuten Spielzeit | I22: 15
A23: =+IF($C$1="Red Alert 2","Amerika - Fallschirmspringer",0) -> 0 | I23: 16
I24: 17
I25: 18
I26: 19
I27: 20
A28: AoE III | B28: =+INDIRECT("'Auswertung "&A28&"'!"&"b106")&IF($B$106>1," Spiel"," Spiele") -> 5 Spiele
A29: AoM | B29: =+INDIRECT("'Auswertung "&A29&"'!"&"b106")&IF($B$106>1," Spiel"," Spiele") -> 6 Spiele
A30: Yuri | B30: =+INDIRECT("'Auswertung "&A30&"'!"&"b106")&IF($B$106>1," Spiel"," Spiele") -> 6 Spiele
A31: Generals | B31: =+INDIRECT("'Auswertung "&A31&"'!"&"b106")&IF($B$106>1," Spiel"," Spiele") -> 6 Spiele
A32: RA | B32: =+INDIRECT("'Auswertung "&A32&"'!"&"b106")&IF($B$106>1," Spiel"," Spiele") -> 7 Spiele
A33: AoE II | B33: =+INDIRECT("'Auswertung "&A33&"'!"&"b106")&IF($B$106>1," Spiel"," Spiele") -> 7 Spiele
I71: 0
A100: Startbedingungen der Spiele:
A101: 66.0546875
B102: AoE II | D102: AoE III | F102: AoM | H102: Generals | J102: RA | L102: Yuri
B104: Startzeitalter: Post-Imperiale Zeit; Zeitlimit: 900 Jahre | D104: Startzeitalter = Kolonialzeitalter; Wertung nach 55 Minuten. | F104: Spieltyp: Eroberung; es dürfen keine Titanen gebaut werden !; Sieger ist das Team mit den meisten Punkten nach 55 Minuten Spielzeit | H104: Startkapital: 10000; begrenzte Superwaffen. | J104: Startkapital: 6500; Einheiten: 5; Techstufe 10; Stützpunkte; Erz breitet sich aus; Keine Kisten; Kann der Bauhof gesetzt werden, so muss gespielt werden. | L104: Einheiten: 4; Startkapital: 6500; Neben Bauhöfen Verbündeter bauen erlaubt; Kisten: aus
B122: Romans | C122: Cumans | D122: Romans
B123: Franken | C123: Gurjaras | D123: Franken
B124: Gurjaras | C124: Mongolen | D124: Gurjaras
B125: Chinesen | C125: Türken | D125: Türken
B126: Äthiopier | C126: Tatars | D126: Tatars
B127: Romans | C127: Romans | D127: Chinesen
B128: Inkas | C128: Inkas | D128: Mayans
B129: Chinesen | C129: Chinesen | D129: Sicilians
B130: Bohemians | C130: Romans | D130: Romans
B131: Cumans | C131: Bengalis | D131: Bengalis
B132: Japaner | C132: Türken | D132: Japaner
B133: Berber | C133: Spanier | D133: Berber
B134: Inkas | C134: Cumans | D134: Inkas
B135: Burmese | C135: Burmese | D135: Äthiopier
B136: Japaner | C136: Tatars | D136: Japaner
B137: Japaner | C137: Japaner | D137: Tatars
B138: Goten | C138: Hindustanis | D138: Hindustanis
B139: Hunnen | C139: Hunnen | D139: Malay
B140: Wikinger | C140: Wikinger | D140: Koreaner
B141: Malian | C141: Gurjaras | D141: Gurjaras
B142: Sarazenen | C142: Poles | D142: Poles
B143: Perser | C143: Portugiesen | D143: Portugiesen
B144: Malay | C144: Bengalis | D144: Bengalis
B145: Italiener | C145: Khmer | D145: Italiener
B146: Chinesen | C146: Kelten | D146: Chinesen
B147: Azteken | C147: Berber | D147: Berber
B148: Lithuanians | C148: Hunnen | D148: Hunnen
B149: Sicilians | C149: Sicilians | D149: Tatars
B150: Mongolen | C150: Mongolen | D150: Poles
B151: Poles | C151: Romans | D151: Poles
B152: Malay | C152: Malay | D152: Malian
B153: Bulgarians | C153: Perser | D153: Bulgarians
B154: Azteken | C154: Azteken | D154: Italiener
B155: Japaner | C155: Koreaner | D155: Koreaner
B156: Azteken | C156: Italiener | D156: Italiener
B157: Cumans | C157: Malian | D157: Cumans
B158: Berber | C158: Inkas | D158: Inkas
B159: Magyars | C159: Franken | D159: Franken
B160: Romans | C160: Spanier | D160: Romans
B161: Malian | C161: Malian | D161: Koreaner
B162: Berber | C162: Berber | D162: Inkas
B163: Romans | C163: Chinesen | D163: Chinesen
B164: Türken | C164: Türken | D164: Äthiopier
B165: Burgundians | C165: Malian | D165: Malian
B166: Mayans | C166: Mayans | D166: Berber
B167: Gurjaras | C167: Gurjaras | D167: Sicilians
B168: Magyars | C168: Magyars | D168: Sicilians
B169: Inkas | C169: Kelten | D169: Kelten
B170: Wikinger | C170: Vietnamesen | D170: Wikinger
B171: Sarazenen | C171: Sarazenen | D171: Malian
B172: Berber | C172: Britons | D172: Britons
B173: Portugiesen | C173: Romans | D173: Romans
B174: Hindustanis | C174: Poles | D174: Hindustanis
B175: Äthiopier | C175: Slawen | D175: Slawen
B176: Bulgarians | C176: Bulgarians | D176: Mongolen
B177: Mayans | C177: Mayans | D177: Magyars
B178: Slawen | C178: Slawen | D178: Perser
B179: Sarazenen | C179: Sarazenen | D179: Äthiopier
B180: Mongolen | C180: Chinesen | D180: Chinesen
B181: Mongolen | C181: Bulgarians | D181: Bulgarians
B182: Cumans | C182: Koreaner | D182: Koreaner
B183: Hindustanis | C183: Teutonen | D183: Teutonen
B184: Malian | C184: Teutonen | D184: Teutonen
B185: Vietnamesen | C185: Vietnamesen | D185: Britons
B186: Burmese | C186: Kelten | D186: Kelten
B187: Mongolen | C187: Spanier | D187: Spanier
B188: Mayans | C188: Türken | D188: Mayans
B189: Khmer | C189: Hunnen | D189: Khmer
B190: Slawen | C190: Slawen | D190: Bohemians
B191: Byzantiner | C191: Byzantiner | D191: Lithuanians
B192: Sarazenen | C192: Türken | D192: Türken
B193: Goten | C193: Hunnen | D193: Goten
B194: Malay | C194: Azteken | D194: Malay
B195: Dravidians | C195: Dravidians | D195: Mongolen
B196: Bengalis | C196: Bengalis | D196: Hunnen
B197: Hindustanis | C197: Spanier | D197: Hindustanis
B198: Khmer | C198: Khmer | D198: Poles
B199: Franken | C199: Azteken | D199: Azteken
B200: Portugiesen | C200: Portugiesen | D200: Sicilians
B201: Vietnamesen | C201: Italiener | D201: Italiener
B202: Tatars | C202: Tatars | D202: Malian
B203: Malay | C203: Cumans | D203: Malay
B204: Kelten | C204: Inkas | D204: Inkas
B205: Spanier | C205: Malian | D205: Malian
B206: Burgundians | C206: Lithuanians | D206: Lithuanians
B207: Franken | C207: Franken | D207: Byzantiner
B208: Dravidians | C208: Dravidians | D208: Wikinger
B209: Britons | C209: Chinesen | D209: Chinesen
B210: Poles | C210: Britons | D210: Poles
B211: Burgundians | C211: Lithuanians | D211: Lithuanians
B212: Poles | C212: Gurjaras | D212: Poles
B213: Burgundians | C213: Sicilians | D213: Burgundians
B214: Bohemians | C214: Bulgarians | D214: Bulgarians
B215: Koreaner | C215: Perser | D215: Koreaner
B216: Vietnamesen | C216: Vietnamesen | D216: Kelten
B217: Dravidians | C217: Dravidians | D217: Azteken
B218: Inkas | C218: Inkas | D218: Romans
B219: Burmese | C219: Teutonen | D219: Teutonen
B220: Berber | C220: Berber | D220: Sicilians
B221: Inkas | C221: Inkas | D221: Teutonen

Sheet Teamwahl
A1: =+"ausgelostes Spiel: "& Spielauswahl!H9 -> ausgelostes Spiel: AoM
C3: 6 | L3: Team A | O3: Team B | Q3: zufällige Reihenfolge der Völker | R3: die neue Reihenfolge zusammengefasst | S3: die Spieler direkt untereinander | T3: Volk passend
B4: Spieler | C4: VBA Zufallszahl | D4: Team | E4: Volk | F4: Zufallszahl nach Spielernanzahl | G4: Team | V4: 2
A5: =+_xlfn.SORTBY(_xlfn.SEQUENCE(COUNTIF(B5:B10,"*")),_xlfn.RANDARRAY(COUNTIF(B5:B10,"*"))) -> 1 | B5: =+Spiel_Team!B13 -> The Wolf | C5: 6 | D5: =+IF(ISEVEN(F5)=FALSE,"Team A", "Team B") -> Team A | E5: 9 | F5: =+_xlfn.SORTBY(_xlfn.SEQUENCE(COUNTIF(B5:B10,"*")),_xlfn.RANDARRAY(COUNTIF(B5:B10,"*"))) -> 5 | G5: =IF(COUNT($A$5:$A$10)=5,IF(F5=5,"aussetzen",D5),D5) -> Team A | H5: =+B5 -> The Wolf | J5: =INDEX(C5:C10,RANDBETWEEN(1,COUNT(C5:C10))) -> 9 | K5: 0 | L5: =+IF(G5=$L$3,H5,"") -> The Wolf | M5: =+IF(L5="","",VLOOKUP(N5,$A$20:P202,2,0)) -> Ägypter: Isis | N5: =+IF(L5="","",INDEX($A$20:(INDIRECT("a$"&COUNT($A$20:$A$64)+19)), MATCH(LARGE($N$20:(INDIRECT("n$"&COUNT($A$20:$A$64)+19)),V4), $N$20:INDIRECT("n$"&COUNT($A$20:$A$64)+19), 0))) -> 8 | O5: =+IF(G5=$O$3,H5,"") ->  | P5: =+IFERROR(VLOOKUP(O5,$S$5:$T$7,2,0),"") ->  | Q5: =_xlfn.LET(_xlpm.v,N5:N10:INDEX(N5:N10,MATCH(TRUE,INDEX(N5:N10="",0),0)-1), _xlfn.SORTBY(_xlpm.v,_xlfn.RANDARRAY(ROWS(_xlpm.v)))) ->  | R5: =INDEX($Q$5:$Q$10, SMALL(IF(ISNUMBER($Q$5:$Q$10), ROW($Q$5:$Q$10)-MIN(ROW($Q$5:$Q$10))+1), 1)) -> 4 | S5: =+INDEX(O5:O10,MATCH(TRUE,O5:O10<>"",0)) -> Groo | T5: =+VLOOKUP(R5,$A$20:$B$64,2,0) -> Griechen: Hades | V5: 1
A6: 3 | B6: =+Spiel_Team!C13 -> Mike | C6: 7 | D6: =+IF(ISEVEN(F6)=FALSE,"Team A", "Team B") -> Team A | E6: 8 | F6: 3 | G6: Team A | H6: Mike | J6: =INDEX($C$5:$C$10,RANDBETWEEN(1,COUNT($C$5:$C$10))) -> 6 | K6: 0 | L6: Mike | M6: =+IF(L6="","",VLOOKUP(N6,$A$20:$B$64,2,0)) -> Griechen: Zeus | N6: =+IF(L6="","",INDEX($A$20:(INDIRECT("a$"&COUNT($A$20:$A$64)+19)), MATCH(LARGE($N$20:(INDIRECT("n$"&COUNT($A$20:$A$64)+19)),V5), $N$20:INDIRECT("n$"&COUNT($A$20:$A$64)+19), 0))) -> 10 | Q6: 4 | R6: =INDEX($Q$5:$Q$10, SMALL(IF(ISNUMBER($Q$5:$Q$10), ROW($Q$5:$Q$10)-MIN(ROW($Q$5:$Q$10))+1), 2)) -> 10 | S6: =+INDEX(O5:O10, SMALL(IF(O5:O10<>"", ROW(O5:O10)-MIN(ROW(O5:O10))+1), 2)) -> Marc | T6: =+VLOOKUP(R6,$A$20:$B$64,2,0) -> Griechen: Zeus | V6: 3
A7: 4 | B7: =+Spiel_Team!D13 -> Big Boss | C7: 4 | D7: =+IF(ISEVEN(F7)=FALSE,"Team A", "Team B") -> Team A | E7: 1 | F7: 1 | G7: Team A | H7: Big Boss | J7: =INDEX($C$5:$C$10,RANDBETWEEN(1,COUNT($C$5:$C$10))) -> 6 | K7: 0 | L7: Big Boss | M7: =+IF(L7="","",VLOOKUP(N7,$A$20:$B$64,2,0)) -> Griechen: Hades | N7: =+IF(L7="","",INDEX($A$20:(INDIRECT("a$"&COUNT($A$20:$A$64)+19)), MATCH(LARGE($N$20:(INDIRECT("n$"&COUNT($A$20:$A$64)+19)),V6), $N$20:INDIRECT("n$"&COUNT($A$20:$A$64)+19), 0))) -> 4 | R7: =INDEX($Q$5:$Q$10, SMALL(IF(ISNUMBER($Q$5:$Q$10), ROW($Q$5:$Q$10)-MIN(ROW($Q$5:$Q$10))+1), 3)) -> 8 | S7: =+INDEX(O5:O10, SMALL(IF(O5:O10<>"", ROW(O5:O10)-MIN(ROW(O5:O10))+1), 3)) -> Zorro | T7: =+VLOOKUP(R7,$A$20:$B$64,2,0) -> Ägypter: Isis | V7: 6
A8: 5 | B8: =+Spiel_Team!E13 -> Groo | C8: 9 | D8: =+IF(ISEVEN(F8)=FALSE,"Team A", "Team B") -> Team B | E8: 6 | F8: 4 | G8: Team B | H8: Groo | J8: =INDEX($C$5:$C$10,RANDBETWEEN(1,COUNT($C$5:$C$10))) -> 6 | K8: 0 | M8: =+IF(L8="","",VLOOKUP(N8,$A$20:$B$64,2,0)) ->  | N8: =+IF(L8="","",INDEX($A$20:(INDIRECT("a$"&COUNT($A$20:$A$64)+19)), MATCH(LARGE($N$20:(INDIRECT("n$"&COUNT($A$20:$A$64)+19)),V7), $N$20:INDIRECT("n$"&COUNT($A$20:$A$64)+19), 0))) ->  | O8: Groo | P8: Griechen: Hades | V8: 5
A9: 6 | B9: =+Spiel_Team!F13 -> Marc | D9: =+IF(F9="","",IF(ISEVEN(F9)=FALSE,"Team A","Team B")) -> Team B | E9: 4 | F9: 6 | G9: Team B | H9: Marc | J9: =INDEX($C$5:$C$10,RANDBETWEEN(1,COUNT($C$5:$C$10))) -> 7 | K9: 0 | M9: =+IF(L9="","",VLOOKUP(N9,$A$20:$B$64,2,0)) ->  | N9: =+IF(L9="","",INDEX($A$20:(INDIRECT("a$"&COUNT($A$20:$A$64)+19)), MATCH(LARGE($N$20:(INDIRECT("n$"&COUNT($A$20:$A$64)+19)),V8), $N$20:INDIRECT("n$"&COUNT($A$20:$A$64)+19), 0))) ->  | O9: Marc | P9: Griechen: Zeus | Q9: 10 | V9: 4
A10: 2 | B10: =+Spiel_Team!G13 -> Zorro | D10: =+IF(F10="","",IF(ISEVEN(F10)=FALSE,"Team A","Team B")) -> Team B | E10: 10 | F10: 2 | G10: Team B | H10: Zorro | J10: =INDEX($C$5:$C$10,RANDBETWEEN(1,COUNT($C$5:$C$10))) -> 4 | K10: 0 | M10: =+IF(L10="","",VLOOKUP(N10,$A$20:$B$64,2,0)) ->  | N10: =+IF(L10="","",INDEX($A$20:(INDIRECT("a$"&COUNT($A$20:$A$64)+19)), MATCH(LARGE($N$20:(INDIRECT("n$"&COUNT($A$20:$A$64)+19)),V9), $N$20:INDIRECT("n$"&COUNT($A$20:$A$64)+19), 0))) ->  | O10: Zorro | P10: Ägypter: Isis | Q10: 8 | S10: =IF(O10=INDEX(O$5:O$10,MATCH(TRUE,O$5:O$10=0)),"","Neuer Wert") -> 
R13: =+INDIRECT("c$"&COUNT(A20:A60)) -> 0
B14: =+B5 -> The Wolf | D14: =+B6 -> Mike | F14: =+B7 -> Big Boss | H14: =+B8 -> Groo | J14: =+B9 -> Marc | L14: =+B10 -> Zorro
B16: =+IF(ISEVEN(COUNT(A5:A10))=FALSE,IF(F5=5,"aussetzen",VLOOKUP(F5,$F$5:$G$11,2,0)),VLOOKUP(F5,$F$5:$G$11,2,0)) -> Team A | D16: =+IF(ISEVEN(COUNT(A5:A10))=FALSE,IF(F6=5,"aussetzen",VLOOKUP(F6,$F$5:$G$11,2,0)),VLOOKUP(F6,$F$5:$G$11,2,0)) -> Team A | F16: =+IF(ISEVEN(COUNT(A5:A10))=FALSE,IF(F7=5,"aussetzen",VLOOKUP(F7,$F$5:$G$11,2,0)),VLOOKUP(F7,$F$5:$G$11,2,0)) -> Team A | H16: =+IF(ISEVEN(COUNT(A5:A10))=FALSE,IF(F8=5,"aussetzen",VLOOKUP(F8,$F$5:$G$11,2,0)),VLOOKUP(F8,$F$5:$G$11,2,0)) -> Team B | J16: =+IFERROR(IF(ISEVEN(COUNT(A5:A10))=FALSE,IF(F9=5,"aussetzen",VLOOKUP(F9,$F$5:$G$11,2,0)),VLOOKUP(F9,$F$5:$G$11,2,0)),"") -> Team B | L16: =+IFERROR(IF(ISEVEN(COUNT(A5:A10))=FALSE,IF(VLOOKUP(F10,$F$5:$G$11,2,0)=5,"aussetzen",VLOOKUP(F10,$F$5:$G$11,2,0)),VLOOKUP(F10,$F$5:$G$11,2,0)),"") -> Team B
B17: =+IF(B16="Team A",VLOOKUP(B14,L5:M10,2,0),VLOOKUP(B14,O5:P10,2,0)) -> Ägypter: Isis | D17: =+IF(D16="Team A",VLOOKUP(D14,L5:M10,2,0),VLOOKUP(D14,O5:P10,2,0)) -> Griechen: Zeus | F17: =+IF(F16="Team A",VLOOKUP(F14,L5:M10,2,0),VLOOKUP(F14,O5:P10,2,0)) -> Griechen: Hades | H17: =+IF(H16="Team A",VLOOKUP(H14,L5:M10,2,0),VLOOKUP(H14,O5:P10,2,0)) -> Griechen: Hades | J17: =+IF(J16="Team A",VLOOKUP(J14,L5:M10,2,0),VLOOKUP(J14,O5:P10,2,0)) -> Griechen: Zeus | L17: =+IF(L16="Team A",VLOOKUP(L14,L5:M10,2,0),VLOOKUP(L14,O5:P10,2,0)) -> Ägypter: Isis
T19: Indirekt letzte Zelle Anzahl Völker
A20: =+_xlfn.SORTBY(_xlfn.SEQUENCE(COUNTIF(B20:B64,"*")),_xlfn.RANDARRAY(COUNTIF(B20:B64,"*"))) -> 10 | B20: =+_xlfn._xlws.FILTER($B$70:$O$114,$B$68:$O$68=Spielauswahl!H9) -> Griechen: Zeus | D20: =+_xlfn._xlws.FILTER($B$70:$O$114,$B$68:$O$68=Spielauswahl!H9) -> Griechen: Zeus | F20: =+_xlfn._xlws.FILTER($B$70:$O$114,$B$68:$O$68=Spielauswahl!H9) -> Griechen: Zeus | H20: =+_xlfn._xlws.FILTER($B$70:$O$114,$B$68:$O$68=Spielauswahl!H9) -> Griechen: Zeus | J20: =+_xlfn._xlws.FILTER($B$70:$O$114,$B$68:$O$68=Spielauswahl!H9) -> Griechen: Zeus | L20: =+_xlfn._xlws.FILTER($B$70:$O$114,$B$68:$O$68=Spielauswahl!H9) -> Griechen: Zeus | N20: =+RAND() -> 0.9651543071 | P20: =+INDEX($A$20:(INDIRECT("a$"&COUNT($A$20:$A$64)+20)), MATCH(LARGE($N$20:(INDIRECT("n$"&COUNT($A$20:$A$64)+19)),1), $N$20:INDIRECT("n$"&COUNT($A$20:$A$64)+19), 0)) -> 10 | T20: =+INDIRECT("n$"&COUNT($A$20:$A$64)+19) -> 0.2011363869
A21: 4 | B21: Griechen: Hades | D21: Griechen: Hades | F21: Griechen: Hades | H21: Griechen: Hades | J21: Griechen: Hades | L21: Griechen: Hades | N21: =+RAND() -> 0.9309407366 | P21: =+INDEX($A$20:(INDIRECT("a$"&COUNT($A$20:$A$64)+20)), MATCH(LARGE($N$20:(INDIRECT("n$"&COUNT($A$20:$A$64)+19)),2), $N$20:INDIRECT("n$"&COUNT($A$20:$A$64)+19), 0)) -> 8
A22: 5 | B22: Griechen: Poseidon | D22: Griechen: Poseidon | F22: Griechen: Poseidon | H22: Griechen: Poseidon | J22: Griechen: Poseidon | L22: Griechen: Poseidon | N22: 0.8922386168 | P22: =+INDEX($A$20:(INDIRECT("a$"&COUNT($A$20:$A$64)+20)), MATCH(LARGE($N$20:(INDIRECT("n$"&COUNT($A$20:$A$64)+19)),3), $N$20:INDIRECT("n$"&COUNT($A$20:$A$64)+19), 0)) -> 4 | T22: Zufallsbereich zischen 1 und Anzahl der Völker
A23: 2 | B23: Ägypter: Re | D23: Ägypter: Re | F23: Ägypter: Re | H23: Ägypter: Re | J23: Ägypter: Re | L23: Ägypter: Re | N23: 0.6843628469 | T23: =+RANDBETWEEN(1,3) -> 2
A24: 8 | B24: Ägypter: Isis | D24: Ägypter: Isis | F24: Ägypter: Isis | H24: Ägypter: Isis | J24: Ägypter: Isis | L24: Ägypter: Isis | N24: 0.9433790321
A25: 9 | B25: Ägypter: Seth | D25: Ägypter: Seth | F25: Ägypter: Seth | H25: Ägypter: Seth | J25: Ägypter: Seth | L25: Ägypter: Seth | N25: 0.5313086313
A26: 6 | B26: Wikinger: Thor | D26: Wikinger: Thor | F26: Wikinger: Thor | H26: Wikinger: Thor | J26: Wikinger: Thor | L26: Wikinger: Thor | N26: 0.2047938399
A27: 1 | B27: Wikinger: Odin | D27: Wikinger: Odin | F27: Wikinger: Odin | H27: Wikinger: Odin | J27: Wikinger: Odin | L27: Wikinger: Odin | N27: 0.6914088968
A28: 7 | B28: Wikinger: Loki | D28: Wikinger: Loki | F28: Wikinger: Loki | H28: Wikinger: Loki | J28: Wikinger: Loki | L28: Wikinger: Loki | N28: 0.5677047274
A29: 12 | B29: Atlanter: Kronos | D29: Atlanter: Kronos | F29: Atlanter: Kronos | H29: Atlanter: Kronos | J29: Atlanter: Kronos | L29: Atlanter: Kronos | N29: 0.09415372601
A30: 3 | B30: Atlanter: Uranos | D30: Atlanter: Uranos | F30: Atlanter: Uranos | H30: Atlanter: Uranos | J30: Atlanter: Uranos | L30: Atlanter: Uranos | N30: 0.8412722712
A31: 11 | B31: Atlanter: Gaia | D31: Atlanter: Gaia | F31: Atlanter: Gaia | H31: Atlanter: Gaia | J31: Atlanter: Gaia | L31: Atlanter: Gaia | N31: 0.2011363869
B32: 0 | D32: 0 | F32: 0 | H32: 0 | J32: 0 | L32: 0 | N32: 0.6939516051
B33: 0 | D33: 0 | F33: 0 | H33: 0 | J33: 0 | L33: 0 | N33: 0.9990279014
B34: 0 | D34: 0 | F34: 0 | H34: 0 | J34: 0 | L34: 0 | N34: 0.9202584105
B35: 0 | D35: 0 | F35: 0 | H35: 0 | J35: 0 | L35: 0 | N35: 0.6309012675
B36: 0 | D36: 0 | F36: 0 | H36: 0 | J36: 0 | L36: 0 | N36: 0.3789412405
B37: 0 | D37: 0 | F37: 0 | H37: 0 | J37: 0 | L37: 0 | N37: 0.4719995808
B38: 0 | D38: 0 | F38: 0 | H38: 0 | J38: 0 | L38: 0 | N38: 0.9646333535
B39: 0 | D39: 0 | F39: 0 | H39: 0 | J39: 0 | L39: 0 | N39: 0.6381786268
B40: 0 | D40: 0 | F40: 0 | H40: 0 | J40: 0 | L40: 0 | N40: 0.6145819054
B41: 0 | D41: 0 | F41: 0 | H41: 0 | J41: 0 | L41: 0 | N41: 0.721683548
B42: 0 | D42: 0 | F42: 0 | H42: 0 | J42: 0 | L42: 0 | N42: 0.7347308656
B43: 0 | D43: 0 | F43: 0 | H43: 0 | J43: 0 | L43: 0 | N43: 0.6057277052
B44: 0 | D44: 0 | F44: 0 | H44: 0 | J44: 0 | L44: 0 | N44: 0.05248556928
B45: 0 | D45: 0 | F45: 0 | H45: 0 | J45: 0 | L45: 0 | N45: 0.4009075835
B46: 0 | D46: 0 | F46: 0 | H46: 0 | J46: 0 | L46: 0 | N46: 0.1096918188
B47: 0 | D47: 0 | F47: 0 | H47: 0 | J47: 0 | L47: 0 | N47: 0.7029418722
B48: 0 | D48: 0 | F48: 0 | H48: 0 | J48: 0 | L48: 0 | N48: 0.911561338
B49: 0 | D49: 0 | F49: 0 | H49: 0 | J49: 0 | L49: 0 | N49: 0.3047221351
B50: 0 | D50: 0 | F50: 0 | H50: 0 | J50: 0 | L50: 0 | N50: 0.1769351513
B51: 0 | D51: 0 | F51: 0 | H51: 0 | J51: 0 | L51: 0 | N51: 0.5814405986
B52: 0 | D52: 0 | F52: 0 | H52: 0 | J52: 0 | L52: 0 | N52: 0.09421477287
B53: 0 | D53: 0 | F53: 0 | H53: 0 | J53: 0 | L53: 0 | N53: 0.881987023
B54: 0 | D54: 0 | F54: 0 | H54: 0 | J54: 0 | L54: 0 | N54: 0.7691417224
B55: 0 | D55: 0 | F55: 0 | H55: 0 | J55: 0 | L55: 0 | N55: 0.6306329915
B56: 0 | D56: 0 | F56: 0 | H56: 0 | J56: 0 | L56: 0 | N56: 0.4654133937
B57: 0 | D57: 0 | F57: 0 | H57: 0 | J57: 0 | L57: 0 | N57: 0.7707683713
B58: 0 | D58: 0 | F58: 0 | H58: 0 | J58: 0 | L58: 0 | N58: 0.2783767512
B59: 0 | D59: 0 | F59: 0 | H59: 0 | J59: 0 | L59: 0 | N59: 0.8104813736
B60: 0 | D60: 0 | F60: 0 | H60: 0 | J60: 0 | L60: 0 | N60: 0.5955185786
B61: 0 | D61: 0 | F61: 0 | H61: 0 | J61: 0 | L61: 0 | N61: 0.9746449708
B62: 0 | D62: 0 | F62: 0 | H62: 0 | J62: 0 | L62: 0 | N62: 0.4708684463
B63: 0 | D63: 0 | F63: 0 | H63: 0 | J63: 0 | L63: 0 | N63: 0.6721516559
B64: 0 | D64: 0 | F64: 0 | H64: 0 | J64: 0 | L64: 0 | N64: 0.1009508345
B68: AoE II | D68: AoE III | F68: AoM | H68: Generals | J68: RA | L68: Yuri
A70: 1 | B70: Armenians | C70: 1 | D70: Spanier | E70: 1 | F70: Griechen: Zeus | G70: 1 | H70: AP | I70: 1 | J70: Allianz | K70: 1 | L70: Amerika
A71: 2 | B71: Äthiopier | C71: 2 | D71: Russen | E71: 2 | F71: Griechen: Hades | G71: 2 | H71: IBG | I71: 2 | J71: Soviets | K71: 2 | L71: Korea
A72: 3 | B72: Azteken | C72: 3 | D72: Portugiesen | E72: 3 | F72: Griechen: Poseidon | G72: 3 | H72: WA | I72: 3 | J72: Allianz | K72: 3 | L72: Frankreich
A73: 4 | B73: Bengalis | C73: 4 | D73: Osmanen | E73: 4 | F73: Ägypter: Re | G73: 4 | H73: AP | I73: 4 | J73: Soviets | K73: 4 | L73: Deutschland
A74: 5 | B74: Berber | C74: 5 | D74: Deutsche | E74: 5 | F74: Ägypter: Isis | G74: 5 | H74: IBG | I74: 5 | J74: Allianz | K74: 5 | L74: Great Britain
A75: 6 | B75: Bohemians | C75: 6 | D75: Franzosen | E75: 6 | F75: Ägypter: Seth | G75: 6 | H75: WA | I75: 6 | J75: Soviets | K75: 6 | L75: Lybien
A76: 7 | B76: Britons | C76: 7 | D76: Holländer | E76: 7 | F76: Wikinger: Thor | K76: 7 | L76: Irak
A77: 8 | B77: Bulgarians | C77: 8 | D77: Briten | E77: 8 | F77: Wikinger: Odin | K77: 8 | L77: Kuba
A78: 9 | B78: Burgundians | C78: 9 | D78: Azteken | E78: 9 | F78: Wikinger: Loki | K78: 9 | L78: Russland
A79: 10 | B79: Burmese | C79: 10 | D79: Irokesen | E79: 10 | F79: Atlanter: Kronos | K79: 10 | L79: Yuri
A80: 11 | B80: Byzantiner | C80: 11 | D80: Sioux | E80: 11 | F80: Atlanter: Uranos
A81: 12 | B81: Chinesen | C81: 12 | D81: Japan | E81: 12 | F81: Atlanter: Gaia
A82: 13 | B82: Cumans | C82: 13 | D82: China
A83: 14 | B83: Dravidians | C83: 14 | D83: Indien
A84: 15 | B84: Franken
A85: 16 | B85: Georgians
A86: 17 | B86: Goten
A87: 18 | B87: Gurjaras
A88: 19 | B88: Hindustanis
A89: 20 | B89: Hunnen
A90: 21 | B90: Inkas
A91: 22 | B91: Italiener
A92: 23 | B92: Japaner
A93: 24 | B93: Kelten
A94: 25 | B94: Khmer
A95: 26 | B95: Koreaner
A96: 27 | B96: Lithuanians
A97: 28 | B97: Magyars
A98: 29 | B98: Malay
A99: 30 | B99: Malian
A100: 31 | B100: Mayans
A101: 32 | B101: Mongolen
A102: 33 | B102: Perser
A103: 34 | B103: Poles
A104: 35 | B104: Portugiesen
A105: 36 | B105: Romans
A106: 37 | B106: Sarazenen
A107: 38 | B107: Sicilians
A108: 39 | B108: Slawen
A109: 40 | B109: Spanier
A110: 41 | B110: Tatars
A111: 42 | B111: Teutonen
A112: 43 | B112: Türken
A113: 44 | B113: Vietnamesen
A114: 45 | B114: Wikinger
A159: WK
A160: Azteken
A161: Berber
A162: Birmanen
A163: Briten
A164: Byzantiner
A165: Chinesen
A166: Franken
A167: Goten
A168: Hunnen
A169: Inder
A170: Inkas
A171: Italiener
A172: Japaner
A173: Kelten
A174: Khmer
A175: Malaien
A176: Malier
A177: Maya
A178: Mongolen
A179: Perser
A180: Portugiesen
A181: Sarazenen
A182: Slawen
A183: Spanier
A184: Teutonen
A185: Türken
A186: Ungarn
A187: Vietnamesen
A188: Wikinger
A189: Äthiopier
A190: Koreaner

Sheet Spielauswahl
A1: Spielauswahl | H1: Spielauswahl
B2: Spiel
A4: 1 | B4: AoE II
A5: 2 | B5: AoE III | H5: Nächstes Spiel
A6: 3 | B6: AoM
A7: 4 | B7: RA | E7: 3
A8: 5 | B8: Yuri
A9: 6 | B9: Generals | H9: =+VLOOKUP(INT(E7),A4:B9,2,0) -> AoM
A19: 1
A20: 2
A21: 5
A99: 2

Sheet Grafikauswertung

Sheet Auswertung AoE II
A1: AoE II
B2: Völker | P2: Siege / Niederlagen
B4: The Wolf | D4: Mike | F4: Big Boss | H4: Groo | J4: Zorro | L4: Marc | N4: Datum | P4: The Wolf | R4: Mike | T4: Big Boss | V4: Groo | X4: Zorro | Z4: Marc | AB4: Karte | AD4: Spiel Nr.
A5: 1 | B5: 106 | C5: Berb | D5: 71 | E5: Burg | F5: 111 | G5: Berb | H5: 71 | I5: Rom | J5: 63 | K5: Rom | L5: 57 | M5: Burg | N5: 10.06.2026 | P5: -1 | R5: 1 | T5: 1 | V5: 1 | X5: -1 | Z5: -1 | AB5: Zufall | AD5: 4 | AE5: AoE II
A6: 2 | B6: 110 | C6: Hun | D6: 228 | E6: Hun | F6: 325 | G6: Inka | H6: 337 | I6: Inka | J6: 298 | K6: Sici | L6: 204 | M6: Sici | P6: 1 | R6: -1 | T6: -1 | V6: 1 | X6: -1 | Z6: 1 | AB6: Zufall | AD6: 9 | AE6: AoE II
A7: 3 | B7: 51 | C7: Berb | D7: 91 | E7: Burg | F7: 55 | G7: Berb | H7: 96 | I7: Groo | J7: 13 | K7: Geo | L7: 64 | M7: Burg | N7: 2026-06-11 | P7: 1 | R7: -1 | T7: -1 | V7: 1 | X7: -1 | Z7: 1 | AB7: Zufall | AD7: 14 | AE7: AoE II
A8: 4 | B8: 254 | C8: Khmer | D8: 194 | E8: Khmer | F8: 247 | G8: Jap | H8: 379 | I8: Inka | J8: 183 | K8: Jap | L8: 211 | M8: Inka | P8: 1 | R8: -1 | T8: -1 | V8: 1 | X8: 1 | Z8: -1 | AB8: Zufall | AD8: 20 | AE8: AoE II
A9: 5 | B9: 269 | C9: Port | D9: 369 | E9: Cumans | F9: 141 | G9: Cumans | H9: 441 | I9: Frank | J9: 379 | K9: Fran | L9: 402 | M9: Port | N9: 12.06.2026 | P9: 1 | R9: 1 | T9: -1 | V9: 1 | X9: -1 | Z9: -1 | AB9: Zufall | AD9: 24 | AE9: AoE II
A10: 6 | B10: 164 | C10: Byz | D10: 183 | E10: Viet | F10: 227 | G10: BYz | H10: 168 | I10: Viet | P10: -1 | R10: 1 | T10: 1 | V10: -1 | AB10: Zufall | AD10: 30 | AE10: AoE II
A11: 7 | B11: 240 | C11: Sar | D11: 205 | E11: Slaw | F11: 212 | G11: Sar | H11: 115 | I11: Beng | J11: 236 | K11: Beng | L11: 114 | M11: Slaw | N11: 08.08.2026 | P11: 1 | R11: 1 | T11: -1 | V11: 1 | X11: -1 | Z11: -1 | AB11: Zufall | AD11: 33 | AE11: AoE II
A12: 8 | AE12: AoE II
A13: 9 | AE13: AoE II
A14: 10 | AE14: AoE II
A15: 11 | AE15: AoE II
A16: 12 | AE16: AoE II
A17: 13 | AE17: AoE II
A18: 14 | AE18: AoE II
A19: 15 | AE19: AoE II
A20: 16 | AE20: AoE II
A21: 17 | AE21: AoE II
A22: 18 | AE22: AoE II
A23: 19 | AE23: AoE II
A24: 20 | AE24: AoE II
A25: 21 | AE25: AoE II
A26: 22 | AE26: AoE II
A27: 23 | AE27: AoE II
A28: 24 | AE28: AoE II
A29: 25 | AE29: AoE II
A30: 26 | AE30: AoE II
A31: 27 | AE31: AoE II
A32: 28 | AE32: AoE II
A33: 29 | AE33: AoE II
A34: 30 | AE34: AoE II
A35: 31 | AE35: AoE II
A36: 32 | AE36: AoE II
A37: 33 | AE37: AoE II
A38: 34 | AE38: AoE II
A39: 35 | AE39: AoE II
A40: 36 | AE40: AoE II
A41: 37 | AE41: AoE II
A42: 38 | AE42: AoE II
A43: 39 | AE43: AoE II
A44: 40 | AE44: AoE II
A45: 41 | AE45: AoE II
A46: 42 | AE46: AoE II
A47: 43 | AE47: AoE II
A48: 44 | AE48: AoE II
A49: 45 | AE49: AoE II
A50: 46 | AE50: AoE II
A51: 47 | AE51: AoE II
A52: 48 | AE52: AoE II
A53: 49 | AE53: AoE II
A54: 50 | AE54: AoE II
A55: 51 | AE55: AoE II
A56: 52 | AE56: AoE II
A57: 53 | AE57: AoE II
A58: 54 | AE58: AoE II
A59: 55 | AE59: AoE II
A60: 56 | AE60: AoE II
A61: 57 | AE61: AoE II
A62: 58 | AE62: AoE II
A63: 59 | AE63: AoE II
A64: 60 | AE64: AoE II
A65: 61 | AE65: AoE II
A66: 62 | AE66: AoE II
A67: 63 | AE67: AoE II
A68: 64 | AE68: AoE II
A69: 65 | AE69: AoE II
A70: 66 | AE70: AoE II
A71: 67 | AE71: AoE II
A72: 68 | AE72: AoE II
A73: 69 | AE73: AoE II
A74: 70 | AE74: AoE II
A75: 71 | AE75: AoE II
A76: 72 | AE76: AoE II
A77: 73 | AE77: AoE II
A78: 74 | AE78: AoE II
A79: 75 | AE79: AoE II
A80: 76 | AE80: AoE II
A81: 77 | AE81: AoE II
A82: 78 | AE82: AoE II
A83: 79 | AE83: AoE II
A84: 80 | AE84: AoE II
A85: 81 | AE85: AoE II
A86: 82 | AE86: AoE II
A87: 83 | AE87: AoE II
A88: 84 | AE88: AoE II
A89: 85 | AE89: AoE II
A90: 86 | AE90: AoE II
A91: 87 | AE91: AoE II
A92: 88 | AE92: AoE II
A93: 89 | AE93: AoE II
A94: 90 | AE94: AoE II
A95: 91 | AE95: AoE II
A96: 92 | AE96: AoE II
A97: 93 | AE97: AoE II
A98: 94 | AE98: AoE II
A99: 95 | AE99: AoE II
A100: 96 | AE100: AoE II
A101: 97 | AE101: AoE II
A102: 98 | AE102: AoE II
A103: 99 | AE103: AoE II
A104: 100 | AE104: AoE II
B106: =+COUNT(AD5:AD104) -> 7
AB126: Harmonisches Mittel | AC126: =HARMEAN(IF(B135=0,1,B135),IF(D135=0,1,D135),IF(F135=0,1,F1357),IF(H135=0,1,H135),IF(J135=0,1,J135)) -> 6.72
B135: =+COUNT(B5:B104) -> 7 | D135: =+COUNT(D5:D104) -> 7 | F135: =+COUNT(F5:F104) -> 7 | H135: =+COUNT(H5:H104) -> 7 | J135: =+COUNT(J5:J104) -> 6

Sheet Auswertung AoE III
A1: AoE III
B2: Völker | P2: Siege / Niederlagen
B4: The Wolf | D4: Mike | F4: Big Boss | H4: Groo | J4: Zorro | L4: Marc | N4: Datum | P4: The Wolf | R4: Mike | T4: Big Boss | V4: Groo | X4: Zorro | Z4: Marc | AB4: Karte | AD4: Spiel Nr.
A5: 1 | B5: 206 | C5: Sioux | D5: 235 | E5: Jap | F5: 315 | G5: Jap | H5: 293 | I5: Port | J5: 184 | K5: Sioux | L5: 360 | M5: Port | N5: 10.06.2026 | P5: 1 | R5: 1 | T5: -1 | V5: -1 | X5: -1 | Z5: 1 | AB5: Zufall | AD5: 2 | AE5: AoE III
A6: 2 | B6: 198 | C6: Spa | D6: 108 | E6: Chi | F6: 341 | G6: Port | H6: 257 | I6: Port | J6: 253 | K6: Chi | L6: 230 | M6: Spa | N6: 2026-06-11 | P6: -1 | R6: -1 | T6: 1 | V6: -1 | X6: 1 | Z6: 1 | AB6: Zufall | AD6: 18 | AE6: AoE III
A7: 3 | B7: 446 | C7: Osm | D7: 182 | E7: Spa | F7: 382 | G7: Chi | H7: 343 | I7: Spa | J7: 677 | K7: Osm | L7: 418 | M7: Chi | P7: -1 | R7: -1 | T7: 1 | V7: 1 | X7: 1 | Z7: -1 | AB7: Zufall | AD7: 22 | AE7: AoE III
A8: 4 | B8: 276 | C8: Holl | D8: 132 | E8: Osm | F8: 198 | G8: GB | H8: 186 | I8: Holl | J8: 176 | K8: GB | L8: 106 | M8: Osm | N8: 08.08.2026 | P8: 1 | R8: 1 | T8: -1 | V8: -1 | X8: 1 | Z8: -1 | AB8: Zufall | AD8: 31 | AE8: AoE III
A9: 5 | B9: 302 | C9: Chi | D9: 438 | E9: Chi | F9: 346 | G9: Azt | H9: 291 | I9: Deu | J9: 222 | K9: Azt | L9: 199 | M9: Deu | P9: 1 | R9: -1 | T9: 1 | V9: 1 | X9: -1 | Z9: -1 | AB9: Zufall | AD9: 36 | AE9: AoE III
A10: 6 | AE10: AoE III
A11: 7 | AE11: AoE III
A12: 8 | AE12: AoE III
A13: 9 | AE13: AoE III
A14: 10 | AE14: AoE III
A15: 11 | AE15: AoE III
A16: 12 | AE16: AoE III
A17: 13 | AE17: AoE III
A18: 14 | AE18: AoE III
A19: 15 | AE19: AoE III
A20: 16 | AE20: AoE III
A21: 17 | AE21: AoE III
A22: 18 | AE22: AoE III
A23: 19 | AE23: AoE III
A24: 20 | AE24: AoE III
A25: 21 | AE25: AoE III
A26: 22 | AE26: AoE III
A27: 23 | AE27: AoE III
A28: 24 | AE28: AoE III
A29: 25 | AE29: AoE III
A30: 26 | AE30: AoE III
A31: 27 | AE31: AoE III
A32: 28 | AE32: AoE III
A33: 29 | AE33: AoE III
A34: 30 | AE34: AoE III
A35: 31 | AE35: AoE III
A36: 32 | AE36: AoE III
A37: 33 | AE37: AoE III
A38: 34 | AE38: AoE III
A39: 35 | AE39: AoE III
A40: 36 | AE40: AoE III
A41: 37 | AE41: AoE III
A42: 38 | AE42: AoE III
A43: 39 | AE43: AoE III
A44: 40 | AE44: AoE III
A45: 41 | AE45: AoE III
A46: 42 | AE46: AoE III
A47: 43 | AE47: AoE III
A48: 44 | AE48: AoE III
A49: 45 | AE49: AoE III
A50: 46 | AE50: AoE III
A51: 47 | AE51: AoE III
A52: 48 | AE52: AoE III
A53: 49 | AE53: AoE III
A54: 50 | AE54: AoE III
A55: 51 | AE55: AoE III
A56: 52 | AE56: AoE III
A57: 53 | AE57: AoE III
A58: 54 | AE58: AoE III
A59: 55 | AE59: AoE III
A60: 56 | AE60: AoE III
A61: 57 | AE61: AoE III
A62: 58 | AE62: AoE III
A63: 59 | AE63: AoE III
A64: 60 | AE64: AoE III
A65: 61 | AE65: AoE III
A66: 62 | AE66: AoE III
A67: 63 | AE67: AoE III
A68: 64 | AE68: AoE III
A69: 65 | AE69: AoE III
A70: 66 | AE70: AoE III
A71: 67 | AE71: AoE III
A72: 68 | AE72: AoE III
A73: 69 | AE73: AoE III
A74: 70 | AE74: AoE III
A75: 71 | AE75: AoE III
A76: 72 | AE76: AoE III
A77: 73 | AE77: AoE III
A78: 74 | AE78: AoE III
A79: 75 | AE79: AoE III
A80: 76 | AE80: AoE III
A81: 77 | AE81: AoE III
A82: 78 | AE82: AoE III
A83: 79 | AE83: AoE III
A84: 80 | AE84: AoE III
A85: 81 | AE85: AoE III
A86: 82 | AE86: AoE III
A87: 83 | AE87: AoE III
A88: 84 | AE88: AoE III
A89: 85 | AE89: AoE III
A90: 86 | AE90: AoE III
A91: 87 | AE91: AoE III
A92: 88 | AE92: AoE III
A93: 89 | AE93: AoE III
A94: 90 | AE94: AoE III
A95: 91 | AE95: AoE III
A96: 92 | AE96: AoE III
A97: 93 | AE97: AoE III
A98: 94 | AE98: AoE III
A99: 95 | AE99: AoE III
A100: 96 | AE100: AoE III
A101: 97 | AE101: AoE III
A102: 98 | AE102: AoE III
A103: 99 | AE103: AoE III
A104: 100 | AE104: AoE III
B106: =+COUNT(AD5:AD104) -> 5

Sheet Auswertung AoM
A1: AoM
B2: Völker | P2: Siege / Niederlagen
B4: The Wolf | D4: Mike | F4: Big Boss | H4: Groo | J4: Zorro | L4: Marc | N4: Datum | P4: The Wolf | R4: Mike | T4: Big Boss | V4: Groo | X4: Zorro | Z4: Marc | AB4: Karte | AD4: Spiel Nr.
A5: 1 | B5: 44 | C5: Zeus | D5: 6 | E5: Kronos | F5: 15 | G5: Odin | H5: 30 | I5: Kronos | J5: 38 | K5: Zeus | L5: 11 | M5: Odin | N5: 10.06.2026 | P5: 1 | R5: 1 | T5: 1 | V5: -1 | X5: -1 | Z5: -1 | AB5: Zufall | AD5: 5 | AE5: AoM
A6: 2 | B6: 71 | C6: Isis | D6: 41 | E6: Re | F6: 37 | G6: Thor | H6: 74 | I6: Re | J6: 46 | K6: Thor | L6: 55 | M6: Isis | P6: 1 | R6: 1 | T6: 1 | V6: -1 | X6: -1 | Z6: -1 | AB6: Zufall | AD6: 10 | AE6: AoM
A7: 3 | B7: 120 | C7: Re | D7: 87 | E7: Uranos | F7: 78 | G7: Re | H7: 49 | I7: Gaia | J7: 62 | K7: Gaia | L7: 53 | M7: Uranos | N7: 2026-06-11 | P7: 1 | R7: 1 | T7: -1 | V7: 1 | X7: -1 | Z7: -1 | AB7: Zufall | AD7: 15 | AE7: AoM
A8: 4 | B8: 402 | C8: Zeus | D8: 353 | E8: Gaia | H8: 372 | I8: Gaia | J8: 174 | K8: Zeus | P8: 1 | R8: -1 | V8: 1 | X8: -1 | AB8: Zufall | AD8: 23 | AE8: AoM
A9: 5 | B9: 305 | C9: Thor | D9: 477 | E9: Zeus | F9: 192 | G9: Thor | H9: 502 | I9: Zeus | N9: 12.06.2026 | P9: -1 | R9: 1 | T9: 1 | V9: -1 | AB9: Zufall | AD9: 27 | AE9: AoM
A10: 6 | B10: 382 | C10: Odin | D10: 556 | E10: Zeus | F10: 182 | G10: Re | H10: 424 | I10: Odin | J10: 178 | K10: Zeus | L10: 342 | M10: Re | N10: 08.08.2026 | P10: -1 | R10: 1 | T10: 1 | V10: 1 | X10: -1 | Z10: -1 | AB10: Zufall | AD10: 37 | AE10: AoM
A11: 7 | AE11: AoM
A12: 8 | AE12: AoM
A13: 9 | AE13: AoM
A14: 10 | AE14: AoM
A15: 11 | AE15: AoM
A16: 12 | AE16: AoM
A17: 13 | AE17: AoM
A18: 14 | AE18: AoM
A19: 15 | AE19: AoM
A20: 16 | AE20: AoM
A21: 17 | AE21: AoM
A22: 18 | AE22: AoM
A23: 19 | AE23: AoM
A24: 20 | AE24: AoM
A25: 21 | AE25: AoM
A26: 22 | AE26: AoM
A27: 23 | AE27: AoM
A28: 24 | AE28: AoM
A29: 25 | AE29: AoM
A30: 26 | AE30: AoM
A31: 27 | AE31: AoM
A32: 28 | AE32: AoM
A33: 29 | AE33: AoM
A34: 30 | AE34: AoM
A35: 31 | AE35: AoM
A36: 32 | AE36: AoM
A37: 33 | AE37: AoM
A38: 34 | AE38: AoM
A39: 35 | AE39: AoM
A40: 36 | AE40: AoM
A41: 37 | AE41: AoM
A42: 38 | AE42: AoM
A43: 39 | AE43: AoM
A44: 40 | AE44: AoM
A45: 41 | AE45: AoM
A46: 42 | AE46: AoM
A47: 43 | AE47: AoM
A48: 44 | AE48: AoM
A49: 45 | AE49: AoM
A50: 46 | AE50: AoM
A51: 47 | AE51: AoM
A52: 48 | AE52: AoM
A53: 49 | AE53: AoM
A54: 50 | AE54: AoM
A55: 51 | AE55: AoM
A56: 52 | AE56: AoM
A57: 53 | AE57: AoM
A58: 54 | AE58: AoM
A59: 55 | AE59: AoM
A60: 56 | AE60: AoM
A61: 57 | AE61: AoM
A62: 58 | AE62: AoM
A63: 59 | AE63: AoM
A64: 60 | AE64: AoM
A65: 61 | AE65: AoM
A66: 62 | AE66: AoM
A67: 63 | AE67: AoM
A68: 64 | AE68: AoM
A69: 65 | AE69: AoM
A70: 66 | AE70: AoM
A71: 67 | AE71: AoM
A72: 68 | AE72: AoM
A73: 69 | AE73: AoM
A74: 70 | AE74: AoM
A75: 71 | AE75: AoM
A76: 72 | AE76: AoM
A77: 73 | AE77: AoM
A78: 74 | AE78: AoM
A79: 75 | AE79: AoM
A80: 76 | AE80: AoM
A81: 77 | AE81: AoM
A82: 78 | AE82: AoM
A83: 79 | AE83: AoM
A84: 80 | AE84: AoM
A85: 81 | AE85: AoM
A86: 82 | AE86: AoM
A87: 83 | AE87: AoM
A88: 84 | AE88: AoM
A89: 85 | AE89: AoM
A90: 86 | AE90: AoM
A91: 87 | AE91: AoM
A92: 88 | AE92: AoM
A93: 89 | AE93: AoM
A94: 90 | AE94: AoM
A95: 91 | AE95: AoM
A96: 92 | AE96: AoM
A97: 93 | AE97: AoM
A98: 94 | AE98: AoM
A99: 95 | AE99: AoM
A100: 96 | AE100: AoM
A101: 97 | AE101: AoM
A102: 98 | AE102: AoM
A103: 99 | AE103: AoM
A104: 100 | AE104: AoM
B106: =+COUNT(AD5:AD104) -> 6

Sheet Auswertung RA
A1: RA
B2: Völker | P2: Siege / Niederlagen
B4: The Wolf | D4: Mike | F4: Big Boss | H4: Groo | J4: Zorro | L4: Marc | N4: Datum | P4: The Wolf | R4: Mike | T4: Big Boss | V4: Groo | X4: Zorro | Z4: Marc | AB4: Karte | AD4: Spiel Nr.
A5: 1 | B5: 82 | C5: S | D5: 49 | E5: A | F5: 49 | G5: A | H5: 16 | I5: S | J5: 63 | K5: A | L5: 9 | M5: A | N5: 10.06.2026 | P5: 1 | R5: -1 | T5: 1 | V5: -1 | X5: -1 | Z5: 1 | AB5: Franticide | AD5: 6 | AE5: RA
A6: 2 | B6: 105 | C6: A | D6: 99 | E6: S | F6: 74 | G6: S | H6: 69 | I6: A | J6: 27 | K6: S | L6: 73 | M6: S | P6: -1 | R6: 1 | T6: -1 | V6: 1 | X6: -1 | Z6: 1 | AB6: Zufall | AD6: 11 | AE6: RA
A7: 3 | B7: 96 | C7: S | D7: 16 | E7: S | F7: 45 | G7: A | H7: 17 | I7: A | J7: 104 | K7: S | L7: 11 | M7: S | N7: 2026-06-11 | P7: 1 | R7: -1 | T7: 1 | V7: -1 | X7: -1 | Z7: 1 | AB7: Zufall | AD7: 13 | AE7: RA
A8: 4 | B8: 76 | C8: S | D8: 37 | E8: S | F8: 71 | G8: S | H8: 16 | I8: S | J8: 35 | K8: A | L8: 51 | M8: A | P8: -1 | R8: 1 | T8: 1 | V8: -1 | X8: 1 | Z8: -1 | AB8: Mega | AD8: 19 | AE8: RA
A9: 5 | B9: 17 | C9: S | D9: 29 | E9: S | F9: 31 | G9: A | H9: 9 | I9: S | J9: 29 | K9: A | L9: 38 | M9: S | N9: 12.06.2026 | P9: -1 | R9: 1 | T9: 1 | V9: -1 | X9: -1 | Z9: 1 | AB9: Inseln | AD9: 26 | AE9: RA
A10: 6 | B10: 72 | C10: A | D10: 129 | E10: A | F10: 103 | G10: S | H10: 103 | I10: S | P10: -1 | R10: 1 | T10: 1 | V10: -1 | AB10: Super Co-Op | AD10: 29 | AE10: RA
A11: 7 | B11: 41 | C11: A | D11: 133 | E11: S | F11: 110 | G11: S | H11: 47 | I11: S | J11: 39 | K11: A | L11: 48 | M11: A | N11: 08.08.2026 | P11: -1 | R11: -1 | T11: 1 | V11: 1 | X11: -1 | Z11: 1 | AB11: 29 | AD11: 34 | AE11: RA
A12: 8 | AE12: RA
A13: 9 | AE13: RA
A14: 10 | AE14: RA
A15: 11 | AE15: RA
A16: 12 | AE16: RA
A17: 13 | AE17: RA
A18: 14 | AE18: RA
A19: 15 | AE19: RA
A20: 16 | AE20: RA
A21: 17 | AE21: RA
A22: 18 | AE22: RA
A23: 19 | AE23: RA
A24: 20 | AE24: RA
A25: 21 | AE25: RA
A26: 22 | AE26: RA
A27: 23 | AE27: RA
A28: 24 | AE28: RA
A29: 25 | AE29: RA
A30: 26 | AE30: RA
A31: 27 | AE31: RA
A32: 28 | AE32: RA
A33: 29 | AE33: RA
A34: 30 | AE34: RA
A35: 31 | AE35: RA
A36: 32 | AE36: RA
A37: 33 | AE37: RA
A38: 34 | AE38: RA
A39: 35 | AE39: RA
A40: 36 | AE40: RA
A41: 37 | AE41: RA
A42: 38 | AE42: RA
A43: 39 | AE43: RA
A44: 40 | AE44: RA
A45: 41 | AE45: RA
A46: 42 | AE46: RA
A47: 43 | AE47: RA
A48: 44 | AE48: RA
A49: 45 | AE49: RA
A50: 46 | AE50: RA
A51: 47 | AE51: RA
A52: 48 | AE52: RA
A53: 49 | AE53: RA
A54: 50 | AE54: RA
A55: 51 | AE55: RA
A56: 52 | AE56: RA
A57: 53 | AE57: RA
A58: 54 | AE58: RA
A59: 55 | AE59: RA
A60: 56 | AE60: RA
A61: 57 | AE61: RA
A62: 58 | AE62: RA
A63: 59 | AE63: RA
A64: 60 | AE64: RA
A65: 61 | AE65: RA
A66: 62 | AE66: RA
A67: 63 | AE67: RA
A68: 64 | AE68: RA
A69: 65 | AE69: RA
A70: 66 | AE70: RA
A71: 67 | AE71: RA
A72: 68 | AE72: RA
A73: 69 | AE73: RA
A74: 70 | AE74: RA
A75: 71 | AE75: RA
A76: 72 | AE76: RA
A77: 73 | AE77: RA
A78: 74 | AE78: RA
A79: 75 | AE79: RA
A80: 76 | AE80: RA
A81: 77 | AE81: RA
A82: 78 | AE82: RA
A83: 79 | AE83: RA
A84: 80 | AE84: RA
A85: 81 | AE85: RA
A86: 82 | AE86: RA
A87: 83 | AE87: RA
A88: 84 | AE88: RA
A89: 85 | AE89: RA
A90: 86 | AE90: RA
A91: 87 | AE91: RA
A92: 88 | AE92: RA
A93: 89 | AE93: RA
A94: 90 | AE94: RA
A95: 91 | AE95: RA
A96: 92 | AE96: RA
A97: 93 | AE97: RA
A98: 94 | AE98: RA
A99: 95 | AE99: RA
A100: 96 | AE100: RA
A101: 97 | AE101: RA
A102: 98 | AE102: RA
A103: 99 | AE103: RA
A104: 100 | AE104: RA
B106: =+COUNT(AD5:AD104) -> 7

Sheet Auswertung Yuri
A1: Yuri
B2: Völker | P2: Siege / Niederlagen
B4: The Wolf | D4: Mike | F4: Big Boss | H4: Groo | J4: Zorro | L4: Marc | N4: Datum | P4: The Wolf | R4: Mike | T4: Big Boss | V4: Groo | X4: Zorro | Z4: Marc | AB4: Karte | AD4: Spiel Nr.
A5: 1 | B5: 43 | C5: Lyb | D5: 77 | E5: Rus | F5: 40 | G5: Rus | H5: 28 | I5: Yur | J5: 41 | K5: Yur | L5: 34 | M5: Lyb | N5: 10.06.2026 | P5: 1 | R5: 1 | T5: -1 | V5: 1 | X5: -1 | Z5: -1 | AB5: Zufall | AD5: 1 | AE5: Yuri
A6: 2 | B6: 70 | C6: Deu | D6: 70 | E6: Lyb | F6: 58 | G6: Deu | H6: 70 | I6: Lyb | J6: 47 | K6: GB | L6: 89 | M6: GB | P6: -1 | R6: -1 | T6: 1 | V6: 1 | X6: -1 | Z6: 1 | AB6: Zufall | AD6: 8 | AE6: Yuri
A7: 3 | B7: 67 | C7: Irak | D7: 74 | E7: Irak | F7: 92 | G7: Yur | H7: 63 | I7: Fran | J7: 25 | K7: Fran | L7: 36 | M7: Yur | N7: 2026-06-11 | P7: -1 | R7: 1 | T7: 1 | V7: -1 | X7: 1 | Z7: -1 | AB7: Zufall | AD7: 16 | AE7: Yuri
A8: 4 | B8: 56 | C8: Deu | D8: 57 | E8: Deu | F8: 65 | G8: Yur | H8: 51 | I8: Yur | J8: 56 | K8: Lyb | L8: 71 | M8: Lyb | P8: -1 | R8: 1 | T8: 1 | V8: -1 | X8: -1 | Z8: 1 | AB8: Zufall | AD8: 21 | AE8: Yuri
A9: 5 | B9: 28 | C9: Kub | D9: 123 | E9: Yur | F9: 48 | G9: Kub | H9: 24 | I9: Deu | J9: 56 | K9: Yur | L9: 9 | M9: Deu | N9: 12.06.2026 | P9: -1 | R9: 1 | T9: 1 | V9: 1 | X9: -1 | Z9: -1 | AB9: Zufall | AD9: 25 | AE9: Yuri
A10: 6 | B10: 46 | C10: Kor | D10: 33 | E10: Lyb | F10: 35 | G10: Kor | H10: 45 | I10: Lyb | J10: 20 | K10: Deu | L10: 38 | M10: Deu | N10: 08.08.2026 | P10: 1 | R10: 1 | T10: -1 | V10: -1 | X10: 1 | Z10: -1 | AB10: Zufall | AD10: 35 | AE10: Yuri
A11: 7 | AE11: Yuri
A12: 8 | AE12: Yuri
A13: 9 | AE13: Yuri
A14: 10 | AE14: Yuri
A15: 11 | AE15: Yuri
A16: 12 | AE16: Yuri
A17: 13 | AE17: Yuri
A18: 14 | AE18: Yuri
A19: 15 | AE19: Yuri
A20: 16 | AE20: Yuri
A21: 17 | AE21: Yuri
A22: 18 | AE22: Yuri
A23: 19 | AE23: Yuri
A24: 20 | AE24: Yuri
A25: 21 | AE25: Yuri
A26: 22 | AE26: Yuri
A27: 23 | AE27: Yuri
A28: 24 | AE28: Yuri
A29: 25 | AE29: Yuri
A30: 26 | AE30: Yuri
A31: 27 | AE31: Yuri
A32: 28 | AE32: Yuri
A33: 29 | AE33: Yuri
A34: 30 | AE34: Yuri
A35: 31 | AE35: Yuri
A36: 32 | AE36: Yuri
A37: 33 | AE37: Yuri
A38: 34 | AE38: Yuri
A39: 35 | AE39: Yuri
A40: 36 | AE40: Yuri
A41: 37 | AE41: Yuri
A42: 38 | AE42: Yuri
A43: 39 | AE43: Yuri
A44: 40 | AE44: Yuri
A45: 41 | AE45: Yuri
A46: 42 | AE46: Yuri
A47: 43 | AE47: Yuri
A48: 44 | AE48: Yuri
A49: 45 | AE49: Yuri
A50: 46 | AE50: Yuri
A51: 47 | AE51: Yuri
A52: 48 | AE52: Yuri
A53: 49 | AE53: Yuri
A54: 50 | AE54: Yuri
A55: 51 | AE55: Yuri
A56: 52 | AE56: Yuri
A57: 53 | AE57: Yuri
A58: 54 | AE58: Yuri
A59: 55 | AE59: Yuri
A60: 56 | AE60: Yuri
A61: 57 | AE61: Yuri
A62: 58 | AE62: Yuri
A63: 59 | AE63: Yuri
A64: 60 | AE64: Yuri
A65: 61 | AE65: Yuri
A66: 62 | AE66: Yuri
A67: 63 | AE67: Yuri
A68: 64 | AE68: Yuri
A69: 65 | AE69: Yuri
A70: 66 | AE70: Yuri
A71: 67 | AE71: Yuri
A72: 68 | AE72: Yuri
A73: 69 | AE73: Yuri
A74: 70 | AE74: Yuri
A75: 71 | AE75: Yuri
A76: 72 | AE76: Yuri
A77: 73 | AE77: Yuri
A78: 74 | AE78: Yuri
A79: 75 | AE79: Yuri
A80: 76 | AE80: Yuri
A81: 77 | AE81: Yuri
A82: 78 | AE82: Yuri
A83: 79 | AE83: Yuri
A84: 80 | AE84: Yuri
A85: 81 | AE85: Yuri
A86: 82 | AE86: Yuri
A87: 83 | AE87: Yuri
A88: 84 | AE88: Yuri
A89: 85 | AE89: Yuri
A90: 86 | AE90: Yuri
A91: 87 | AE91: Yuri
A92: 88 | AE92: Yuri
A93: 89 | AE93: Yuri
A94: 90 | AE94: Yuri
A95: 91 | AE95: Yuri
A96: 92 | AE96: Yuri
A97: 93 | AE97: Yuri
A98: 94 | AE98: Yuri
A99: 95 | AE99: Yuri
A100: 96 | AE100: Yuri
A101: 97 | AE101: Yuri
A102: 98 | AE102: Yuri
A103: 99 | AE103: Yuri
A104: 100 | AE104: Yuri
B106: =+COUNT(AD5:AD104) -> 6

Sheet Auswertung Generals
A1: Generals
B2: Völker | P2: Siege / Niederlagen
B4: The Wolf | D4: Mike | F4: Big Boss | H4: Groo | J4: Zorro | L4: Marc | N4: Datum | P4: The Wolf | R4: Mike | T4: Big Boss | V4: Groo | X4: Zorro | Z4: Marc | AB4: Karte | AD4: Spiel Nr.
A5: 1 | B5: 52 | C5: IBG | D5: 74 | E5: IBG | F5: 74 | G5: WA | H5: 66 | I5: AP | J5: 108 | K5: WA | L5: 94 | M5: AP | N5: 10.06.2026 | P5: -1 | R5: 1 | T5: -1 | V5: -1 | X5: 1 | Z5: 1 | AB5: Valley | AD5: 3 | AE5: Generals
A6: 2 | B6: 86 | C6: WA | D6: 76 | E6: IBG | F6: 48 | G6: WA | H6: 143 | I6: IBG | J6: 57 | K6: AP | L6: 21 | M6: AP | P6: 1 | R6: 1 | T6: -1 | V6: -1 | X6: 1 | Z6: -1 | AB6: Tournament Valley | AD6: 7 | AE6: Generals
A7: 3 | B7: 86 | C7: WA | D7: 83 | E7: WA | F7: 34 | G7: AP | H7: 115 | I7: AP | J7: 44 | K7: IBG | L7: 8 | M7: IBG | P7: -1 | R7: 1 | T7: -1 | V7: 1 | X7: 1 | Z7: -1 | AB7: Snow War | AD7: 12 | AE7: Generals
A8: 4 | B8: 48 | C8: AP | D8: 45 | E8: IBG | F8: 57 | G8: AP | H8: 33 | I8: AP | J8: 22 | K8: IBG | L8: 16 | M8: AP | N8: 2026-06-11 | P8: 1 | R8: -1 | T8: 1 | V8: -1 | X8: 1 | Z8: -1 | AB8: Wilderness Valley | AD8: 17 | AE8: Generals
A9: 5 | B9: 112 | C9: WA | D9: 34 | E9: WA | F9: 54 | G9: IBG | H9: 42 | I9: IBG | N9: 12.06.2026 | P9: 1 | R9: -1 | T9: 1 | V9: -1 | AB9: fatamorgana | AD9: 28 | AE9: Generals
A10: 6 | B10: 103 | C10: AP | D10: 82 | E10: IBG | F10: 75 | G10: AP | H10: 202 | I10: AP | J10: 188 | K10: IBG | L10: 119 | M10: AP | N10: 08.08.2026 | P10: -1 | R10: -1 | T10: 1 | V10: 1 | X10: 1 | Z10: -1 | AB10: patchwork mesa | AD10: 32 | AE10: Generals
A11: 7 | AE11: Generals
A12: 8 | AE12: Generals
A13: 9 | AE13: Generals
A14: 10 | AE14: Generals
A15: 11 | AE15: Generals
A16: 12 | AE16: Generals
A17: 13 | AE17: Generals
A18: 14 | AE18: Generals
A19: 15 | AE19: Generals
A20: 16 | AE20: Generals
A21: 17 | AE21: Generals
A22: 18 | AE22: Generals
A23: 19 | AE23: Generals
A24: 20 | AE24: Generals
A25: 21 | AE25: Generals
A26: 22 | AE26: Generals
A27: 23 | AE27: Generals
A28: 24 | AE28: Generals
A29: 25 | AE29: Generals
A30: 26 | AE30: Generals
A31: 27 | AE31: Generals
A32: 28 | AE32: Generals
A33: 29 | AE33: Generals
A34: 30 | AE34: Generals
A35: 31 | AE35: Generals
A36: 32 | AE36: Generals
A37: 33 | AE37: Generals
A38: 34 | AE38: Generals
A39: 35 | AE39: Generals
A40: 36 | AE40: Generals
A41: 37 | AE41: Generals
A42: 38 | AE42: Generals
A43: 39 | AE43: Generals
A44: 40 | AE44: Generals
A45: 41 | AE45: Generals
A46: 42 | AE46: Generals
A47: 43 | AE47: Generals
A48: 44 | AE48: Generals
A49: 45 | AE49: Generals
A50: 46 | AE50: Generals
A51: 47 | AE51: Generals
A52: 48 | AE52: Generals
A53: 49 | AE53: Generals
A54: 50 | AE54: Generals
A55: 51 | AE55: Generals
A56: 52 | AE56: Generals
A57: 53 | AE57: Generals
A58: 54 | AE58: Generals
A59: 55 | AE59: Generals
A60: 56 | AE60: Generals
A61: 57 | AE61: Generals
A62: 58 | AE62: Generals
A63: 59 | AE63: Generals
A64: 60 | AE64: Generals
A65: 61 | AE65: Generals
A66: 62 | AE66: Generals
A67: 63 | AE67: Generals
A68: 64 | AE68: Generals
A69: 65 | AE69: Generals
A70: 66 | AE70: Generals
A71: 67 | AE71: Generals
A72: 68 | AE72: Generals
A73: 69 | AE73: Generals
A74: 70 | AE74: Generals
A75: 71 | AE75: Generals
A76: 72 | AE76: Generals
A77: 73 | AE77: Generals
A78: 74 | AE78: Generals
A79: 75 | AE79: Generals
A80: 76 | AE80: Generals
A81: 77 | AE81: Generals
A82: 78 | AE82: Generals
A83: 79 | AE83: Generals
A84: 80 | AE84: Generals
A85: 81 | AE85: Generals
A86: 82 | AE86: Generals
A87: 83 | AE87: Generals
A88: 84 | AE88: Generals
A89: 85 | AE89: Generals
A90: 86 | AE90: Generals
A91: 87 | AE91: Generals
A92: 88 | AE92: Generals
A93: 89 | AE93: Generals
A94: 90 | AE94: Generals
A95: 91 | AE95: Generals
A96: 92 | AE96: Generals
A97: 93 | AE97: Generals
A98: 94 | AE98: Generals
A99: 95 | AE99: Generals
A100: 96 | AE100: Generals
A101: 97 | AE101: Generals
A102: 98 | AE102: Generals
A103: 99 | AE103: Generals
A104: 100 | AE104: Generals
B106: =+COUNT(AD5:AD104) -> 6

Sheet Spielreihenfolge
A1: Auswertung Spielreihenfolge
M2: Wolf | N2: Volk | O2: Mike | P2: Volk | Q2: Big Boss | R2: Volk | S2: Groo | T2: Volk | U2: Zorro | V2: Volk | W2: Marc | X2: Volk | Z2: Wolf | AC2: Mike | AE2: Big Boss | AG2: Groo | AI2: Zorro | AK2: Marc | AN2: Wolf | AW2: Mike | BF2: Big Boss | BO2: Groo | BX2: Zorro | CG2: Marc
A3: Nr. | B3: Spiel | J3: Spiel Auswertung | AM3: Nr. | AN3: Spiele | AO3: Abschüsse | AP3: Durchschnitt | AQ3: Siege | AR3: Niederlagen | AS3: Diff. | AT3: Spiel / Mittelwert | AU3: Wertung | AW3: Spiele | AX3: Abschüsse | AY3: Durchschnitt | AZ3: Siege | BA3: Niederlagen | BB3: Diff. | BC3: Spiel / Mittelwert | BD3: Wertung | BF3: Spiele | BG3: Abschüsse | BH3: Durchschnitt | BI3: Siege | BJ3: Niederlagen | BK3: Diff. | BL3: Spiel / Mittelwert | BM3: Wertung | BO3: Spiele | BP3: Abschüsse | BQ3: Durchschnitt | BR3: Siege | BS3: Niederlagen | BT3: Diff. | BU3: Spiel / Mittelwert | BV3: Wertung | BX3: Spiele | BY3: Abschüsse | BZ3: Durchschnitt | CA3: Siege | CB3: Niederlagen | CC3: Diff. | CD3: Spiel / Mittelwert | CE3: Wertung | CG3: Spiele | CH3: Abschüsse | CI3: Durchschnitt | CJ3: Siege | CK3: Niederlagen | CL3: Diff. | CM3: Spiel / Mittelwert | CN3: Wertung
A4: 1 | B4: =+I4&H4&G4&F4&E4&D4 -> Yuri | D4: =+IFERROR(INDEX('Auswertung AoE II'!$AE:$AE,MATCH(A4,'Auswertung AoE II'!$AD:$AD,0)),"") ->  | E4: =+IFERROR(INDEX('Auswertung AoE III'!$AE:$AE,MATCH(A4,'Auswertung AoE III'!$AD:$AD,0)),"") ->  | F4: =+IFERROR(INDEX('Auswertung AoM'!$AE:$AE,MATCH(A4,'Auswertung AoM'!$AD:$AD,0)),"") ->  | G4: =+IFERROR(INDEX('Auswertung RA'!$AE:$AE,MATCH(A4,'Auswertung RA'!$AD:$AD,0)),"") ->  | H4: =+IFERROR(INDEX('Auswertung Yuri'!$AE:$AE,MATCH(A4,'Auswertung Yuri'!$AD:$AD,0)),"") -> Yuri | I4: =+IFERROR(INDEX('Auswertung Generals'!$AE:$AE,MATCH(A4,'Auswertung Generals'!$AD:$AD,0)),"") ->  | J4: =+IF(B4<>0,CONCATENATE("Auswertung ",B4,"")) -> Auswertung Yuri | M4: =+IF(ISERROR(+INDIRECT(CONCATENATE("'",J4,"'!",(ADDRESS((COUNTIF($J$3:J4,IF(B4<>0,CONCATENATE("Auswertung ",B4,""))))+2,2)))))=FALSE,+INDIRECT(CONCATENATE("'",J4,"'!",(ADDRESS((COUNTIF($J$3:J4,IF(B4<>0,CONCATENATE("Auswertung ",B4,""))))+4,2)))),"") -> 43 | N4: =IF(ISERROR(+INDIRECT(CONCATENATE("'",J4,"'!",(ADDRESS((COUNTIF($J$3:J4,IF(B4<>0,CONCATENATE("Auswertung ",B4,""))))+2,2+1)))))=FALSE,+INDIRECT(CONCATENATE("'",J4,"'!",(ADDRESS((COUNTIF($J$3:J4,IF(B4<>0,CONCATENATE("Auswertung ",B4,""))))+4,2+1)))),"") -> Lyb | O4: =+IF(ISERROR(+INDIRECT(CONCATENATE("'",J4,"'!",(ADDRESS((COUNTIF($J$3:J4,IF(B4<>0,CONCATENATE("Auswertung ",B4,""))))+2,4)))))=FALSE,+INDIRECT(CONCATENATE("'",J4,"'!",(ADDRESS((COUNTIF($J$3:J4,IF(B4<>0,CONCATENATE("Auswertung ",B4,""))))+4,4)))),"") -> 77 | P4: =+IF(ISERROR(+INDIRECT(CONCATENATE("'",J4,"'!",(ADDRESS((COUNTIF($J$3:J4,IF(B4<>0,CONCATENATE("Auswertung ",B4,""))))+2,5)))))=FALSE,+INDIRECT(CONCATENATE("'",J4,"'!",(ADDRESS((COUNTIF($J$3:J4,IF(B4<>0,CONCATENATE("Auswertung ",B4,""))))+4,5)))),"") -> Rus | Q4: =+IF(ISERROR(+INDIRECT(CONCATENATE("'",J4,"'!",(ADDRESS((COUNTIF($J$3:J4,IF(B4<>0,CONCATENATE("Auswertung ",B4,""))))+2,6)))))=FALSE,+INDIRECT(CONCATENATE("'",J4,"'!",(ADDRESS((COUNTIF($J$3:J4,IF(B4<>0,CONCATENATE("Auswertung ",B4,""))))+4,6)))),"") -> 40 | R4: =+IF(ISERROR(+INDIRECT(CONCATENATE("'",J4,"'!",(ADDRESS((COUNTIF($J$3:J4,IF(B4<>0,CONCATENATE("Auswertung ",B4,""))))+2,7)))))=FALSE,+INDIRECT(CONCATENATE("'",J4,"'!",(ADDRESS((COUNTIF($J$3:J4,IF(B4<>0,CONCATENATE("Auswertung ",B4,""))))+4,7)))),"") -> Rus | S4: =+IF(ISERROR(+INDIRECT(CONCATENATE("'",J4,"'!",(ADDRESS((COUNTIF($J$3:J4,IF(B4<>0,CONCATENATE("Auswertung ",B4,""))))+2,8)))))=FALSE,+INDIRECT(CONCATENATE("'",J4,"'!",(ADDRESS((COUNTIF($J$3:J4,IF(B4<>0,CONCATENATE("Auswertung ",B4,""))))+4,8)))),"") -> 28 | T4: =+IF(ISERROR(+INDIRECT(CONCATENATE("'",J4,"'!",(ADDRESS((COUNTIF($J$3:J4,IF(B4<>0,CONCATENATE("Auswertung ",B4,""))))+2,11)))))=FALSE,+INDIRECT(CONCATENATE("'",J4,"'!",(ADDRESS((COUNTIF($J$3:J4,IF(B4<>0,CONCATENATE("Auswertung ",B4,""))))+4,9)))),"") -> Yur | U4: =+IF(ISERROR(+INDIRECT(CONCATENATE("'",J4,"'!",(ADDRESS((COUNTIF($J$3:J4,IF(B4<>0,CONCATENATE("Auswertung ",B4,""))))+2,10)))))=FALSE,+INDIRECT(CONCATENATE("'",J4,"'!",(ADDRESS((COUNTIF($J$3:J4,IF(B4<>0,CONCATENATE("Auswertung ",B4,""))))+4,10)))),"") -> 41 | V4: =+IF(ISERROR(+INDIRECT(CONCATENATE("'",J4,"'!",(ADDRESS((COUNTIF($J$3:J4,IF(B4<>0,CONCATENATE("Auswertung ",B4,""))))+2,11)))))=FALSE,+INDIRECT(CONCATENATE("'",J4,"'!",(ADDRESS((COUNTIF($J$3:J4,IF(B4<>0,CONCATENATE("Auswertung ",B4,""))))+4,11)))),"") -> Yur | W4: =+IF(ISERROR(+INDIRECT(CONCATENATE("'",J4,"'!",(ADDRESS((COUNTIF($J$3:J4,IF(D4<>0,CONCATENATE("Auswertung ",D4,""))))+2,12)))))=FALSE,+INDIRECT(CONCATENATE("'",J4,"'!",(ADDRESS((COUNTIF($J$3:J4,IF(D4<>0,CONCATENATE("Auswertung ",B4,""))))+4,12)))),"") -> 34 | X4: =+IF(ISERROR(+INDIRECT(CONCATENATE("'",J4,"'!",(ADDRESS((COUNTIF($J$3:J4,IF(D4<>0,CONCATENATE("Auswertung ",D4,""))))+2,13)))))=FALSE,+INDIRECT(CONCATENATE("'",J4,"'!",(ADDRESS((COUNTIF($J$3:J4,IF(D4<>0,CONCATENATE("Auswertung ",B4,""))))+4,13)))),"") -> Lyb | Z4: =+IFERROR(INDIRECT(CONCATENATE("'",J4,"'!",(ADDRESS((COUNTIF($J$3:J4,IF(B4<>0,J4)))+4,16)))),"") -> 1 | AA4: =AU4 -> 0.104 | AB4: =+M4/1000 -> 0.043 | AC4: =+IFERROR(INDIRECT(CONCATENATE("'",J4,"'!",(ADDRESS((COUNTIF($J$3:J4,IF(B4<>0,J4)))+4,18)))),"") -> 1 | AD4: =+BD4 -> 0.108 | AE4: =+IFERROR(INDIRECT(CONCATENATE("'",J4,"'!",(ADDRESS((COUNTIF($J$3:J4,IF(B4<>0,J4)))+4,20)))),"") -> -1 | AF4: =+BM4 -> -0.096 | AG4: =+IFERROR(INDIRECT(CONCATENATE("'",J4,"'!",(ADDRESS((COUNTIF($J$3:J4,IF(B4<>0,J4)))+4,22)))),"") -> 1 | AH4: =+BV4 -> 0.103 | AI4: =+IFERROR(INDIRECT(CONCATENATE("'",J4,"'!",(ADDRESS((COUNTIF($J$3:J4,IF(B4<>0,J4)))+4,24)))),"") -> -1 | AJ4: =+CE4 -> -0.096 | AK4: =+IFERROR(INDIRECT(CONCATENATE("'",J4,"'!",(ADDRESS((COUNTIF($J$3:J4,IF(B4<>0,J4)))+4,26)))),"") -> -1 | AL4: =+CN4 -> -0.097 | AM4: 1 | AN4: =+SUM(COUNTIF($Z$3:Z4,1),COUNTIF($Z$3:Z4,-1)) -> 1 | AO4: =+SUM($M$4:M4) -> 43 | AP4: =+AO4/AN4 -> 43 | AQ4: =+SUM(COUNTIF($Z$3:Z4,1)) -> 1 | AR4: =+SUM(COUNTIF($Z$3:Z4,-1)) -> 0 | AS4: =+AQ4-AR4 -> 1 | AT4: =AN4*(HARMEAN((IF(SUM(COUNTIF($Z$3:Z4,1),COUNTIF($Z$3:Z4,-1))=0,1,SUM(COUNTIF($Z$3:Z4,1),COUNTIF($Z$3:Z4,-1)))),(IF(SUM(COUNTIF($AC$3:AC4,1),COUNTIF($AC$3:AC4,-1))=0,1,SUM(COUNTIF($AC$3:AC4,1),COUNTIF($AC$3:AC4,-1)))),(IF(SUM(COUNTIF($AE$3:AE4,1),COUNTIF($AE$3:AE4,-1))=0,1,SUM(COUNTIF($AE$3:AE4,1),COUNTIF($AE$3:AE4,-1)))),(IF(SUM(COUNTIF($AG$3:AG4,1),COUNTIF($AG$3:AG4,-1))=0,1,SUM(COUNTIF($AG$3:AG4,1),COUNTIF($AG$3:AG4,-1)))),(IF(SUM(COUNTIF($AI$3:AI4,1),COUNTIF($AI$3:AI4,-1))=0,1,SUM(COUNTIF($AI$3:AI4,1),COUNTIF($AI$3:AI4,-1)))),(IF(SUM(COUNTIF($AK$3:AK4,1),COUNTIF($AK$3:AK4,-1))=0,1,SUM(COUNTIF($AK$3:AK4,1),COUNTIF($AK$3:AK4,-1)))))/1000) -> 0.001 | AU4: =IF(AN4=0,"-",IF(AN4=0,0,ROUND(((AQ4/AN4-AR4/AN4)*100+AP4/10)*AT4,3))) -> 0.104 | AW4: =+SUM(COUNTIF($AC$3:AC4,1),COUNTIF($AC$3:AC4,-1)) -> 1 | AX4: =+SUM(O4) -> 77 | AY4: =+AX4/AW4 -> 77 | AZ4: =+SUM(COUNTIF($AC$3:AC4,1)) -> 1 | BA4: =+SUM(COUNTIF($AC$3:AC4,-1)) -> 0 | BB4: =+AZ4-BA4 -> 1 | BC4: =AW4*(HARMEAN((IF(SUM(COUNTIF($Z$3:Z4,1),COUNTIF($Z$3:Z4,-1))=0,1,SUM(COUNTIF($Z$3:Z4,1),COUNTIF($Z$3:Z4,-1)))),(IF(SUM(COUNTIF($AC$3:AC4,1),COUNTIF($AC$3:AC4,-1))=0,1,SUM(COUNTIF($AC$3:AC4,1),COUNTIF($AC$3:AC4,-1)))),(IF(SUM(COUNTIF($AE$3:AE4,1),COUNTIF($AE$3:AE4,-1))=0,1,SUM(COUNTIF($AE$3:AE4,1),COUNTIF($AE$3:AE4,-1)))),(IF(SUM(COUNTIF($AG$3:AG4,1),COUNTIF($AG$3:AG4,-1))=0,1,SUM(COUNTIF($AG$3:AG4,1),COUNTIF($AG$3:AG4,-1)))),(IF(SUM(COUNTIF($AI$3:AI4,1),COUNTIF($AI$3:AI4,-1))=0,1,SUM(COUNTIF($AI$3:AI4,1),COUNTIF($AI$3:AI4,-1)))),(IF(SUM(COUNTIF($AK$3:AK4,1),COUNTIF($AK$3:AK4,-1))=0,1,SUM(COUNTIF($AK$3:AK4,1),COUNTIF($AK$3:AK4,-1)))))/1000) -> 0.001 | BD4: =IF(AW4=0,"-",IF(AN4=0,0,ROUND(((AZ4/AW4-BA4/AW4)*100+AY4/10)*BC4,3))) -> 0.108 | BF4: =+SUM(COUNTIF($AE$3:AE4,1),COUNTIF(AE$3:$AE4,-1)) -> 1 | BG4: =+SUM(Q4) -> 40 | BH4: =+BG4/BF4 -> 40 | BI4: =+SUM(COUNTIF($AE$3:AE4,1)) -> 0 | BJ4: =+SUM(COUNTIF($AE$3:AE4,-1)) -> 1 | BK4: =+BI4-BJ4 -> -1 | BL4: =BF4*(HARMEAN((IF(SUM(COUNTIF($Z$3:Z4,1),COUNTIF($Z$3:Z4,-1))=0,1,SUM(COUNTIF($Z$3:Z4,1),COUNTIF($Z$3:Z4,-1)))),(IF(SUM(COUNTIF($AC$3:AC4,1),COUNTIF($AC$3:AC4,-1))=0,1,SUM(COUNTIF($AC$3:AC4,1),COUNTIF($AC$3:AC4,-1)))),(IF(SUM(COUNTIF($AE$3:AE4,1),COUNTIF($AE$3:AE4,-1))=0,1,SUM(COUNTIF($AE$3:AE4,1),COUNTIF($AE$3:AE4,-1)))),(IF(SUM(COUNTIF($AG$3:AG4,1),COUNTIF($AG$3:AG4,-1))=0,1,SUM(COUNTIF($AG$3:AG4,1),COUNTIF($AG$3:AG4,-1)))),(IF(SUM(COUNTIF($AI$3:AI4,1),COUNTIF($AI$3:AI4,-1))=0,1,SUM(COUNTIF($AI$3:AI4,1),COUNTIF($AI$3:AI4,-1)))),(IF(SUM(COUNTIF($AK$3:AK4,1),COUNTIF($AK$3:AK4,-1))=0,1,SUM(COUNTIF($AK$3:AK4,1),COUNTIF($AK$3:AK4,-1)))))/1000) -> 0.001 | BM4: =IF(BF4=0,"-",IF(BF4=0,0,ROUND(((BI4/BF4-BJ4/BF4)*100+BH4/10)*BL4,3))) -> -0.096 | BO4: =+SUM(COUNTIF($AG$3:AG4,1),COUNTIF($AG$3:AG4,-1)) -> 1 | BP4: =+SUM(S4) -> 28 | BQ4: =+BP4/BO4 -> 28 | BR4: =+SUM(COUNTIF($AG$3:AG4,1)) -> 1 | BS4: =+SUM(COUNTIF($AG$3:AG4,-1)) -> 0 | BT4: =+BR4-BS4 -> 1 | BU4: =BO4*(HARMEAN((IF(SUM(COUNTIF($Z$3:Z4,1),COUNTIF($Z$3:Z4,-1))=0,1,SUM(COUNTIF($Z$3:Z4,1),COUNTIF($Z$3:Z4,-1)))),(IF(SUM(COUNTIF($AC$3:AC4,1),COUNTIF($AC$3:AC4,-1))=0,1,SUM(COUNTIF($AC$3:AC4,1),COUNTIF($AC$3:AC4,-1)))),(IF(SUM(COUNTIF($AE$3:AE4,1),COUNTIF($AE$3:AE4,-1))=0,1,SUM(COUNTIF($AE$3:AE4,1),COUNTIF($AE$3:AE4,-1)))),(IF(SUM(COUNTIF($AG$3:AG4,1),COUNTIF($AG$3:AG4,-1))=0,1,SUM(COUNTIF($AG$3:AG4,1),COUNTIF($AG$3:AG4,-1)))),(IF(SUM(COUNTIF($AI$3:AI4,1),COUNTIF($AI$3:AI4,-1))=0,1,SUM(COUNTIF($AI$3:AI4,1),COUNTIF($AI$3:AI4,-1)))),(IF(SUM(COUNTIF($AK$3:AK4,1),COUNTIF($AK$3:AK4,-1))=0,1,SUM(COUNTIF($AK$3:AK4,1),COUNTIF($AK$3:AK4,-1)))))/1000) -> 0.001 | BV4: =IF(BO4=0,"-",IF(BO4=0,0,ROUND(((BR4/BO4-BS4/BO4)*100+BQ4/10)*BU4,3))) -> 0.103 | BX4: =+SUM(COUNTIF($AI$3:AI4,1),COUNTIF($AI$3:AI4,-1)) -> 1 | BY4: =+SUM(U4) -> 41 | BZ4: =+BY4/BX4 -> 41 | CA4: =+SUM(COUNTIF($AI$3:AI4,1)) -> 0 | CB4: =+SUM(COUNTIF($AI$3:AI4,-1)) -> 1 | CC4: =+CA4-CB4 -> -1 | CD4: =+BX4*(HARMEAN((IF(SUM(COUNTIF($Z$3:Z4,1),COUNTIF($Z$3:Z4,-1))=0,1,SUM(COUNTIF($Z$3:Z4,1),COUNTIF($Z$3:Z4,-1)))),(IF(SUM(COUNTIF($AC$3:AC4,1),COUNTIF($AC$3:AC4,-1))=0,1,SUM(COUNTIF($AC$3:AC4,1),COUNTIF($AC$3:AC4,-1)))),(IF(SUM(COUNTIF($AE$3:AE4,1),COUNTIF($AE$3:AE4,-1))=0,1,SUM(COUNTIF($AE$3:AE4,1),COUNTIF($AE$3:AE4,-1)))),(IF(SUM(COUNTIF($AG$3:AG4,1),COUNTIF($AG$3:AG4,-1))=0,1,SUM(COUNTIF($AG$3:AG4,1),COUNTIF($AG$3:AG4,-1)))),(IF(SUM(COUNTIF($AI$3:AI4,1),COUNTIF($AI$3:AI4,-1))=0,1,SUM(COUNTIF($AI$3:AI4,1),COUNTIF($AI$3:AI4,-1)))),(IF(SUM(COUNTIF($AK$3:AK4,1),COUNTIF($AK$3:AK4,-1))=0,1,SUM(COUNTIF($AK$3:AK4,1),COUNTIF($AK$3:AK4,-1)))))/1000) -> 0.001 | CE4: =IF(BX4=0,"-",IF(BX4=0,0,ROUND(((CA4/BX4-CB4/BX4)*100+BZ4/10)*CD4,3))) -> -0.096 | CG4: =+SUM(COUNTIF($AK$3:AK4,1),COUNTIF($AK$3:AK4,-1)) -> 1 | CH4: =+SUM(W4) -> 34 | CI4: =+CH4/CG4 -> 34 | CJ4: =+SUM(COUNTIF($AK$3:AK4,1)) -> 0 | CK4: =+SUM(COUNTIF($AK$3:AK4,-1)) -> 1 | CL4: =+CJ4-CK4 -> -1 | CM4: =+CG4*(HARMEAN((IF(SUM(COUNTIF($Z$3:Z4,1),COUNTIF($Z$3:Z4,-1))=0,1,SUM(COUNTIF($Z$3:Z4,1),COUNTIF($Z$3:Z4,-1)))),(IF(SUM(COUNTIF($AC$3:AC4,1),COUNTIF($AC$3:AC4,-1))=0,1,SUM(COUNTIF($AC$3:AC4,1),COUNTIF($AC$3:AC4,-1)))),(IF(SUM(COUNTIF($AE$3:AE4,1),COUNTIF($AE$3:AE4,-1))=0,1,SUM(COUNTIF($AE$3:AE4,1),COUNTIF($AE$3:AE4,-1)))),(IF(SUM(COUNTIF($AG$3:AG4,1),COUNTIF($AG$3:AG4,-1))=0,1,SUM(COUNTIF($AG$3:AG4,1),COUNTIF($AG$3:AG4,-1)))),(IF(SUM(COUNTIF($AI$3:AI4,1),COUNTIF($AI$3:AI4,-1))=0,1,SUM(COUNTIF($AI$3:AI4,1),COUNTIF($AI$3:AI4,-1)))),(IF(SUM(COUNTIF($AK$3:AK4,1),COUNTIF($AK$3:AK4,-1))=0,1,SUM(COUNTIF($AK$3:AK4,1),COUNTIF($AK$3:AK4,-1)))))/1000) -> 0.001 | CN4: =IF(CG4=0,"-",IF(CG4=0,0,ROUND(((CJ4/CG4-CK4/CG4)*100+CI4/10)*CM4,3))) -> -0.097
A5: 2 | B5: AoE III | D5: =+IFERROR(INDEX('Auswertung AoE II'!$AE:$AE,MATCH(A5,'Auswertung AoE II'!$AD:$AD,0)),"") ->  | E5: =+IFERROR(INDEX('Auswertung AoE III'!$AE:$AE,MATCH(A5,'Auswertung AoE III'!$AD:$AD,0)),"") -> AoE III | F5: =+IFERROR(INDEX('Auswertung AoM'!$AE:$AE,MATCH(A5,'Auswertung AoM'!$AD:$AD,0)),"") ->  | G5: =+IFERROR(INDEX('Auswertung RA'!$AE:$AE,MATCH(A5,'Auswertung RA'!$AD:$AD,0)),"") ->  | H5: =+IFERROR(INDEX('Auswertung Yuri'!$AE:$AE,MATCH(A5,'Auswertung Yuri'!$AD:$AD,0)),"") ->  | I5: =+IFERROR(INDEX('Auswertung Generals'!$AE:$AE,MATCH(A5,'Auswertung Generals'!$AD:$AD,0)),"") ->  | J5: =+IF(B5<>0,CONCATENATE("Auswertung ",B5,"")) -> Auswertung AoE III | M5: =+IF(ISERROR(+INDIRECT(CONCATENATE("'",J5,"'!",(ADDRESS((COUNTIF($J$3:J5,IF(B5<>0,CONCATENATE("Auswertung ",B5,""))))+2,2)))))=FALSE,+INDIRECT(CONCATENATE("'",J5,"'!",(ADDRESS((COUNTIF($J$3:J5,IF(B5<>0,CONCATENATE("Auswertung ",B5,""))))+4,2)))),"") -> 206 | N5: =IF(ISERROR(+INDIRECT(CONCATENATE("'",J5,"'!",(ADDRESS((COUNTIF($J$3:J5,IF(B5<>0,CONCATENATE("Auswertung ",B5,""))))+2,2+1)))))=FALSE,+INDIRECT(CONCATENATE("'",J5,"'!",(ADDRESS((COUNTIF($J$3:J5,IF(B5<>0,CONCATENATE("Auswertung ",B5,""))))+4,2+1)))),"") -> Sioux | O5: =+IF(ISERROR(+INDIRECT(CONCATENATE("'",J5,"'!",(ADDRESS((COUNTIF($J$3:J5,IF(B5<>0,CONCATENATE("Auswertung ",B5,""))))+2,4)))))=FALSE,+INDIRECT(CONCATENATE("'",J5,"'!",(ADDRESS((COUNTIF($J$3:J5,IF(B5<>0,CONCATENATE("Auswertung ",B5,""))))+4,4)))),"") -> 235 | P5: =+IF(ISERROR(+INDIRECT(CONCATENATE("'",J5,"'!",(ADDRESS((COUNTIF($J$3:J5,IF(B5<>0,CONCATENATE("Auswertung ",B5,""))))+2,5)))))=FALSE,+INDIRECT(CONCATENATE("'",J5,"'!",(ADDRESS((COUNTIF($J$3:J5,IF(B5<>0,CONCATENATE("Auswertung ",B5,""))))+4,5)))),"") -> Jap | Q5: =+IF(ISERROR(+INDIRECT(CONCATENATE("'",J5,"'!",(ADDRESS((COUNTIF($J$3:J5,IF(B5<>0,CONCATENATE("Auswertung ",B5,""))))+2,6)))))=FALSE,+INDIRECT(CONCATENATE("'",J5,"'!",(ADDRESS((COUNTIF($J$3:J5,IF(B5<>0,CONCATENATE("Auswertung ",B5,""))))+4,6)))),"") -> 315 | R5: =+IF(ISERROR(+INDIRECT(CONCATENATE("'",J5,"'!",(ADDRESS((COUNTIF($J$3:J5,IF(B5<>0,CONCATENATE("Auswertung ",B5,""))))+2,7)))))=FALSE,+INDIRECT(CONCATENATE("'",J5,"'!",(ADDRESS((COUNTIF($J$3:J5,IF(B5<>0,CONCATENATE("Auswertung ",B5,""))))+4,7)))),"") -> Jap | S5: =+IF(ISERROR(+INDIRECT(CONCATENATE("'",J5,"'!",(ADDRESS((COUNTIF($J$3:J5,IF(B5<>0,CONCATENATE("Auswertung ",B5,""))))+2,10)))))=FALSE,+INDIRECT(CONCATENATE("'",J5,"'!",(ADDRESS((COUNTIF($J$3:J5,IF(B5<>0,CONCATENATE("Auswertung ",B5,""))))+4,8)))),"") -> 293 | T5: =+IF(ISERROR(+INDIRECT(CONCATENATE("'",J5,"'!",(ADDRESS((COUNTIF($J$3:J5,IF(B5<>0,CONCATENATE("Auswertung ",B5,""))))+2,11)))))=FALSE,+INDIRECT(CONCATENATE("'",J5,"'!",(ADDRESS((COUNTIF($J$3:J5,IF(B5<>0,CONCATENATE("Auswertung ",B5,""))))+4,9)))),"") -> Port | U5: =+IF(ISERROR(+INDIRECT(CONCATENATE("'",J5,"'!",(ADDRESS((COUNTIF($J$3:J5,IF(B5<>0,CONCATENATE("Auswertung ",B5,""))))+2,10)))))=FALSE,+INDIRECT(CONCATENATE("'",J5,"'!",(ADDRESS((COUNTIF($J$3:J5,IF(B5<>0,CONCATENATE("Auswertung ",B5,""))))+4,10)))),"") -> 184 | V5: =+IF(ISERROR(+INDIRECT(CONCATENATE("'",J5,"'!",(ADDRESS((COUNTIF($J$3:J5,IF(B5<>0,CONCATENATE("Auswertung ",B5,""))))+2,11)))))=FALSE,+INDIRECT(CONCATENATE("'",J5,"'!",(ADDRESS((COUNTIF($J$3:J5,IF(B5<>0,CONCATENATE("Auswertung ",B5,""))))+4,11)))),"") -> Sioux | W5: =+IF(ISERROR(+INDIRECT(CONCATENATE("'",J5,"'!",(ADDRESS((COUNTIF($J$3:J5,IF(D5<>0,CONCATENATE("Auswertung ",D5,""))))+2,12)))))=FALSE,+INDIRECT(CONCATENATE("'",J5,"'!",(ADDRESS((COUNTIF($J$3:J5,IF(D5<>0,CONCATENATE("Auswertung ",B5,""))))+4,12)))),"") -> 360 | X5: =+IF(ISERROR(+INDIRECT(CONCATENATE("'",J5,"'!",(ADDRESS((COUNTIF($J$3:J5,IF(D5<>0,CONCATENATE("Auswertung ",D5,""))))+2,13)))))=FALSE,+INDIRECT(CONCATENATE("'",J5,"'!",(ADDRESS((COUNTIF($J$3:J5,IF(D5<>0,CONCATENATE("Auswertung ",B5,""))))+4,13)))),"") -> Port | Z5: =+IFERROR(INDIRECT(CONCATENATE("'",J5,"'!",(ADDRESS((COUNTIF($J$3:J5,IF(B5<>0,J5)))+4,16)))),"") -> 1 | AA5: =AU5 -> 0.45 | AB5: =+SUM($M$4:M5)/COUNT($M$4:M5)/1000*2 -> 0.249 | AC5: =+IFERROR(INDIRECT(CONCATENATE("'",J5,"'!",(ADDRESS((COUNTIF($J$3:J5,IF(B5<>0,J5)))+4,18)))),"") -> 1 | AD5: =+BD5 -> 0.462 | AE5: =+IFERROR(INDIRECT(CONCATENATE("'",J5,"'!",(ADDRESS((COUNTIF($J$3:J5,IF(B5<>0,J5)))+4,20)))),"") -> -1 | AF5: =+BM5 -> -0.329 | AG5: =+IFERROR(INDIRECT(CONCATENATE("'",J5,"'!",(ADDRESS((COUNTIF($J$3:J5,IF(B5<>0,J5)))+4,22)))),"") -> -1 | AH5: =+BV5 -> 0.064 | AI5: =+IFERROR(INDIRECT(CONCATENATE("'",J5,"'!",(ADDRESS((COUNTIF($J$3:J5,IF(B5<>0,J5)))+4,24)))),"") -> -1 | AJ5: =+CE5 -> -0.355 | AK5: =+IFERROR(INDIRECT(CONCATENATE("'",J5,"'!",(ADDRESS((COUNTIF($J$3:J5,IF(B5<>0,J5)))+4,26)))),"") -> 1 | AL5: =+CN5 -> 0.079 | AM5: 2 | AN5: =+SUM(COUNTIF($Z$3:Z5,1),COUNTIF($Z$3:Z5,-1)) -> 2 | AO5: =+SUM($M$4:M5) -> 249 | AP5: 124.5 | AQ5: =+SUM(COUNTIF($Z$3:Z5,1)) -> 2 | AR5: =+SUM(COUNTIF($Z$3:Z5,-1)) -> 0 | AS5: =+AQ5-AR5 -> 2 | AT5: =AN5*(HARMEAN((IF(SUM(COUNTIF($Z$3:Z5,1),COUNTIF($Z$3:Z5,-1))=0,1,SUM(COUNTIF($Z$3:Z5,1),COUNTIF($Z$3:Z5,-1)))),(IF(SUM(COUNTIF($AC$3:AC5,1),COUNTIF($AC$3:AC5,-1))=0,1,SUM(COUNTIF($AC$3:AC5,1),COUNTIF($AC$3:AC5,-1)))),(IF(SUM(COUNTIF($AE$3:AE5,1),COUNTIF($AE$3:AE5,-1))=0,1,SUM(COUNTIF($AE$3:AE5,1),COUNTIF($AE$3:AE5,-1)))),(IF(SUM(COUNTIF($AG$3:AG5,1),COUNTIF($AG$3:AG5,-1))=0,1,SUM(COUNTIF($AG$3:AG5,1),COUNTIF($AG$3:AG5,-1)))),(IF(SUM(COUNTIF($AI$3:AI5,1),COUNTIF($AI$3:AI5,-1))=0,1,SUM(COUNTIF($AI$3:AI5,1),COUNTIF($AI$3:AI5,-1)))),(IF(SUM(COUNTIF($AK$3:AK5,1),COUNTIF($AK$3:AK5,-1))=0,1,SUM(COUNTIF($AK$3:AK5,1),COUNTIF($AK$3:AK5,-1)))))/1000) -> 0.004 | AU5: =IF(AN5=0,"-",IF(AN5=0,0,ROUND(((AQ5/AN5-AR5/AN5)*100+AP5/10)*AT5,3))) -> 0.45 | AW5: =+SUM(COUNTIF($AC$3:AC5,1),COUNTIF($AC$3:AC5,-1)) -> 2 | AX5: =+SUM($O$4:O5) -> 312 | AY5: 156 | AZ5: =+SUM(COUNTIF($AC$3:AC5,1)) -> 2 | BA5: =+SUM(COUNTIF($AC$3:AC5,-1)) -> 0 | BB5: =+AZ5-BA5 -> 2 | BC5: =AW5*(HARMEAN((IF(SUM(COUNTIF($Z$3:Z5,1),COUNTIF($Z$3:Z5,-1))=0,1,SUM(COUNTIF($Z$3:Z5,1),COUNTIF($Z$3:Z5,-1)))),(IF(SUM(COUNTIF($AC$3:AC5,1),COUNTIF($AC$3:AC5,-1))=0,1,SUM(COUNTIF($AC$3:AC5,1),COUNTIF($AC$3:AC5,-1)))),(IF(SUM(COUNTIF($AE$3:AE5,1),COUNTIF($AE$3:AE5,-1))=0,1,SUM(COUNTIF($AE$3:AE5,1),COUNTIF($AE$3:AE5,-1)))),(IF(SUM(COUNTIF($AG$3:AG5,1),COUNTIF($AG$3:AG5,-1))=0,1,SUM(COUNTIF($AG$3:AG5,1),COUNTIF($AG$3:AG5,-1)))),(IF(SUM(COUNTIF($AI$3:AI5,1),COUNTIF($AI$3:AI5,-1))=0,1,SUM(COUNTIF($AI$3:AI5,1),COUNTIF($AI$3:AI5,-1)))),(IF(SUM(COUNTIF($AK$3:AK5,1),COUNTIF($AK$3:AK5,-1))=0,1,SUM(COUNTIF($AK$3:AK5,1),COUNTIF($AK$3:AK5,-1)))))/1000) -> 0.004 | BD5: 0.462 | BF5: =+SUM(COUNTIF($AE$3:AE5,1),COUNTIF(AE$3:$AE5,-1)) -> 2 | BG5: =+SUM($Q$4:Q5) -> 355 | BH5: 177.5 | BI5: =+SUM(COUNTIF($AE$3:AE5,1)) -> 0 | BJ5: =+SUM(COUNTIF($AE$3:AE5,-1)) -> 2 | BK5: =+BI5-BJ5 -> -2 | BL5: =BF5*(HARMEAN((IF(SUM(COUNTIF($Z$3:Z5,1),COUNTIF($Z$3:Z5,-1))=0,1,SUM(COUNTIF($Z$3:Z5,1),COUNTIF($Z$3:Z5,-1)))),(IF(SUM(COUNTIF($AC$3:AC5,1),COUNTIF($AC$3:AC5,-1))=0,1,SUM(COUNTIF($AC$3:AC5,1),COUNTIF($AC$3:AC5,-1)))),(IF(SUM(COUNTIF($AE$3:AE5,1),COUNTIF($AE$3:AE5,-1))=0,1,SUM(COUNTIF($AE$3:AE5,1),COUNTIF($AE$3:AE5,-1)))),(IF(SUM(COUNTIF($AG$3:AG5,1),COUNTIF($AG$3:AG5,-1))=0,1,SUM(COUNTIF($AG$3:AG5,1),COUNTIF($AG$3:AG5,-1)))),(IF(SUM(COUNTIF($AI$3:AI5,1),COUNTIF($AI$3:AI5,-1))=0,1,SUM(COUNTIF($AI$3:AI5,1),COUNTIF($AI$3:AI5,-1)))),(IF(SUM(COUNTIF($AK$3:AK5,1),COUNTIF($AK$3:AK5,-1))=0,1,SUM(COUNTIF($AK$3:AK5,1),COUNTIF($AK$3:AK5,-1)))))/1000) -> 0.004 | BM5: =IF(BF5=0,"-",IF(BF5=0,0,ROUND(((BI5/BF5-BJ5/BF5)*100+BH5/10)*BL5,3))) -> -0.329 | BO5: =+SUM(COUNTIF($AG$3:AG5,1),COUNTIF($AG$3:AG5,-1)) -> 2 | BP5: =+SUM($S$4:S5) -> 321 | BQ5: 160.5 | BR5: =+SUM(COUNTIF($AG$3:AG5,1)) -> 1 | BS5: =+SUM(COUNTIF($AG$3:AG5,-1)) -> 1 | BT5: =+BR5-BS5 -> 0 | BU5: =BO5*(HARMEAN((IF(SUM(COUNTIF($Z$3:Z5,1),COUNTIF($Z$3:Z5,-1))=0,1,SUM(COUNTIF($Z$3:Z5,1),COUNTIF($Z$3:Z5,-1)))),(IF(SUM(COUNTIF($AC$3:AC5,1),COUNTIF($AC$3:AC5,-1))=0,1,SUM(COUNTIF($AC$3:AC5,1),COUNTIF($AC$3:AC5,-1)))),(IF(SUM(COUNTIF($AE$3:AE5,1),COUNTIF($AE$3:AE5,-1))=0,1,SUM(COUNTIF($AE$3:AE5,1),COUNTIF($AE$3:AE5,-1)))),(IF(SUM(COUNTIF($AG$3:AG5,1),COUNTIF($AG$3:AG5,-1))=0,1,SUM(COUNTIF($AG$3:AG5,1),COUNTIF($AG$3:AG5,-1)))),(IF(SUM(COUNTIF($AI$3:AI5,1),COUNTIF($AI$3:AI5,-1))=0,1,SUM(COUNTIF($AI$3:AI5,1),COUNTIF($AI$3:AI5,-1)))),(IF(SUM(COUNTIF($AK$3:AK5,1),COUNTIF($AK$3:AK5,-1))=0,1,SUM(COUNTIF($AK$3:AK5,1),COUNTIF($AK$3:AK5,-1)))))/1000) -> 0.004 | BV5: =IF(BO5=0,"-",IF(BO5=0,0,ROUND(((BR5/BO5-BS5/BO5)*100+BQ5/10)*BU5,3))) -> 0.064 | BX5: =+SUM(COUNTIF($AI$3:AI5,1),COUNTIF($AI$3:AI5,-1)) -> 2 | BY5: =+SUM($U$4:U5) -> 225 | BZ5: =+BY5/BX5 -> 112.5 | CA5: =+SUM(COUNTIF($AI$3:AI5,1)) -> 0 | CB5: =+SUM(COUNTIF($AI$3:AI5,-1)) -> 2 | CC5: =+CA5-CB5 -> -2 | CD5: =+BX5*(HARMEAN((IF(SUM(COUNTIF($Z$3:Z5,1),COUNTIF($Z$3:Z5,-1))=0,1,SUM(COUNTIF($Z$3:Z5,1),COUNTIF($Z$3:Z5,-1)))),(IF(SUM(COUNTIF($AC$3:AC5,1),COUNTIF($AC$3:AC5,-1))=0,1,SUM(COUNTIF($AC$3:AC5,1),COUNTIF($AC$3:AC5,-1)))),(IF(SUM(COUNTIF($AE$3:AE5,1),COUNTIF($AE$3:AE5,-1))=0,1,SUM(COUNTIF($AE$3:AE5,1),COUNTIF($AE$3:AE5,-1)))),(IF(SUM(COUNTIF($AG$3:AG5,1),COUNTIF($AG$3:AG5,-1))=0,1,SUM(COUNTIF($AG$3:AG5,1),COUNTIF($AG$3:AG5,-1)))),(IF(SUM(COUNTIF($AI$3:AI5,1),COUNTIF($AI$3:AI5,-1))=0,1,SUM(COUNTIF($AI$3:AI5,1),COUNTIF($AI$3:AI5,-1)))),(IF(SUM(COUNTIF($AK$3:AK5,1),COUNTIF($AK$3:AK5,-1))=0,1,SUM(COUNTIF($AK$3:AK5,1),COUNTIF($AK$3:AK5,-1)))))/1000) -> 0.004 | CE5: =IF(BX5=0,"-",IF(BX5=0,0,ROUND(((CA5/BX5-CB5/BX5)*100+BZ5/10)*CD5,3))) -> -0.355 | CG5: =+SUM(COUNTIF($AK$3:AK5,1),COUNTIF($AK$3:AK5,-1)) -> 2 | CH5: =+SUM($W$4:W5) -> 394 | CI5: =+CH5/CG5 -> 197 | CJ5: =+SUM(COUNTIF($AK$3:AK5,1)) -> 1 | CK5: =+SUM(COUNTIF($AK$3:AK5,-1)) -> 1 | CL5: =+CJ5-CK5 -> 0 | CM5: =+CG5*(HARMEAN((IF(SUM(COUNTIF($Z$3:Z5,1),COUNTIF($Z$3:Z5,-1))=0,1,SUM(COUNTIF($Z$3:Z5,1),COUNTIF($Z$3:Z5,-1)))),(IF(SUM(COUNTIF($AC$3:AC5,1),COUNTIF($AC$3:AC5,-1))=0,1,SUM(COUNTIF($AC$3:AC5,1),COUNTIF($AC$3:AC5,-1)))),(IF(SUM(COUNTIF($AE$3:AE5,1),COUNTIF($AE$3:AE5,-1))=0,1,SUM(COUNTIF($AE$3:AE5,1),COUNTIF($AE$3:AE5,-1)))),(IF(SUM(COUNTIF($AG$3:AG5,1),COUNTIF($AG$3:AG5,-1))=0,1,SUM(COUNTIF($AG$3:AG5,1),COUNTIF($AG$3:AG5,-1)))),(IF(SUM(COUNTIF($AI$3:AI5,1),COUNTIF($AI$3:AI5,-1))=0,1,SUM(COUNTIF($AI$3:AI5,1),COUNTIF($AI$3:AI5,-1)))),(IF(SUM(COUNTIF($AK$3:AK5,1),COUNTIF($AK$3:AK5,-1))=0,1,SUM(COUNTIF($AK$3:AK5,1),COUNTIF($AK$3:AK5,-1)))))/1000) -> 0.004 | CN5: =IF(CG5=0,"-",IF(CG5=0,0,ROUND(((CJ5/CG5-CK5/CG5)*100+CI5/10)*CM5,3))) -> 0.079
A6: 3 | B6: Generals | D6: =+IFERROR(INDEX('Auswertung AoE II'!$AE:$AE,MATCH(A6,'Auswertung AoE II'!$AD:$AD,0)),"") ->  | E6: =+IFERROR(INDEX('Auswertung AoE III'!$AE:$AE,MATCH(A6,'Auswertung AoE III'!$AD:$AD,0)),"") ->  | F6: =+IFERROR(INDEX('Auswertung AoM'!$AE:$AE,MATCH(A6,'Auswertung AoM'!$AD:$AD,0)),"") ->  | G6: =+IFERROR(INDEX('Auswertung RA'!$AE:$AE,MATCH(A6,'Auswertung RA'!$AD:$AD,0)),"") ->  | H6: =+IFERROR(INDEX('Auswertung Yuri'!$AE:$AE,MATCH(A6,'Auswertung Yuri'!$AD:$AD,0)),"") ->  | I6: =+IFERROR(INDEX('Auswertung Generals'!$AE:$AE,MATCH(A6,'Auswertung Generals'!$AD:$AD,0)),"") -> Generals | J6: =+IF(B6<>0,CONCATENATE("Auswertung ",B6,"")) -> Auswertung Generals | M6: =+IF(ISERROR(+INDIRECT(CONCATENATE("'",J6,"'!",(ADDRESS((COUNTIF($J$3:J6,IF(B6<>0,CONCATENATE("Auswertung ",B6,""))))+2,2)))))=FALSE,+INDIRECT(CONCATENATE("'",J6,"'!",(ADDRESS((COUNTIF($J$3:J6,IF(B6<>0,CONCATENATE("Auswertung ",B6,""))))+4,2)))),"") -> 52 | N6: =IF(ISERROR(+INDIRECT(CONCATENATE("'",J6,"'!",(ADDRESS((COUNTIF($J$3:J6,IF(B6<>0,CONCATENATE("Auswertung ",B6,""))))+2,2+1)))))=FALSE,+INDIRECT(CONCATENATE("'",J6,"'!",(ADDRESS((COUNTIF($J$3:J6,IF(B6<>0,CONCATENATE("Auswertung ",B6,""))))+4,2+1)))),"") -> IBG | O6: =+IF(ISERROR(+INDIRECT(CONCATENATE("'",J6,"'!",(ADDRESS((COUNTIF($J$3:J6,IF(B6<>0,CONCATENATE("Auswertung ",B6,""))))+2,4)))))=FALSE,+INDIRECT(CONCATENATE("'",J6,"'!",(ADDRESS((COUNTIF($J$3:J6,IF(B6<>0,CONCATENATE("Auswertung ",B6,""))))+4,4)))),"") -> 74 | P6: =+IF(ISERROR(+INDIRECT(CONCATENATE("'",J6,"'!",(ADDRESS((COUNTIF($J$3:J6,IF(B6<>0,CONCATENATE("Auswertung ",B6,""))))+2,5)))))=FALSE,+INDIRECT(CONCATENATE("'",J6,"'!",(ADDRESS((COUNTIF($J$3:J6,IF(B6<>0,CONCATENATE("Auswertung ",B6,""))))+4,5)))),"") -> IBG | Q6: =+IF(ISERROR(+INDIRECT(CONCATENATE("'",J6,"'!",(ADDRESS((COUNTIF($J$3:J6,IF(B6<>0,CONCATENATE("Auswertung ",B6,""))))+2,6)))))=FALSE,+INDIRECT(CONCATENATE("'",J6,"'!",(ADDRESS((COUNTIF($J$3:J6,IF(B6<>0,CONCATENATE("Auswertung ",B6,""))))+4,6)))),"") -> 74 | R6: =+IF(ISERROR(+INDIRECT(CONCATENATE("'",J6,"'!",(ADDRESS((COUNTIF($J$3:J6,IF(B6<>0,CONCATENATE("Auswertung ",B6,""))))+2,7)))))=FALSE,+INDIRECT(CONCATENATE("'",J6,"'!",(ADDRESS((COUNTIF($J$3:J6,IF(B6<>0,CONCATENATE("Auswertung ",B6,""))))+4,7)))),"") -> WA | S6: =+IF(ISERROR(+INDIRECT(CONCATENATE("'",J6,"'!",(ADDRESS((COUNTIF($J$3:J6,IF(B6<>0,CONCATENATE("Auswertung ",B6,""))))+2,10)))))=FALSE,+INDIRECT(CONCATENATE("'",J6,"'!",(ADDRESS((COUNTIF($J$3:J6,IF(B6<>0,CONCATENATE("Auswertung ",B6,""))))+4,8)))),"") -> 66 | T6: =+IF(ISERROR(+INDIRECT(CONCATENATE("'",J6,"'!",(ADDRESS((COUNTIF($J$3:J6,IF(B6<>0,CONCATENATE("Auswertung ",B6,""))))+2,11)))))=FALSE,+INDIRECT(CONCATENATE("'",J6,"'!",(ADDRESS((COUNTIF($J$3:J6,IF(B6<>0,CONCATENATE("Auswertung ",B6,""))))+4,9)))),"") -> AP | U6: =+IF(ISERROR(+INDIRECT(CONCATENATE("'",J6,"'!",(ADDRESS((COUNTIF($J$3:J6,IF(B6<>0,CONCATENATE("Auswertung ",B6,""))))+2,10)))))=FALSE,+INDIRECT(CONCATENATE("'",J6,"'!",(ADDRESS((COUNTIF($J$3:J6,IF(B6<>0,CONCATENATE("Auswertung ",B6,""))))+4,10)))),"") -> 108 | V6: =+IF(ISERROR(+INDIRECT(CONCATENATE("'",J6,"'!",(ADDRESS((COUNTIF($J$3:J6,IF(B6<>0,CONCATENATE("Auswertung ",B6,""))))+2,11)))))=FALSE,+INDIRECT(CONCATENATE("'",J6,"'!",(ADDRESS((COUNTIF($J$3:J6,IF(B6<>0,CONCATENATE("Auswertung ",B6,""))))+4,11)))),"") -> WA | W6: =+IF(ISERROR(+INDIRECT(CONCATENATE("'",J6,"'!",(ADDRESS((COUNTIF($J$3:J6,IF(D6<>0,CONCATENATE("Auswertung ",D6,""))))+2,12)))))=FALSE,+INDIRECT(CONCATENATE("'",J6,"'!",(ADDRESS((COUNTIF($J$3:J6,IF(D6<>0,CONCATENATE("Auswertung ",B6,""))))+4,12)))),"") -> 94 | X6: =+IF(ISERROR(+INDIRECT(CONCATENATE("'",J6,"'!",(ADDRESS((COUNTIF($J$3:J6,IF(D6<>0,CONCATENATE("Auswertung ",D6,""))))+2,13)))))=FALSE,+INDIRECT(CONCATENATE("'",J6,"'!",(ADDRESS((COUNTIF($J$3:J6,IF(D6<>0,CONCATENATE("Auswertung ",B6,""))))+4,13)))),"") -> AP | Z6: =+IFERROR(INDIRECT(CONCATENATE("'",J6,"'!",(ADDRESS((COUNTIF($J$3:J6,IF(B6<>0,J6)))+4,16)))),"") -> -1 | AA6: =AU6 -> 0.39 | AB6: =+SUM($M$4:M6)/COUNT($M$4:M6)/1000*2 -> 0.2006666667 | AC6: =+IFERROR(INDIRECT(CONCATENATE("'",J6,"'!",(ADDRESS((COUNTIF($J$3:J6,IF(B6<>0,J6)))+4,18)))),"") -> 1 | AD6: 1.016 | AE6: =+IFERROR(INDIRECT(CONCATENATE("'",J6,"'!",(ADDRESS((COUNTIF($J$3:J6,IF(B6<>0,J6)))+4,20)))),"") -> -1 | AF6: -0.771 | AG6: =+IFERROR(INDIRECT(CONCATENATE("'",J6,"'!",(ADDRESS((COUNTIF($J$3:J6,IF(B6<>0,J6)))+4,22)))),"") -> -1 | AH6: -0.184 | AI6: =+IFERROR(INDIRECT(CONCATENATE("'",J6,"'!",(ADDRESS((COUNTIF($J$3:J6,IF(B6<>0,J6)))+4,24)))),"") -> 1 | AJ6: -0.2 | AK6: =+IFERROR(INDIRECT(CONCATENATE("'",J6,"'!",(ADDRESS((COUNTIF($J$3:J6,IF(B6<>0,J6)))+4,26)))),"") -> 1 | AL6: 0.446 | AM6: 3 | AN6: =+SUM(COUNTIF($Z$3:Z6,1),COUNTIF($Z$3:Z6,-1)) -> 3 | AO6: =+SUM($M$4:M6) -> 301 | AP6: 100.3333333 | AQ6: =+SUM(COUNTIF($Z$3:Z6,1)) -> 2 | AR6: =+SUM(COUNTIF($Z$3:Z6,-1)) -> 1 | AS6: 1 | AT6: =AN6*(HARMEAN((IF(SUM(COUNTIF($Z$3:Z6,1),COUNTIF($Z$3:Z6,-1))=0,1,SUM(COUNTIF($Z$3:Z6,1),COUNTIF($Z$3:Z6,-1)))),(IF(SUM(COUNTIF($AC$3:AC6,1),COUNTIF($AC$3:AC6,-1))=0,1,SUM(COUNTIF($AC$3:AC6,1),COUNTIF($AC$3:AC6,-1)))),(IF(SUM(COUNTIF($AE$3:AE6,1),COUNTIF($AE$3:AE6,-1))=0,1,SUM(COUNTIF($AE$3:AE6,1),COUNTIF($AE$3:AE6,-1)))),(IF(SUM(COUNTIF($AG$3:AG6,1),COUNTIF($AG$3:AG6,-1))=0,1,SUM(COUNTIF($AG$3:AG6,1),COUNTIF($AG$3:AG6,-1)))),(IF(SUM(COUNTIF($AI$3:AI6,1),COUNTIF($AI$3:AI6,-1))=0,1,SUM(COUNTIF($AI$3:AI6,1),COUNTIF($AI$3:AI6,-1)))),(IF(SUM(COUNTIF($AK$3:AK6,1),COUNTIF($AK$3:AK6,-1))=0,1,SUM(COUNTIF($AK$3:AK6,1),COUNTIF($AK$3:AK6,-1)))))/1000) -> 0.009 | AU6: 0.39 | AW6: =+SUM(COUNTIF($AC$3:AC6,1),COUNTIF($AC$3:AC6,-1)) -> 3 | AX6: =+SUM($O$4:O6) -> 386 | AY6: 128.6666667 | AZ6: =+SUM(COUNTIF($AC$3:AC6,1)) -> 3 | BA6: =+SUM(COUNTIF($AC$3:AC6,-1)) -> 0 | BB6: 3 | BC6: =AW6*(HARMEAN((IF(SUM(COUNTIF($Z$3:Z6,1),COUNTIF($Z$3:Z6,-1))=0,1,SUM(COUNTIF($Z$3:Z6,1),COUNTIF($Z$3:Z6,-1)))),(IF(SUM(COUNTIF($AC$3:AC6,1),COUNTIF($AC$3:AC6,-1))=0,1,SUM(COUNTIF($AC$3:AC6,1),COUNTIF($AC$3:AC6,-1)))),(IF(SUM(COUNTIF($AE$3:AE6,1),COUNTIF($AE$3:AE6,-1))=0,1,SUM(COUNTIF($AE$3:AE6,1),COUNTIF($AE$3:AE6,-1)))),(IF(SUM(COUNTIF($AG$3:AG6,1),COUNTIF($AG$3:AG6,-1))=0,1,SUM(COUNTIF($AG$3:AG6,1),COUNTIF($AG$3:AG6,-1)))),(IF(SUM(COUNTIF($AI$3:AI6,1),COUNTIF($AI$3:AI6,-1))=0,1,SUM(COUNTIF($AI$3:AI6,1),COUNTIF($AI$3:AI6,-1)))),(IF(SUM(COUNTIF($AK$3:AK6,1),COUNTIF($AK$3:AK6,-1))=0,1,SUM(COUNTIF($AK$3:AK6,1),COUNTIF($AK$3:AK6,-1)))))/1000) -> 0.009 | BD6: 1.016 | BF6: =+SUM(COUNTIF($AE$3:AE6,1),COUNTIF(AE$3:$AE6,-1)) -> 3 | BG6: =+SUM($Q$4:Q6) -> 429 | BH6: 143 | BI6: =+SUM(COUNTIF($AE$3:AE6,1)) -> 0 | BJ6: =+SUM(COUNTIF($AE$3:AE6,-1)) -> 3 | BK6: -3 | BL6: =BF6*(HARMEAN((IF(SUM(COUNTIF($Z$3:Z6,1),COUNTIF($Z$3:Z6,-1))=0,1,SUM(COUNTIF($Z$3:Z6,1),COUNTIF($Z$3:Z6,-1)))),(IF(SUM(COUNTIF($AC$3:AC6,1),COUNTIF($AC$3:AC6,-1))=0,1,SUM(COUNTIF($AC$3:AC6,1),COUNTIF($AC$3:AC6,-1)))),(IF(SUM(COUNTIF($AE$3:AE6,1),COUNTIF($AE$3:AE6,-1))=0,1,SUM(COUNTIF($AE$3:AE6,1),COUNTIF($AE$3:AE6,-1)))),(IF(SUM(COUNTIF($AG$3:AG6,1),COUNTIF($AG$3:AG6,-1))=0,1,SUM(COUNTIF($AG$3:AG6,1),COUNTIF($AG$3:AG6,-1)))),(IF(SUM(COUNTIF($AI$3:AI6,1),COUNTIF($AI$3:AI6,-1))=0,1,SUM(COUNTIF($AI$3:AI6,1),COUNTIF($AI$3:AI6,-1)))),(IF(SUM(COUNTIF($AK$3:AK6,1),COUNTIF($AK$3:AK6,-1))=0,1,SUM(COUNTIF($AK$3:AK6,1),COUNTIF($AK$3:AK6,-1)))))/1000) -> 0.009 | BM6: -0.771 | BO6: =+SUM(COUNTIF($AG$3:AG6,1),COUNTIF($AG$3:AG6,-1)) -> 3 | BP6: =+SUM($S$4:S6) -> 387 | BQ6: 129 | BR6: =+SUM(COUNTIF($AG$3:AG6,1)) -> 1 | BS6: =+SUM(COUNTIF($AG$3:AG6,-1)) -> 2 | BT6: -1 | BU6: =BO6*(HARMEAN((IF(SUM(COUNTIF($Z$3:Z6,1),COUNTIF($Z$3:Z6,-1))=0,1,SUM(COUNTIF($Z$3:Z6,1),COUNTIF($Z$3:Z6,-1)))),(IF(SUM(COUNTIF($AC$3:AC6,1),COUNTIF($AC$3:AC6,-1))=0,1,SUM(COUNTIF($AC$3:AC6,1),COUNTIF($AC$3:AC6,-1)))),(IF(SUM(COUNTIF($AE$3:AE6,1),COUNTIF($AE$3:AE6,-1))=0,1,SUM(COUNTIF($AE$3:AE6,1),COUNTIF($AE$3:AE6,-1)))),(IF(SUM(COUNTIF($AG$3:AG6,1),COUNTIF($AG$3:AG6,-1))=0,1,SUM(COUNTIF($AG$3:AG6,1),COUNTIF($AG$3:AG6,-1)))),(IF(SUM(COUNTIF($AI$3:AI6,1),COUNTIF($AI$3:AI6,-1))=0,1,SUM(COUNTIF($AI$3:AI6,1),COUNTIF($AI$3:AI6,-1)))),(IF(SUM(COUNTIF($AK$3:AK6,1),COUNTIF($AK$3:AK6,-1))=0,1,SUM(COUNTIF($AK$3:AK6,1),COUNTIF($AK$3:AK6,-1)))))/1000) -> 0.009 | BV6: -0.184 | BX6: =+SUM(COUNTIF($AI$3:AI6,1),COUNTIF($AI$3:AI6,-1)) -> 3 | BY6: =+SUM($U$4:U6) -> 333 | BZ6: 111 | CA6: =+SUM(COUNTIF($AI$3:AI6,1)) -> 1 | CB6: =+SUM(COUNTIF($AI$3:AI6,-1)) -> 2 | CC6: -1 | CD6: =+BX6*(HARMEAN((IF(SUM(COUNTIF($Z$3:Z6,1),COUNTIF($Z$3:Z6,-1))=0,1,SUM(COUNTIF($Z$3:Z6,1),COUNTIF($Z$3:Z6,-1)))),(IF(SUM(COUNTIF($AC$3:AC6,1),COUNTIF($AC$3:AC6,-1))=0,1,SUM(COUNTIF($AC$3:AC6,1),COUNTIF($AC$3:AC6,-1)))),(IF(SUM(COUNTIF($AE$3:AE6,1),COUNTIF($AE$3:AE6,-1))=0,1,SUM(COUNTIF($AE$3:AE6,1),COUNTIF($AE$3:AE6,-1)))),(IF(SUM(COUNTIF($AG$3:AG6,1),COUNTIF($AG$3:AG6,-1))=0,1,SUM(COUNTIF($AG$3:AG6,1),COUNTIF($AG$3:AG6,-1)))),(IF(SUM(COUNTIF($AI$3:AI6,1),COUNTIF($AI$3:AI6,-1))=0,1,SUM(COUNTIF($AI$3:AI6,1),COUNTIF($AI$3:AI6,-1)))),(IF(SUM(COUNTIF($AK$3:AK6,1),COUNTIF($AK$3:AK6,-1))=0,1,SUM(COUNTIF($AK$3:AK6,1),COUNTIF($AK$3:AK6,-1)))))/1000) -> 0.009 | CE6: -0.2 | CG6: =+SUM(COUNTIF($AK$3:AK6,1),COUNTIF($AK$3:AK6,-1)) -> 3 | CH6: =+SUM($W$4:W6) -> 488 | CI6: 162.6666667 | CJ6: =+SUM(COUNTIF($AK$3:AK6,1)) -> 2 | CK6: =+SUM(COUNTIF($AK$3:AK6,-1)) -> 1 | CL6: 1 | CM6: =+CG6*(HARMEAN((IF(SUM(COUNTIF($Z$3:Z6,1),COUNTIF($Z$3:Z6,-1))=0,1,SUM(COUNTIF($Z$3:Z6,1),COUNTIF($Z$3:Z6,-1)))),(IF(SUM(COUNTIF($AC$3:AC6,1),COUNTIF($AC$3:AC6,-1))=0,1,SUM(COUNTIF($AC$3:AC6,1),COUNTIF($AC$3:AC6,-1)))),(IF(SUM(COUNTIF($AE$3:AE6,1),COUNTIF($AE$3:AE6,-1))=0,1,SUM(COUNTIF($AE$3:AE6,1),COUNTIF($AE$3:AE6,-1)))),(IF(SUM(COUNTIF($AG$3:AG6,1),COUNTIF($AG$3:AG6,-1))=0,1,SUM(COUNTIF($AG$3:AG6,1),COUNTIF($AG$3:AG6,-1)))),(IF(SUM(COUNTIF($AI$3:AI6,1),COUNTIF($AI$3:AI6,-1))=0,1,SUM(COUNTIF($AI$3:AI6,1),COUNTIF($AI$3:AI6,-1)))),(IF(SUM(COUNTIF($AK$3:AK6,1),COUNTIF($AK$3:AK6,-1))=0,1,SUM(COUNTIF($AK$3:AK6,1),COUNTIF($AK$3:AK6,-1)))))/1000) -> 0.009 | CN6: 0.446
A7: 4 | B7: AoE II | D7: =+IFERROR(INDEX('Auswertung AoE II'!$AE:$AE,MATCH(A7,'Auswertung AoE II'!$AD:$AD,0)),"") -> AoE II | E7: =+IFERROR(INDEX('Auswertung AoE III'!$AE:$AE,MATCH(A7,'Auswertung AoE III'!$AD:$AD,0)),"") ->  | F7: =+IFERROR(INDEX('Auswertung AoM'!$AE:$AE,MATCH(A7,'Auswertung AoM'!$AD:$AD,0)),"") ->  | G7: =+IFERROR(INDEX('Auswertung RA'!$AE:$AE,MATCH(A7,'Auswertung RA'!$AD:$AD,0)),"") ->  | H7: =+IFERROR(INDEX('Auswertung Yuri'!$AE:$AE,MATCH(A7,'Auswertung Yuri'!$AD:$AD,0)),"") ->  | I7: =+IFERROR(INDEX('Auswertung Generals'!$AE:$AE,MATCH(A7,'Auswertung Generals'!$AD:$AD,0)),"") ->  | J7: =+IF(B7<>0,CONCATENATE("Auswertung ",B7,"")) -> Auswertung AoE II | M7: =+IF(ISERROR(+INDIRECT(CONCATENATE("'",J7,"'!",(ADDRESS((COUNTIF($J$3:J7,IF(B7<>0,CONCATENATE("Auswertung ",B7,""))))+2,2)))))=FALSE,+INDIRECT(CONCATENATE("'",J7,"'!",(ADDRESS((COUNTIF($J$3:J7,IF(B7<>0,CONCATENATE("Auswertung ",B7,""))))+4,2)))),"") -> 106 | N7: =IF(ISERROR(+INDIRECT(CONCATENATE("'",J7,"'!",(ADDRESS((COUNTIF($J$3:J7,IF(B7<>0,CONCATENATE("Auswertung ",B7,""))))+2,2+1)))))=FALSE,+INDIRECT(CONCATENATE("'",J7,"'!",(ADDRESS((COUNTIF($J$3:J7,IF(B7<>0,CONCATENATE("Auswertung ",B7,""))))+4,2+1)))),"") -> Berb | O7: =+IF(ISERROR(+INDIRECT(CONCATENATE("'",J7,"'!",(ADDRESS((COUNTIF($J$3:J7,IF(B7<>0,CONCATENATE("Auswertung ",B7,""))))+2,4)))))=FALSE,+INDIRECT(CONCATENATE("'",J7,"'!",(ADDRESS((COUNTIF($J$3:J7,IF(B7<>0,CONCATENATE("Auswertung ",B7,""))))+4,4)))),"") -> 71 | P7: =+IF(ISERROR(+INDIRECT(CONCATENATE("'",J7,"'!",(ADDRESS((COUNTIF($J$3:J7,IF(B7<>0,CONCATENATE("Auswertung ",B7,""))))+2,5)))))=FALSE,+INDIRECT(CONCATENATE("'",J7,"'!",(ADDRESS((COUNTIF($J$3:J7,IF(B7<>0,CONCATENATE("Auswertung ",B7,""))))+4,5)))),"") -> Burg | Q7: =+IF(ISERROR(+INDIRECT(CONCATENATE("'",J7,"'!",(ADDRESS((COUNTIF($J$3:J7,IF(B7<>0,CONCATENATE("Auswertung ",B7,""))))+2,6)))))=FALSE,+INDIRECT(CONCATENATE("'",J7,"'!",(ADDRESS((COUNTIF($J$3:J7,IF(B7<>0,CONCATENATE("Auswertung ",B7,""))))+4,6)))),"") -> 111 | R7: =+IF(ISERROR(+INDIRECT(CONCATENATE("'",J7,"'!",(ADDRESS((COUNTIF($J$3:J7,IF(B7<>0,CONCATENATE("Auswertung ",B7,""))))+2,7)))))=FALSE,+INDIRECT(CONCATENATE("'",J7,"'!",(ADDRESS((COUNTIF($J$3:J7,IF(B7<>0,CONCATENATE("Auswertung ",B7,""))))+4,7)))),"") -> Berb | S7: =+IF(ISERROR(+INDIRECT(CONCATENATE("'",J7,"'!",(ADDRESS((COUNTIF($J$3:J7,IF(B7<>0,CONCATENATE("Auswertung ",B7,""))))+2,10)))))=FALSE,+INDIRECT(CONCATENATE("'",J7,"'!",(ADDRESS((COUNTIF($J$3:J7,IF(B7<>0,CONCATENATE("Auswertung ",B7,""))))+4,8)))),"") -> 71 | T7: =+IF(ISERROR(+INDIRECT(CONCATENATE("'",J7,"'!",(ADDRESS((COUNTIF($J$3:J7,IF(B7<>0,CONCATENATE("Auswertung ",B7,""))))+2,11)))))=FALSE,+INDIRECT(CONCATENATE("'",J7,"'!",(ADDRESS((COUNTIF($J$3:J7,IF(B7<>0,CONCATENATE("Auswertung ",B7,""))))+4,9)))),"") -> Rom | U7: =+IF(ISERROR(+INDIRECT(CONCATENATE("'",J7,"'!",(ADDRESS((COUNTIF($J$3:J7,IF(B7<>0,CONCATENATE("Auswertung ",B7,""))))+2,10)))))=FALSE,+INDIRECT(CONCATENATE("'",J7,"'!",(ADDRESS((COUNTIF($J$3:J7,IF(B7<>0,CONCATENATE("Auswertung ",B7,""))))+4,10)))),"") -> 63 | V7: =+IF(ISERROR(+INDIRECT(CONCATENATE("'",J7,"'!",(ADDRESS((COUNTIF($J$3:J7,IF(B7<>0,CONCATENATE("Auswertung ",B7,""))))+2,11)))))=FALSE,+INDIRECT(CONCATENATE("'",J7,"'!",(ADDRESS((COUNTIF($J$3:J7,IF(B7<>0,CONCATENATE("Auswertung ",B7,""))))+4,11)))),"") -> Rom | W7: =+IF(ISERROR(+INDIRECT(CONCATENATE("'",J7,"'!",(ADDRESS((COUNTIF($J$3:J7,IF(D7<>0,CONCATENATE("Auswertung ",D7,""))))+2,12)))))=FALSE,+INDIRECT(CONCATENATE("'",J7,"'!",(ADDRESS((COUNTIF($J$3:J7,IF(D7<>0,CONCATENATE("Auswertung ",B7,""))))+4,12)))),"") -> 57 | X7: =+IF(ISERROR(+INDIRECT(CONCATENATE("'",J7,"'!",(ADDRESS((COUNTIF($J$3:J7,IF(D7<>0,CONCATENATE("Auswertung ",D7,""))))+2,13)))))=FALSE,+INDIRECT(CONCATENATE("'",J7,"'!",(ADDRESS((COUNTIF($J$3:J7,IF(D7<>0,CONCATENATE("Auswertung ",B7,""))))+4,13)))),"") -> Burg | Z7: =+IFERROR(INDIRECT(CONCATENATE("'",J7,"'!",(ADDRESS((COUNTIF($J$3:J7,IF(B7<>0,J7)))+4,16)))),"") -> -1 | AA7: 0.163 | AB7: =+SUM($M$4:M7)/COUNT($M$4:M7)/1000*2 -> 0.2035 | AC7: =+IFERROR(INDIRECT(CONCATENATE("'",J7,"'!",(ADDRESS((COUNTIF($J$3:J7,IF(B7<>0,J7)))+4,18)))),"") -> 1 | AD7: 1.783 | AE7: =+IFERROR(INDIRECT(CONCATENATE("'",J7,"'!",(ADDRESS((COUNTIF($J$3:J7,IF(B7<>0,J7)))+4,20)))),"") -> 1 | AF7: -0.584 | AG7: =+IFERROR(INDIRECT(CONCATENATE("'",J7,"'!",(ADDRESS((COUNTIF($J$3:J7,IF(B7<>0,J7)))+4,22)))),"") -> 1 | AH7: 0.183 | AI7: =+IFERROR(INDIRECT(CONCATENATE("'",J7,"'!",(ADDRESS((COUNTIF($J$3:J7,IF(B7<>0,J7)))+4,24)))),"") -> -1 | AJ7: -0.642 | AK7: =+IFERROR(INDIRECT(CONCATENATE("'",J7,"'!",(ADDRESS((COUNTIF($J$3:J7,IF(B7<>0,J7)))+4,26)))),"") -> -1 | AL7: 0.218 | AM7: 4 | AN7: =+SUM(COUNTIF($Z$3:Z7,1),COUNTIF($Z$3:Z7,-1)) -> 4 | AO7: =+SUM($M$4:M7) -> 407 | AP7: 101.75 | AQ7: =+SUM(COUNTIF($Z$3:Z7,1)) -> 2 | AR7: =+SUM(COUNTIF($Z$3:Z7,-1)) -> 2 | AS7: 0 | AT7: =AN7*(HARMEAN((IF(SUM(COUNTIF($Z$3:Z7,1),COUNTIF($Z$3:Z7,-1))=0,1,SUM(COUNTIF($Z$3:Z7,1),COUNTIF($Z$3:Z7,-1)))),(IF(SUM(COUNTIF($AC$3:AC7,1),COUNTIF($AC$3:AC7,-1))=0,1,SUM(COUNTIF($AC$3:AC7,1),COUNTIF($AC$3:AC7,-1)))),(IF(SUM(COUNTIF($AE$3:AE7,1),COUNTIF($AE$3:AE7,-1))=0,1,SUM(COUNTIF($AE$3:AE7,1),COUNTIF($AE$3:AE7,-1)))),(IF(SUM(COUNTIF($AG$3:AG7,1),COUNTIF($AG$3:AG7,-1))=0,1,SUM(COUNTIF($AG$3:AG7,1),COUNTIF($AG$3:AG7,-1)))),(IF(SUM(COUNTIF($AI$3:AI7,1),COUNTIF($AI$3:AI7,-1))=0,1,SUM(COUNTIF($AI$3:AI7,1),COUNTIF($AI$3:AI7,-1)))),(IF(SUM(COUNTIF($AK$3:AK7,1),COUNTIF($AK$3:AK7,-1))=0,1,SUM(COUNTIF($AK$3:AK7,1),COUNTIF($AK$3:AK7,-1)))))/1000) -> 0.016 | AU7: 0.163 | AW7: =+SUM(COUNTIF($AC$3:AC7,1),COUNTIF($AC$3:AC7,-1)) -> 4 | AX7: =+SUM($O$4:O7) -> 457 | AY7: 114.25 | AZ7: =+SUM(COUNTIF($AC$3:AC7,1)) -> 4 | BA7: =+SUM(COUNTIF($AC$3:AC7,-1)) -> 0 | BB7: 4 | BC7: =AW7*(HARMEAN((IF(SUM(COUNTIF($Z$3:Z7,1),COUNTIF($Z$3:Z7,-1))=0,1,SUM(COUNTIF($Z$3:Z7,1),COUNTIF($Z$3:Z7,-1)))),(IF(SUM(COUNTIF($AC$3:AC7,1),COUNTIF($AC$3:AC7,-1))=0,1,SUM(COUNTIF($AC$3:AC7,1),COUNTIF($AC$3:AC7,-1)))),(IF(SUM(COUNTIF($AE$3:AE7,1),COUNTIF($AE$3:AE7,-1))=0,1,SUM(COUNTIF($AE$3:AE7,1),COUNTIF($AE$3:AE7,-1)))),(IF(SUM(COUNTIF($AG$3:AG7,1),COUNTIF($AG$3:AG7,-1))=0,1,SUM(COUNTIF($AG$3:AG7,1),COUNTIF($AG$3:AG7,-1)))),(IF(SUM(COUNTIF($AI$3:AI7,1),COUNTIF($AI$3:AI7,-1))=0,1,SUM(COUNTIF($AI$3:AI7,1),COUNTIF($AI$3:AI7,-1)))),(IF(SUM(COUNTIF($AK$3:AK7,1),COUNTIF($AK$3:AK7,-1))=0,1,SUM(COUNTIF($AK$3:AK7,1),COUNTIF($AK$3:AK7,-1)))))/1000) -> 0.016 | BD7: 1.783 | BF7: =+SUM(COUNTIF($AE$3:AE7,1),COUNTIF(AE$3:$AE7,-1)) -> 4 | BG7: =+SUM($Q$4:Q7) -> 540 | BH7: 135 | BI7: =+SUM(COUNTIF($AE$3:AE7,1)) -> 1 | BJ7: =+SUM(COUNTIF($AE$3:AE7,-1)) -> 3 | BK7: -2 | BL7: =BF7*(HARMEAN((IF(SUM(COUNTIF($Z$3:Z7,1),COUNTIF($Z$3:Z7,-1))=0,1,SUM(COUNTIF($Z$3:Z7,1),COUNTIF($Z$3:Z7,-1)))),(IF(SUM(COUNTIF($AC$3:AC7,1),COUNTIF($AC$3:AC7,-1))=0,1,SUM(COUNTIF($AC$3:AC7,1),COUNTIF($AC$3:AC7,-1)))),(IF(SUM(COUNTIF($AE$3:AE7,1),COUNTIF($AE$3:AE7,-1))=0,1,SUM(COUNTIF($AE$3:AE7,1),COUNTIF($AE$3:AE7,-1)))),(IF(SUM(COUNTIF($AG$3:AG7,1),COUNTIF($AG$3:AG7,-1))=0,1,SUM(COUNTIF($AG$3:AG7,1),COUNTIF($AG$3:AG7,-1)))),(IF(SUM(COUNTIF($AI$3:AI7,1),COUNTIF($AI$3:AI7,-1))=0,1,SUM(COUNTIF($AI$3:AI7,1),COUNTIF($AI$3:AI7,-1)))),(IF(SUM(COUNTIF($AK$3:AK7,1),COUNTIF($AK$3:AK7,-1))=0,1,SUM(COUNTIF($AK$3:AK7,1),COUNTIF($AK$3:AK7,-1)))))/1000) -> 0.016 | BM7: -0.584 | BO7: =+SUM(COUNTIF($AG$3:AG7,1),COUNTIF($AG$3:AG7,-1)) -> 4 | BP7: =+SUM($S$4:S7) -> 458 | BQ7: 114.5 | BR7: =+SUM(COUNTIF($AG$3:AG7,1)) -> 2 | BS7: =+SUM(COUNTIF($AG$3:AG7,-1)) -> 2 | BT7: 0 | BU7: =BO7*(HARMEAN((IF(SUM(COUNTIF($Z$3:Z7,1),COUNTIF($Z$3:Z7,-1))=0,1,SUM(COUNTIF($Z$3:Z7,1),COUNTIF($Z$3:Z7,-1)))),(IF(SUM(COUNTIF($AC$3:AC7,1),COUNTIF($AC$3:AC7,-1))=0,1,SUM(COUNTIF($AC$3:AC7,1),COUNTIF($AC$3:AC7,-1)))),(IF(SUM(COUNTIF($AE$3:AE7,1),COUNTIF($AE$3:AE7,-1))=0,1,SUM(COUNTIF($AE$3:AE7,1),COUNTIF($AE$3:AE7,-1)))),(IF(SUM(COUNTIF($AG$3:AG7,1),COUNTIF($AG$3:AG7,-1))=0,1,SUM(COUNTIF($AG$3:AG7,1),COUNTIF($AG$3:AG7,-1)))),(IF(SUM(COUNTIF($AI$3:AI7,1),COUNTIF($AI$3:AI7,-1))=0,1,SUM(COUNTIF($AI$3:AI7,1),COUNTIF($AI$3:AI7,-1)))),(IF(SUM(COUNTIF($AK$3:AK7,1),COUNTIF($AK$3:AK7,-1))=0,1,SUM(COUNTIF($AK$3:AK7,1),COUNTIF($AK$3:AK7,-1)))))/1000) -> 0.016 | BV7: 0.183 | BX7: =+SUM(COUNTIF($AI$3:AI7,1),COUNTIF($AI$3:AI7,-1)) -> 4 | BY7: =+SUM($U$4:U7) -> 396 | BZ7: 99 | CA7: =+SUM(COUNTIF($AI$3:AI7,1)) -> 1 | CB7: =+SUM(COUNTIF($AI$3:AI7,-1)) -> 3 | CC7: -2 | CD7: =+BX7*(HARMEAN((IF(SUM(COUNTIF($Z$3:Z7,1),COUNTIF($Z$3:Z7,-1))=0,1,SUM(COUNTIF($Z$3:Z7,1),COUNTIF($Z$3:Z7,-1)))),(IF(SUM(COUNTIF($AC$3:AC7,1),COUNTIF($AC$3:AC7,-1))=0,1,SUM(COUNTIF($AC$3:AC7,1),COUNTIF($AC$3:AC7,-1)))),(IF(SUM(COUNTIF($AE$3:AE7,1),COUNTIF($AE$3:AE7,-1))=0,1,SUM(COUNTIF($AE$3:AE7,1),COUNTIF($AE$3:AE7,-1)))),(IF(SUM(COUNTIF($AG$3:AG7,1),COUNTIF($AG$3:AG7,-1))=0,1,SUM(COUNTIF($AG$3:AG7,1),COUNTIF($AG$3:AG7,-1)))),(IF(SUM(COUNTIF($AI$3:AI7,1),COUNTIF($AI$3:AI7,-1))=0,1,SUM(COUNTIF($AI$3:AI7,1),COUNTIF($AI$3:AI7,-1)))),(IF(SUM(COUNTIF($AK$3:AK7,1),COUNTIF($AK$3:AK7,-1))=0,1,SUM(COUNTIF($AK$3:AK7,1),COUNTIF($AK$3:AK7,-1)))))/1000) -> 0.016 | CE7: -0.642 | CG7: =+SUM(COUNTIF($AK$3:AK7,1),COUNTIF($AK$3:AK7,-1)) -> 4 | CH7: =+SUM($W$4:W7) -> 545 | CI7: 136.25 | CJ7: =+SUM(COUNTIF($AK$3:AK7,1)) -> 2 | CK7: =+SUM(COUNTIF($AK$3:AK7,-1)) -> 2 | CL7: 0 | CM7: =+CG7*(HARMEAN((IF(SUM(COUNTIF($Z$3:Z7,1),COUNTIF($Z$3:Z7,-1))=0,1,SUM(COUNTIF($Z$3:Z7,1),COUNTIF($Z$3:Z7,-1)))),(IF(SUM(COUNTIF($AC$3:AC7,1),COUNTIF($AC$3:AC7,-1))=0,1,SUM(COUNTIF($AC$3:AC7,1),COUNTIF($AC$3:AC7,-1)))),(IF(SUM(COUNTIF($AE$3:AE7,1),COUNTIF($AE$3:AE7,-1))=0,1,SUM(COUNTIF($AE$3:AE7,1),COUNTIF($AE$3:AE7,-1)))),(IF(SUM(COUNTIF($AG$3:AG7,1),COUNTIF($AG$3:AG7,-1))=0,1,SUM(COUNTIF($AG$3:AG7,1),COUNTIF($AG$3:AG7,-1)))),(IF(SUM(COUNTIF($AI$3:AI7,1),COUNTIF($AI$3:AI7,-1))=0,1,SUM(COUNTIF($AI$3:AI7,1),COUNTIF($AI$3:AI7,-1)))),(IF(SUM(COUNTIF($AK$3:AK7,1),COUNTIF($AK$3:AK7,-1))=0,1,SUM(COUNTIF($AK$3:AK7,1),COUNTIF($AK$3:AK7,-1)))))/1000) -> 0.016 | CN7: 0.218
A8: 5 | B8: AoM | D8: =+IFERROR(INDEX('Auswertung AoE II'!$AE:$AE,MATCH(A8,'Auswertung AoE II'!$AD:$AD,0)),"") ->  | E8: =+IFERROR(INDEX('Auswertung AoE III'!$AE:$AE,MATCH(A8,'Auswertung AoE III'!$AD:$AD,0)),"") ->  | F8: =+IFERROR(INDEX('Auswertung AoM'!$AE:$AE,MATCH(A8,'Auswertung AoM'!$AD:$AD,0)),"") -> AoM | G8: =+IFERROR(INDEX('Auswertung RA'!$AE:$AE,MATCH(A8,'Auswertung RA'!$AD:$AD,0)),"") ->  | H8: =+IFERROR(INDEX('Auswertung Yuri'!$AE:$AE,MATCH(A8,'Auswertung Yuri'!$AD:$AD,0)),"") ->  | I8: =+IFERROR(INDEX('Auswertung Generals'!$AE:$AE,MATCH(A8,'Auswertung Generals'!$AD:$AD,0)),"") ->  | J8: =+IF(B8<>0,CONCATENATE("Auswertung ",B8,"")) -> Auswertung AoM | M8: =+IF(ISERROR(+INDIRECT(CONCATENATE("'",J8,"'!",(ADDRESS((COUNTIF($J$3:J8,IF(B8<>0,CONCATENATE("Auswertung ",B8,""))))+2,2)))))=FALSE,+INDIRECT(CONCATENATE("'",J8,"'!",(ADDRESS((COUNTIF($J$3:J8,IF(B8<>0,CONCATENATE("Auswertung ",B8,""))))+4,2)))),"") -> 44 | N8: =IF(ISERROR(+INDIRECT(CONCATENATE("'",J8,"'!",(ADDRESS((COUNTIF($J$3:J8,IF(B8<>0,CONCATENATE("Auswertung ",B8,""))))+2,2+1)))))=FALSE,+INDIRECT(CONCATENATE("'",J8,"'!",(ADDRESS((COUNTIF($J$3:J8,IF(B8<>0,CONCATENATE("Auswertung ",B8,""))))+4,2+1)))),"") -> Zeus | O8: =+IF(ISERROR(+INDIRECT(CONCATENATE("'",J8,"'!",(ADDRESS((COUNTIF($J$3:J8,IF(B8<>0,CONCATENATE("Auswertung ",B8,""))))+2,4)))))=FALSE,+INDIRECT(CONCATENATE("'",J8,"'!",(ADDRESS((COUNTIF($J$3:J8,IF(B8<>0,CONCATENATE("Auswertung ",B8,""))))+4,4)))),"") -> 6 | P8: =+IF(ISERROR(+INDIRECT(CONCATENATE("'",J8,"'!",(ADDRESS((COUNTIF($J$3:J8,IF(B8<>0,CONCATENATE("Auswertung ",B8,""))))+2,5)))))=FALSE,+INDIRECT(CONCATENATE("'",J8,"'!",(ADDRESS((COUNTIF($J$3:J8,IF(B8<>0,CONCATENATE("Auswertung ",B8,""))))+4,5)))),"") -> Kronos | Q8: =+IF(ISERROR(+INDIRECT(CONCATENATE("'",J8,"'!",(ADDRESS((COUNTIF($J$3:J8,IF(B8<>0,CONCATENATE("Auswertung ",B8,""))))+2,6)))))=FALSE,+INDIRECT(CONCATENATE("'",J8,"'!",(ADDRESS((COUNTIF($J$3:J8,IF(B8<>0,CONCATENATE("Auswertung ",B8,""))))+4,6)))),"") -> 15 | R8: =+IF(ISERROR(+INDIRECT(CONCATENATE("'",J8,"'!",(ADDRESS((COUNTIF($J$3:J8,IF(B8<>0,CONCATENATE("Auswertung ",B8,""))))+2,7)))))=FALSE,+INDIRECT(CONCATENATE("'",J8,"'!",(ADDRESS((COUNTIF($J$3:J8,IF(B8<>0,CONCATENATE("Auswertung ",B8,""))))+4,7)))),"") -> Odin | S8: =+IF(ISERROR(+INDIRECT(CONCATENATE("'",J8,"'!",(ADDRESS((COUNTIF($J$3:J8,IF(B8<>0,CONCATENATE("Auswertung ",B8,""))))+2,10)))))=FALSE,+INDIRECT(CONCATENATE("'",J8,"'!",(ADDRESS((COUNTIF($J$3:J8,IF(B8<>0,CONCATENATE("Auswertung ",B8,""))))+4,8)))),"") -> 30 | T8: =+IF(ISERROR(+INDIRECT(CONCATENATE("'",J8,"'!",(ADDRESS((COUNTIF($J$3:J8,IF(B8<>0,CONCATENATE("Auswertung ",B8,""))))+2,11)))))=FALSE,+INDIRECT(CONCATENATE("'",J8,"'!",(ADDRESS((COUNTIF($J$3:J8,IF(B8<>0,CONCATENATE("Auswertung ",B8,""))))+4,9)))),"") -> Kronos | U8: =+IF(ISERROR(+INDIRECT(CONCATENATE("'",J8,"'!",(ADDRESS((COUNTIF($J$3:J8,IF(B8<>0,CONCATENATE("Auswertung ",B8,""))))+2,10)))))=FALSE,+INDIRECT(CONCATENATE("'",J8,"'!",(ADDRESS((COUNTIF($J$3:J8,IF(B8<>0,CONCATENATE("Auswertung ",B8,""))))+4,10)))),"") -> 38 | V8: =+IF(ISERROR(+INDIRECT(CONCATENATE("'",J8,"'!",(ADDRESS((COUNTIF($J$3:J8,IF(B8<>0,CONCATENATE("Auswertung ",B8,""))))+2,11)))))=FALSE,+INDIRECT(CONCATENATE("'",J8,"'!",(ADDRESS((COUNTIF($J$3:J8,IF(B8<>0,CONCATENATE("Auswertung ",B8,""))))+4,11)))),"") -> Zeus | W8: =+IF(ISERROR(+INDIRECT(CONCATENATE("'",J8,"'!",(ADDRESS((COUNTIF($J$3:J8,IF(D8<>0,CONCATENATE("Auswertung ",D8,""))))+2,12)))))=FALSE,+INDIRECT(CONCATENATE("'",J8,"'!",(ADDRESS((COUNTIF($J$3:J8,IF(D8<>0,CONCATENATE("Auswertung ",B8,""))))+4,12)))),"") -> 11 | X8: =+IF(ISERROR(+INDIRECT(CONCATENATE("'",J8,"'!",(ADDRESS((COUNTIF($J$3:J8,IF(D8<>0,CONCATENATE("Auswertung ",D8,""))))+2,13)))))=FALSE,+INDIRECT(CONCATENATE("'",J8,"'!",(ADDRESS((COUNTIF($J$3:J8,IF(D8<>0,CONCATENATE("Auswertung ",B8,""))))+4,13)))),"") -> Odin | Z8: =+IFERROR(INDIRECT(CONCATENATE("'",J8,"'!",(ADDRESS((COUNTIF($J$3:J8,IF(B8<>0,J8)))+4,16)))),"") -> 1 | AA8: 0.726 | AB8: =+SUM($M$4:M8)/COUNT($M$4:M8)/1000*2 -> 0.1804 | AC8: =+IFERROR(INDIRECT(CONCATENATE("'",J8,"'!",(ADDRESS((COUNTIF($J$3:J8,IF(B8<>0,J8)))+4,18)))),"") -> 1 | AD8: 2.732 | AE8: =+IFERROR(INDIRECT(CONCATENATE("'",J8,"'!",(ADDRESS((COUNTIF($J$3:J8,IF(B8<>0,J8)))+4,20)))),"") -> 1 | AF8: -0.223 | AG8: =+IFERROR(INDIRECT(CONCATENATE("'",J8,"'!",(ADDRESS((COUNTIF($J$3:J8,IF(B8<>0,J8)))+4,22)))),"") -> -1 | AH8: -0.256 | AI8: =+IFERROR(INDIRECT(CONCATENATE("'",J8,"'!",(ADDRESS((COUNTIF($J$3:J8,IF(B8<>0,J8)))+4,24)))),"") -> -1 | AJ8: -1.283 | AK8: =+IFERROR(INDIRECT(CONCATENATE("'",J8,"'!",(ADDRESS((COUNTIF($J$3:J8,IF(B8<>0,J8)))+4,26)))),"") -> -1 | AL8: -0.222 | AM8: 5 | AN8: =+SUM(COUNTIF($Z$3:Z8,1),COUNTIF($Z$3:Z8,-1)) -> 5 | AO8: =+SUM($M$4:M8) -> 451 | AP8: 90.2 | AQ8: =+SUM(COUNTIF($Z$3:Z8,1)) -> 3 | AR8: =+SUM(COUNTIF($Z$3:Z8,-1)) -> 2 | AS8: 1 | AT8: =AN8*(HARMEAN((IF(SUM(COUNTIF($Z$3:Z8,1),COUNTIF($Z$3:Z8,-1))=0,1,SUM(COUNTIF($Z$3:Z8,1),COUNTIF($Z$3:Z8,-1)))),(IF(SUM(COUNTIF($AC$3:AC8,1),COUNTIF($AC$3:AC8,-1))=0,1,SUM(COUNTIF($AC$3:AC8,1),COUNTIF($AC$3:AC8,-1)))),(IF(SUM(COUNTIF($AE$3:AE8,1),COUNTIF($AE$3:AE8,-1))=0,1,SUM(COUNTIF($AE$3:AE8,1),COUNTIF($AE$3:AE8,-1)))),(IF(SUM(COUNTIF($AG$3:AG8,1),COUNTIF($AG$3:AG8,-1))=0,1,SUM(COUNTIF($AG$3:AG8,1),COUNTIF($AG$3:AG8,-1)))),(IF(SUM(COUNTIF($AI$3:AI8,1),COUNTIF($AI$3:AI8,-1))=0,1,SUM(COUNTIF($AI$3:AI8,1),COUNTIF($AI$3:AI8,-1)))),(IF(SUM(COUNTIF($AK$3:AK8,1),COUNTIF($AK$3:AK8,-1))=0,1,SUM(COUNTIF($AK$3:AK8,1),COUNTIF($AK$3:AK8,-1)))))/1000) -> 0.025 | AU8: 0.726 | AW8: =+SUM(COUNTIF($AC$3:AC8,1),COUNTIF($AC$3:AC8,-1)) -> 5 | AX8: =+SUM($O$4:O8) -> 463 | AY8: 92.6 | AZ8: =+SUM(COUNTIF($AC$3:AC8,1)) -> 5 | BA8: =+SUM(COUNTIF($AC$3:AC8,-1)) -> 0 | BB8: 5 | BC8: =AW8*(HARMEAN((IF(SUM(COUNTIF($Z$3:Z8,1),COUNTIF($Z$3:Z8,-1))=0,1,SUM(COUNTIF($Z$3:Z8,1),COUNTIF($Z$3:Z8,-1)))),(IF(SUM(COUNTIF($AC$3:AC8,1),COUNTIF($AC$3:AC8,-1))=0,1,SUM(COUNTIF($AC$3:AC8,1),COUNTIF($AC$3:AC8,-1)))),(IF(SUM(COUNTIF($AE$3:AE8,1),COUNTIF($AE$3:AE8,-1))=0,1,SUM(COUNTIF($AE$3:AE8,1),COUNTIF($AE$3:AE8,-1)))),(IF(SUM(COUNTIF($AG$3:AG8,1),COUNTIF($AG$3:AG8,-1))=0,1,SUM(COUNTIF($AG$3:AG8,1),COUNTIF($AG$3:AG8,-1)))),(IF(SUM(COUNTIF($AI$3:AI8,1),COUNTIF($AI$3:AI8,-1))=0,1,SUM(COUNTIF($AI$3:AI8,1),COUNTIF($AI$3:AI8,-1)))),(IF(SUM(COUNTIF($AK$3:AK8,1),COUNTIF($AK$3:AK8,-1))=0,1,SUM(COUNTIF($AK$3:AK8,1),COUNTIF($AK$3:AK8,-1)))))/1000) -> 0.025 | BD8: 2.732 | BF8: =+SUM(COUNTIF($AE$3:AE8,1),COUNTIF(AE$3:$AE8,-1)) -> 5 | BG8: =+SUM($Q$4:Q8) -> 555 | BH8: 111 | BI8: =+SUM(COUNTIF($AE$3:AE8,1)) -> 2 | BJ8: =+SUM(COUNTIF($AE$3:AE8,-1)) -> 3 | BK8: -1 | BL8: =BF8*(HARMEAN((IF(SUM(COUNTIF($Z$3:Z8,1),COUNTIF($Z$3:Z8,-1))=0,1,SUM(COUNTIF($Z$3:Z8,1),COUNTIF($Z$3:Z8,-1)))),(IF(SUM(COUNTIF($AC$3:AC8,1),COUNTIF($AC$3:AC8,-1))=0,1,SUM(COUNTIF($AC$3:AC8,1),COUNTIF($AC$3:AC8,-1)))),(IF(SUM(COUNTIF($AE$3:AE8,1),COUNTIF($AE$3:AE8,-1))=0,1,SUM(COUNTIF($AE$3:AE8,1),COUNTIF($AE$3:AE8,-1)))),(IF(SUM(COUNTIF($AG$3:AG8,1),COUNTIF($AG$3:AG8,-1))=0,1,SUM(COUNTIF($AG$3:AG8,1),COUNTIF($AG$3:AG8,-1)))),(IF(SUM(COUNTIF($AI$3:AI8,1),COUNTIF($AI$3:AI8,-1))=0,1,SUM(COUNTIF($AI$3:AI8,1),COUNTIF($AI$3:AI8,-1)))),(IF(SUM(COUNTIF($AK$3:AK8,1),COUNTIF($AK$3:AK8,-1))=0,1,SUM(COUNTIF($AK$3:AK8,1),COUNTIF($AK$3:AK8,-1)))))/1000) -> 0.025 | BM8: -0.223 | BO8: =+SUM(COUNTIF($AG$3:AG8,1),COUNTIF($AG$3:AG8,-1)) -> 5 | BP8: =+SUM($S$4:S8) -> 488 | BQ8: 97.6 | BR8: =+SUM(COUNTIF($AG$3:AG8,1)) -> 2 | BS8: =+SUM(COUNTIF($AG$3:AG8,-1)) -> 3 | BT8: -1 | BU8: =BO8*(HARMEAN((IF(SUM(COUNTIF($Z$3:Z8,1),COUNTIF($Z$3:Z8,-1))=0,1,SUM(COUNTIF($Z$3:Z8,1),COUNTIF($Z$3:Z8,-1)))),(IF(SUM(COUNTIF($AC$3:AC8,1),COUNTIF($AC$3:AC8,-1))=0,1,SUM(COUNTIF($AC$3:AC8,1),COUNTIF($AC$3:AC8,-1)))),(IF(SUM(COUNTIF($AE$3:AE8,1),COUNTIF($AE$3:AE8,-1))=0,1,SUM(COUNTIF($AE$3:AE8,1),COUNTIF($AE$3:AE8,-1)))),(IF(SUM(COUNTIF($AG$3:AG8,1),COUNTIF($AG$3:AG8,-1))=0,1,SUM(COUNTIF($AG$3:AG8,1),COUNTIF($AG$3:AG8,-1)))),(IF(SUM(COUNTIF($AI$3:AI8,1),COUNTIF($AI$3:AI8,-1))=0,1,SUM(COUNTIF($AI$3:AI8,1),COUNTIF($AI$3:AI8,-1)))),(IF(SUM(COUNTIF($AK$3:AK8,1),COUNTIF($AK$3:AK8,-1))=0,1,SUM(COUNTIF($AK$3:AK8,1),COUNTIF($AK$3:AK8,-1)))))/1000) -> 0.025 | BV8: -0.256 | BX8: =+SUM(COUNTIF($AI$3:AI8,1),COUNTIF($AI$3:AI8,-1)) -> 5 | BY8: =+SUM($U$4:U8) -> 434 | BZ8: 86.8 | CA8: =+SUM(COUNTIF($AI$3:AI8,1)) -> 1 | CB8: =+SUM(COUNTIF($AI$3:AI8,-1)) -> 4 | CC8: -3 | CD8: =+BX8*(HARMEAN((IF(SUM(COUNTIF($Z$3:Z8,1),COUNTIF($Z$3:Z8,-1))=0,1,SUM(COUNTIF($Z$3:Z8,1),COUNTIF($Z$3:Z8,-1)))),(IF(SUM(COUNTIF($AC$3:AC8,1),COUNTIF($AC$3:AC8,-1))=0,1,SUM(COUNTIF($AC$3:AC8,1),COUNTIF($AC$3:AC8,-1)))),(IF(SUM(COUNTIF($AE$3:AE8,1),COUNTIF($AE$3:AE8,-1))=0,1,SUM(COUNTIF($AE$3:AE8,1),COUNTIF($AE$3:AE8,-1)))),(IF(SUM(COUNTIF($AG$3:AG8,1),COUNTIF($AG$3:AG8,-1))=0,1,SUM(COUNTIF($AG$3:AG8,1),COUNTIF($AG$3:AG8,-1)))),(IF(SUM(COUNTIF($AI$3:AI8,1),COUNTIF($AI$3:AI8,-1))=0,1,SUM(COUNTIF($AI$3:AI8,1),COUNTIF($AI$3:AI8,-1)))),(IF(SUM(COUNTIF($AK$3:AK8,1),COUNTIF($AK$3:AK8,-1))=0,1,SUM(COUNTIF($AK$3:AK8,1),COUNTIF($AK$3:AK8,-1)))))/1000) -> 0.025 | CE8: -1.283 | CG8: =+SUM(COUNTIF($AK$3:AK8,1),COUNTIF($AK$3:AK8,-1)) -> 5 | CH8: =+SUM($W$4:W8) -> 556 | CI8: 111.2 | CJ8: =+SUM(COUNTIF($AK$3:AK8,1)) -> 2 | CK8: =+SUM(COUNTIF($AK$3:AK8,-1)) -> 3 | CL8: -1 | CM8: =+CG8*(HARMEAN((IF(SUM(COUNTIF($Z$3:Z8,1),COUNTIF($Z$3:Z8,-1))=0,1,SUM(COUNTIF($Z$3:Z8,1),COUNTIF($Z$3:Z8,-1)))),(IF(SUM(COUNTIF($AC$3:AC8,1),COUNTIF($AC$3:AC8,-1))=0,1,SUM(COUNTIF($AC$3:AC8,1),COUNTIF($AC$3:AC8,-1)))),(IF(SUM(COUNTIF($AE$3:AE8,1),COUNTIF($AE$3:AE8,-1))=0,1,SUM(COUNTIF($AE$3:AE8,1),COUNTIF($AE$3:AE8,-1)))),(IF(SUM(COUNTIF($AG$3:AG8,1),COUNTIF($AG$3:AG8,-1))=0,1,SUM(COUNTIF($AG$3:AG8,1),COUNTIF($AG$3:AG8,-1)))),(IF(SUM(COUNTIF($AI$3:AI8,1),COUNTIF($AI$3:AI8,-1))=0,1,SUM(COUNTIF($AI$3:AI8,1),COUNTIF($AI$3:AI8,-1)))),(IF(SUM(COUNTIF($AK$3:AK8,1),COUNTIF($AK$3:AK8,-1))=0,1,SUM(COUNTIF($AK$3:AK8,1),COUNTIF($AK$3:AK8,-1)))))/1000) -> 0.025 | CN8: -0.222
A9: 6 | B9: RA | D9: =+IFERROR(INDEX('Auswertung AoE II'!$AE:$AE,MATCH(A9,'Auswertung AoE II'!$AD:$AD,0)),"") ->  | E9: =+IFERROR(INDEX('Auswertung AoE III'!$AE:$AE,MATCH(A9,'Auswertung AoE III'!$AD:$AD,0)),"") ->  | F9: =+IFERROR(INDEX('Auswertung AoM'!$AE:$AE,MATCH(A9,'Auswertung AoM'!$AD:$AD,0)),"") ->  | G9: =+IFERROR(INDEX('Auswertung RA'!$AE:$AE,MATCH(A9,'Auswertung RA'!$AD:$AD,0)),"") -> RA | H9: =+IFERROR(INDEX('Auswertung Yuri'!$AE:$AE,MATCH(A9,'Auswertung Yuri'!$AD:$AD,0)),"") ->  | I9: =+IFERROR(INDEX('Auswertung Generals'!$AE:$AE,MATCH(A9,'Auswertung Generals'!$AD:$AD,0)),"") ->  | J9: =+IF(B9<>0,CONCATENATE("Auswertung ",B9,"")) -> Auswertung RA | M9: =+IF(ISERROR(+INDIRECT(CONCATENATE("'",J9,"'!",(ADDRESS((COUNTIF($J$3:J9,IF(B9<>0,CONCATENATE("Auswertung ",B9,""))))+2,2)))))=FALSE,+INDIRECT(CONCATENATE("'",J9,"'!",(ADDRESS((COUNTIF($J$3:J9,IF(B9<>0,CONCATENATE("Auswertung ",B9,""))))+4,2)))),"") -> 82 | N9: =IF(ISERROR(+INDIRECT(CONCATENATE("'",J9,"'!",(ADDRESS((COUNTIF($J$3:J9,IF(B9<>0,CONCATENATE("Auswertung ",B9,""))))+2,2+1)))))=FALSE,+INDIRECT(CONCATENATE("'",J9,"'!",(ADDRESS((COUNTIF($J$3:J9,IF(B9<>0,CONCATENATE("Auswertung ",B9,""))))+4,2+1)))),"") -> S | O9: =+IF(ISERROR(+INDIRECT(CONCATENATE("'",J9,"'!",(ADDRESS((COUNTIF($J$3:J9,IF(B9<>0,CONCATENATE("Auswertung ",B9,""))))+2,4)))))=FALSE,+INDIRECT(CONCATENATE("'",J9,"'!",(ADDRESS((COUNTIF($J$3:J9,IF(B9<>0,CONCATENATE("Auswertung ",B9,""))))+4,4)))),"") -> 49 | P9: =+IF(ISERROR(+INDIRECT(CONCATENATE("'",J9,"'!",(ADDRESS((COUNTIF($J$3:J9,IF(B9<>0,CONCATENATE("Auswertung ",B9,""))))+2,5)))))=FALSE,+INDIRECT(CONCATENATE("'",J9,"'!",(ADDRESS((COUNTIF($J$3:J9,IF(B9<>0,CONCATENATE("Auswertung ",B9,""))))+4,5)))),"") -> A | Q9: =+IF(ISERROR(+INDIRECT(CONCATENATE("'",J9,"'!",(ADDRESS((COUNTIF($J$3:J9,IF(B9<>0,CONCATENATE("Auswertung ",B9,""))))+2,6)))))=FALSE,+INDIRECT(CONCATENATE("'",J9,"'!",(ADDRESS((COUNTIF($J$3:J9,IF(B9<>0,CONCATENATE("Auswertung ",B9,""))))+4,6)))),"") -> 49 | R9: =+IF(ISERROR(+INDIRECT(CONCATENATE("'",J9,"'!",(ADDRESS((COUNTIF($J$3:J9,IF(B9<>0,CONCATENATE("Auswertung ",B9,""))))+2,7)))))=FALSE,+INDIRECT(CONCATENATE("'",J9,"'!",(ADDRESS((COUNTIF($J$3:J9,IF(B9<>0,CONCATENATE("Auswertung ",B9,""))))+4,7)))),"") -> A | S9: =+IF(ISERROR(+INDIRECT(CONCATENATE("'",J9,"'!",(ADDRESS((COUNTIF($J$3:J9,IF(B9<>0,CONCATENATE("Auswertung ",B9,""))))+2,10)))))=FALSE,+INDIRECT(CONCATENATE("'",J9,"'!",(ADDRESS((COUNTIF($J$3:J9,IF(B9<>0,CONCATENATE("Auswertung ",B9,""))))+4,8)))),"") -> 16 | T9: =+IF(ISERROR(+INDIRECT(CONCATENATE("'",J9,"'!",(ADDRESS((COUNTIF($J$3:J9,IF(B9<>0,CONCATENATE("Auswertung ",B9,""))))+2,11)))))=FALSE,+INDIRECT(CONCATENATE("'",J9,"'!",(ADDRESS((COUNTIF($J$3:J9,IF(B9<>0,CONCATENATE("Auswertung ",B9,""))))+4,9)))),"") -> S | U9: =+IF(ISERROR(+INDIRECT(CONCATENATE("'",J9,"'!",(ADDRESS((COUNTIF($J$3:J9,IF(B9<>0,CONCATENATE("Auswertung ",B9,""))))+2,10)))))=FALSE,+INDIRECT(CONCATENATE("'",J9,"'!",(ADDRESS((COUNTIF($J$3:J9,IF(B9<>0,CONCATENATE("Auswertung ",B9,""))))+4,10)))),"") -> 63 | V9: =+IF(ISERROR(+INDIRECT(CONCATENATE("'",J9,"'!",(ADDRESS((COUNTIF($J$3:J9,IF(B9<>0,CONCATENATE("Auswertung ",B9,""))))+2,11)))))=FALSE,+INDIRECT(CONCATENATE("'",J9,"'!",(ADDRESS((COUNTIF($J$3:J9,IF(B9<>0,CONCATENATE("Auswertung ",B9,""))))+4,11)))),"") -> A | W9: =+IF(ISERROR(+INDIRECT(CONCATENATE("'",J9,"'!",(ADDRESS((COUNTIF($J$3:J9,IF(D9<>0,CONCATENATE("Auswertung ",D9,""))))+2,12)))))=FALSE,+INDIRECT(CONCATENATE("'",J9,"'!",(ADDRESS((COUNTIF($J$3:J9,IF(D9<>0,CONCATENATE("Auswertung ",B9,""))))+4,12)))),"") -> 9 | X9: =+IF(ISERROR(+INDIRECT(CONCATENATE("'",J9,"'!",(ADDRESS((COUNTIF($J$3:J9,IF(D9<>0,CONCATENATE("Auswertung ",D9,""))))+2,13)))))=FALSE,+INDIRECT(CONCATENATE("'",J9,"'!",(ADDRESS((COUNTIF($J$3:J9,IF(D9<>0,CONCATENATE("Auswertung ",B9,""))))+4,13)))),"") -> A | Z9: =+IFERROR(INDIRECT(CONCATENATE("'",J9,"'!",(ADDRESS((COUNTIF($J$3:J9,IF(B9<>0,J9)))+4,16)))),"") -> 1 | AA9: 1.52 | AB9: =+SUM($M$4:M9)/COUNT($M$4:M9)/1000*2 -> 0.1776666667 | AC9: =+IFERROR(INDIRECT(CONCATENATE("'",J9,"'!",(ADDRESS((COUNTIF($J$3:J9,IF(B9<>0,J9)))+4,18)))),"") -> -1 | AD9: 2.707 | AE9: =+IFERROR(INDIRECT(CONCATENATE("'",J9,"'!",(ADDRESS((COUNTIF($J$3:J9,IF(B9<>0,J9)))+4,20)))),"") -> 1 | AF9: 0.362 | AG9: =+IFERROR(INDIRECT(CONCATENATE("'",J9,"'!",(ADDRESS((COUNTIF($J$3:J9,IF(B9<>0,J9)))+4,22)))),"") -> -1 | AH9: -0.898 | AI9: =+IFERROR(INDIRECT(CONCATENATE("'",J9,"'!",(ADDRESS((COUNTIF($J$3:J9,IF(B9<>0,J9)))+4,24)))),"") -> -1 | AJ9: -2.102 | AK9: =+IFERROR(INDIRECT(CONCATENATE("'",J9,"'!",(ADDRESS((COUNTIF($J$3:J9,IF(B9<>0,J9)))+4,26)))),"") -> 1 | AL9: 0.339 | AM9: 6 | AN9: =+SUM(COUNTIF($Z$3:Z9,1),COUNTIF($Z$3:Z9,-1)) -> 6 | AO9: =+SUM($M$4:M9) -> 533 | AP9: 88.83333333 | AQ9: =+SUM(COUNTIF($Z$3:Z9,1)) -> 4 | AR9: =+SUM(COUNTIF($Z$3:Z9,-1)) -> 2 | AS9: 2 | AT9: =AN9*(HARMEAN((IF(SUM(COUNTIF($Z$3:Z9,1),COUNTIF($Z$3:Z9,-1))=0,1,SUM(COUNTIF($Z$3:Z9,1),COUNTIF($Z$3:Z9,-1)))),(IF(SUM(COUNTIF($AC$3:AC9,1),COUNTIF($AC$3:AC9,-1))=0,1,SUM(COUNTIF($AC$3:AC9,1),COUNTIF($AC$3:AC9,-1)))),(IF(SUM(COUNTIF($AE$3:AE9,1),COUNTIF($AE$3:AE9,-1))=0,1,SUM(COUNTIF($AE$3:AE9,1),COUNTIF($AE$3:AE9,-1)))),(IF(SUM(COUNTIF($AG$3:AG9,1),COUNTIF($AG$3:AG9,-1))=0,1,SUM(COUNTIF($AG$3:AG9,1),COUNTIF($AG$3:AG9,-1)))),(IF(SUM(COUNTIF($AI$3:AI9,1),COUNTIF($AI$3:AI9,-1))=0,1,SUM(COUNTIF($AI$3:AI9,1),COUNTIF($AI$3:AI9,-1)))),(IF(SUM(COUNTIF($AK$3:AK9,1),COUNTIF($AK$3:AK9,-1))=0,1,SUM(COUNTIF($AK$3:AK9,1),COUNTIF($AK$3:AK9,-1)))))/1000) -> 0.036 | AU9: 1.52 | AW9: =+SUM(COUNTIF($AC$3:AC9,1),COUNTIF($AC$3:AC9,-1)) -> 6 | AX9: =+SUM($O$4:O9) -> 512 | AY9: 85.33333333 | AZ9: =+SUM(COUNTIF($AC$3:AC9,1)) -> 5 | BA9: =+SUM(COUNTIF($AC$3:AC9,-1)) -> 1 | BB9: 4 | BC9: =AW9*(HARMEAN((IF(SUM(COUNTIF($Z$3:Z9,1),COUNTIF($Z$3:Z9,-1))=0,1,SUM(COUNTIF($Z$3:Z9,1),COUNTIF($Z$3:Z9,-1)))),(IF(SUM(COUNTIF($AC$3:AC9,1),COUNTIF($AC$3:AC9,-1))=0,1,SUM(COUNTIF($AC$3:AC9,1),COUNTIF($AC$3:AC9,-1)))),(IF(SUM(COUNTIF($AE$3:AE9,1),COUNTIF($AE$3:AE9,-1))=0,1,SUM(COUNTIF($AE$3:AE9,1),COUNTIF($AE$3:AE9,-1)))),(IF(SUM(COUNTIF($AG$3:AG9,1),COUNTIF($AG$3:AG9,-1))=0,1,SUM(COUNTIF($AG$3:AG9,1),COUNTIF($AG$3:AG9,-1)))),(IF(SUM(COUNTIF($AI$3:AI9,1),COUNTIF($AI$3:AI9,-1))=0,1,SUM(COUNTIF($AI$3:AI9,1),COUNTIF($AI$3:AI9,-1)))),(IF(SUM(COUNTIF($AK$3:AK9,1),COUNTIF($AK$3:AK9,-1))=0,1,SUM(COUNTIF($AK$3:AK9,1),COUNTIF($AK$3:AK9,-1)))))/1000) -> 0.036 | BD9: 2.707 | BF9: =+SUM(COUNTIF($AE$3:AE9,1),COUNTIF(AE$3:$AE9,-1)) -> 6 | BG9: =+SUM($Q$4:Q9) -> 604 | BH9: 100.6666667 | BI9: =+SUM(COUNTIF($AE$3:AE9,1)) -> 3 | BJ9: =+SUM(COUNTIF($AE$3:AE9,-1)) -> 3 | BK9: 0 | BL9: =BF9*(HARMEAN((IF(SUM(COUNTIF($Z$3:Z9,1),COUNTIF($Z$3:Z9,-1))=0,1,SUM(COUNTIF($Z$3:Z9,1),COUNTIF($Z$3:Z9,-1)))),(IF(SUM(COUNTIF($AC$3:AC9,1),COUNTIF($AC$3:AC9,-1))=0,1,SUM(COUNTIF($AC$3:AC9,1),COUNTIF($AC$3:AC9,-1)))),(IF(SUM(COUNTIF($AE$3:AE9,1),COUNTIF($AE$3:AE9,-1))=0,1,SUM(COUNTIF($AE$3:AE9,1),COUNTIF($AE$3:AE9,-1)))),(IF(SUM(COUNTIF($AG$3:AG9,1),COUNTIF($AG$3:AG9,-1))=0,1,SUM(COUNTIF($AG$3:AG9,1),COUNTIF($AG$3:AG9,-1)))),(IF(SUM(COUNTIF($AI$3:AI9,1),COUNTIF($AI$3:AI9,-1))=0,1,SUM(COUNTIF($AI$3:AI9,1),COUNTIF($AI$3:AI9,-1)))),(IF(SUM(COUNTIF($AK$3:AK9,1),COUNTIF($AK$3:AK9,-1))=0,1,SUM(COUNTIF($AK$3:AK9,1),COUNTIF($AK$3:AK9,-1)))))/1000) -> 0.036 | BM9: 0.362 | BO9: =+SUM(COUNTIF($AG$3:AG9,1),COUNTIF($AG$3:AG9,-1)) -> 6 | BP9: =+SUM($S$4:S9) -> 504 | BQ9: 84 | BR9: =+SUM(COUNTIF($AG$3:AG9,1)) -> 2 | BS9: =+SUM(COUNTIF($AG$3:AG9,-1)) -> 4 | BT9: -2 | BU9: =BO9*(HARMEAN((IF(SUM(COUNTIF($Z$3:Z9,1),COUNTIF($Z$3:Z9,-1))=0,1,SUM(COUNTIF($Z$3:Z9,1),COUNTIF($Z$3:Z9,-1)))),(IF(SUM(COUNTIF($AC$3:AC9,1),COUNTIF($AC$3:AC9,-1))=0,1,SUM(COUNTIF($AC$3:AC9,1),COUNTIF($AC$3:AC9,-1)))),(IF(SUM(COUNTIF($AE$3:AE9,1),COUNTIF($AE$3:AE9,-1))=0,1,SUM(COUNTIF($AE$3:AE9,1),COUNTIF($AE$3:AE9,-1)))),(IF(SUM(COUNTIF($AG$3:AG9,1),COUNTIF($AG$3:AG9,-1))=0,1,SUM(COUNTIF($AG$3:AG9,1),COUNTIF($AG$3:AG9,-1)))),(IF(SUM(COUNTIF($AI$3:AI9,1),COUNTIF($AI$3:AI9,-1))=0,1,SUM(COUNTIF($AI$3:AI9,1),COUNTIF($AI$3:AI9,-1)))),(IF(SUM(COUNTIF($AK$3:AK9,1),COUNTIF($AK$3:AK9,-1))=0,1,SUM(COUNTIF($AK$3:AK9,1),COUNTIF($AK$3:AK9,-1)))))/1000) -> 0.036 | BV9: -0.898 | BX9: =+SUM(COUNTIF($AI$3:AI9,1),COUNTIF($AI$3:AI9,-1)) -> 6 | BY9: =+SUM($U$4:U9) -> 497 | BZ9: 82.83333333 | CA9: =+SUM(COUNTIF($AI$3:AI9,1)) -> 1 | CB9: =+SUM(COUNTIF($AI$3:AI9,-1)) -> 5 | CC9: -4 | CD9: =+BX9*(HARMEAN((IF(SUM(COUNTIF($Z$3:Z9,1),COUNTIF($Z$3:Z9,-1))=0,1,SUM(COUNTIF($Z$3:Z9,1),COUNTIF($Z$3:Z9,-1)))),(IF(SUM(COUNTIF($AC$3:AC9,1),COUNTIF($AC$3:AC9,-1))=0,1,SUM(COUNTIF($AC$3:AC9,1),COUNTIF($AC$3:AC9,-1)))),(IF(SUM(COUNTIF($AE$3:AE9,1),COUNTIF($AE$3:AE9,-1))=0,1,SUM(COUNTIF($AE$3:AE9,1),COUNTIF($AE$3:AE9,-1)))),(IF(SUM(COUNTIF($AG$3:AG9,1),COUNTIF($AG$3:AG9,-1))=0,1,SUM(COUNTIF($AG$3:AG9,1),COUNTIF($AG$3:AG9,-1)))),(IF(SUM(COUNTIF($AI$3:AI9,1),COUNTIF($AI$3:AI9,-1))=0,1,SUM(COUNTIF($AI$3:AI9,1),COUNTIF($AI$3:AI9,-1)))),(IF(SUM(COUNTIF($AK$3:AK9,1),COUNTIF($AK$3:AK9,-1))=0,1,SUM(COUNTIF($AK$3:AK9,1),COUNTIF($AK$3:AK9,-1)))))/1000) -> 0.036 | CE9: -2.102 | CG9: =+SUM(COUNTIF($AK$3:AK9,1),COUNTIF($AK$3:AK9,-1)) -> 6 | CH9: =+SUM($W$4:W9) -> 565 | CI9: 94.16666667 | CJ9: =+SUM(COUNTIF($AK$3:AK9,1)) -> 3 | CK9: =+SUM(COUNTIF($AK$3:AK9,-1)) -> 3 | CL9: 0 | CM9: =+CG9*(HARMEAN((IF(SUM(COUNTIF($Z$3:Z9,1),COUNTIF($Z$3:Z9,-1))=0,1,SUM(COUNTIF($Z$3:Z9,1),COUNTIF($Z$3:Z9,-1)))),(IF(SUM(COUNTIF($AC$3:AC9,1),COUNTIF($AC$3:AC9,-1))=0,1,SUM(COUNTIF($AC$3:AC9,1),COUNTIF($AC$3:AC9,-1)))),(IF(SUM(COUNTIF($AE$3:AE9,1),COUNTIF($AE$3:AE9,-1))=0,1,SUM(COUNTIF($AE$3:AE9,1),COUNTIF($AE$3:AE9,-1)))),(IF(SUM(COUNTIF($AG$3:AG9,1),COUNTIF($AG$3:AG9,-1))=0,1,SUM(COUNTIF($AG$3:AG9,1),COUNTIF($AG$3:AG9,-1)))),(IF(SUM(COUNTIF($AI$3:AI9,1),COUNTIF($AI$3:AI9,-1))=0,1,SUM(COUNTIF($AI$3:AI9,1),COUNTIF($AI$3:AI9,-1)))),(IF(SUM(COUNTIF($AK$3:AK9,1),COUNTIF($AK$3:AK9,-1))=0,1,SUM(COUNTIF($AK$3:AK9,1),COUNTIF($AK$3:AK9,-1)))))/1000) -> 0.036 | CN9: 0.339
A10: 7 | B10: =+I10&H10&G10&F10&E10&D10 -> Generals | D10: =+IFERROR(INDEX('Auswertung AoE II'!$AE:$AE,MATCH(A10,'Auswertung AoE II'!$AD:$AD,0)),"") ->  | E10: =+IFERROR(INDEX('Auswertung AoE III'!$AE:$AE,MATCH(A10,'Auswertung AoE III'!$AD:$AD,0)),"") ->  | F10: =+IFERROR(INDEX('Auswertung AoM'!$AE:$AE,MATCH(A10,'Auswertung AoM'!$AD:$AD,0)),"") ->  | G10: =+IFERROR(INDEX('Auswertung RA'!$AE:$AE,MATCH(A10,'Auswertung RA'!$AD:$AD,0)),"") ->  | H10: =+IFERROR(INDEX('Auswertung Yuri'!$AE:$AE,MATCH(A10,'Auswertung Yuri'!$AD:$AD,0)),"") ->  | I10: =+IFERROR(INDEX('Auswertung Generals'!$AE:$AE,MATCH(A10,'Auswertung Generals'!$AD:$AD,0)),"") -> Generals | J10: Auswertung Generals | M10: =+IF(ISERROR(+INDIRECT(CONCATENATE("'",J10,"'!",(ADDRESS((COUNTIF($J$3:J10,IF(B10<>0,CONCATENATE("Auswertung ",B10,""))))+2,2)))))=FALSE,+INDIRECT(CONCATENATE("'",J10,"'!",(ADDRESS((COUNTIF($J$3:J10,IF(B10<>0,CONCATENATE("Auswertung ",B10,""))))+4,2)))),"") -> 86 | N10: =IF(ISERROR(+INDIRECT(CONCATENATE("'",J10,"'!",(ADDRESS((COUNTIF($J$3:J10,IF(B10<>0,CONCATENATE("Auswertung ",B10,""))))+2,2+1)))))=FALSE,+INDIRECT(CONCATENATE("'",J10,"'!",(ADDRESS((COUNTIF($J$3:J10,IF(B10<>0,CONCATENATE("Auswertung ",B10,""))))+4,2+1)))),"") -> WA | O10: =+IF(ISERROR(+INDIRECT(CONCATENATE("'",J10,"'!",(ADDRESS((COUNTIF($J$3:J10,IF(B10<>0,CONCATENATE("Auswertung ",B10,""))))+2,4)))))=FALSE,+INDIRECT(CONCATENATE("'",J10,"'!",(ADDRESS((COUNTIF($J$3:J10,IF(B10<>0,CONCATENATE("Auswertung ",B10,""))))+4,4)))),"") -> 76 | P10: =+IF(ISERROR(+INDIRECT(CONCATENATE("'",J10,"'!",(ADDRESS((COUNTIF($J$3:J10,IF(B10<>0,CONCATENATE("Auswertung ",B10,""))))+2,5)))))=FALSE,+INDIRECT(CONCATENATE("'",J10,"'!",(ADDRESS((COUNTIF($J$3:J10,IF(B10<>0,CONCATENATE("Auswertung ",B10,""))))+4,5)))),"") -> IBG | Q10: =+IF(ISERROR(+INDIRECT(CONCATENATE("'",J10,"'!",(ADDRESS((COUNTIF($J$3:J10,IF(B10<>0,CONCATENATE("Auswertung ",B10,""))))+2,6)))))=FALSE,+INDIRECT(CONCATENATE("'",J10,"'!",(ADDRESS((COUNTIF($J$3:J10,IF(B10<>0,CONCATENATE("Auswertung ",B10,""))))+4,6)))),"") -> 48 | R10: =+IF(ISERROR(+INDIRECT(CONCATENATE("'",J10,"'!",(ADDRESS((COUNTIF($J$3:J10,IF(B10<>0,CONCATENATE("Auswertung ",B10,""))))+2,7)))))=FALSE,+INDIRECT(CONCATENATE("'",J10,"'!",(ADDRESS((COUNTIF($J$3:J10,IF(B10<>0,CONCATENATE("Auswertung ",B10,""))))+4,7)))),"") -> WA | S10: =+IF(ISERROR(+INDIRECT(CONCATENATE("'",J10,"'!",(ADDRESS((COUNTIF($J$3:J10,IF(B10<>0,CONCATENATE("Auswertung ",B10,""))))+2,10)))))=FALSE,+INDIRECT(CONCATENATE("'",J10,"'!",(ADDRESS((COUNTIF($J$3:J10,IF(B10<>0,CONCATENATE("Auswertung ",B10,""))))+4,8)))),"") -> 143 | T10: =+IF(ISERROR(+INDIRECT(CONCATENATE("'",J10,"'!",(ADDRESS((COUNTIF($J$3:J10,IF(B10<>0,CONCATENATE("Auswertung ",B10,""))))+2,11)))))=FALSE,+INDIRECT(CONCATENATE("'",J10,"'!",(ADDRESS((COUNTIF($J$3:J10,IF(B10<>0,CONCATENATE("Auswertung ",B10,""))))+4,9)))),"") -> IBG | U10: =+IF(ISERROR(+INDIRECT(CONCATENATE("'",J10,"'!",(ADDRESS((COUNTIF($J$3:J10,IF(B10<>0,CONCATENATE("Auswertung ",B10,""))))+2,10)))))=FALSE,+INDIRECT(CONCATENATE("'",J10,"'!",(ADDRESS((COUNTIF($J$3:J10,IF(B10<>0,CONCATENATE("Auswertung ",B10,""))))+4,10)))),"") -> 57 | V10: =+IF(ISERROR(+INDIRECT(CONCATENATE("'",J10,"'!",(ADDRESS((COUNTIF($J$3:J10,IF(B10<>0,CONCATENATE("Auswertung ",B10,""))))+2,11)))))=FALSE,+INDIRECT(CONCATENATE("'",J10,"'!",(ADDRESS((COUNTIF($J$3:J10,IF(B10<>0,CONCATENATE("Auswertung ",B10,""))))+4,11)))),"") -> AP | W10: =+IF(ISERROR(+INDIRECT(CONCATENATE("'",J10,"'!",(ADDRESS((COUNTIF($J$3:J10,IF(D10<>0,CONCATENATE("Auswertung ",D10,""))))+2,12)))))=FALSE,+INDIRECT(CONCATENATE("'",J10,"'!",(ADDRESS((COUNTIF($J$3:J10,IF(D10<>0,CONCATENATE("Auswertung ",B10,""))))+4,12)))),"") -> 21 | X10: =+IF(ISERROR(+INDIRECT(CONCATENATE("'",J10,"'!",(ADDRESS((COUNTIF($J$3:J10,IF(D10<>0,CONCATENATE("Auswertung ",D10,""))))+2,13)))))=FALSE,+INDIRECT(CONCATENATE("'",J10,"'!",(ADDRESS((COUNTIF($J$3:J10,IF(D10<>0,CONCATENATE("Auswertung ",B10,""))))+4,13)))),"") -> AP | Z10: =+IFERROR(INDIRECT(CONCATENATE("'",J10,"'!",(ADDRESS((COUNTIF($J$3:J10,IF(B10<>0,J10)))+4,16)))),"") -> 1 | AA10: 2.533 | AB10: =+SUM($M$4:M10)/COUNT($M$4:M10)/1000*2 -> 0.1768571429 | AC10: =+IFERROR(INDIRECT(CONCATENATE("'",J10,"'!",(ADDRESS((COUNTIF($J$3:J10,IF(B10<>0,J10)))+4,18)))),"") -> 1 | AD10: 3.912 | AE10: =+IFERROR(INDIRECT(CONCATENATE("'",J10,"'!",(ADDRESS((COUNTIF($J$3:J10,IF(B10<>0,J10)))+4,20)))),"") -> -1 | AF10: -0.244 | AG10: =+IFERROR(INDIRECT(CONCATENATE("'",J10,"'!",(ADDRESS((COUNTIF($J$3:J10,IF(B10<>0,J10)))+4,22)))),"") -> -1 | AH10: -1.647 | AI10: =+IFERROR(INDIRECT(CONCATENATE("'",J10,"'!",(ADDRESS((COUNTIF($J$3:J10,IF(B10<>0,J10)))+4,24)))),"") -> 1 | AJ10: -1.712 | AK10: =+IFERROR(INDIRECT(CONCATENATE("'",J10,"'!",(ADDRESS((COUNTIF($J$3:J10,IF(B10<>0,J10)))+4,26)))),"") -> -1 | AL10: -0.29 | AM10: 7 | AN10: =+SUM(COUNTIF($Z$3:Z10,1),COUNTIF($Z$3:Z10,-1)) -> 7 | AO10: =+SUM($M$4:M10) -> 619 | AP10: 88.42857143 | AQ10: =+SUM(COUNTIF($Z$3:Z10,1)) -> 5 | AR10: =+SUM(COUNTIF($Z$3:Z10,-1)) -> 2 | AS10: 3 | AT10: =AN10*(HARMEAN((IF(SUM(COUNTIF($Z$3:Z10,1),COUNTIF($Z$3:Z10,-1))=0,1,SUM(COUNTIF($Z$3:Z10,1),COUNTIF($Z$3:Z10,-1)))),(IF(SUM(COUNTIF($AC$3:AC10,1),COUNTIF($AC$3:AC10,-1))=0,1,SUM(COUNTIF($AC$3:AC10,1),COUNTIF($AC$3:AC10,-1)))),(IF(SUM(COUNTIF($AE$3:AE10,1),COUNTIF($AE$3:AE10,-1))=0,1,SUM(COUNTIF($AE$3:AE10,1),COUNTIF($AE$3:AE10,-1)))),(IF(SUM(COUNTIF($AG$3:AG10,1),COUNTIF($AG$3:AG10,-1))=0,1,SUM(COUNTIF($AG$3:AG10,1),COUNTIF($AG$3:AG10,-1)))),(IF(SUM(COUNTIF($AI$3:AI10,1),COUNTIF($AI$3:AI10,-1))=0,1,SUM(COUNTIF($AI$3:AI10,1),COUNTIF($AI$3:AI10,-1)))),(IF(SUM(COUNTIF($AK$3:AK10,1),COUNTIF($AK$3:AK10,-1))=0,1,SUM(COUNTIF($AK$3:AK10,1),COUNTIF($AK$3:AK10,-1)))))/1000) -> 0.049 | AU10: 2.533 | AW10: =+SUM(COUNTIF($AC$3:AC10,1),COUNTIF($AC$3:AC10,-1)) -> 7 | AX10: =+SUM($O$4:O10) -> 588 | AY10: 84 | AZ10: =+SUM(COUNTIF($AC$3:AC10,1)) -> 6 | BA10: =+SUM(COUNTIF($AC$3:AC10,-1)) -> 1 | BB10: 5 | BC10: =AW10*(HARMEAN((IF(SUM(COUNTIF($Z$3:Z10,1),COUNTIF($Z$3:Z10,-1))=0,1,SUM(COUNTIF($Z$3:Z10,1),COUNTIF($Z$3:Z10,-1)))),(IF(SUM(COUNTIF($AC$3:AC10,1),COUNTIF($AC$3:AC10,-1))=0,1,SUM(COUNTIF($AC$3:AC10,1),COUNTIF($AC$3:AC10,-1)))),(IF(SUM(COUNTIF($AE$3:AE10,1),COUNTIF($AE$3:AE10,-1))=0,1,SUM(COUNTIF($AE$3:AE10,1),COUNTIF($AE$3:AE10,-1)))),(IF(SUM(COUNTIF($AG$3:AG10,1),COUNTIF($AG$3:AG10,-1))=0,1,SUM(COUNTIF($AG$3:AG10,1),COUNTIF($AG$3:AG10,-1)))),(IF(SUM(COUNTIF($AI$3:AI10,1),COUNTIF($AI$3:AI10,-1))=0,1,SUM(COUNTIF($AI$3:AI10,1),COUNTIF($AI$3:AI10,-1)))),(IF(SUM(COUNTIF($AK$3:AK10,1),COUNTIF($AK$3:AK10,-1))=0,1,SUM(COUNTIF($AK$3:AK10,1),COUNTIF($AK$3:AK10,-1)))))/1000) -> 0.049 | BD10: 3.912 | BF10: =+SUM(COUNTIF($AE$3:AE10,1),COUNTIF(AE$3:$AE10,-1)) -> 7 | BG10: =+SUM($Q$4:Q10) -> 652 | BH10: 93.14285714 | BI10: =+SUM(COUNTIF($AE$3:AE10,1)) -> 3 | BJ10: =+SUM(COUNTIF($AE$3:AE10,-1)) -> 4 | BK10: -1 | BL10: =BF10*(HARMEAN((IF(SUM(COUNTIF($Z$3:Z10,1),COUNTIF($Z$3:Z10,-1))=0,1,SUM(COUNTIF($Z$3:Z10,1),COUNTIF($Z$3:Z10,-1)))),(IF(SUM(COUNTIF($AC$3:AC10,1),COUNTIF($AC$3:AC10,-1))=0,1,SUM(COUNTIF($AC$3:AC10,1),COUNTIF($AC$3:AC10,-1)))),(IF(SUM(COUNTIF($AE$3:AE10,1),COUNTIF($AE$3:AE10,-1))=0,1,SUM(COUNTIF($AE$3:AE10,1),COUNTIF($AE$3:AE10,-1)))),(IF(SUM(COUNTIF($AG$3:AG10,1),COUNTIF($AG$3:AG10,-1))=0,1,SUM(COUNTIF($AG$3:AG10,1),COUNTIF($AG$3:AG10,-1)))),(IF(SUM(COUNTIF($AI$3:AI10,1),COUNTIF($AI$3:AI10,-1))=0,1,SUM(COUNTIF($AI$3:AI10,1),COUNTIF($AI$3:AI10,-1)))),(IF(SUM(COUNTIF($AK$3:AK10,1),COUNTIF($AK$3:AK10,-1))=0,1,SUM(COUNTIF($AK$3:AK10,1),COUNTIF($AK$3:AK10,-1)))))/1000) -> 0.049 | BM10: -0.244 | BO10: =+SUM(COUNTIF($AG$3:AG10,1),COUNTIF($AG$3:AG10,-1)) -> 7 | BP10: =+SUM($S$4:S10) -> 647 | BQ10: 92.42857143 | BR10: =+SUM(COUNTIF($AG$3:AG10,1)) -> 2 | BS10: =+SUM(COUNTIF($AG$3:AG10,-1)) -> 5 | BT10: -3 | BU10: =BO10*(HARMEAN((IF(SUM(COUNTIF($Z$3:Z10,1),COUNTIF($Z$3:Z10,-1))=0,1,SUM(COUNTIF($Z$3:Z10,1),COUNTIF($Z$3:Z10,-1)))),(IF(SUM(COUNTIF($AC$3:AC10,1),COUNTIF($AC$3:AC10,-1))=0,1,SUM(COUNTIF($AC$3:AC10,1),COUNTIF($AC$3:AC10,-1)))),(IF(SUM(COUNTIF($AE$3:AE10,1),COUNTIF($AE$3:AE10,-1))=0,1,SUM(COUNTIF($AE$3:AE10,1),COUNTIF($AE$3:AE10,-1)))),(IF(SUM(COUNTIF($AG$3:AG10,1),COUNTIF($AG$3:AG10,-1))=0,1,SUM(COUNTIF($AG$3:AG10,1),COUNTIF($AG$3:AG10,-1)))),(IF(SUM(COUNTIF($AI$3:AI10,1),COUNTIF($AI$3:AI10,-1))=0,1,SUM(COUNTIF($AI$3:AI10,1),COUNTIF($AI$3:AI10,-1)))),(IF(SUM(COUNTIF($AK$3:AK10,1),COUNTIF($AK$3:AK10,-1))=0,1,SUM(COUNTIF($AK$3:AK10,1),COUNTIF($AK$3:AK10,-1)))))/1000) -> 0.049 | BV10: -1.647 | BX10: =+SUM(COUNTIF($AI$3:AI10,1),COUNTIF($AI$3:AI10,-1)) -> 7 | BY10: =+SUM($U$4:U10) -> 554 | BZ10: 79.14285714 | CA10: =+SUM(COUNTIF($AI$3:AI10,1)) -> 2 | CB10: =+SUM(COUNTIF($AI$3:AI10,-1)) -> 5 | CC10: -3 | CD10: =+BX10*(HARMEAN((IF(SUM(COUNTIF($Z$3:Z10,1),COUNTIF($Z$3:Z10,-1))=0,1,SUM(COUNTIF($Z$3:Z10,1),COUNTIF($Z$3:Z10,-1)))),(IF(SUM(COUNTIF($AC$3:AC10,1),COUNTIF($AC$3:AC10,-1))=0,1,SUM(COUNTIF($AC$3:AC10,1),COUNTIF($AC$3:AC10,-1)))),(IF(SUM(COUNTIF($AE$3:AE10,1),COUNTIF($AE$3:AE10,-1))=0,1,SUM(COUNTIF($AE$3:AE10,1),COUNTIF($AE$3:AE10,-1)))),(IF(SUM(COUNTIF($AG$3:AG10,1),COUNTIF($AG$3:AG10,-1))=0,1,SUM(COUNTIF($AG$3:AG10,1),COUNTIF($AG$3:AG10,-1)))),(IF(SUM(COUNTIF($AI$3:AI10,1),COUNTIF($AI$3:AI10,-1))=0,1,SUM(COUNTIF($AI$3:AI10,1),COUNTIF($AI$3:AI10,-1)))),(IF(SUM(COUNTIF($AK$3:AK10,1),COUNTIF($AK$3:AK10,-1))=0,1,SUM(COUNTIF($AK$3:AK10,1),COUNTIF($AK$3:AK10,-1)))))/1000) -> 0.049 | CE10: -1.712 | CG10: =+SUM(COUNTIF($AK$3:AK10,1),COUNTIF($AK$3:AK10,-1)) -> 7 | CH10: =+SUM($W$4:W10) -> 586 | CI10: 83.71428571 | CJ10: =+SUM(COUNTIF($AK$3:AK10,1)) -> 3 | CK10: =+SUM(COUNTIF($AK$3:AK10,-1)) -> 4 | CL10: -1 | CM10: =+CG10*(HARMEAN((IF(SUM(COUNTIF($Z$3:Z10,1),COUNTIF($Z$3:Z10,-1))=0,1,SUM(COUNTIF($Z$3:Z10,1),COUNTIF($Z$3:Z10,-1)))),(IF(SUM(COUNTIF($AC$3:AC10,1),COUNTIF($AC$3:AC10,-1))=0,1,SUM(COUNTIF($AC$3:AC10,1),COUNTIF($AC$3:AC10,-1)))),(IF(SUM(COUNTIF($AE$3:AE10,1),COUNTIF($AE$3:AE10,-1))=0,1,SUM(COUNTIF($AE$3:AE10,1),COUNTIF($AE$3:AE10,-1)))),(IF(SUM(COUNTIF($AG$3:AG10,1),COUNTIF($AG$3:AG10,-1))=0,1,SUM(COUNTIF($AG$3:AG10,1),COUNTIF($AG$3:AG10,-1)))),(IF(SUM(COUNTIF($AI$3:AI10,1),COUNTIF($AI$3:AI10,-1))=0,1,SUM(COUNTIF($AI$3:AI10,1),COUNTIF($AI$3:AI10,-1)))),(IF(SUM(COUNTIF($AK$3:AK10,1),COUNTIF($AK$3:AK10,-1))=0,1,SUM(COUNTIF($AK$3:AK10,1),COUNTIF($AK$3:AK10,-1)))))/1000) -> 0.049 | CN10: -0.29
A11: 8 | B11: Yuri | D11: =+IFERROR(INDEX('Auswertung AoE II'!$AE:$AE,MATCH(A11,'Auswertung AoE II'!$AD:$AD,0)),"") ->  | E11: =+IFERROR(INDEX('Auswertung AoE III'!$AE:$AE,MATCH(A11,'Auswertung AoE III'!$AD:$AD,0)),"") ->  | F11: =+IFERROR(INDEX('Auswertung AoM'!$AE:$AE,MATCH(A11,'Auswertung AoM'!$AD:$AD,0)),"") ->  | G11: =+IFERROR(INDEX('Auswertung RA'!$AE:$AE,MATCH(A11,'Auswertung RA'!$AD:$AD,0)),"") ->  | H11: =+IFERROR(INDEX('Auswertung Yuri'!$AE:$AE,MATCH(A11,'Auswertung Yuri'!$AD:$AD,0)),"") -> Yuri | I11: =+IFERROR(INDEX('Auswertung Generals'!$AE:$AE,MATCH(A11,'Auswertung Generals'!$AD:$AD,0)),"") ->  | J11: Auswertung Yuri | M11: =+IF(ISERROR(+INDIRECT(CONCATENATE("'",J11,"'!",(ADDRESS((COUNTIF($J$3:J11,IF(B11<>0,CONCATENATE("Auswertung ",B11,""))))+2,2)))))=FALSE,+INDIRECT(CONCATENATE("'",J11,"'!",(ADDRESS((COUNTIF($J$3:J11,IF(B11<>0,CONCATENATE("Auswertung ",B11,""))))+4,2)))),"") -> 70 | N11: =IF(ISERROR(+INDIRECT(CONCATENATE("'",J11,"'!",(ADDRESS((COUNTIF($J$3:J11,IF(B11<>0,CONCATENATE("Auswertung ",B11,""))))+2,2+1)))))=FALSE,+INDIRECT(CONCATENATE("'",J11,"'!",(ADDRESS((COUNTIF($J$3:J11,IF(B11<>0,CONCATENATE("Auswertung ",B11,""))))+4,2+1)))),"") -> Deu | O11: =+IF(ISERROR(+INDIRECT(CONCATENATE("'",J11,"'!",(ADDRESS((COUNTIF($J$3:J11,IF(B11<>0,CONCATENATE("Auswertung ",B11,""))))+2,4)))))=FALSE,+INDIRECT(CONCATENATE("'",J11,"'!",(ADDRESS((COUNTIF($J$3:J11,IF(B11<>0,CONCATENATE("Auswertung ",B11,""))))+4,4)))),"") -> 70 | P11: =+IF(ISERROR(+INDIRECT(CONCATENATE("'",J11,"'!",(ADDRESS((COUNTIF($J$3:J11,IF(B11<>0,CONCATENATE("Auswertung ",B11,""))))+2,5)))))=FALSE,+INDIRECT(CONCATENATE("'",J11,"'!",(ADDRESS((COUNTIF($J$3:J11,IF(B11<>0,CONCATENATE("Auswertung ",B11,""))))+4,5)))),"") -> Lyb | Q11: =+IF(ISERROR(+INDIRECT(CONCATENATE("'",J11,"'!",(ADDRESS((COUNTIF($J$3:J11,IF(B11<>0,CONCATENATE("Auswertung ",B11,""))))+2,6)))))=FALSE,+INDIRECT(CONCATENATE("'",J11,"'!",(ADDRESS((COUNTIF($J$3:J11,IF(B11<>0,CONCATENATE("Auswertung ",B11,""))))+4,6)))),"") -> 58 | R11: =+IF(ISERROR(+INDIRECT(CONCATENATE("'",J11,"'!",(ADDRESS((COUNTIF($J$3:J11,IF(B11<>0,CONCATENATE("Auswertung ",B11,""))))+2,7)))))=FALSE,+INDIRECT(CONCATENATE("'",J11,"'!",(ADDRESS((COUNTIF($J$3:J11,IF(B11<>0,CONCATENATE("Auswertung ",B11,""))))+4,7)))),"") -> Deu | S11: =+IF(ISERROR(+INDIRECT(CONCATENATE("'",J11,"'!",(ADDRESS((COUNTIF($J$3:J11,IF(B11<>0,CONCATENATE("Auswertung ",B11,""))))+2,10)))))=FALSE,+INDIRECT(CONCATENATE("'",J11,"'!",(ADDRESS((COUNTIF($J$3:J11,IF(B11<>0,CONCATENATE("Auswertung ",B11,""))))+4,8)))),"") -> 70 | T11: =+IF(ISERROR(+INDIRECT(CONCATENATE("'",J11,"'!",(ADDRESS((COUNTIF($J$3:J11,IF(B11<>0,CONCATENATE("Auswertung ",B11,""))))+2,11)))))=FALSE,+INDIRECT(CONCATENATE("'",J11,"'!",(ADDRESS((COUNTIF($J$3:J11,IF(B11<>0,CONCATENATE("Auswertung ",B11,""))))+4,9)))),"") -> Lyb | U11: =+IF(ISERROR(+INDIRECT(CONCATENATE("'",J11,"'!",(ADDRESS((COUNTIF($J$3:J11,IF(B11<>0,CONCATENATE("Auswertung ",B11,""))))+2,10)))))=FALSE,+INDIRECT(CONCATENATE("'",J11,"'!",(ADDRESS((COUNTIF($J$3:J11,IF(B11<>0,CONCATENATE("Auswertung ",B11,""))))+4,10)))),"") -> 47 | V11: =+IF(ISERROR(+INDIRECT(CONCATENATE("'",J11,"'!",(ADDRESS((COUNTIF($J$3:J11,IF(B11<>0,CONCATENATE("Auswertung ",B11,""))))+2,11)))))=FALSE,+INDIRECT(CONCATENATE("'",J11,"'!",(ADDRESS((COUNTIF($J$3:J11,IF(B11<>0,CONCATENATE("Auswertung ",B11,""))))+4,11)))),"") -> GB | W11: =+IF(ISERROR(+INDIRECT(CONCATENATE("'",J11,"'!",(ADDRESS((COUNTIF($J$3:J11,IF(D11<>0,CONCATENATE("Auswertung ",D11,""))))+2,12)))))=FALSE,+INDIRECT(CONCATENATE("'",J11,"'!",(ADDRESS((COUNTIF($J$3:J11,IF(D11<>0,CONCATENATE("Auswertung ",B11,""))))+4,12)))),"") -> 89 | X11: =+IF(ISERROR(+INDIRECT(CONCATENATE("'",J11,"'!",(ADDRESS((COUNTIF($J$3:J11,IF(D11<>0,CONCATENATE("Auswertung ",D11,""))))+2,13)))))=FALSE,+INDIRECT(CONCATENATE("'",J11,"'!",(ADDRESS((COUNTIF($J$3:J11,IF(D11<>0,CONCATENATE("Auswertung ",B11,""))))+4,13)))),"") -> GB | Z11: =+IFERROR(INDIRECT(CONCATENATE("'",J11,"'!",(ADDRESS((COUNTIF($J$3:J11,IF(B11<>0,J11)))+4,16)))),"") -> -1 | AA11: 2.151 | AB11: =+SUM($M$4:M11)/COUNT($M$4:M11)/1000*2 -> 0.17225 | AC11: =+IFERROR(INDIRECT(CONCATENATE("'",J11,"'!",(ADDRESS((COUNTIF($J$3:J11,IF(B11<>0,J11)))+4,18)))),"") -> -1 | AD11: 3.726 | AE11: =+IFERROR(INDIRECT(CONCATENATE("'",J11,"'!",(ADDRESS((COUNTIF($J$3:J11,IF(B11<>0,J11)))+4,20)))),"") -> 1 | AF11: 0.568 | AG11: =+IFERROR(INDIRECT(CONCATENATE("'",J11,"'!",(ADDRESS((COUNTIF($J$3:J11,IF(B11<>0,J11)))+4,22)))),"") -> 1 | AH11: -1.026 | AI11: =+IFERROR(INDIRECT(CONCATENATE("'",J11,"'!",(ADDRESS((COUNTIF($J$3:J11,IF(B11<>0,J11)))+4,24)))),"") -> -1 | AJ11: -2.719 | AK11: =+IFERROR(INDIRECT(CONCATENATE("'",J11,"'!",(ADDRESS((COUNTIF($J$3:J11,IF(B11<>0,J11)))+4,26)))),"") -> 1 | AL11: 0.54 | AM11: 8 | AN11: =+SUM(COUNTIF($Z$3:Z11,1),COUNTIF($Z$3:Z11,-1)) -> 8 | AO11: =+SUM($M$4:M11) -> 689 | AP11: 86.125 | AQ11: =+SUM(COUNTIF($Z$3:Z11,1)) -> 5 | AR11: =+SUM(COUNTIF($Z$3:Z11,-1)) -> 3 | AS11: 2 | AT11: =AN11*(HARMEAN((IF(SUM(COUNTIF($Z$3:Z11,1),COUNTIF($Z$3:Z11,-1))=0,1,SUM(COUNTIF($Z$3:Z11,1),COUNTIF($Z$3:Z11,-1)))),(IF(SUM(COUNTIF($AC$3:AC11,1),COUNTIF($AC$3:AC11,-1))=0,1,SUM(COUNTIF($AC$3:AC11,1),COUNTIF($AC$3:AC11,-1)))),(IF(SUM(COUNTIF($AE$3:AE11,1),COUNTIF($AE$3:AE11,-1))=0,1,SUM(COUNTIF($AE$3:AE11,1),COUNTIF($AE$3:AE11,-1)))),(IF(SUM(COUNTIF($AG$3:AG11,1),COUNTIF($AG$3:AG11,-1))=0,1,SUM(COUNTIF($AG$3:AG11,1),COUNTIF($AG$3:AG11,-1)))),(IF(SUM(COUNTIF($AI$3:AI11,1),COUNTIF($AI$3:AI11,-1))=0,1,SUM(COUNTIF($AI$3:AI11,1),COUNTIF($AI$3:AI11,-1)))),(IF(SUM(COUNTIF($AK$3:AK11,1),COUNTIF($AK$3:AK11,-1))=0,1,SUM(COUNTIF($AK$3:AK11,1),COUNTIF($AK$3:AK11,-1)))))/1000) -> 0.064 | AU11: 2.151 | AW11: =+SUM(COUNTIF($AC$3:AC11,1),COUNTIF($AC$3:AC11,-1)) -> 8 | AX11: =+SUM($O$4:O11) -> 658 | AY11: 82.25 | AZ11: =+SUM(COUNTIF($AC$3:AC11,1)) -> 6 | BA11: =+SUM(COUNTIF($AC$3:AC11,-1)) -> 2 | BB11: 4 | BC11: =AW11*(HARMEAN((IF(SUM(COUNTIF($Z$3:Z11,1),COUNTIF($Z$3:Z11,-1))=0,1,SUM(COUNTIF($Z$3:Z11,1),COUNTIF($Z$3:Z11,-1)))),(IF(SUM(COUNTIF($AC$3:AC11,1),COUNTIF($AC$3:AC11,-1))=0,1,SUM(COUNTIF($AC$3:AC11,1),COUNTIF($AC$3:AC11,-1)))),(IF(SUM(COUNTIF($AE$3:AE11,1),COUNTIF($AE$3:AE11,-1))=0,1,SUM(COUNTIF($AE$3:AE11,1),COUNTIF($AE$3:AE11,-1)))),(IF(SUM(COUNTIF($AG$3:AG11,1),COUNTIF($AG$3:AG11,-1))=0,1,SUM(COUNTIF($AG$3:AG11,1),COUNTIF($AG$3:AG11,-1)))),(IF(SUM(COUNTIF($AI$3:AI11,1),COUNTIF($AI$3:AI11,-1))=0,1,SUM(COUNTIF($AI$3:AI11,1),COUNTIF($AI$3:AI11,-1)))),(IF(SUM(COUNTIF($AK$3:AK11,1),COUNTIF($AK$3:AK11,-1))=0,1,SUM(COUNTIF($AK$3:AK11,1),COUNTIF($AK$3:AK11,-1)))))/1000) -> 0.064 | BD11: 3.726 | BF11: =+SUM(COUNTIF($AE$3:AE11,1),COUNTIF(AE$3:$AE11,-1)) -> 8 | BG11: =+SUM($Q$4:Q11) -> 710 | BH11: 88.75 | BI11: =+SUM(COUNTIF($AE$3:AE11,1)) -> 4 | BJ11: =+SUM(COUNTIF($AE$3:AE11,-1)) -> 4 | BK11: 0 | BL11: =BF11*(HARMEAN((IF(SUM(COUNTIF($Z$3:Z11,1),COUNTIF($Z$3:Z11,-1))=0,1,SUM(COUNTIF($Z$3:Z11,1),COUNTIF($Z$3:Z11,-1)))),(IF(SUM(COUNTIF($AC$3:AC11,1),COUNTIF($AC$3:AC11,-1))=0,1,SUM(COUNTIF($AC$3:AC11,1),COUNTIF($AC$3:AC11,-1)))),(IF(SUM(COUNTIF($AE$3:AE11,1),COUNTIF($AE$3:AE11,-1))=0,1,SUM(COUNTIF($AE$3:AE11,1),COUNTIF($AE$3:AE11,-1)))),(IF(SUM(COUNTIF($AG$3:AG11,1),COUNTIF($AG$3:AG11,-1))=0,1,SUM(COUNTIF($AG$3:AG11,1),COUNTIF($AG$3:AG11,-1)))),(IF(SUM(COUNTIF($AI$3:AI11,1),COUNTIF($AI$3:AI11,-1))=0,1,SUM(COUNTIF($AI$3:AI11,1),COUNTIF($AI$3:AI11,-1)))),(IF(SUM(COUNTIF($AK$3:AK11,1),COUNTIF($AK$3:AK11,-1))=0,1,SUM(COUNTIF($AK$3:AK11,1),COUNTIF($AK$3:AK11,-1)))))/1000) -> 0.064 | BM11: 0.568 | BO11: =+SUM(COUNTIF($AG$3:AG11,1),COUNTIF($AG$3:AG11,-1)) -> 8 | BP11: =+SUM($S$4:S11) -> 717 | BQ11: 89.625 | BR11: =+SUM(COUNTIF($AG$3:AG11,1)) -> 3 | BS11: =+SUM(COUNTIF($AG$3:AG11,-1)) -> 5 | BT11: -2 | BU11: =BO11*(HARMEAN((IF(SUM(COUNTIF($Z$3:Z11,1),COUNTIF($Z$3:Z11,-1))=0,1,SUM(COUNTIF($Z$3:Z11,1),COUNTIF($Z$3:Z11,-1)))),(IF(SUM(COUNTIF($AC$3:AC11,1),COUNTIF($AC$3:AC11,-1))=0,1,SUM(COUNTIF($AC$3:AC11,1),COUNTIF($AC$3:AC11,-1)))),(IF(SUM(COUNTIF($AE$3:AE11,1),COUNTIF($AE$3:AE11,-1))=0,1,SUM(COUNTIF($AE$3:AE11,1),COUNTIF($AE$3:AE11,-1)))),(IF(SUM(COUNTIF($AG$3:AG11,1),COUNTIF($AG$3:AG11,-1))=0,1,SUM(COUNTIF($AG$3:AG11,1),COUNTIF($AG$3:AG11,-1)))),(IF(SUM(COUNTIF($AI$3:AI11,1),COUNTIF($AI$3:AI11,-1))=0,1,SUM(COUNTIF($AI$3:AI11,1),COUNTIF($AI$3:AI11,-1)))),(IF(SUM(COUNTIF($AK$3:AK11,1),COUNTIF($AK$3:AK11,-1))=0,1,SUM(COUNTIF($AK$3:AK11,1),COUNTIF($AK$3:AK11,-1)))))/1000) -> 0.064 | BV11: -1.026 | BX11: =+SUM(COUNTIF($AI$3:AI11,1),COUNTIF($AI$3:AI11,-1)) -> 8 | BY11: =+SUM($U$4:U11) -> 601 | BZ11: 75.125 | CA11: =+SUM(COUNTIF($AI$3:AI11,1)) -> 2 | CB11: =+SUM(COUNTIF($AI$3:AI11,-1)) -> 6 | CC11: -4 | CD11: =+BX11*(HARMEAN((IF(SUM(COUNTIF($Z$3:Z11,1),COUNTIF($Z$3:Z11,-1))=0,1,SUM(COUNTIF($Z$3:Z11,1),COUNTIF($Z$3:Z11,-1)))),(IF(SUM(COUNTIF($AC$3:AC11,1),COUNTIF($AC$3:AC11,-1))=0,1,SUM(COUNTIF($AC$3:AC11,1),COUNTIF($AC$3:AC11,-1)))),(IF(SUM(COUNTIF($AE$3:AE11,1),COUNTIF($AE$3:AE11,-1))=0,1,SUM(COUNTIF($AE$3:AE11,1),COUNTIF($AE$3:AE11,-1)))),(IF(SUM(COUNTIF($AG$3:AG11,1),COUNTIF($AG$3:AG11,-1))=0,1,SUM(COUNTIF($AG$3:AG11,1),COUNTIF($AG$3:AG11,-1)))),(IF(SUM(COUNTIF($AI$3:AI11,1),COUNTIF($AI$3:AI11,-1))=0,1,SUM(COUNTIF($AI$3:AI11,1),COUNTIF($AI$3:AI11,-1)))),(IF(SUM(COUNTIF($AK$3:AK11,1),COUNTIF($AK$3:AK11,-1))=0,1,SUM(COUNTIF($AK$3:AK11,1),COUNTIF($AK$3:AK11,-1)))))/1000) -> 0.064 | CE11: -2.719 | CG11: =+SUM(COUNTIF($AK$3:AK11,1),COUNTIF($AK$3:AK11,-1)) -> 8 | CH11: =+SUM($W$4:W11) -> 675 | CI11: 84.375 | CJ11: =+SUM(COUNTIF($AK$3:AK11,1)) -> 4 | CK11: =+SUM(COUNTIF($AK$3:AK11,-1)) -> 4 | CL11: 0 | CM11: =+CG11*(HARMEAN((IF(SUM(COUNTIF($Z$3:Z11,1),COUNTIF($Z$3:Z11,-1))=0,1,SUM(COUNTIF($Z$3:Z11,1),COUNTIF($Z$3:Z11,-1)))),(IF(SUM(COUNTIF($AC$3:AC11,1),COUNTIF($AC$3:AC11,-1))=0,1,SUM(COUNTIF($AC$3:AC11,1),COUNTIF($AC$3:AC11,-1)))),(IF(SUM(COUNTIF($AE$3:AE11,1),COUNTIF($AE$3:AE11,-1))=0,1,SUM(COUNTIF($AE$3:AE11,1),COUNTIF($AE$3:AE11,-1)))),(IF(SUM(COUNTIF($AG$3:AG11,1),COUNTIF($AG$3:AG11,-1))=0,1,SUM(COUNTIF($AG$3:AG11,1),COUNTIF($AG$3:AG11,-1)))),(IF(SUM(COUNTIF($AI$3:AI11,1),COUNTIF($AI$3:AI11,-1))=0,1,SUM(COUNTIF($AI$3:AI11,1),COUNTIF($AI$3:AI11,-1)))),(IF(SUM(COUNTIF($AK$3:AK11,1),COUNTIF($AK$3:AK11,-1))=0,1,SUM(COUNTIF($AK$3:AK11,1),COUNTIF($AK$3:AK11,-1)))))/1000) -> 0.064 | CN11: 0.54
A12: 9 | B12: AoE II | D12: =+IFERROR(INDEX('Auswertung AoE II'!$AE:$AE,MATCH(A12,'Auswertung AoE II'!$AD:$AD,0)),"") -> AoE II | E12: =+IFERROR(INDEX('Auswertung AoE III'!$AE:$AE,MATCH(A12,'Auswertung AoE III'!$AD:$AD,0)),"") ->  | F12: =+IFERROR(INDEX('Auswertung AoM'!$AE:$AE,MATCH(A12,'Auswertung AoM'!$AD:$AD,0)),"") ->  | G12: =+IFERROR(INDEX('Auswertung RA'!$AE:$AE,MATCH(A12,'Auswertung RA'!$AD:$AD,0)),"") ->  | H12: =+IFERROR(INDEX('Auswertung Yuri'!$AE:$AE,MATCH(A12,'Auswertung Yuri'!$AD:$AD,0)),"") ->  | I12: =+IFERROR(INDEX('Auswertung Generals'!$AE:$AE,MATCH(A12,'Auswertung Generals'!$AD:$AD,0)),"") ->  | J12: Auswertung AoE II | M12: =+IF(ISERROR(+INDIRECT(CONCATENATE("'",J12,"'!",(ADDRESS((COUNTIF($J$3:J12,IF(B12<>0,CONCATENATE("Auswertung ",B12,""))))+2,2)))))=FALSE,+INDIRECT(CONCATENATE("'",J12,"'!",(ADDRESS((COUNTIF($J$3:J12,IF(B12<>0,CONCATENATE("Auswertung ",B12,""))))+4,2)))),"") -> 110 | N12: =IF(ISERROR(+INDIRECT(CONCATENATE("'",J12,"'!",(ADDRESS((COUNTIF($J$3:J12,IF(B12<>0,CONCATENATE("Auswertung ",B12,""))))+2,2+1)))))=FALSE,+INDIRECT(CONCATENATE("'",J12,"'!",(ADDRESS((COUNTIF($J$3:J12,IF(B12<>0,CONCATENATE("Auswertung ",B12,""))))+4,2+1)))),"") -> Hun | O12: =+IF(ISERROR(+INDIRECT(CONCATENATE("'",J12,"'!",(ADDRESS((COUNTIF($J$3:J12,IF(B12<>0,CONCATENATE("Auswertung ",B12,""))))+2,4)))))=FALSE,+INDIRECT(CONCATENATE("'",J12,"'!",(ADDRESS((COUNTIF($J$3:J12,IF(B12<>0,CONCATENATE("Auswertung ",B12,""))))+4,4)))),"") -> 228 | P12: =+IF(ISERROR(+INDIRECT(CONCATENATE("'",J12,"'!",(ADDRESS((COUNTIF($J$3:J12,IF(B12<>0,CONCATENATE("Auswertung ",B12,""))))+2,5)))))=FALSE,+INDIRECT(CONCATENATE("'",J12,"'!",(ADDRESS((COUNTIF($J$3:J12,IF(B12<>0,CONCATENATE("Auswertung ",B12,""))))+4,5)))),"") -> Hun | Q12: =+IF(ISERROR(+INDIRECT(CONCATENATE("'",J12,"'!",(ADDRESS((COUNTIF($J$3:J12,IF(B12<>0,CONCATENATE("Auswertung ",B12,""))))+2,6)))))=FALSE,+INDIRECT(CONCATENATE("'",J12,"'!",(ADDRESS((COUNTIF($J$3:J12,IF(B12<>0,CONCATENATE("Auswertung ",B12,""))))+4,6)))),"") -> 325 | R12: =+IF(ISERROR(+INDIRECT(CONCATENATE("'",J12,"'!",(ADDRESS((COUNTIF($J$3:J12,IF(B12<>0,CONCATENATE("Auswertung ",B12,""))))+2,7)))))=FALSE,+INDIRECT(CONCATENATE("'",J12,"'!",(ADDRESS((COUNTIF($J$3:J12,IF(B12<>0,CONCATENATE("Auswertung ",B12,""))))+4,7)))),"") -> Inka | S12: =+IF(ISERROR(+INDIRECT(CONCATENATE("'",J12,"'!",(ADDRESS((COUNTIF($J$3:J12,IF(B12<>0,CONCATENATE("Auswertung ",B12,""))))+2,10)))))=FALSE,+INDIRECT(CONCATENATE("'",J12,"'!",(ADDRESS((COUNTIF($J$3:J12,IF(B12<>0,CONCATENATE("Auswertung ",B12,""))))+4,8)))),"") -> 337 | T12: =+IF(ISERROR(+INDIRECT(CONCATENATE("'",J12,"'!",(ADDRESS((COUNTIF($J$3:J12,IF(B12<>0,CONCATENATE("Auswertung ",B12,""))))+2,11)))))=FALSE,+INDIRECT(CONCATENATE("'",J12,"'!",(ADDRESS((COUNTIF($J$3:J12,IF(B12<>0,CONCATENATE("Auswertung ",B12,""))))+4,9)))),"") -> Inka | U12: =+IF(ISERROR(+INDIRECT(CONCATENATE("'",J12,"'!",(ADDRESS((COUNTIF($J$3:J12,IF(B12<>0,CONCATENATE("Auswertung ",B12,""))))+2,10)))))=FALSE,+INDIRECT(CONCATENATE("'",J12,"'!",(ADDRESS((COUNTIF($J$3:J12,IF(B12<>0,CONCATENATE("Auswertung ",B12,""))))+4,10)))),"") -> 298 | V12: =+IF(ISERROR(+INDIRECT(CONCATENATE("'",J12,"'!",(ADDRESS((COUNTIF($J$3:J12,IF(B12<>0,CONCATENATE("Auswertung ",B12,""))))+2,11)))))=FALSE,+INDIRECT(CONCATENATE("'",J12,"'!",(ADDRESS((COUNTIF($J$3:J12,IF(B12<>0,CONCATENATE("Auswertung ",B12,""))))+4,11)))),"") -> Sici | W12: =+IF(ISERROR(+INDIRECT(CONCATENATE("'",J12,"'!",(ADDRESS((COUNTIF($J$3:J12,IF(D12<>0,CONCATENATE("Auswertung ",D12,""))))+2,12)))))=FALSE,+INDIRECT(CONCATENATE("'",J12,"'!",(ADDRESS((COUNTIF($J$3:J12,IF(D12<>0,CONCATENATE("Auswertung ",B12,""))))+4,12)))),"") -> 204 | X12: =+IF(ISERROR(+INDIRECT(CONCATENATE("'",J12,"'!",(ADDRESS((COUNTIF($J$3:J12,IF(D12<>0,CONCATENATE("Auswertung ",D12,""))))+2,13)))))=FALSE,+INDIRECT(CONCATENATE("'",J12,"'!",(ADDRESS((COUNTIF($J$3:J12,IF(D12<>0,CONCATENATE("Auswertung ",B12,""))))+4,13)))),"") -> Sici | Z12: =+IFERROR(INDIRECT(CONCATENATE("'",J12,"'!",(ADDRESS((COUNTIF($J$3:J12,IF(B12<>0,J12)))+4,16)))),"") -> 1 | AA12: 3.419 | AB12: =+SUM($M$4:M12)/COUNT($M$4:M12)/1000*2 -> 0.1775555556 | AC12: =+IFERROR(INDIRECT(CONCATENATE("'",J12,"'!",(ADDRESS((COUNTIF($J$3:J12,IF(B12<>0,J12)))+4,18)))),"") -> -1 | AD12: 3.497 | AE12: =+IFERROR(INDIRECT(CONCATENATE("'",J12,"'!",(ADDRESS((COUNTIF($J$3:J12,IF(B12<>0,J12)))+4,20)))),"") -> -1 | AF12: 0.031 | AG12: =+IFERROR(INDIRECT(CONCATENATE("'",J12,"'!",(ADDRESS((COUNTIF($J$3:J12,IF(B12<>0,J12)))+4,22)))),"") -> 1 | AH12: 0.049 | AI12: =+IFERROR(INDIRECT(CONCATENATE("'",J12,"'!",(ADDRESS((COUNTIF($J$3:J12,IF(B12<>0,J12)))+4,24)))),"") -> -1 | AJ12: -3.691 | AK12: =+IFERROR(INDIRECT(CONCATENATE("'",J12,"'!",(ADDRESS((COUNTIF($J$3:J12,IF(B12<>0,J12)))+4,26)))),"") -> 1 | AL12: 1.691 | AM12: 9 | AN12: =+SUM(COUNTIF($Z$3:Z12,1),COUNTIF($Z$3:Z12,-1)) -> 9 | AO12: =+SUM($M$4:M12) -> 799 | AP12: 88.77777778 | AQ12: =+SUM(COUNTIF($Z$3:Z12,1)) -> 6 | AR12: =+SUM(COUNTIF($Z$3:Z12,-1)) -> 3 | AS12: 3 | AT12: =AN12*(HARMEAN((IF(SUM(COUNTIF($Z$3:Z12,1),COUNTIF($Z$3:Z12,-1))=0,1,SUM(COUNTIF($Z$3:Z12,1),COUNTIF($Z$3:Z12,-1)))),(IF(SUM(COUNTIF($AC$3:AC12,1),COUNTIF($AC$3:AC12,-1))=0,1,SUM(COUNTIF($AC$3:AC12,1),COUNTIF($AC$3:AC12,-1)))),(IF(SUM(COUNTIF($AE$3:AE12,1),COUNTIF($AE$3:AE12,-1))=0,1,SUM(COUNTIF($AE$3:AE12,1),COUNTIF($AE$3:AE12,-1)))),(IF(SUM(COUNTIF($AG$3:AG12,1),COUNTIF($AG$3:AG12,-1))=0,1,SUM(COUNTIF($AG$3:AG12,1),COUNTIF($AG$3:AG12,-1)))),(IF(SUM(COUNTIF($AI$3:AI12,1),COUNTIF($AI$3:AI12,-1))=0,1,SUM(COUNTIF($AI$3:AI12,1),COUNTIF($AI$3:AI12,-1)))),(IF(SUM(COUNTIF($AK$3:AK12,1),COUNTIF($AK$3:AK12,-1))=0,1,SUM(COUNTIF($AK$3:AK12,1),COUNTIF($AK$3:AK12,-1)))))/1000) -> 0.081 | AU12: 3.419 | AW12: =+SUM(COUNTIF($AC$3:AC12,1),COUNTIF($AC$3:AC12,-1)) -> 9 | AX12: =+SUM($O$4:O12) -> 886 | AY12: 98.44444444 | AZ12: =+SUM(COUNTIF($AC$3:AC12,1)) -> 6 | BA12: =+SUM(COUNTIF($AC$3:AC12,-1)) -> 3 | BB12: 3 | BC12: =AW12*(HARMEAN((IF(SUM(COUNTIF($Z$3:Z12,1),COUNTIF($Z$3:Z12,-1))=0,1,SUM(COUNTIF($Z$3:Z12,1),COUNTIF($Z$3:Z12,-1)))),(IF(SUM(COUNTIF($AC$3:AC12,1),COUNTIF($AC$3:AC12,-1))=0,1,SUM(COUNTIF($AC$3:AC12,1),COUNTIF($AC$3:AC12,-1)))),(IF(SUM(COUNTIF($AE$3:AE12,1),COUNTIF($AE$3:AE12,-1))=0,1,SUM(COUNTIF($AE$3:AE12,1),COUNTIF($AE$3:AE12,-1)))),(IF(SUM(COUNTIF($AG$3:AG12,1),COUNTIF($AG$3:AG12,-1))=0,1,SUM(COUNTIF($AG$3:AG12,1),COUNTIF($AG$3:AG12,-1)))),(IF(SUM(COUNTIF($AI$3:AI12,1),COUNTIF($AI$3:AI12,-1))=0,1,SUM(COUNTIF($AI$3:AI12,1),COUNTIF($AI$3:AI12,-1)))),(IF(SUM(COUNTIF($AK$3:AK12,1),COUNTIF($AK$3:AK12,-1))=0,1,SUM(COUNTIF($AK$3:AK12,1),COUNTIF($AK$3:AK12,-1)))))/1000) -> 0.081 | BD12: 3.497 | BF12: =+SUM(COUNTIF($AE$3:AE12,1),COUNTIF(AE$3:$AE12,-1)) -> 9 | BG12: =+SUM($Q$4:Q12) -> 1035 | BH12: 115 | BI12: =+SUM(COUNTIF($AE$3:AE12,1)) -> 4 | BJ12: =+SUM(COUNTIF($AE$3:AE12,-1)) -> 5 | BK12: -1 | BL12: =BF12*(HARMEAN((IF(SUM(COUNTIF($Z$3:Z12,1),COUNTIF($Z$3:Z12,-1))=0,1,SUM(COUNTIF($Z$3:Z12,1),COUNTIF($Z$3:Z12,-1)))),(IF(SUM(COUNTIF($AC$3:AC12,1),COUNTIF($AC$3:AC12,-1))=0,1,SUM(COUNTIF($AC$3:AC12,1),COUNTIF($AC$3:AC12,-1)))),(IF(SUM(COUNTIF($AE$3:AE12,1),COUNTIF($AE$3:AE12,-1))=0,1,SUM(COUNTIF($AE$3:AE12,1),COUNTIF($AE$3:AE12,-1)))),(IF(SUM(COUNTIF($AG$3:AG12,1),COUNTIF($AG$3:AG12,-1))=0,1,SUM(COUNTIF($AG$3:AG12,1),COUNTIF($AG$3:AG12,-1)))),(IF(SUM(COUNTIF($AI$3:AI12,1),COUNTIF($AI$3:AI12,-1))=0,1,SUM(COUNTIF($AI$3:AI12,1),COUNTIF($AI$3:AI12,-1)))),(IF(SUM(COUNTIF($AK$3:AK12,1),COUNTIF($AK$3:AK12,-1))=0,1,SUM(COUNTIF($AK$3:AK12,1),COUNTIF($AK$3:AK12,-1)))))/1000) -> 0.081 | BM12: 0.031 | BO12: =+SUM(COUNTIF($AG$3:AG12,1),COUNTIF($AG$3:AG12,-1)) -> 9 | BP12: =+SUM($S$4:S12) -> 1054 | BQ12: 117.1111111 | BR12: =+SUM(COUNTIF($AG$3:AG12,1)) -> 4 | BS12: =+SUM(COUNTIF($AG$3:AG12,-1)) -> 5 | BT12: -1 | BU12: =BO12*(HARMEAN((IF(SUM(COUNTIF($Z$3:Z12,1),COUNTIF($Z$3:Z12,-1))=0,1,SUM(COUNTIF($Z$3:Z12,1),COUNTIF($Z$3:Z12,-1)))),(IF(SUM(COUNTIF($AC$3:AC12,1),COUNTIF($AC$3:AC12,-1))=0,1,SUM(COUNTIF($AC$3:AC12,1),COUNTIF($AC$3:AC12,-1)))),(IF(SUM(COUNTIF($AE$3:AE12,1),COUNTIF($AE$3:AE12,-1))=0,1,SUM(COUNTIF($AE$3:AE12,1),COUNTIF($AE$3:AE12,-1)))),(IF(SUM(COUNTIF($AG$3:AG12,1),COUNTIF($AG$3:AG12,-1))=0,1,SUM(COUNTIF($AG$3:AG12,1),COUNTIF($AG$3:AG12,-1)))),(IF(SUM(COUNTIF($AI$3:AI12,1),COUNTIF($AI$3:AI12,-1))=0,1,SUM(COUNTIF($AI$3:AI12,1),COUNTIF($AI$3:AI12,-1)))),(IF(SUM(COUNTIF($AK$3:AK12,1),COUNTIF($AK$3:AK12,-1))=0,1,SUM(COUNTIF($AK$3:AK12,1),COUNTIF($AK$3:AK12,-1)))))/1000) -> 0.081 | BV12: 0.049 | BX12: =+SUM(COUNTIF($AI$3:AI12,1),COUNTIF($AI$3:AI12,-1)) -> 9 | BY12: =+SUM($U$4:U12) -> 899 | BZ12: 99.88888889 | CA12: =+SUM(COUNTIF($AI$3:AI12,1)) -> 2 | CB12: =+SUM(COUNTIF($AI$3:AI12,-1)) -> 7 | CC12: -5 | CD12: =+BX12*(HARMEAN((IF(SUM(COUNTIF($Z$3:Z12,1),COUNTIF($Z$3:Z12,-1))=0,1,SUM(COUNTIF($Z$3:Z12,1),COUNTIF($Z$3:Z12,-1)))),(IF(SUM(COUNTIF($AC$3:AC12,1),COUNTIF($AC$3:AC12,-1))=0,1,SUM(COUNTIF($AC$3:AC12,1),COUNTIF($AC$3:AC12,-1)))),(IF(SUM(COUNTIF($AE$3:AE12,1),COUNTIF($AE$3:AE12,-1))=0,1,SUM(COUNTIF($AE$3:AE12,1),COUNTIF($AE$3:AE12,-1)))),(IF(SUM(COUNTIF($AG$3:AG12,1),COUNTIF($AG$3:AG12,-1))=0,1,SUM(COUNTIF($AG$3:AG12,1),COUNTIF($AG$3:AG12,-1)))),(IF(SUM(COUNTIF($AI$3:AI12,1),COUNTIF($AI$3:AI12,-1))=0,1,SUM(COUNTIF($AI$3:AI12,1),COUNTIF($AI$3:AI12,-1)))),(IF(SUM(COUNTIF($AK$3:AK12,1),COUNTIF($AK$3:AK12,-1))=0,1,SUM(COUNTIF($AK$3:AK12,1),COUNTIF($AK$3:AK12,-1)))))/1000) -> 0.081 | CE12: -3.691 | CG12: =+SUM(COUNTIF($AK$3:AK12,1),COUNTIF($AK$3:AK12,-1)) -> 9 | CH12: =+SUM($W$4:W12) -> 879 | CI12: 97.66666667 | CJ12: =+SUM(COUNTIF($AK$3:AK12,1)) -> 5 | CK12: =+SUM(COUNTIF($AK$3:AK12,-1)) -> 4 | CL12: 1 | CM12: =+CG12*(HARMEAN((IF(SUM(COUNTIF($Z$3:Z12,1),COUNTIF($Z$3:Z12,-1))=0,1,SUM(COUNTIF($Z$3:Z12,1),COUNTIF($Z$3:Z12,-1)))),(IF(SUM(COUNTIF($AC$3:AC12,1),COUNTIF($AC$3:AC12,-1))=0,1,SUM(COUNTIF($AC$3:AC12,1),COUNTIF($AC$3:AC12,-1)))),(IF(SUM(COUNTIF($AE$3:AE12,1),COUNTIF($AE$3:AE12,-1))=0,1,SUM(COUNTIF($AE$3:AE12,1),COUNTIF($AE$3:AE12,-1)))),(IF(SUM(COUNTIF($AG$3:AG12,1),COUNTIF($AG$3:AG12,-1))=0,1,SUM(COUNTIF($AG$3:AG12,1),COUNTIF($AG$3:AG12,-1)))),(IF(SUM(COUNTIF($AI$3:AI12,1),COUNTIF($AI$3:AI12,-1))=0,1,SUM(COUNTIF($AI$3:AI12,1),COUNTIF($AI$3:AI12,-1)))),(IF(SUM(COUNTIF($AK$3:AK12,1),COUNTIF($AK$3:AK12,-1))=0,1,SUM(COUNTIF($AK$3:AK12,1),COUNTIF($AK$3:AK12,-1)))))/1000) -> 0.081 | CN12: 1.691
A13: 10 | B13: AoM | D13: =+IFERROR(INDEX('Auswertung AoE II'!$AE:$AE,MATCH(A13,'Auswertung AoE II'!$AD:$AD,0)),"") ->  | E13: =+IFERROR(INDEX('Auswertung AoE III'!$AE:$AE,MATCH(A13,'Auswertung AoE III'!$AD:$AD,0)),"") ->  | F13: =+IFERROR(INDEX('Auswertung AoM'!$AE:$AE,MATCH(A13,'Auswertung AoM'!$AD:$AD,0)),"") -> AoM | G13: =+IFERROR(INDEX('Auswertung RA'!$AE:$AE,MATCH(A13,'Auswertung RA'!$AD:$AD,0)),"") ->  | H13: =+IFERROR(INDEX('Auswertung Yuri'!$AE:$AE,MATCH(A13,'Auswertung Yuri'!$AD:$AD,0)),"") ->  | I13: =+IFERROR(INDEX('Auswertung Generals'!$AE:$AE,MATCH(A13,'Auswertung Generals'!$AD:$AD,0)),"") ->  | J13: Auswertung AoM | M13: =+IF(ISERROR(+INDIRECT(CONCATENATE("'",J13,"'!",(ADDRESS((COUNTIF($J$3:J13,IF(B13<>0,CONCATENATE("Auswertung ",B13,""))))+2,2)))))=FALSE,+INDIRECT(CONCATENATE("'",J13,"'!",(ADDRESS((COUNTIF($J$3:J13,IF(B13<>0,CONCATENATE("Auswertung ",B13,""))))+4,2)))),"") -> 71 | N13: =IF(ISERROR(+INDIRECT(CONCATENATE("'",J13,"'!",(ADDRESS((COUNTIF($J$3:J13,IF(B13<>0,CONCATENATE("Auswertung ",B13,""))))+2,2+1)))))=FALSE,+INDIRECT(CONCATENATE("'",J13,"'!",(ADDRESS((COUNTIF($J$3:J13,IF(B13<>0,CONCATENATE("Auswertung ",B13,""))))+4,2+1)))),"") -> Isis | O13: =+IF(ISERROR(+INDIRECT(CONCATENATE("'",J13,"'!",(ADDRESS((COUNTIF($J$3:J13,IF(B13<>0,CONCATENATE("Auswertung ",B13,""))))+2,4)))))=FALSE,+INDIRECT(CONCATENATE("'",J13,"'!",(ADDRESS((COUNTIF($J$3:J13,IF(B13<>0,CONCATENATE("Auswertung ",B13,""))))+4,4)))),"") -> 41 | P13: =+IF(ISERROR(+INDIRECT(CONCATENATE("'",J13,"'!",(ADDRESS((COUNTIF($J$3:J13,IF(B13<>0,CONCATENATE("Auswertung ",B13,""))))+2,5)))))=FALSE,+INDIRECT(CONCATENATE("'",J13,"'!",(ADDRESS((COUNTIF($J$3:J13,IF(B13<>0,CONCATENATE("Auswertung ",B13,""))))+4,5)))),"") -> Re | Q13: =+IF(ISERROR(+INDIRECT(CONCATENATE("'",J13,"'!",(ADDRESS((COUNTIF($J$3:J13,IF(B13<>0,CONCATENATE("Auswertung ",B13,""))))+2,6)))))=FALSE,+INDIRECT(CONCATENATE("'",J13,"'!",(ADDRESS((COUNTIF($J$3:J13,IF(B13<>0,CONCATENATE("Auswertung ",B13,""))))+4,6)))),"") -> 37 | R13: =+IF(ISERROR(+INDIRECT(CONCATENATE("'",J13,"'!",(ADDRESS((COUNTIF($J$3:J13,IF(B13<>0,CONCATENATE("Auswertung ",B13,""))))+2,7)))))=FALSE,+INDIRECT(CONCATENATE("'",J13,"'!",(ADDRESS((COUNTIF($J$3:J13,IF(B13<>0,CONCATENATE("Auswertung ",B13,""))))+4,7)))),"") -> Thor | S13: =+IF(ISERROR(+INDIRECT(CONCATENATE("'",J13,"'!",(ADDRESS((COUNTIF($J$3:J13,IF(B13<>0,CONCATENATE("Auswertung ",B13,""))))+2,10)))))=FALSE,+INDIRECT(CONCATENATE("'",J13,"'!",(ADDRESS((COUNTIF($J$3:J13,IF(B13<>0,CONCATENATE("Auswertung ",B13,""))))+4,8)))),"") -> 74 | T13: =+IF(ISERROR(+INDIRECT(CONCATENATE("'",J13,"'!",(ADDRESS((COUNTIF($J$3:J13,IF(B13<>0,CONCATENATE("Auswertung ",B13,""))))+2,11)))))=FALSE,+INDIRECT(CONCATENATE("'",J13,"'!",(ADDRESS((COUNTIF($J$3:J13,IF(B13<>0,CONCATENATE("Auswertung ",B13,""))))+4,9)))),"") -> Re | U13: =+IF(ISERROR(+INDIRECT(CONCATENATE("'",J13,"'!",(ADDRESS((COUNTIF($J$3:J13,IF(B13<>0,CONCATENATE("Auswertung ",B13,""))))+2,10)))))=FALSE,+INDIRECT(CONCATENATE("'",J13,"'!",(ADDRESS((COUNTIF($J$3:J13,IF(B13<>0,CONCATENATE("Auswertung ",B13,""))))+4,10)))),"") -> 46 | V13: =+IF(ISERROR(+INDIRECT(CONCATENATE("'",J13,"'!",(ADDRESS((COUNTIF($J$3:J13,IF(B13<>0,CONCATENATE("Auswertung ",B13,""))))+2,11)))))=FALSE,+INDIRECT(CONCATENATE("'",J13,"'!",(ADDRESS((COUNTIF($J$3:J13,IF(B13<>0,CONCATENATE("Auswertung ",B13,""))))+4,11)))),"") -> Thor | W13: =+IF(ISERROR(+INDIRECT(CONCATENATE("'",J13,"'!",(ADDRESS((COUNTIF($J$3:J13,IF(D13<>0,CONCATENATE("Auswertung ",D13,""))))+2,12)))))=FALSE,+INDIRECT(CONCATENATE("'",J13,"'!",(ADDRESS((COUNTIF($J$3:J13,IF(D13<>0,CONCATENATE("Auswertung ",B13,""))))+4,12)))),"") -> 55 | X13: =+IF(ISERROR(+INDIRECT(CONCATENATE("'",J13,"'!",(ADDRESS((COUNTIF($J$3:J13,IF(D13<>0,CONCATENATE("Auswertung ",D13,""))))+2,13)))))=FALSE,+INDIRECT(CONCATENATE("'",J13,"'!",(ADDRESS((COUNTIF($J$3:J13,IF(D13<>0,CONCATENATE("Auswertung ",B13,""))))+4,13)))),"") -> Isis | Z13: =+IFERROR(INDIRECT(CONCATENATE("'",J13,"'!",(ADDRESS((COUNTIF($J$3:J13,IF(B13<>0,J13)))+4,16)))),"") -> 1 | AA13: 4.87 | AB13: =+SUM($M$4:M13)/COUNT($M$4:M13)/1000*2 -> 0.174 | AC13: =+IFERROR(INDIRECT(CONCATENATE("'",J13,"'!",(ADDRESS((COUNTIF($J$3:J13,IF(B13<>0,J13)))+4,18)))),"") -> 1 | AD13: 4.927 | AE13: =+IFERROR(INDIRECT(CONCATENATE("'",J13,"'!",(ADDRESS((COUNTIF($J$3:J13,IF(B13<>0,J13)))+4,20)))),"") -> 1 | AF13: 1.072 | AG13: =+IFERROR(INDIRECT(CONCATENATE("'",J13,"'!",(ADDRESS((COUNTIF($J$3:J13,IF(B13<>0,J13)))+4,22)))),"") -> -1 | AH13: -0.872 | AI13: =+IFERROR(INDIRECT(CONCATENATE("'",J13,"'!",(ADDRESS((COUNTIF($J$3:J13,IF(B13<>0,J13)))+4,24)))),"") -> -1 | AJ13: -5.055 | AK13: =+IFERROR(INDIRECT(CONCATENATE("'",J13,"'!",(ADDRESS((COUNTIF($J$3:J13,IF(B13<>0,J13)))+4,26)))),"") -> -1 | AL13: 0.934 | AM13: 10 | AN13: =+SUM(COUNTIF($Z$3:Z13,1),COUNTIF($Z$3:Z13,-1)) -> 10 | AO13: =+SUM($M$4:M13) -> 870 | AP13: 87 | AQ13: =+SUM(COUNTIF($Z$3:Z13,1)) -> 7 | AR13: =+SUM(COUNTIF($Z$3:Z13,-1)) -> 3 | AS13: 4 | AT13: =AN13*(HARMEAN((IF(SUM(COUNTIF($Z$3:Z13,1),COUNTIF($Z$3:Z13,-1))=0,1,SUM(COUNTIF($Z$3:Z13,1),COUNTIF($Z$3:Z13,-1)))),(IF(SUM(COUNTIF($AC$3:AC13,1),COUNTIF($AC$3:AC13,-1))=0,1,SUM(COUNTIF($AC$3:AC13,1),COUNTIF($AC$3:AC13,-1)))),(IF(SUM(COUNTIF($AE$3:AE13,1),COUNTIF($AE$3:AE13,-1))=0,1,SUM(COUNTIF($AE$3:AE13,1),COUNTIF($AE$3:AE13,-1)))),(IF(SUM(COUNTIF($AG$3:AG13,1),COUNTIF($AG$3:AG13,-1))=0,1,SUM(COUNTIF($AG$3:AG13,1),COUNTIF($AG$3:AG13,-1)))),(IF(SUM(COUNTIF($AI$3:AI13,1),COUNTIF($AI$3:AI13,-1))=0,1,SUM(COUNTIF($AI$3:AI13,1),COUNTIF($AI$3:AI13,-1)))),(IF(SUM(COUNTIF($AK$3:AK13,1),COUNTIF($AK$3:AK13,-1))=0,1,SUM(COUNTIF($AK$3:AK13,1),COUNTIF($AK$3:AK13,-1)))))/1000) -> 0.1 | AU13: 4.87 | AW13: =+SUM(COUNTIF($AC$3:AC13,1),COUNTIF($AC$3:AC13,-1)) -> 10 | AX13: =+SUM($O$4:O13) -> 927 | AY13: 92.7 | AZ13: =+SUM(COUNTIF($AC$3:AC13,1)) -> 7 | BA13: =+SUM(COUNTIF($AC$3:AC13,-1)) -> 3 | BB13: 4 | BC13: =AW13*(HARMEAN((IF(SUM(COUNTIF($Z$3:Z13,1),COUNTIF($Z$3:Z13,-1))=0,1,SUM(COUNTIF($Z$3:Z13,1),COUNTIF($Z$3:Z13,-1)))),(IF(SUM(COUNTIF($AC$3:AC13,1),COUNTIF($AC$3:AC13,-1))=0,1,SUM(COUNTIF($AC$3:AC13,1),COUNTIF($AC$3:AC13,-1)))),(IF(SUM(COUNTIF($AE$3:AE13,1),COUNTIF($AE$3:AE13,-1))=0,1,SUM(COUNTIF($AE$3:AE13,1),COUNTIF($AE$3:AE13,-1)))),(IF(SUM(COUNTIF($AG$3:AG13,1),COUNTIF($AG$3:AG13,-1))=0,1,SUM(COUNTIF($AG$3:AG13,1),COUNTIF($AG$3:AG13,-1)))),(IF(SUM(COUNTIF($AI$3:AI13,1),COUNTIF($AI$3:AI13,-1))=0,1,SUM(COUNTIF($AI$3:AI13,1),COUNTIF($AI$3:AI13,-1)))),(IF(SUM(COUNTIF($AK$3:AK13,1),COUNTIF($AK$3:AK13,-1))=0,1,SUM(COUNTIF($AK$3:AK13,1),COUNTIF($AK$3:AK13,-1)))))/1000) -> 0.1 | BD13: 4.927 | BF13: =+SUM(COUNTIF($AE$3:AE13,1),COUNTIF(AE$3:$AE13,-1)) -> 10 | BG13: =+SUM($Q$4:Q13) -> 1072 | BH13: 107.2 | BI13: =+SUM(COUNTIF($AE$3:AE13,1)) -> 5 | BJ13: =+SUM(COUNTIF($AE$3:AE13,-1)) -> 5 | BK13: 0 | BL13: =BF13*(HARMEAN((IF(SUM(COUNTIF($Z$3:Z13,1),COUNTIF($Z$3:Z13,-1))=0,1,SUM(COUNTIF($Z$3:Z13,1),COUNTIF($Z$3:Z13,-1)))),(IF(SUM(COUNTIF($AC$3:AC13,1),COUNTIF($AC$3:AC13,-1))=0,1,SUM(COUNTIF($AC$3:AC13,1),COUNTIF($AC$3:AC13,-1)))),(IF(SUM(COUNTIF($AE$3:AE13,1),COUNTIF($AE$3:AE13,-1))=0,1,SUM(COUNTIF($AE$3:AE13,1),COUNTIF($AE$3:AE13,-1)))),(IF(SUM(COUNTIF($AG$3:AG13,1),COUNTIF($AG$3:AG13,-1))=0,1,SUM(COUNTIF($AG$3:AG13,1),COUNTIF($AG$3:AG13,-1)))),(IF(SUM(COUNTIF($AI$3:AI13,1),COUNTIF($AI$3:AI13,-1))=0,1,SUM(COUNTIF($AI$3:AI13,1),COUNTIF($AI$3:AI13,-1)))),(IF(SUM(COUNTIF($AK$3:AK13,1),COUNTIF($AK$3:AK13,-1))=0,1,SUM(COUNTIF($AK$3:AK13,1),COUNTIF($AK$3:AK13,-1)))))/1000) -> 0.1 | BM13: 1.072 | BO13: =+SUM(COUNTIF($AG$3:AG13,1),COUNTIF($AG$3:AG13,-1)) -> 10 | BP13: =+SUM($S$4:S13) -> 1128 | BQ13: 112.8 | BR13: =+SUM(COUNTIF($AG$3:AG13,1)) -> 4 | BS13: =+SUM(COUNTIF($AG$3:AG13,-1)) -> 6 | BT13: -2 | BU13: =BO13*(HARMEAN((IF(SUM(COUNTIF($Z$3:Z13,1),COUNTIF($Z$3:Z13,-1))=0,1,SUM(COUNTIF($Z$3:Z13,1),COUNTIF($Z$3:Z13,-1)))),(IF(SUM(COUNTIF($AC$3:AC13,1),COUNTIF($AC$3:AC13,-1))=0,1,SUM(COUNTIF($AC$3:AC13,1),COUNTIF($AC$3:AC13,-1)))),(IF(SUM(COUNTIF($AE$3:AE13,1),COUNTIF($AE$3:AE13,-1))=0,1,SUM(COUNTIF($AE$3:AE13,1),COUNTIF($AE$3:AE13,-1)))),(IF(SUM(COUNTIF($AG$3:AG13,1),COUNTIF($AG$3:AG13,-1))=0,1,SUM(COUNTIF($AG$3:AG13,1),COUNTIF($AG$3:AG13,-1)))),(IF(SUM(COUNTIF($AI$3:AI13,1),COUNTIF($AI$3:AI13,-1))=0,1,SUM(COUNTIF($AI$3:AI13,1),COUNTIF($AI$3:AI13,-1)))),(IF(SUM(COUNTIF($AK$3:AK13,1),COUNTIF($AK$3:AK13,-1))=0,1,SUM(COUNTIF($AK$3:AK13,1),COUNTIF($AK$3:AK13,-1)))))/1000) -> 0.1 | BV13: -0.872 | BX13: =+SUM(COUNTIF($AI$3:AI13,1),COUNTIF($AI$3:AI13,-1)) -> 10 | BY13: =+SUM($U$4:U13) -> 945 | BZ13: 94.5 | CA13: =+SUM(COUNTIF($AI$3:AI13,1)) -> 2 | CB13: =+SUM(COUNTIF($AI$3:AI13,-1)) -> 8 | CC13: -6 | CD13: =+BX13*(HARMEAN((IF(SUM(COUNTIF($Z$3:Z13,1),COUNTIF($Z$3:Z13,-1))=0,1,SUM(COUNTIF($Z$3:Z13,1),COUNTIF($Z$3:Z13,-1)))),(IF(SUM(COUNTIF($AC$3:AC13,1),COUNTIF($AC$3:AC13,-1))=0,1,SUM(COUNTIF($AC$3:AC13,1),COUNTIF($AC$3:AC13,-1)))),(IF(SUM(COUNTIF($AE$3:AE13,1),COUNTIF($AE$3:AE13,-1))=0,1,SUM(COUNTIF($AE$3:AE13,1),COUNTIF($AE$3:AE13,-1)))),(IF(SUM(COUNTIF($AG$3:AG13,1),COUNTIF($AG$3:AG13,-1))=0,1,SUM(COUNTIF($AG$3:AG13,1),COUNTIF($AG$3:AG13,-1)))),(IF(SUM(COUNTIF($AI$3:AI13,1),COUNTIF($AI$3:AI13,-1))=0,1,SUM(COUNTIF($AI$3:AI13,1),COUNTIF($AI$3:AI13,-1)))),(IF(SUM(COUNTIF($AK$3:AK13,1),COUNTIF($AK$3:AK13,-1))=0,1,SUM(COUNTIF($AK$3:AK13,1),COUNTIF($AK$3:AK13,-1)))))/1000) -> 0.1 | CE13: -5.055 | CG13: =+SUM(COUNTIF($AK$3:AK13,1),COUNTIF($AK$3:AK13,-1)) -> 10 | CH13: =+SUM($W$4:W13) -> 934 | CI13: 93.4 | CJ13: =+SUM(COUNTIF($AK$3:AK13,1)) -> 5 | CK13: =+SUM(COUNTIF($AK$3:AK13,-1)) -> 5 | CL13: 0 | CM13: =+CG13*(HARMEAN((IF(SUM(COUNTIF($Z$3:Z13,1),COUNTIF($Z$3:Z13,-1))=0,1,SUM(COUNTIF($Z$3:Z13,1),COUNTIF($Z$3:Z13,-1)))),(IF(SUM(COUNTIF($AC$3:AC13,1),COUNTIF($AC$3:AC13,-1))=0,1,SUM(COUNTIF($AC$3:AC13,1),COUNTIF($AC$3:AC13,-1)))),(IF(SUM(COUNTIF($AE$3:AE13,1),COUNTIF($AE$3:AE13,-1))=0,1,SUM(COUNTIF($AE$3:AE13,1),COUNTIF($AE$3:AE13,-1)))),(IF(SUM(COUNTIF($AG$3:AG13,1),COUNTIF($AG$3:AG13,-1))=0,1,SUM(COUNTIF($AG$3:AG13,1),COUNTIF($AG$3:AG13,-1)))),(IF(SUM(COUNTIF($AI$3:AI13,1),COUNTIF($AI$3:AI13,-1))=0,1,SUM(COUNTIF($AI$3:AI13,1),COUNTIF($AI$3:AI13,-1)))),(IF(SUM(COUNTIF($AK$3:AK13,1),COUNTIF($AK$3:AK13,-1))=0,1,SUM(COUNTIF($AK$3:AK13,1),COUNTIF($AK$3:AK13,-1)))))/1000) -> 0.1 | CN13: 0.934
A14: 11 | B14: RA | D14: =+IFERROR(INDEX('Auswertung AoE II'!$AE:$AE,MATCH(A14,'Auswertung AoE II'!$AD:$AD,0)),"") ->  | E14: =+IFERROR(INDEX('Auswertung AoE III'!$AE:$AE,MATCH(A14,'Auswertung AoE III'!$AD:$AD,0)),"") ->  | F14: =+IFERROR(INDEX('Auswertung AoM'!$AE:$AE,MATCH(A14,'Auswertung AoM'!$AD:$AD,0)),"") ->  | G14: =+IFERROR(INDEX('Auswertung RA'!$AE:$AE,MATCH(A14,'Auswertung RA'!$AD:$AD,0)),"") -> RA | H14: =+IFERROR(INDEX('Auswertung Yuri'!$AE:$AE,MATCH(A14,'Auswertung Yuri'!$AD:$AD,0)),"") ->  | I14: =+IFERROR(INDEX('Auswertung Generals'!$AE:$AE,MATCH(A14,'Auswertung Generals'!$AD:$AD,0)),"") ->  | J14: Auswertung RA | M14: =+IF(ISERROR(+INDIRECT(CONCATENATE("'",J14,"'!",(ADDRESS((COUNTIF($J$3:J14,IF(B14<>0,CONCATENATE("Auswertung ",B14,""))))+2,2)))))=FALSE,+INDIRECT(CONCATENATE("'",J14,"'!",(ADDRESS((COUNTIF($J$3:J14,IF(B14<>0,CONCATENATE("Auswertung ",B14,""))))+4,2)))),"") -> 105 | N14: =IF(ISERROR(+INDIRECT(CONCATENATE("'",J14,"'!",(ADDRESS((COUNTIF($J$3:J14,IF(B14<>0,CONCATENATE("Auswertung ",B14,""))))+2,2+1)))))=FALSE,+INDIRECT(CONCATENATE("'",J14,"'!",(ADDRESS((COUNTIF($J$3:J14,IF(B14<>0,CONCATENATE("Auswertung ",B14,""))))+4,2+1)))),"") -> A | O14: =+IF(ISERROR(+INDIRECT(CONCATENATE("'",J14,"'!",(ADDRESS((COUNTIF($J$3:J14,IF(B14<>0,CONCATENATE("Auswertung ",B14,""))))+2,4)))))=FALSE,+INDIRECT(CONCATENATE("'",J14,"'!",(ADDRESS((COUNTIF($J$3:J14,IF(B14<>0,CONCATENATE("Auswertung ",B14,""))))+4,4)))),"") -> 99 | P14: =+IF(ISERROR(+INDIRECT(CONCATENATE("'",J14,"'!",(ADDRESS((COUNTIF($J$3:J14,IF(B14<>0,CONCATENATE("Auswertung ",B14,""))))+2,5)))))=FALSE,+INDIRECT(CONCATENATE("'",J14,"'!",(ADDRESS((COUNTIF($J$3:J14,IF(B14<>0,CONCATENATE("Auswertung ",B14,""))))+4,5)))),"") -> S | Q14: =+IF(ISERROR(+INDIRECT(CONCATENATE("'",J14,"'!",(ADDRESS((COUNTIF($J$3:J14,IF(B14<>0,CONCATENATE("Auswertung ",B14,""))))+2,6)))))=FALSE,+INDIRECT(CONCATENATE("'",J14,"'!",(ADDRESS((COUNTIF($J$3:J14,IF(B14<>0,CONCATENATE("Auswertung ",B14,""))))+4,6)))),"") -> 74 | R14: =+IF(ISERROR(+INDIRECT(CONCATENATE("'",J14,"'!",(ADDRESS((COUNTIF($J$3:J14,IF(B14<>0,CONCATENATE("Auswertung ",B14,""))))+2,7)))))=FALSE,+INDIRECT(CONCATENATE("'",J14,"'!",(ADDRESS((COUNTIF($J$3:J14,IF(B14<>0,CONCATENATE("Auswertung ",B14,""))))+4,7)))),"") -> S | S14: =+IF(ISERROR(+INDIRECT(CONCATENATE("'",J14,"'!",(ADDRESS((COUNTIF($J$3:J14,IF(B14<>0,CONCATENATE("Auswertung ",B14,""))))+2,10)))))=FALSE,+INDIRECT(CONCATENATE("'",J14,"'!",(ADDRESS((COUNTIF($J$3:J14,IF(B14<>0,CONCATENATE("Auswertung ",B14,""))))+4,8)))),"") -> 69 | T14: =+IF(ISERROR(+INDIRECT(CONCATENATE("'",J14,"'!",(ADDRESS((COUNTIF($J$3:J14,IF(B14<>0,CONCATENATE("Auswertung ",B14,""))))+2,11)))))=FALSE,+INDIRECT(CONCATENATE("'",J14,"'!",(ADDRESS((COUNTIF($J$3:J14,IF(B14<>0,CONCATENATE("Auswertung ",B14,""))))+4,9)))),"") -> A | U14: =+IF(ISERROR(+INDIRECT(CONCATENATE("'",J14,"'!",(ADDRESS((COUNTIF($J$3:J14,IF(B14<>0,CONCATENATE("Auswertung ",B14,""))))+2,10)))))=FALSE,+INDIRECT(CONCATENATE("'",J14,"'!",(ADDRESS((COUNTIF($J$3:J14,IF(B14<>0,CONCATENATE("Auswertung ",B14,""))))+4,10)))),"") -> 27 | V14: =+IF(ISERROR(+INDIRECT(CONCATENATE("'",J14,"'!",(ADDRESS((COUNTIF($J$3:J14,IF(B14<>0,CONCATENATE("Auswertung ",B14,""))))+2,11)))))=FALSE,+INDIRECT(CONCATENATE("'",J14,"'!",(ADDRESS((COUNTIF($J$3:J14,IF(B14<>0,CONCATENATE("Auswertung ",B14,""))))+4,11)))),"") -> S | W14: =+IF(ISERROR(+INDIRECT(CONCATENATE("'",J14,"'!",(ADDRESS((COUNTIF($J$3:J14,IF(D14<>0,CONCATENATE("Auswertung ",D14,""))))+2,12)))))=FALSE,+INDIRECT(CONCATENATE("'",J14,"'!",(ADDRESS((COUNTIF($J$3:J14,IF(D14<>0,CONCATENATE("Auswertung ",B14,""))))+4,12)))),"") -> 73 | X14: =+IF(ISERROR(+INDIRECT(CONCATENATE("'",J14,"'!",(ADDRESS((COUNTIF($J$3:J14,IF(D14<>0,CONCATENATE("Auswertung ",D14,""))))+2,13)))))=FALSE,+INDIRECT(CONCATENATE("'",J14,"'!",(ADDRESS((COUNTIF($J$3:J14,IF(D14<>0,CONCATENATE("Auswertung ",B14,""))))+4,13)))),"") -> S | Z14: =+IFERROR(INDIRECT(CONCATENATE("'",J14,"'!",(ADDRESS((COUNTIF($J$3:J14,IF(B14<>0,J14)))+4,16)))),"") -> -1 | AA14: 4.373 | AB14: =+SUM($M$4:M14)/COUNT($M$4:M14)/1000*2 -> 0.1772727273 | AC14: =+IFERROR(INDIRECT(CONCATENATE("'",J14,"'!",(ADDRESS((COUNTIF($J$3:J14,IF(B14<>0,J14)))+4,18)))),"") -> 1 | AD14: 6.629 | AE14: =+IFERROR(INDIRECT(CONCATENATE("'",J14,"'!",(ADDRESS((COUNTIF($J$3:J14,IF(B14<>0,J14)))+4,20)))),"") -> -1 | AF14: 0.161 | AG14: =+IFERROR(INDIRECT(CONCATENATE("'",J14,"'!",(ADDRESS((COUNTIF($J$3:J14,IF(B14<>0,J14)))+4,22)))),"") -> 1 | AH14: 0.217 | AI14: =+IFERROR(INDIRECT(CONCATENATE("'",J14,"'!",(ADDRESS((COUNTIF($J$3:J14,IF(B14<>0,J14)))+4,24)))),"") -> -1 | AJ14: -6.631 | AK14: =+IFERROR(INDIRECT(CONCATENATE("'",J14,"'!",(ADDRESS((COUNTIF($J$3:J14,IF(B14<>0,J14)))+4,26)))),"") -> 1 | AL14: 2.208 | AM14: 11 | AN14: =+SUM(COUNTIF($Z$3:Z14,1),COUNTIF($Z$3:Z14,-1)) -> 11 | AO14: =+SUM($M$4:M14) -> 975 | AP14: 88.63636364 | AQ14: =+SUM(COUNTIF($Z$3:Z14,1)) -> 7 | AR14: =+SUM(COUNTIF($Z$3:Z14,-1)) -> 4 | AS14: 3 | AT14: =AN14*(HARMEAN((IF(SUM(COUNTIF($Z$3:Z14,1),COUNTIF($Z$3:Z14,-1))=0,1,SUM(COUNTIF($Z$3:Z14,1),COUNTIF($Z$3:Z14,-1)))),(IF(SUM(COUNTIF($AC$3:AC14,1),COUNTIF($AC$3:AC14,-1))=0,1,SUM(COUNTIF($AC$3:AC14,1),COUNTIF($AC$3:AC14,-1)))),(IF(SUM(COUNTIF($AE$3:AE14,1),COUNTIF($AE$3:AE14,-1))=0,1,SUM(COUNTIF($AE$3:AE14,1),COUNTIF($AE$3:AE14,-1)))),(IF(SUM(COUNTIF($AG$3:AG14,1),COUNTIF($AG$3:AG14,-1))=0,1,SUM(COUNTIF($AG$3:AG14,1),COUNTIF($AG$3:AG14,-1)))),(IF(SUM(COUNTIF($AI$3:AI14,1),COUNTIF($AI$3:AI14,-1))=0,1,SUM(COUNTIF($AI$3:AI14,1),COUNTIF($AI$3:AI14,-1)))),(IF(SUM(COUNTIF($AK$3:AK14,1),COUNTIF($AK$3:AK14,-1))=0,1,SUM(COUNTIF($AK$3:AK14,1),COUNTIF($AK$3:AK14,-1)))))/1000) -> 0.121 | AU14: 4.373 | AW14: =+SUM(COUNTIF($AC$3:AC14,1),COUNTIF($AC$3:AC14,-1)) -> 11 | AX14: =+SUM($O$4:O14) -> 1026 | AY14: 93.27272727 | AZ14: =+SUM(COUNTIF($AC$3:AC14,1)) -> 8 | BA14: =+SUM(COUNTIF($AC$3:AC14,-1)) -> 3 | BB14: 5 | BC14: =AW14*(HARMEAN((IF(SUM(COUNTIF($Z$3:Z14,1),COUNTIF($Z$3:Z14,-1))=0,1,SUM(COUNTIF($Z$3:Z14,1),COUNTIF($Z$3:Z14,-1)))),(IF(SUM(COUNTIF($AC$3:AC14,1),COUNTIF($AC$3:AC14,-1))=0,1,SUM(COUNTIF($AC$3:AC14,1),COUNTIF($AC$3:AC14,-1)))),(IF(SUM(COUNTIF($AE$3:AE14,1),COUNTIF($AE$3:AE14,-1))=0,1,SUM(COUNTIF($AE$3:AE14,1),COUNTIF($AE$3:AE14,-1)))),(IF(SUM(COUNTIF($AG$3:AG14,1),COUNTIF($AG$3:AG14,-1))=0,1,SUM(COUNTIF($AG$3:AG14,1),COUNTIF($AG$3:AG14,-1)))),(IF(SUM(COUNTIF($AI$3:AI14,1),COUNTIF($AI$3:AI14,-1))=0,1,SUM(COUNTIF($AI$3:AI14,1),COUNTIF($AI$3:AI14,-1)))),(IF(SUM(COUNTIF($AK$3:AK14,1),COUNTIF($AK$3:AK14,-1))=0,1,SUM(COUNTIF($AK$3:AK14,1),COUNTIF($AK$3:AK14,-1)))))/1000) -> 0.121 | BD14: 6.629 | BF14: =+SUM(COUNTIF($AE$3:AE14,1),COUNTIF(AE$3:$AE14,-1)) -> 11 | BG14: =+SUM($Q$4:Q14) -> 1146 | BH14: 104.1818182 | BI14: =+SUM(COUNTIF($AE$3:AE14,1)) -> 5 | BJ14: =+SUM(COUNTIF($AE$3:AE14,-1)) -> 6 | BK14: -1 | BL14: =BF14*(HARMEAN((IF(SUM(COUNTIF($Z$3:Z14,1),COUNTIF($Z$3:Z14,-1))=0,1,SUM(COUNTIF($Z$3:Z14,1),COUNTIF($Z$3:Z14,-1)))),(IF(SUM(COUNTIF($AC$3:AC14,1),COUNTIF($AC$3:AC14,-1))=0,1,SUM(COUNTIF($AC$3:AC14,1),COUNTIF($AC$3:AC14,-1)))),(IF(SUM(COUNTIF($AE$3:AE14,1),COUNTIF($AE$3:AE14,-1))=0,1,SUM(COUNTIF($AE$3:AE14,1),COUNTIF($AE$3:AE14,-1)))),(IF(SUM(COUNTIF($AG$3:AG14,1),COUNTIF($AG$3:AG14,-1))=0,1,SUM(COUNTIF($AG$3:AG14,1),COUNTIF($AG$3:AG14,-1)))),(IF(SUM(COUNTIF($AI$3:AI14,1),COUNTIF($AI$3:AI14,-1))=0,1,SUM(COUNTIF($AI$3:AI14,1),COUNTIF($AI$3:AI14,-1)))),(IF(SUM(COUNTIF($AK$3:AK14,1),COUNTIF($AK$3:AK14,-1))=0,1,SUM(COUNTIF($AK$3:AK14,1),COUNTIF($AK$3:AK14,-1)))))/1000) -> 0.121 | BM14: 0.161 | BO14: =+SUM(COUNTIF($AG$3:AG14,1),COUNTIF($AG$3:AG14,-1)) -> 11 | BP14: =+SUM($S$4:S14) -> 1197 | BQ14: 108.8181818 | BR14: =+SUM(COUNTIF($AG$3:AG14,1)) -> 5 | BS14: =+SUM(COUNTIF($AG$3:AG14,-1)) -> 6 | BT14: -1 | BU14: =BO14*(HARMEAN((IF(SUM(COUNTIF($Z$3:Z14,1),COUNTIF($Z$3:Z14,-1))=0,1,SUM(COUNTIF($Z$3:Z14,1),COUNTIF($Z$3:Z14,-1)))),(IF(SUM(COUNTIF($AC$3:AC14,1),COUNTIF($AC$3:AC14,-1))=0,1,SUM(COUNTIF($AC$3:AC14,1),COUNTIF($AC$3:AC14,-1)))),(IF(SUM(COUNTIF($AE$3:AE14,1),COUNTIF($AE$3:AE14,-1))=0,1,SUM(COUNTIF($AE$3:AE14,1),COUNTIF($AE$3:AE14,-1)))),(IF(SUM(COUNTIF($AG$3:AG14,1),COUNTIF($AG$3:AG14,-1))=0,1,SUM(COUNTIF($AG$3:AG14,1),COUNTIF($AG$3:AG14,-1)))),(IF(SUM(COUNTIF($AI$3:AI14,1),COUNTIF($AI$3:AI14,-1))=0,1,SUM(COUNTIF($AI$3:AI14,1),COUNTIF($AI$3:AI14,-1)))),(IF(SUM(COUNTIF($AK$3:AK14,1),COUNTIF($AK$3:AK14,-1))=0,1,SUM(COUNTIF($AK$3:AK14,1),COUNTIF($AK$3:AK14,-1)))))/1000) -> 0.121 | BV14: 0.217 | BX14: =+SUM(COUNTIF($AI$3:AI14,1),COUNTIF($AI$3:AI14,-1)) -> 11 | BY14: =+SUM($U$4:U14) -> 972 | BZ14: 88.36363636 | CA14: =+SUM(COUNTIF($AI$3:AI14,1)) -> 2 | CB14: =+SUM(COUNTIF($AI$3:AI14,-1)) -> 9 | CC14: -7 | CD14: =+BX14*(HARMEAN((IF(SUM(COUNTIF($Z$3:Z14,1),COUNTIF($Z$3:Z14,-1))=0,1,SUM(COUNTIF($Z$3:Z14,1),COUNTIF($Z$3:Z14,-1)))),(IF(SUM(COUNTIF($AC$3:AC14,1),COUNTIF($AC$3:AC14,-1))=0,1,SUM(COUNTIF($AC$3:AC14,1),COUNTIF($AC$3:AC14,-1)))),(IF(SUM(COUNTIF($AE$3:AE14,1),COUNTIF($AE$3:AE14,-1))=0,1,SUM(COUNTIF($AE$3:AE14,1),COUNTIF($AE$3:AE14,-1)))),(IF(SUM(COUNTIF($AG$3:AG14,1),COUNTIF($AG$3:AG14,-1))=0,1,SUM(COUNTIF($AG$3:AG14,1),COUNTIF($AG$3:AG14,-1)))),(IF(SUM(COUNTIF($AI$3:AI14,1),COUNTIF($AI$3:AI14,-1))=0,1,SUM(COUNTIF($AI$3:AI14,1),COUNTIF($AI$3:AI14,-1)))),(IF(SUM(COUNTIF($AK$3:AK14,1),COUNTIF($AK$3:AK14,-1))=0,1,SUM(COUNTIF($AK$3:AK14,1),COUNTIF($AK$3:AK14,-1)))))/1000) -> 0.121 | CE14: -6.631 | CG14: =+SUM(COUNTIF($AK$3:AK14,1),COUNTIF($AK$3:AK14,-1)) -> 11 | CH14: =+SUM($W$4:W14) -> 1007 | CI14: 91.54545455 | CJ14: =+SUM(COUNTIF($AK$3:AK14,1)) -> 6 | CK14: =+SUM(COUNTIF($AK$3:AK14,-1)) -> 5 | CL14: 1 | CM14: =+CG14*(HARMEAN((IF(SUM(COUNTIF($Z$3:Z14,1),COUNTIF($Z$3:Z14,-1))=0,1,SUM(COUNTIF($Z$3:Z14,1),COUNTIF($Z$3:Z14,-1)))),(IF(SUM(COUNTIF($AC$3:AC14,1),COUNTIF($AC$3:AC14,-1))=0,1,SUM(COUNTIF($AC$3:AC14,1),COUNTIF($AC$3:AC14,-1)))),(IF(SUM(COUNTIF($AE$3:AE14,1),COUNTIF($AE$3:AE14,-1))=0,1,SUM(COUNTIF($AE$3:AE14,1),COUNTIF($AE$3:AE14,-1)))),(IF(SUM(COUNTIF($AG$3:AG14,1),COUNTIF($AG$3:AG14,-1))=0,1,SUM(COUNTIF($AG$3:AG14,1),COUNTIF($AG$3:AG14,-1)))),(IF(SUM(COUNTIF($AI$3:AI14,1),COUNTIF($AI$3:AI14,-1))=0,1,SUM(COUNTIF($AI$3:AI14,1),COUNTIF($AI$3:AI14,-1)))),(IF(SUM(COUNTIF($AK$3:AK14,1),COUNTIF($AK$3:AK14,-1))=0,1,SUM(COUNTIF($AK$3:AK14,1),COUNTIF($AK$3:AK14,-1)))))/1000) -> 0.121 | CN14: 2.208
A15: 12 | B15: Generals | D15: =+IFERROR(INDEX('Auswertung AoE II'!$AE:$AE,MATCH(A15,'Auswertung AoE II'!$AD:$AD,0)),"") ->  | E15: =+IFERROR(INDEX('Auswertung AoE III'!$AE:$AE,MATCH(A15,'Auswertung AoE III'!$AD:$AD,0)),"") ->  | F15: =+IFERROR(INDEX('Auswertung AoM'!$AE:$AE,MATCH(A15,'Auswertung AoM'!$AD:$AD,0)),"") ->  | G15: =+IFERROR(INDEX('Auswertung RA'!$AE:$AE,MATCH(A15,'Auswertung RA'!$AD:$AD,0)),"") ->  | H15: =+IFERROR(INDEX('Auswertung Yuri'!$AE:$AE,MATCH(A15,'Auswertung Yuri'!$AD:$AD,0)),"") ->  | I15: =+IFERROR(INDEX('Auswertung Generals'!$AE:$AE,MATCH(A15,'Auswertung Generals'!$AD:$AD,0)),"") -> Generals | J15: Auswertung Generals | M15: =+IF(ISERROR(+INDIRECT(CONCATENATE("'",J15,"'!",(ADDRESS((COUNTIF($J$3:J15,IF(B15<>0,CONCATENATE("Auswertung ",B15,""))))+2,2)))))=FALSE,+INDIRECT(CONCATENATE("'",J15,"'!",(ADDRESS((COUNTIF($J$3:J15,IF(B15<>0,CONCATENATE("Auswertung ",B15,""))))+4,2)))),"") -> 86 | N15: =IF(ISERROR(+INDIRECT(CONCATENATE("'",J15,"'!",(ADDRESS((COUNTIF($J$3:J15,IF(B15<>0,CONCATENATE("Auswertung ",B15,""))))+2,2+1)))))=FALSE,+INDIRECT(CONCATENATE("'",J15,"'!",(ADDRESS((COUNTIF($J$3:J15,IF(B15<>0,CONCATENATE("Auswertung ",B15,""))))+4,2+1)))),"") -> WA | O15: =+IF(ISERROR(+INDIRECT(CONCATENATE("'",J15,"'!",(ADDRESS((COUNTIF($J$3:J15,IF(B15<>0,CONCATENATE("Auswertung ",B15,""))))+2,4)))))=FALSE,+INDIRECT(CONCATENATE("'",J15,"'!",(ADDRESS((COUNTIF($J$3:J15,IF(B15<>0,CONCATENATE("Auswertung ",B15,""))))+4,4)))),"") -> 83 | P15: =+IF(ISERROR(+INDIRECT(CONCATENATE("'",J15,"'!",(ADDRESS((COUNTIF($J$3:J15,IF(B15<>0,CONCATENATE("Auswertung ",B15,""))))+2,5)))))=FALSE,+INDIRECT(CONCATENATE("'",J15,"'!",(ADDRESS((COUNTIF($J$3:J15,IF(B15<>0,CONCATENATE("Auswertung ",B15,""))))+4,5)))),"") -> WA | Q15: =+IF(ISERROR(+INDIRECT(CONCATENATE("'",J15,"'!",(ADDRESS((COUNTIF($J$3:J15,IF(B15<>0,CONCATENATE("Auswertung ",B15,""))))+2,6)))))=FALSE,+INDIRECT(CONCATENATE("'",J15,"'!",(ADDRESS((COUNTIF($J$3:J15,IF(B15<>0,CONCATENATE("Auswertung ",B15,""))))+4,6)))),"") -> 34 | R15: =+IF(ISERROR(+INDIRECT(CONCATENATE("'",J15,"'!",(ADDRESS((COUNTIF($J$3:J15,IF(B15<>0,CONCATENATE("Auswertung ",B15,""))))+2,7)))))=FALSE,+INDIRECT(CONCATENATE("'",J15,"'!",(ADDRESS((COUNTIF($J$3:J15,IF(B15<>0,CONCATENATE("Auswertung ",B15,""))))+4,7)))),"") -> AP | S15: =+IF(ISERROR(+INDIRECT(CONCATENATE("'",J15,"'!",(ADDRESS((COUNTIF($J$3:J15,IF(B15<>0,CONCATENATE("Auswertung ",B15,""))))+2,10)))))=FALSE,+INDIRECT(CONCATENATE("'",J15,"'!",(ADDRESS((COUNTIF($J$3:J15,IF(B15<>0,CONCATENATE("Auswertung ",B15,""))))+4,8)))),"") -> 115 | T15: =+IF(ISERROR(+INDIRECT(CONCATENATE("'",J15,"'!",(ADDRESS((COUNTIF($J$3:J15,IF(B15<>0,CONCATENATE("Auswertung ",B15,""))))+2,11)))))=FALSE,+INDIRECT(CONCATENATE("'",J15,"'!",(ADDRESS((COUNTIF($J$3:J15,IF(B15<>0,CONCATENATE("Auswertung ",B15,""))))+4,9)))),"") -> AP | U15: =+IF(ISERROR(+INDIRECT(CONCATENATE("'",J15,"'!",(ADDRESS((COUNTIF($J$3:J15,IF(B15<>0,CONCATENATE("Auswertung ",B15,""))))+2,10)))))=FALSE,+INDIRECT(CONCATENATE("'",J15,"'!",(ADDRESS((COUNTIF($J$3:J15,IF(B15<>0,CONCATENATE("Auswertung ",B15,""))))+4,10)))),"") -> 44 | V15: =+IF(ISERROR(+INDIRECT(CONCATENATE("'",J15,"'!",(ADDRESS((COUNTIF($J$3:J15,IF(B15<>0,CONCATENATE("Auswertung ",B15,""))))+2,11)))))=FALSE,+INDIRECT(CONCATENATE("'",J15,"'!",(ADDRESS((COUNTIF($J$3:J15,IF(B15<>0,CONCATENATE("Auswertung ",B15,""))))+4,11)))),"") -> IBG | W15: =+IF(ISERROR(+INDIRECT(CONCATENATE("'",J15,"'!",(ADDRESS((COUNTIF($J$3:J15,IF(D15<>0,CONCATENATE("Auswertung ",D15,""))))+2,12)))))=FALSE,+INDIRECT(CONCATENATE("'",J15,"'!",(ADDRESS((COUNTIF($J$3:J15,IF(D15<>0,CONCATENATE("Auswertung ",B15,""))))+4,12)))),"") -> 8 | X15: =+IF(ISERROR(+INDIRECT(CONCATENATE("'",J15,"'!",(ADDRESS((COUNTIF($J$3:J15,IF(D15<>0,CONCATENATE("Auswertung ",D15,""))))+2,13)))))=FALSE,+INDIRECT(CONCATENATE("'",J15,"'!",(ADDRESS((COUNTIF($J$3:J15,IF(D15<>0,CONCATENATE("Auswertung ",B15,""))))+4,13)))),"") -> IBG | Z15: =+IFERROR(INDIRECT(CONCATENATE("'",J15,"'!",(ADDRESS((COUNTIF($J$3:J15,IF(B15<>0,J15)))+4,16)))),"") -> -1 | AA15: 3.673 | AB15: =+SUM($M$4:M15)/COUNT($M$4:M15)/1000*2 -> 0.1768333333 | AC15: =+IFERROR(INDIRECT(CONCATENATE("'",J15,"'!",(ADDRESS((COUNTIF($J$3:J15,IF(B15<>0,J15)))+4,18)))),"") -> 1 | AD15: 8.531 | AE15: =+IFERROR(INDIRECT(CONCATENATE("'",J15,"'!",(ADDRESS((COUNTIF($J$3:J15,IF(B15<>0,J15)))+4,20)))),"") -> -1 | AF15: -0.984 | AG15: =+IFERROR(INDIRECT(CONCATENATE("'",J15,"'!",(ADDRESS((COUNTIF($J$3:J15,IF(B15<>0,J15)))+4,22)))),"") -> 1 | AH15: 1.574 | AI15: =+IFERROR(INDIRECT(CONCATENATE("'",J15,"'!",(ADDRESS((COUNTIF($J$3:J15,IF(B15<>0,J15)))+4,24)))),"") -> 1 | AJ15: -5.981 | AK15: =+IFERROR(INDIRECT(CONCATENATE("'",J15,"'!",(ADDRESS((COUNTIF($J$3:J15,IF(B15<>0,J15)))+4,26)))),"") -> -1 | AL15: 1.218 | AM15: 12 | AN15: =+SUM(COUNTIF($Z$3:Z15,1),COUNTIF($Z$3:Z15,-1)) -> 12 | AO15: =+SUM($M$4:M15) -> 1061 | AP15: 88.41666667 | AQ15: =+SUM(COUNTIF($Z$3:Z15,1)) -> 7 | AR15: =+SUM(COUNTIF($Z$3:Z15,-1)) -> 5 | AS15: 2 | AT15: =AN15*(HARMEAN((IF(SUM(COUNTIF($Z$3:Z15,1),COUNTIF($Z$3:Z15,-1))=0,1,SUM(COUNTIF($Z$3:Z15,1),COUNTIF($Z$3:Z15,-1)))),(IF(SUM(COUNTIF($AC$3:AC15,1),COUNTIF($AC$3:AC15,-1))=0,1,SUM(COUNTIF($AC$3:AC15,1),COUNTIF($AC$3:AC15,-1)))),(IF(SUM(COUNTIF($AE$3:AE15,1),COUNTIF($AE$3:AE15,-1))=0,1,SUM(COUNTIF($AE$3:AE15,1),COUNTIF($AE$3:AE15,-1)))),(IF(SUM(COUNTIF($AG$3:AG15,1),COUNTIF($AG$3:AG15,-1))=0,1,SUM(COUNTIF($AG$3:AG15,1),COUNTIF($AG$3:AG15,-1)))),(IF(SUM(COUNTIF($AI$3:AI15,1),COUNTIF($AI$3:AI15,-1))=0,1,SUM(COUNTIF($AI$3:AI15,1),COUNTIF($AI$3:AI15,-1)))),(IF(SUM(COUNTIF($AK$3:AK15,1),COUNTIF($AK$3:AK15,-1))=0,1,SUM(COUNTIF($AK$3:AK15,1),COUNTIF($AK$3:AK15,-1)))))/1000) -> 0.144 | AU15: 3.673 | AW15: =+SUM(COUNTIF($AC$3:AC15,1),COUNTIF($AC$3:AC15,-1)) -> 12 | AX15: =+SUM($O$4:O15) -> 1109 | AY15: 92.41666667 | AZ15: =+SUM(COUNTIF($AC$3:AC15,1)) -> 9 | BA15: =+SUM(COUNTIF($AC$3:AC15,-1)) -> 3 | BB15: 6 | BC15: =AW15*(HARMEAN((IF(SUM(COUNTIF($Z$3:Z15,1),COUNTIF($Z$3:Z15,-1))=0,1,SUM(COUNTIF($Z$3:Z15,1),COUNTIF($Z$3:Z15,-1)))),(IF(SUM(COUNTIF($AC$3:AC15,1),COUNTIF($AC$3:AC15,-1))=0,1,SUM(COUNTIF($AC$3:AC15,1),COUNTIF($AC$3:AC15,-1)))),(IF(SUM(COUNTIF($AE$3:AE15,1),COUNTIF($AE$3:AE15,-1))=0,1,SUM(COUNTIF($AE$3:AE15,1),COUNTIF($AE$3:AE15,-1)))),(IF(SUM(COUNTIF($AG$3:AG15,1),COUNTIF($AG$3:AG15,-1))=0,1,SUM(COUNTIF($AG$3:AG15,1),COUNTIF($AG$3:AG15,-1)))),(IF(SUM(COUNTIF($AI$3:AI15,1),COUNTIF($AI$3:AI15,-1))=0,1,SUM(COUNTIF($AI$3:AI15,1),COUNTIF($AI$3:AI15,-1)))),(IF(SUM(COUNTIF($AK$3:AK15,1),COUNTIF($AK$3:AK15,-1))=0,1,SUM(COUNTIF($AK$3:AK15,1),COUNTIF($AK$3:AK15,-1)))))/1000) -> 0.144 | BD15: 8.531 | BF15: =+SUM(COUNTIF($AE$3:AE15,1),COUNTIF(AE$3:$AE15,-1)) -> 12 | BG15: =+SUM($Q$4:Q15) -> 1180 | BH15: 98.33333333 | BI15: =+SUM(COUNTIF($AE$3:AE15,1)) -> 5 | BJ15: =+SUM(COUNTIF($AE$3:AE15,-1)) -> 7 | BK15: -2 | BL15: =BF15*(HARMEAN((IF(SUM(COUNTIF($Z$3:Z15,1),COUNTIF($Z$3:Z15,-1))=0,1,SUM(COUNTIF($Z$3:Z15,1),COUNTIF($Z$3:Z15,-1)))),(IF(SUM(COUNTIF($AC$3:AC15,1),COUNTIF($AC$3:AC15,-1))=0,1,SUM(COUNTIF($AC$3:AC15,1),COUNTIF($AC$3:AC15,-1)))),(IF(SUM(COUNTIF($AE$3:AE15,1),COUNTIF($AE$3:AE15,-1))=0,1,SUM(COUNTIF($AE$3:AE15,1),COUNTIF($AE$3:AE15,-1)))),(IF(SUM(COUNTIF($AG$3:AG15,1),COUNTIF($AG$3:AG15,-1))=0,1,SUM(COUNTIF($AG$3:AG15,1),COUNTIF($AG$3:AG15,-1)))),(IF(SUM(COUNTIF($AI$3:AI15,1),COUNTIF($AI$3:AI15,-1))=0,1,SUM(COUNTIF($AI$3:AI15,1),COUNTIF($AI$3:AI15,-1)))),(IF(SUM(COUNTIF($AK$3:AK15,1),COUNTIF($AK$3:AK15,-1))=0,1,SUM(COUNTIF($AK$3:AK15,1),COUNTIF($AK$3:AK15,-1)))))/1000) -> 0.144 | BM15: -0.984 | BO15: =+SUM(COUNTIF($AG$3:AG15,1),COUNTIF($AG$3:AG15,-1)) -> 12 | BP15: =+SUM($S$4:S15) -> 1312 | BQ15: 109.3333333 | BR15: =+SUM(COUNTIF($AG$3:AG15,1)) -> 6 | BS15: =+SUM(COUNTIF($AG$3:AG15,-1)) -> 6 | BT15: 0 | BU15: =BO15*(HARMEAN((IF(SUM(COUNTIF($Z$3:Z15,1),COUNTIF($Z$3:Z15,-1))=0,1,SUM(COUNTIF($Z$3:Z15,1),COUNTIF($Z$3:Z15,-1)))),(IF(SUM(COUNTIF($AC$3:AC15,1),COUNTIF($AC$3:AC15,-1))=0,1,SUM(COUNTIF($AC$3:AC15,1),COUNTIF($AC$3:AC15,-1)))),(IF(SUM(COUNTIF($AE$3:AE15,1),COUNTIF($AE$3:AE15,-1))=0,1,SUM(COUNTIF($AE$3:AE15,1),COUNTIF($AE$3:AE15,-1)))),(IF(SUM(COUNTIF($AG$3:AG15,1),COUNTIF($AG$3:AG15,-1))=0,1,SUM(COUNTIF($AG$3:AG15,1),COUNTIF($AG$3:AG15,-1)))),(IF(SUM(COUNTIF($AI$3:AI15,1),COUNTIF($AI$3:AI15,-1))=0,1,SUM(COUNTIF($AI$3:AI15,1),COUNTIF($AI$3:AI15,-1)))),(IF(SUM(COUNTIF($AK$3:AK15,1),COUNTIF($AK$3:AK15,-1))=0,1,SUM(COUNTIF($AK$3:AK15,1),COUNTIF($AK$3:AK15,-1)))))/1000) -> 0.144 | BV15: 1.574 | BX15: =+SUM(COUNTIF($AI$3:AI15,1),COUNTIF($AI$3:AI15,-1)) -> 12 | BY15: =+SUM($U$4:U15) -> 1016 | BZ15: 84.66666667 | CA15: =+SUM(COUNTIF($AI$3:AI15,1)) -> 3 | CB15: =+SUM(COUNTIF($AI$3:AI15,-1)) -> 9 | CC15: -6 | CD15: =+BX15*(HARMEAN((IF(SUM(COUNTIF($Z$3:Z15,1),COUNTIF($Z$3:Z15,-1))=0,1,SUM(COUNTIF($Z$3:Z15,1),COUNTIF($Z$3:Z15,-1)))),(IF(SUM(COUNTIF($AC$3:AC15,1),COUNTIF($AC$3:AC15,-1))=0,1,SUM(COUNTIF($AC$3:AC15,1),COUNTIF($AC$3:AC15,-1)))),(IF(SUM(COUNTIF($AE$3:AE15,1),COUNTIF($AE$3:AE15,-1))=0,1,SUM(COUNTIF($AE$3:AE15,1),COUNTIF($AE$3:AE15,-1)))),(IF(SUM(COUNTIF($AG$3:AG15,1),COUNTIF($AG$3:AG15,-1))=0,1,SUM(COUNTIF($AG$3:AG15,1),COUNTIF($AG$3:AG15,-1)))),(IF(SUM(COUNTIF($AI$3:AI15,1),COUNTIF($AI$3:AI15,-1))=0,1,SUM(COUNTIF($AI$3:AI15,1),COUNTIF($AI$3:AI15,-1)))),(IF(SUM(COUNTIF($AK$3:AK15,1),COUNTIF($AK$3:AK15,-1))=0,1,SUM(COUNTIF($AK$3:AK15,1),COUNTIF($AK$3:AK15,-1)))))/1000) -> 0.144 | CE15: -5.981 | CG15: =+SUM(COUNTIF($AK$3:AK15,1),COUNTIF($AK$3:AK15,-1)) -> 12 | CH15: =+SUM($W$4:W15) -> 1015 | CI15: 84.58333333 | CJ15: =+SUM(COUNTIF($AK$3:AK15,1)) -> 6 | CK15: =+SUM(COUNTIF($AK$3:AK15,-1)) -> 6 | CL15: 0 | CM15: =+CG15*(HARMEAN((IF(SUM(COUNTIF($Z$3:Z15,1),COUNTIF($Z$3:Z15,-1))=0,1,SUM(COUNTIF($Z$3:Z15,1),COUNTIF($Z$3:Z15,-1)))),(IF(SUM(COUNTIF($AC$3:AC15,1),COUNTIF($AC$3:AC15,-1))=0,1,SUM(COUNTIF($AC$3:AC15,1),COUNTIF($AC$3:AC15,-1)))),(IF(SUM(COUNTIF($AE$3:AE15,1),COUNTIF($AE$3:AE15,-1))=0,1,SUM(COUNTIF($AE$3:AE15,1),COUNTIF($AE$3:AE15,-1)))),(IF(SUM(COUNTIF($AG$3:AG15,1),COUNTIF($AG$3:AG15,-1))=0,1,SUM(COUNTIF($AG$3:AG15,1),COUNTIF($AG$3:AG15,-1)))),(IF(SUM(COUNTIF($AI$3:AI15,1),COUNTIF($AI$3:AI15,-1))=0,1,SUM(COUNTIF($AI$3:AI15,1),COUNTIF($AI$3:AI15,-1)))),(IF(SUM(COUNTIF($AK$3:AK15,1),COUNTIF($AK$3:AK15,-1))=0,1,SUM(COUNTIF($AK$3:AK15,1),COUNTIF($AK$3:AK15,-1)))))/1000) -> 0.144 | CN15: 1.218
A16: 13 | B16: RA | D16: =+IFERROR(INDEX('Auswertung AoE II'!$AE:$AE,MATCH(A16,'Auswertung AoE II'!$AD:$AD,0)),"") ->  | E16: =+IFERROR(INDEX('Auswertung AoE III'!$AE:$AE,MATCH(A16,'Auswertung AoE III'!$AD:$AD,0)),"") ->  | F16: =+IFERROR(INDEX('Auswertung AoM'!$AE:$AE,MATCH(A16,'Auswertung AoM'!$AD:$AD,0)),"") ->  | G16: =+IFERROR(INDEX('Auswertung RA'!$AE:$AE,MATCH(A16,'Auswertung RA'!$AD:$AD,0)),"") -> RA | H16: =+IFERROR(INDEX('Auswertung Yuri'!$AE:$AE,MATCH(A16,'Auswertung Yuri'!$AD:$AD,0)),"") ->  | I16: =+IFERROR(INDEX('Auswertung Generals'!$AE:$AE,MATCH(A16,'Auswertung Generals'!$AD:$AD,0)),"") ->  | J16: Auswertung RA | M16: =+IF(ISERROR(+INDIRECT(CONCATENATE("'",J16,"'!",(ADDRESS((COUNTIF($J$3:J16,IF(B16<>0,CONCATENATE("Auswertung ",B16,""))))+2,2)))))=FALSE,+INDIRECT(CONCATENATE("'",J16,"'!",(ADDRESS((COUNTIF($J$3:J16,IF(B16<>0,CONCATENATE("Auswertung ",B16,""))))+4,2)))),"") -> 96 | N16: =IF(ISERROR(+INDIRECT(CONCATENATE("'",J16,"'!",(ADDRESS((COUNTIF($J$3:J16,IF(B16<>0,CONCATENATE("Auswertung ",B16,""))))+2,2+1)))))=FALSE,+INDIRECT(CONCATENATE("'",J16,"'!",(ADDRESS((COUNTIF($J$3:J16,IF(B16<>0,CONCATENATE("Auswertung ",B16,""))))+4,2+1)))),"") -> S | O16: =+IF(ISERROR(+INDIRECT(CONCATENATE("'",J16,"'!",(ADDRESS((COUNTIF($J$3:J16,IF(B16<>0,CONCATENATE("Auswertung ",B16,""))))+2,4)))))=FALSE,+INDIRECT(CONCATENATE("'",J16,"'!",(ADDRESS((COUNTIF($J$3:J16,IF(B16<>0,CONCATENATE("Auswertung ",B16,""))))+4,4)))),"") -> 16 | P16: =+IF(ISERROR(+INDIRECT(CONCATENATE("'",J16,"'!",(ADDRESS((COUNTIF($J$3:J16,IF(B16<>0,CONCATENATE("Auswertung ",B16,""))))+2,5)))))=FALSE,+INDIRECT(CONCATENATE("'",J16,"'!",(ADDRESS((COUNTIF($J$3:J16,IF(B16<>0,CONCATENATE("Auswertung ",B16,""))))+4,5)))),"") -> S | Q16: =+IF(ISERROR(+INDIRECT(CONCATENATE("'",J16,"'!",(ADDRESS((COUNTIF($J$3:J16,IF(B16<>0,CONCATENATE("Auswertung ",B16,""))))+2,6)))))=FALSE,+INDIRECT(CONCATENATE("'",J16,"'!",(ADDRESS((COUNTIF($J$3:J16,IF(B16<>0,CONCATENATE("Auswertung ",B16,""))))+4,6)))),"") -> 45 | R16: =+IF(ISERROR(+INDIRECT(CONCATENATE("'",J16,"'!",(ADDRESS((COUNTIF($J$3:J16,IF(B16<>0,CONCATENATE("Auswertung ",B16,""))))+2,7)))))=FALSE,+INDIRECT(CONCATENATE("'",J16,"'!",(ADDRESS((COUNTIF($J$3:J16,IF(B16<>0,CONCATENATE("Auswertung ",B16,""))))+4,7)))),"") -> A | S16: =+IF(ISERROR(+INDIRECT(CONCATENATE("'",J16,"'!",(ADDRESS((COUNTIF($J$3:J16,IF(B16<>0,CONCATENATE("Auswertung ",B16,""))))+2,10)))))=FALSE,+INDIRECT(CONCATENATE("'",J16,"'!",(ADDRESS((COUNTIF($J$3:J16,IF(B16<>0,CONCATENATE("Auswertung ",B16,""))))+4,8)))),"") -> 17 | T16: =+IF(ISERROR(+INDIRECT(CONCATENATE("'",J16,"'!",(ADDRESS((COUNTIF($J$3:J16,IF(B16<>0,CONCATENATE("Auswertung ",B16,""))))+2,11)))))=FALSE,+INDIRECT(CONCATENATE("'",J16,"'!",(ADDRESS((COUNTIF($J$3:J16,IF(B16<>0,CONCATENATE("Auswertung ",B16,""))))+4,9)))),"") -> A | U16: =+IF(ISERROR(+INDIRECT(CONCATENATE("'",J16,"'!",(ADDRESS((COUNTIF($J$3:J16,IF(B16<>0,CONCATENATE("Auswertung ",B16,""))))+2,10)))))=FALSE,+INDIRECT(CONCATENATE("'",J16,"'!",(ADDRESS((COUNTIF($J$3:J16,IF(B16<>0,CONCATENATE("Auswertung ",B16,""))))+4,10)))),"") -> 104 | V16: =+IF(ISERROR(+INDIRECT(CONCATENATE("'",J16,"'!",(ADDRESS((COUNTIF($J$3:J16,IF(B16<>0,CONCATENATE("Auswertung ",B16,""))))+2,11)))))=FALSE,+INDIRECT(CONCATENATE("'",J16,"'!",(ADDRESS((COUNTIF($J$3:J16,IF(B16<>0,CONCATENATE("Auswertung ",B16,""))))+4,11)))),"") -> S | W16: =+IF(ISERROR(+INDIRECT(CONCATENATE("'",J16,"'!",(ADDRESS((COUNTIF($J$3:J16,IF(D16<>0,CONCATENATE("Auswertung ",D16,""))))+2,12)))))=FALSE,+INDIRECT(CONCATENATE("'",J16,"'!",(ADDRESS((COUNTIF($J$3:J16,IF(D16<>0,CONCATENATE("Auswertung ",B16,""))))+4,12)))),"") -> 11 | X16: =+IF(ISERROR(+INDIRECT(CONCATENATE("'",J16,"'!",(ADDRESS((COUNTIF($J$3:J16,IF(D16<>0,CONCATENATE("Auswertung ",D16,""))))+2,13)))))=FALSE,+INDIRECT(CONCATENATE("'",J16,"'!",(ADDRESS((COUNTIF($J$3:J16,IF(D16<>0,CONCATENATE("Auswertung ",B16,""))))+4,13)))),"") -> S | Z16: =+IFERROR(INDIRECT(CONCATENATE("'",J16,"'!",(ADDRESS((COUNTIF($J$3:J16,IF(B16<>0,J16)))+4,16)))),"") -> 1 | AA16: 5.404 | AB16: =+SUM($M$4:M16)/COUNT($M$4:M16)/1000*2 -> 0.178 | AC16: =+IFERROR(INDIRECT(CONCATENATE("'",J16,"'!",(ADDRESS((COUNTIF($J$3:J16,IF(B16<>0,J16)))+4,18)))),"") -> -1 | AD16: 7.963 | AE16: =+IFERROR(INDIRECT(CONCATENATE("'",J16,"'!",(ADDRESS((COUNTIF($J$3:J16,IF(B16<>0,J16)))+4,20)))),"") -> 1 | AF16: 0.293 | AG16: =+IFERROR(INDIRECT(CONCATENATE("'",J16,"'!",(ADDRESS((COUNTIF($J$3:J16,IF(B16<>0,J16)))+4,22)))),"") -> -1 | AH16: 0.428 | AI16: =+IFERROR(INDIRECT(CONCATENATE("'",J16,"'!",(ADDRESS((COUNTIF($J$3:J16,IF(B16<>0,J16)))+4,24)))),"") -> -1 | AJ16: -7.644 | AK16: =+IFERROR(INDIRECT(CONCATENATE("'",J16,"'!",(ADDRESS((COUNTIF($J$3:J16,IF(B16<>0,J16)))+4,26)))),"") -> 1 | AL16: 2.634 | AM16: 13 | AN16: =+SUM(COUNTIF($Z$3:Z16,1),COUNTIF($Z$3:Z16,-1)) -> 13 | AO16: =+SUM($M$4:M16) -> 1157 | AP16: 89 | AQ16: =+SUM(COUNTIF($Z$3:Z16,1)) -> 8 | AR16: =+SUM(COUNTIF($Z$3:Z16,-1)) -> 5 | AS16: 3 | AT16: =AN16*(HARMEAN((IF(SUM(COUNTIF($Z$3:Z16,1),COUNTIF($Z$3:Z16,-1))=0,1,SUM(COUNTIF($Z$3:Z16,1),COUNTIF($Z$3:Z16,-1)))),(IF(SUM(COUNTIF($AC$3:AC16,1),COUNTIF($AC$3:AC16,-1))=0,1,SUM(COUNTIF($AC$3:AC16,1),COUNTIF($AC$3:AC16,-1)))),(IF(SUM(COUNTIF($AE$3:AE16,1),COUNTIF($AE$3:AE16,-1))=0,1,SUM(COUNTIF($AE$3:AE16,1),COUNTIF($AE$3:AE16,-1)))),(IF(SUM(COUNTIF($AG$3:AG16,1),COUNTIF($AG$3:AG16,-1))=0,1,SUM(COUNTIF($AG$3:AG16,1),COUNTIF($AG$3:AG16,-1)))),(IF(SUM(COUNTIF($AI$3:AI16,1),COUNTIF($AI$3:AI16,-1))=0,1,SUM(COUNTIF($AI$3:AI16,1),COUNTIF($AI$3:AI16,-1)))),(IF(SUM(COUNTIF($AK$3:AK16,1),COUNTIF($AK$3:AK16,-1))=0,1,SUM(COUNTIF($AK$3:AK16,1),COUNTIF($AK$3:AK16,-1)))))/1000) -> 0.169 | AU16: 5.404 | AW16: =+SUM(COUNTIF($AC$3:AC16,1),COUNTIF($AC$3:AC16,-1)) -> 13 | AX16: =+SUM($O$4:O16) -> 1125 | AY16: 86.53846154 | AZ16: =+SUM(COUNTIF($AC$3:AC16,1)) -> 9 | BA16: =+SUM(COUNTIF($AC$3:AC16,-1)) -> 4 | BB16: 5 | BC16: =AW16*(HARMEAN((IF(SUM(COUNTIF($Z$3:Z16,1),COUNTIF($Z$3:Z16,-1))=0,1,SUM(COUNTIF($Z$3:Z16,1),COUNTIF($Z$3:Z16,-1)))),(IF(SUM(COUNTIF($AC$3:AC16,1),COUNTIF($AC$3:AC16,-1))=0,1,SUM(COUNTIF($AC$3:AC16,1),COUNTIF($AC$3:AC16,-1)))),(IF(SUM(COUNTIF($AE$3:AE16,1),COUNTIF($AE$3:AE16,-1))=0,1,SUM(COUNTIF($AE$3:AE16,1),COUNTIF($AE$3:AE16,-1)))),(IF(SUM(COUNTIF($AG$3:AG16,1),COUNTIF($AG$3:AG16,-1))=0,1,SUM(COUNTIF($AG$3:AG16,1),COUNTIF($AG$3:AG16,-1)))),(IF(SUM(COUNTIF($AI$3:AI16,1),COUNTIF($AI$3:AI16,-1))=0,1,SUM(COUNTIF($AI$3:AI16,1),COUNTIF($AI$3:AI16,-1)))),(IF(SUM(COUNTIF($AK$3:AK16,1),COUNTIF($AK$3:AK16,-1))=0,1,SUM(COUNTIF($AK$3:AK16,1),COUNTIF($AK$3:AK16,-1)))))/1000) -> 0.169 | BD16: 7.963 | BF16: =+SUM(COUNTIF($AE$3:AE16,1),COUNTIF(AE$3:$AE16,-1)) -> 13 | BG16: =+SUM($Q$4:Q16) -> 1225 | BH16: 94.23076923 | BI16: =+SUM(COUNTIF($AE$3:AE16,1)) -> 6 | BJ16: =+SUM(COUNTIF($AE$3:AE16,-1)) -> 7 | BK16: -1 | BL16: =BF16*(HARMEAN((IF(SUM(COUNTIF($Z$3:Z16,1),COUNTIF($Z$3:Z16,-1))=0,1,SUM(COUNTIF($Z$3:Z16,1),COUNTIF($Z$3:Z16,-1)))),(IF(SUM(COUNTIF($AC$3:AC16,1),COUNTIF($AC$3:AC16,-1))=0,1,SUM(COUNTIF($AC$3:AC16,1),COUNTIF($AC$3:AC16,-1)))),(IF(SUM(COUNTIF($AE$3:AE16,1),COUNTIF($AE$3:AE16,-1))=0,1,SUM(COUNTIF($AE$3:AE16,1),COUNTIF($AE$3:AE16,-1)))),(IF(SUM(COUNTIF($AG$3:AG16,1),COUNTIF($AG$3:AG16,-1))=0,1,SUM(COUNTIF($AG$3:AG16,1),COUNTIF($AG$3:AG16,-1)))),(IF(SUM(COUNTIF($AI$3:AI16,1),COUNTIF($AI$3:AI16,-1))=0,1,SUM(COUNTIF($AI$3:AI16,1),COUNTIF($AI$3:AI16,-1)))),(IF(SUM(COUNTIF($AK$3:AK16,1),COUNTIF($AK$3:AK16,-1))=0,1,SUM(COUNTIF($AK$3:AK16,1),COUNTIF($AK$3:AK16,-1)))))/1000) -> 0.169 | BM16: 0.293 | BO16: =+SUM(COUNTIF($AG$3:AG16,1),COUNTIF($AG$3:AG16,-1)) -> 13 | BP16: =+SUM($S$4:S16) -> 1329 | BQ16: 102.2307692 | BR16: =+SUM(COUNTIF($AG$3:AG16,1)) -> 6 | BS16: =+SUM(COUNTIF($AG$3:AG16,-1)) -> 7 | BT16: -1 | BU16: =BO16*(HARMEAN((IF(SUM(COUNTIF($Z$3:Z16,1),COUNTIF($Z$3:Z16,-1))=0,1,SUM(COUNTIF($Z$3:Z16,1),COUNTIF($Z$3:Z16,-1)))),(IF(SUM(COUNTIF($AC$3:AC16,1),COUNTIF($AC$3:AC16,-1))=0,1,SUM(COUNTIF($AC$3:AC16,1),COUNTIF($AC$3:AC16,-1)))),(IF(SUM(COUNTIF($AE$3:AE16,1),COUNTIF($AE$3:AE16,-1))=0,1,SUM(COUNTIF($AE$3:AE16,1),COUNTIF($AE$3:AE16,-1)))),(IF(SUM(COUNTIF($AG$3:AG16,1),COUNTIF($AG$3:AG16,-1))=0,1,SUM(COUNTIF($AG$3:AG16,1),COUNTIF($AG$3:AG16,-1)))),(IF(SUM(COUNTIF($AI$3:AI16,1),COUNTIF($AI$3:AI16,-1))=0,1,SUM(COUNTIF($AI$3:AI16,1),COUNTIF($AI$3:AI16,-1)))),(IF(SUM(COUNTIF($AK$3:AK16,1),COUNTIF($AK$3:AK16,-1))=0,1,SUM(COUNTIF($AK$3:AK16,1),COUNTIF($AK$3:AK16,-1)))))/1000) -> 0.169 | BV16: 0.428 | BX16: =+SUM(COUNTIF($AI$3:AI16,1),COUNTIF($AI$3:AI16,-1)) -> 13 | BY16: =+SUM($U$4:U16) -> 1120 | BZ16: 86.15384615 | CA16: =+SUM(COUNTIF($AI$3:AI16,1)) -> 3 | CB16: =+SUM(COUNTIF($AI$3:AI16,-1)) -> 10 | CC16: -7 | CD16: =+BX16*(HARMEAN((IF(SUM(COUNTIF($Z$3:Z16,1),COUNTIF($Z$3:Z16,-1))=0,1,SUM(COUNTIF($Z$3:Z16,1),COUNTIF($Z$3:Z16,-1)))),(IF(SUM(COUNTIF($AC$3:AC16,1),COUNTIF($AC$3:AC16,-1))=0,1,SUM(COUNTIF($AC$3:AC16,1),COUNTIF($AC$3:AC16,-1)))),(IF(SUM(COUNTIF($AE$3:AE16,1),COUNTIF($AE$3:AE16,-1))=0,1,SUM(COUNTIF($AE$3:AE16,1),COUNTIF($AE$3:AE16,-1)))),(IF(SUM(COUNTIF($AG$3:AG16,1),COUNTIF($AG$3:AG16,-1))=0,1,SUM(COUNTIF($AG$3:AG16,1),COUNTIF($AG$3:AG16,-1)))),(IF(SUM(COUNTIF($AI$3:AI16,1),COUNTIF($AI$3:AI16,-1))=0,1,SUM(COUNTIF($AI$3:AI16,1),COUNTIF($AI$3:AI16,-1)))),(IF(SUM(COUNTIF($AK$3:AK16,1),COUNTIF($AK$3:AK16,-1))=0,1,SUM(COUNTIF($AK$3:AK16,1),COUNTIF($AK$3:AK16,-1)))))/1000) -> 0.169 | CE16: -7.644 | CG16: =+SUM(COUNTIF($AK$3:AK16,1),COUNTIF($AK$3:AK16,-1)) -> 13 | CH16: =+SUM($W$4:W16) -> 1026 | CI16: 78.92307692 | CJ16: =+SUM(COUNTIF($AK$3:AK16,1)) -> 7 | CK16: =+SUM(COUNTIF($AK$3:AK16,-1)) -> 6 | CL16: 1 | CM16: =+CG16*(HARMEAN((IF(SUM(COUNTIF($Z$3:Z16,1),COUNTIF($Z$3:Z16,-1))=0,1,SUM(COUNTIF($Z$3:Z16,1),COUNTIF($Z$3:Z16,-1)))),(IF(SUM(COUNTIF($AC$3:AC16,1),COUNTIF($AC$3:AC16,-1))=0,1,SUM(COUNTIF($AC$3:AC16,1),COUNTIF($AC$3:AC16,-1)))),(IF(SUM(COUNTIF($AE$3:AE16,1),COUNTIF($AE$3:AE16,-1))=0,1,SUM(COUNTIF($AE$3:AE16,1),COUNTIF($AE$3:AE16,-1)))),(IF(SUM(COUNTIF($AG$3:AG16,1),COUNTIF($AG$3:AG16,-1))=0,1,SUM(COUNTIF($AG$3:AG16,1),COUNTIF($AG$3:AG16,-1)))),(IF(SUM(COUNTIF($AI$3:AI16,1),COUNTIF($AI$3:AI16,-1))=0,1,SUM(COUNTIF($AI$3:AI16,1),COUNTIF($AI$3:AI16,-1)))),(IF(SUM(COUNTIF($AK$3:AK16,1),COUNTIF($AK$3:AK16,-1))=0,1,SUM(COUNTIF($AK$3:AK16,1),COUNTIF($AK$3:AK16,-1)))))/1000) -> 0.169 | CN16: 2.634
A17: 14 | B17: AoE II | D17: =+IFERROR(INDEX('Auswertung AoE II'!$AE:$AE,MATCH(A17,'Auswertung AoE II'!$AD:$AD,0)),"") -> AoE II | E17: =+IFERROR(INDEX('Auswertung AoE III'!$AE:$AE,MATCH(A17,'Auswertung AoE III'!$AD:$AD,0)),"") ->  | F17: =+IFERROR(INDEX('Auswertung AoM'!$AE:$AE,MATCH(A17,'Auswertung AoM'!$AD:$AD,0)),"") ->  | G17: =+IFERROR(INDEX('Auswertung RA'!$AE:$AE,MATCH(A17,'Auswertung RA'!$AD:$AD,0)),"") ->  | H17: =+IFERROR(INDEX('Auswertung Yuri'!$AE:$AE,MATCH(A17,'Auswertung Yuri'!$AD:$AD,0)),"") ->  | I17: =+IFERROR(INDEX('Auswertung Generals'!$AE:$AE,MATCH(A17,'Auswertung Generals'!$AD:$AD,0)),"") ->  | J17: Auswertung AoE II | M17: =+IF(ISERROR(+INDIRECT(CONCATENATE("'",J17,"'!",(ADDRESS((COUNTIF($J$3:J17,IF(B17<>0,CONCATENATE("Auswertung ",B17,""))))+2,2)))))=FALSE,+INDIRECT(CONCATENATE("'",J17,"'!",(ADDRESS((COUNTIF($J$3:J17,IF(B17<>0,CONCATENATE("Auswertung ",B17,""))))+4,2)))),"") -> 51 | N17: =IF(ISERROR(+INDIRECT(CONCATENATE("'",J17,"'!",(ADDRESS((COUNTIF($J$3:J17,IF(B17<>0,CONCATENATE("Auswertung ",B17,""))))+2,2+1)))))=FALSE,+INDIRECT(CONCATENATE("'",J17,"'!",(ADDRESS((COUNTIF($J$3:J17,IF(B17<>0,CONCATENATE("Auswertung ",B17,""))))+4,2+1)))),"") -> Berb | O17: =+IF(ISERROR(+INDIRECT(CONCATENATE("'",J17,"'!",(ADDRESS((COUNTIF($J$3:J17,IF(B17<>0,CONCATENATE("Auswertung ",B17,""))))+2,4)))))=FALSE,+INDIRECT(CONCATENATE("'",J17,"'!",(ADDRESS((COUNTIF($J$3:J17,IF(B17<>0,CONCATENATE("Auswertung ",B17,""))))+4,4)))),"") -> 91 | P17: =+IF(ISERROR(+INDIRECT(CONCATENATE("'",J17,"'!",(ADDRESS((COUNTIF($J$3:J17,IF(B17<>0,CONCATENATE("Auswertung ",B17,""))))+2,5)))))=FALSE,+INDIRECT(CONCATENATE("'",J17,"'!",(ADDRESS((COUNTIF($J$3:J17,IF(B17<>0,CONCATENATE("Auswertung ",B17,""))))+4,5)))),"") -> Burg | Q17: =+IF(ISERROR(+INDIRECT(CONCATENATE("'",J17,"'!",(ADDRESS((COUNTIF($J$3:J17,IF(B17<>0,CONCATENATE("Auswertung ",B17,""))))+2,6)))))=FALSE,+INDIRECT(CONCATENATE("'",J17,"'!",(ADDRESS((COUNTIF($J$3:J17,IF(B17<>0,CONCATENATE("Auswertung ",B17,""))))+4,6)))),"") -> 55 | R17: =+IF(ISERROR(+INDIRECT(CONCATENATE("'",J17,"'!",(ADDRESS((COUNTIF($J$3:J17,IF(B17<>0,CONCATENATE("Auswertung ",B17,""))))+2,7)))))=FALSE,+INDIRECT(CONCATENATE("'",J17,"'!",(ADDRESS((COUNTIF($J$3:J17,IF(B17<>0,CONCATENATE("Auswertung ",B17,""))))+4,7)))),"") -> Berb | S17: =+IF(ISERROR(+INDIRECT(CONCATENATE("'",J17,"'!",(ADDRESS((COUNTIF($J$3:J17,IF(B17<>0,CONCATENATE("Auswertung ",B17,""))))+2,10)))))=FALSE,+INDIRECT(CONCATENATE("'",J17,"'!",(ADDRESS((COUNTIF($J$3:J17,IF(B17<>0,CONCATENATE("Auswertung ",B17,""))))+4,8)))),"") -> 96 | T17: =+IF(ISERROR(+INDIRECT(CONCATENATE("'",J17,"'!",(ADDRESS((COUNTIF($J$3:J17,IF(B17<>0,CONCATENATE("Auswertung ",B17,""))))+2,11)))))=FALSE,+INDIRECT(CONCATENATE("'",J17,"'!",(ADDRESS((COUNTIF($J$3:J17,IF(B17<>0,CONCATENATE("Auswertung ",B17,""))))+4,9)))),"") -> Groo | U17: =+IF(ISERROR(+INDIRECT(CONCATENATE("'",J17,"'!",(ADDRESS((COUNTIF($J$3:J17,IF(B17<>0,CONCATENATE("Auswertung ",B17,""))))+2,10)))))=FALSE,+INDIRECT(CONCATENATE("'",J17,"'!",(ADDRESS((COUNTIF($J$3:J17,IF(B17<>0,CONCATENATE("Auswertung ",B17,""))))+4,10)))),"") -> 13 | V17: =+IF(ISERROR(+INDIRECT(CONCATENATE("'",J17,"'!",(ADDRESS((COUNTIF($J$3:J17,IF(B17<>0,CONCATENATE("Auswertung ",B17,""))))+2,11)))))=FALSE,+INDIRECT(CONCATENATE("'",J17,"'!",(ADDRESS((COUNTIF($J$3:J17,IF(B17<>0,CONCATENATE("Auswertung ",B17,""))))+4,11)))),"") -> Geo | W17: =+IF(ISERROR(+INDIRECT(CONCATENATE("'",J17,"'!",(ADDRESS((COUNTIF($J$3:J17,IF(D17<>0,CONCATENATE("Auswertung ",D17,""))))+2,12)))))=FALSE,+INDIRECT(CONCATENATE("'",J17,"'!",(ADDRESS((COUNTIF($J$3:J17,IF(D17<>0,CONCATENATE("Auswertung ",B17,""))))+4,12)))),"") -> 64 | X17: =+IF(ISERROR(+INDIRECT(CONCATENATE("'",J17,"'!",(ADDRESS((COUNTIF($J$3:J17,IF(D17<>0,CONCATENATE("Auswertung ",D17,""))))+2,13)))))=FALSE,+INDIRECT(CONCATENATE("'",J17,"'!",(ADDRESS((COUNTIF($J$3:J17,IF(D17<>0,CONCATENATE("Auswertung ",B17,""))))+4,13)))),"") -> Burg | Z17: =+IFERROR(INDIRECT(CONCATENATE("'",J17,"'!",(ADDRESS((COUNTIF($J$3:J17,IF(B17<>0,J17)))+4,16)))),"") -> 1 | AA17: 7.291 | AB17: =+SUM($M$4:M17)/COUNT($M$4:M17)/1000*2 -> 0.1725714286 | AC17: =+IFERROR(INDIRECT(CONCATENATE("'",J17,"'!",(ADDRESS((COUNTIF($J$3:J17,IF(B17<>0,J17)))+4,18)))),"") -> -1 | AD17: 7.302 | AE17: =+IFERROR(INDIRECT(CONCATENATE("'",J17,"'!",(ADDRESS((COUNTIF($J$3:J17,IF(B17<>0,J17)))+4,20)))),"") -> -1 | AF17: -1.008 | AG17: =+IFERROR(INDIRECT(CONCATENATE("'",J17,"'!",(ADDRESS((COUNTIF($J$3:J17,IF(B17<>0,J17)))+4,22)))),"") -> 1 | AH17: 1.995 | AI17: =+IFERROR(INDIRECT(CONCATENATE("'",J17,"'!",(ADDRESS((COUNTIF($J$3:J17,IF(B17<>0,J17)))+4,24)))),"") -> -1 | AJ17: -9.614 | AK17: =+IFERROR(INDIRECT(CONCATENATE("'",J17,"'!",(ADDRESS((COUNTIF($J$3:J17,IF(B17<>0,J17)))+4,26)))),"") -> 1 | AL17: 4.326 | AM17: 14 | AN17: =+SUM(COUNTIF($Z$3:Z17,1),COUNTIF($Z$3:Z17,-1)) -> 14 | AO17: =+SUM($M$4:M17) -> 1208 | AP17: =+AO17/AN17 -> 86.28571429 | AQ17: =+SUM(COUNTIF($Z$3:Z17,1)) -> 9 | AR17: =+SUM(COUNTIF($Z$3:Z17,-1)) -> 5 | AS17: =+AQ17-AR17 -> 4 | AT17: =AN17*(HARMEAN((IF(SUM(COUNTIF($Z$3:Z17,1),COUNTIF($Z$3:Z17,-1))=0,1,SUM(COUNTIF($Z$3:Z17,1),COUNTIF($Z$3:Z17,-1)))),(IF(SUM(COUNTIF($AC$3:AC17,1),COUNTIF($AC$3:AC17,-1))=0,1,SUM(COUNTIF($AC$3:AC17,1),COUNTIF($AC$3:AC17,-1)))),(IF(SUM(COUNTIF($AE$3:AE17,1),COUNTIF($AE$3:AE17,-1))=0,1,SUM(COUNTIF($AE$3:AE17,1),COUNTIF($AE$3:AE17,-1)))),(IF(SUM(COUNTIF($AG$3:AG17,1),COUNTIF($AG$3:AG17,-1))=0,1,SUM(COUNTIF($AG$3:AG17,1),COUNTIF($AG$3:AG17,-1)))),(IF(SUM(COUNTIF($AI$3:AI17,1),COUNTIF($AI$3:AI17,-1))=0,1,SUM(COUNTIF($AI$3:AI17,1),COUNTIF($AI$3:AI17,-1)))),(IF(SUM(COUNTIF($AK$3:AK17,1),COUNTIF($AK$3:AK17,-1))=0,1,SUM(COUNTIF($AK$3:AK17,1),COUNTIF($AK$3:AK17,-1)))))/1000) -> 0.196 | AU17: =IF(AN17=0,"-",IF(AN17=0,0,ROUND(((AQ17/AN17-AR17/AN17)*100+AP17/10)*AT17,3))) -> 7.291 | AW17: =+SUM(COUNTIF($AC$3:AC17,1),COUNTIF($AC$3:AC17,-1)) -> 14 | AX17: =+SUM($O$4:O17) -> 1216 | AY17: =+AX17/AW17 -> 86.85714286 | AZ17: =+SUM(COUNTIF($AC$3:AC17,1)) -> 9 | BA17: =+SUM(COUNTIF($AC$3:AC17,-1)) -> 5 | BB17: =+AZ17-BA17 -> 4 | BC17: =AW17*(HARMEAN((IF(SUM(COUNTIF($Z$3:Z17,1),COUNTIF($Z$3:Z17,-1))=0,1,SUM(COUNTIF($Z$3:Z17,1),COUNTIF($Z$3:Z17,-1)))),(IF(SUM(COUNTIF($AC$3:AC17,1),COUNTIF($AC$3:AC17,-1))=0,1,SUM(COUNTIF($AC$3:AC17,1),COUNTIF($AC$3:AC17,-1)))),(IF(SUM(COUNTIF($AE$3:AE17,1),COUNTIF($AE$3:AE17,-1))=0,1,SUM(COUNTIF($AE$3:AE17,1),COUNTIF($AE$3:AE17,-1)))),(IF(SUM(COUNTIF($AG$3:AG17,1),COUNTIF($AG$3:AG17,-1))=0,1,SUM(COUNTIF($AG$3:AG17,1),COUNTIF($AG$3:AG17,-1)))),(IF(SUM(COUNTIF($AI$3:AI17,1),COUNTIF($AI$3:AI17,-1))=0,1,SUM(COUNTIF($AI$3:AI17,1),COUNTIF($AI$3:AI17,-1)))),(IF(SUM(COUNTIF($AK$3:AK17,1),COUNTIF($AK$3:AK17,-1))=0,1,SUM(COUNTIF($AK$3:AK17,1),COUNTIF($AK$3:AK17,-1)))))/1000) -> 0.196 | BD17: =IF(AW17=0,"-",IF(AN17=0,0,ROUND(((AZ17/AW17-BA17/AW17)*100+AY17/10)*BC17,3))) -> 7.302 | BF17: =+SUM(COUNTIF($AE$3:AE17,1),COUNTIF(AE$3:$AE17,-1)) -> 14 | BG17: =+SUM($Q$4:Q17) -> 1280 | BH17: =+BG17/BF17 -> 91.42857143 | BI17: =+SUM(COUNTIF($AE$3:AE17,1)) -> 6 | BJ17: =+SUM(COUNTIF($AE$3:AE17,-1)) -> 8 | BK17: =+BI17-BJ17 -> -2 | BL17: =BF17*(HARMEAN((IF(SUM(COUNTIF($Z$3:Z17,1),COUNTIF($Z$3:Z17,-1))=0,1,SUM(COUNTIF($Z$3:Z17,1),COUNTIF($Z$3:Z17,-1)))),(IF(SUM(COUNTIF($AC$3:AC17,1),COUNTIF($AC$3:AC17,-1))=0,1,SUM(COUNTIF($AC$3:AC17,1),COUNTIF($AC$3:AC17,-1)))),(IF(SUM(COUNTIF($AE$3:AE17,1),COUNTIF($AE$3:AE17,-1))=0,1,SUM(COUNTIF($AE$3:AE17,1),COUNTIF($AE$3:AE17,-1)))),(IF(SUM(COUNTIF($AG$3:AG17,1),COUNTIF($AG$3:AG17,-1))=0,1,SUM(COUNTIF($AG$3:AG17,1),COUNTIF($AG$3:AG17,-1)))),(IF(SUM(COUNTIF($AI$3:AI17,1),COUNTIF($AI$3:AI17,-1))=0,1,SUM(COUNTIF($AI$3:AI17,1),COUNTIF($AI$3:AI17,-1)))),(IF(SUM(COUNTIF($AK$3:AK17,1),COUNTIF($AK$3:AK17,-1))=0,1,SUM(COUNTIF($AK$3:AK17,1),COUNTIF($AK$3:AK17,-1)))))/1000) -> 0.196 | BM17: =IF(BF17=0,"-",IF(BF17=0,0,ROUND(((BI17/BF17-BJ17/BF17)*100+BH17/10)*BL17,3))) -> -1.008 | BO17: =+SUM(COUNTIF($AG$3:AG17,1),COUNTIF($AG$3:AG17,-1)) -> 14 | BP17: =+SUM($S$4:S17) -> 1425 | BQ17: =+BP17/BO17 -> 101.7857143 | BR17: =+SUM(COUNTIF($AG$3:AG17,1)) -> 7 | BS17: =+SUM(COUNTIF($AG$3:AG17,-1)) -> 7 | BT17: =+BR17-BS17 -> 0 | BU17: =BO17*(HARMEAN((IF(SUM(COUNTIF($Z$3:Z17,1),COUNTIF($Z$3:Z17,-1))=0,1,SUM(COUNTIF($Z$3:Z17,1),COUNTIF($Z$3:Z17,-1)))),(IF(SUM(COUNTIF($AC$3:AC17,1),COUNTIF($AC$3:AC17,-1))=0,1,SUM(COUNTIF($AC$3:AC17,1),COUNTIF($AC$3:AC17,-1)))),(IF(SUM(COUNTIF($AE$3:AE17,1),COUNTIF($AE$3:AE17,-1))=0,1,SUM(COUNTIF($AE$3:AE17,1),COUNTIF($AE$3:AE17,-1)))),(IF(SUM(COUNTIF($AG$3:AG17,1),COUNTIF($AG$3:AG17,-1))=0,1,SUM(COUNTIF($AG$3:AG17,1),COUNTIF($AG$3:AG17,-1)))),(IF(SUM(COUNTIF($AI$3:AI17,1),COUNTIF($AI$3:AI17,-1))=0,1,SUM(COUNTIF($AI$3:AI17,1),COUNTIF($AI$3:AI17,-1)))),(IF(SUM(COUNTIF($AK$3:AK17,1),COUNTIF($AK$3:AK17,-1))=0,1,SUM(COUNTIF($AK$3:AK17,1),COUNTIF($AK$3:AK17,-1)))))/1000) -> 0.196 | BV17: =IF(BO17=0,"-",IF(BO17=0,0,ROUND(((BR17/BO17-BS17/BO17)*100+BQ17/10)*BU17,3))) -> 1.995 | BX17: =+SUM(COUNTIF($AI$3:AI17,1),COUNTIF($AI$3:AI17,-1)) -> 14 | BY17: =+SUM($U$4:U17) -> 1133 | BZ17: 80.92857143 | CA17: =+SUM(COUNTIF($AI$3:AI17,1)) -> 3 | CB17: =+SUM(COUNTIF($AI$3:AI17,-1)) -> 11 | CC17: -8 | CD17: =+BX17*(HARMEAN((IF(SUM(COUNTIF($Z$3:Z17,1),COUNTIF($Z$3:Z17,-1))=0,1,SUM(COUNTIF($Z$3:Z17,1),COUNTIF($Z$3:Z17,-1)))),(IF(SUM(COUNTIF($AC$3:AC17,1),COUNTIF($AC$3:AC17,-1))=0,1,SUM(COUNTIF($AC$3:AC17,1),COUNTIF($AC$3:AC17,-1)))),(IF(SUM(COUNTIF($AE$3:AE17,1),COUNTIF($AE$3:AE17,-1))=0,1,SUM(COUNTIF($AE$3:AE17,1),COUNTIF($AE$3:AE17,-1)))),(IF(SUM(COUNTIF($AG$3:AG17,1),COUNTIF($AG$3:AG17,-1))=0,1,SUM(COUNTIF($AG$3:AG17,1),COUNTIF($AG$3:AG17,-1)))),(IF(SUM(COUNTIF($AI$3:AI17,1),COUNTIF($AI$3:AI17,-1))=0,1,SUM(COUNTIF($AI$3:AI17,1),COUNTIF($AI$3:AI17,-1)))),(IF(SUM(COUNTIF($AK$3:AK17,1),COUNTIF($AK$3:AK17,-1))=0,1,SUM(COUNTIF($AK$3:AK17,1),COUNTIF($AK$3:AK17,-1)))))/1000) -> 0.196 | CE17: -9.614 | CG17: =+SUM(COUNTIF($AK$3:AK17,1),COUNTIF($AK$3:AK17,-1)) -> 14 | CH17: =+SUM($W$4:W17) -> 1090 | CI17: 77.85714286 | CJ17: =+SUM(COUNTIF($AK$3:AK17,1)) -> 8 | CK17: =+SUM(COUNTIF($AK$3:AK17,-1)) -> 6 | CL17: 2 | CM17: =+CG17*(HARMEAN((IF(SUM(COUNTIF($Z$3:Z17,1),COUNTIF($Z$3:Z17,-1))=0,1,SUM(COUNTIF($Z$3:Z17,1),COUNTIF($Z$3:Z17,-1)))),(IF(SUM(COUNTIF($AC$3:AC17,1),COUNTIF($AC$3:AC17,-1))=0,1,SUM(COUNTIF($AC$3:AC17,1),COUNTIF($AC$3:AC17,-1)))),(IF(SUM(COUNTIF($AE$3:AE17,1),COUNTIF($AE$3:AE17,-1))=0,1,SUM(COUNTIF($AE$3:AE17,1),COUNTIF($AE$3:AE17,-1)))),(IF(SUM(COUNTIF($AG$3:AG17,1),COUNTIF($AG$3:AG17,-1))=0,1,SUM(COUNTIF($AG$3:AG17,1),COUNTIF($AG$3:AG17,-1)))),(IF(SUM(COUNTIF($AI$3:AI17,1),COUNTIF($AI$3:AI17,-1))=0,1,SUM(COUNTIF($AI$3:AI17,1),COUNTIF($AI$3:AI17,-1)))),(IF(SUM(COUNTIF($AK$3:AK17,1),COUNTIF($AK$3:AK17,-1))=0,1,SUM(COUNTIF($AK$3:AK17,1),COUNTIF($AK$3:AK17,-1)))))/1000) -> 0.196 | CN17: 4.326
A18: 15 | B18: AoM | D18: =+IFERROR(INDEX('Auswertung AoE II'!$AE:$AE,MATCH(A18,'Auswertung AoE II'!$AD:$AD,0)),"") ->  | E18: =+IFERROR(INDEX('Auswertung AoE III'!$AE:$AE,MATCH(A18,'Auswertung AoE III'!$AD:$AD,0)),"") ->  | F18: =+IFERROR(INDEX('Auswertung AoM'!$AE:$AE,MATCH(A18,'Auswertung AoM'!$AD:$AD,0)),"") -> AoM | G18: =+IFERROR(INDEX('Auswertung RA'!$AE:$AE,MATCH(A18,'Auswertung RA'!$AD:$AD,0)),"") ->  | H18: =+IFERROR(INDEX('Auswertung Yuri'!$AE:$AE,MATCH(A18,'Auswertung Yuri'!$AD:$AD,0)),"") ->  | I18: =+IFERROR(INDEX('Auswertung Generals'!$AE:$AE,MATCH(A18,'Auswertung Generals'!$AD:$AD,0)),"") ->  | J18: Auswertung AoM | M18: =+IF(ISERROR(+INDIRECT(CONCATENATE("'",J18,"'!",(ADDRESS((COUNTIF($J$3:J18,IF(B18<>0,CONCATENATE("Auswertung ",B18,""))))+2,2)))))=FALSE,+INDIRECT(CONCATENATE("'",J18,"'!",(ADDRESS((COUNTIF($J$3:J18,IF(B18<>0,CONCATENATE("Auswertung ",B18,""))))+4,2)))),"") -> 120 | N18: =IF(ISERROR(+INDIRECT(CONCATENATE("'",J18,"'!",(ADDRESS((COUNTIF($J$3:J18,IF(B18<>0,CONCATENATE("Auswertung ",B18,""))))+2,2+1)))))=FALSE,+INDIRECT(CONCATENATE("'",J18,"'!",(ADDRESS((COUNTIF($J$3:J18,IF(B18<>0,CONCATENATE("Auswertung ",B18,""))))+4,2+1)))),"") -> Re | O18: =+IF(ISERROR(+INDIRECT(CONCATENATE("'",J18,"'!",(ADDRESS((COUNTIF($J$3:J18,IF(B18<>0,CONCATENATE("Auswertung ",B18,""))))+2,4)))))=FALSE,+INDIRECT(CONCATENATE("'",J18,"'!",(ADDRESS((COUNTIF($J$3:J18,IF(B18<>0,CONCATENATE("Auswertung ",B18,""))))+4,4)))),"") -> 87 | P18: =+IF(ISERROR(+INDIRECT(CONCATENATE("'",J18,"'!",(ADDRESS((COUNTIF($J$3:J18,IF(B18<>0,CONCATENATE("Auswertung ",B18,""))))+2,5)))))=FALSE,+INDIRECT(CONCATENATE("'",J18,"'!",(ADDRESS((COUNTIF($J$3:J18,IF(B18<>0,CONCATENATE("Auswertung ",B18,""))))+4,5)))),"") -> Uranos | Q18: =+IF(ISERROR(+INDIRECT(CONCATENATE("'",J18,"'!",(ADDRESS((COUNTIF($J$3:J18,IF(B18<>0,CONCATENATE("Auswertung ",B18,""))))+2,6)))))=FALSE,+INDIRECT(CONCATENATE("'",J18,"'!",(ADDRESS((COUNTIF($J$3:J18,IF(B18<>0,CONCATENATE("Auswertung ",B18,""))))+4,6)))),"") -> 78 | R18: =+IF(ISERROR(+INDIRECT(CONCATENATE("'",J18,"'!",(ADDRESS((COUNTIF($J$3:J18,IF(B18<>0,CONCATENATE("Auswertung ",B18,""))))+2,7)))))=FALSE,+INDIRECT(CONCATENATE("'",J18,"'!",(ADDRESS((COUNTIF($J$3:J18,IF(B18<>0,CONCATENATE("Auswertung ",B18,""))))+4,7)))),"") -> Re | S18: =+IF(ISERROR(+INDIRECT(CONCATENATE("'",J18,"'!",(ADDRESS((COUNTIF($J$3:J18,IF(B18<>0,CONCATENATE("Auswertung ",B18,""))))+2,10)))))=FALSE,+INDIRECT(CONCATENATE("'",J18,"'!",(ADDRESS((COUNTIF($J$3:J18,IF(B18<>0,CONCATENATE("Auswertung ",B18,""))))+4,8)))),"") -> 49 | T18: =+IF(ISERROR(+INDIRECT(CONCATENATE("'",J18,"'!",(ADDRESS((COUNTIF($J$3:J18,IF(B18<>0,CONCATENATE("Auswertung ",B18,""))))+2,11)))))=FALSE,+INDIRECT(CONCATENATE("'",J18,"'!",(ADDRESS((COUNTIF($J$3:J18,IF(B18<>0,CONCATENATE("Auswertung ",B18,""))))+4,9)))),"") -> Gaia | U18: =+IF(ISERROR(+INDIRECT(CONCATENATE("'",J18,"'!",(ADDRESS((COUNTIF($J$3:J18,IF(B18<>0,CONCATENATE("Auswertung ",B18,""))))+2,10)))))=FALSE,+INDIRECT(CONCATENATE("'",J18,"'!",(ADDRESS((COUNTIF($J$3:J18,IF(B18<>0,CONCATENATE("Auswertung ",B18,""))))+4,10)))),"") -> 62 | V18: =+IF(ISERROR(+INDIRECT(CONCATENATE("'",J18,"'!",(ADDRESS((COUNTIF($J$3:J18,IF(B18<>0,CONCATENATE("Auswertung ",B18,""))))+2,11)))))=FALSE,+INDIRECT(CONCATENATE("'",J18,"'!",(ADDRESS((COUNTIF($J$3:J18,IF(B18<>0,CONCATENATE("Auswertung ",B18,""))))+4,11)))),"") -> Gaia | W18: =+IF(ISERROR(+INDIRECT(CONCATENATE("'",J18,"'!",(ADDRESS((COUNTIF($J$3:J18,IF(D18<>0,CONCATENATE("Auswertung ",D18,""))))+2,12)))))=FALSE,+INDIRECT(CONCATENATE("'",J18,"'!",(ADDRESS((COUNTIF($J$3:J18,IF(D18<>0,CONCATENATE("Auswertung ",B18,""))))+4,12)))),"") -> 53 | X18: =+IF(ISERROR(+INDIRECT(CONCATENATE("'",J18,"'!",(ADDRESS((COUNTIF($J$3:J18,IF(D18<>0,CONCATENATE("Auswertung ",D18,""))))+2,13)))))=FALSE,+INDIRECT(CONCATENATE("'",J18,"'!",(ADDRESS((COUNTIF($J$3:J18,IF(D18<>0,CONCATENATE("Auswertung ",B18,""))))+4,13)))),"") -> Uranos | Z18: =+IFERROR(INDIRECT(CONCATENATE("'",J18,"'!",(ADDRESS((COUNTIF($J$3:J18,IF(B18<>0,J18)))+4,16)))),"") -> 1 | AA18: 9.492 | AB18: =+SUM($M$4:M18)/COUNT($M$4:M18)/1000*2 -> 0.1770666667 | AC18: =+IFERROR(INDIRECT(CONCATENATE("'",J18,"'!",(ADDRESS((COUNTIF($J$3:J18,IF(B18<>0,J18)))+4,18)))),"") -> 1 | AD18: 9.455 | AE18: =+IFERROR(INDIRECT(CONCATENATE("'",J18,"'!",(ADDRESS((COUNTIF($J$3:J18,IF(B18<>0,J18)))+4,20)))),"") -> -1 | AF18: -2.463 | AG18: =+IFERROR(INDIRECT(CONCATENATE("'",J18,"'!",(ADDRESS((COUNTIF($J$3:J18,IF(B18<>0,J18)))+4,22)))),"") -> 1 | AH18: 3.711 | AI18: =+IFERROR(INDIRECT(CONCATENATE("'",J18,"'!",(ADDRESS((COUNTIF($J$3:J18,IF(B18<>0,J18)))+4,24)))),"") -> -1 | AJ18: -11.708 | AK18: =+IFERROR(INDIRECT(CONCATENATE("'",J18,"'!",(ADDRESS((COUNTIF($J$3:J18,IF(B18<>0,J18)))+4,26)))),"") -> -1 | AL18: 3.215 | AM18: 15 | AN18: =+SUM(COUNTIF($Z$3:Z18,1),COUNTIF($Z$3:Z18,-1)) -> 15 | AO18: =+SUM($M$4:M18) -> 1328 | AP18: 88.53333333 | AQ18: =+SUM(COUNTIF($Z$3:Z18,1)) -> 10 | AR18: =+SUM(COUNTIF($Z$3:Z18,-1)) -> 5 | AS18: 5 | AT18: =AN18*(HARMEAN((IF(SUM(COUNTIF($Z$3:Z18,1),COUNTIF($Z$3:Z18,-1))=0,1,SUM(COUNTIF($Z$3:Z18,1),COUNTIF($Z$3:Z18,-1)))),(IF(SUM(COUNTIF($AC$3:AC18,1),COUNTIF($AC$3:AC18,-1))=0,1,SUM(COUNTIF($AC$3:AC18,1),COUNTIF($AC$3:AC18,-1)))),(IF(SUM(COUNTIF($AE$3:AE18,1),COUNTIF($AE$3:AE18,-1))=0,1,SUM(COUNTIF($AE$3:AE18,1),COUNTIF($AE$3:AE18,-1)))),(IF(SUM(COUNTIF($AG$3:AG18,1),COUNTIF($AG$3:AG18,-1))=0,1,SUM(COUNTIF($AG$3:AG18,1),COUNTIF($AG$3:AG18,-1)))),(IF(SUM(COUNTIF($AI$3:AI18,1),COUNTIF($AI$3:AI18,-1))=0,1,SUM(COUNTIF($AI$3:AI18,1),COUNTIF($AI$3:AI18,-1)))),(IF(SUM(COUNTIF($AK$3:AK18,1),COUNTIF($AK$3:AK18,-1))=0,1,SUM(COUNTIF($AK$3:AK18,1),COUNTIF($AK$3:AK18,-1)))))/1000) -> 0.225 | AU18: 9.492 | AW18: =+SUM(COUNTIF($AC$3:AC18,1),COUNTIF($AC$3:AC18,-1)) -> 15 | AX18: =+SUM($O$4:O18) -> 1303 | AY18: 86.86666667 | AZ18: =+SUM(COUNTIF($AC$3:AC18,1)) -> 10 | BA18: =+SUM(COUNTIF($AC$3:AC18,-1)) -> 5 | BB18: 5 | BC18: =AW18*(HARMEAN((IF(SUM(COUNTIF($Z$3:Z18,1),COUNTIF($Z$3:Z18,-1))=0,1,SUM(COUNTIF($Z$3:Z18,1),COUNTIF($Z$3:Z18,-1)))),(IF(SUM(COUNTIF($AC$3:AC18,1),COUNTIF($AC$3:AC18,-1))=0,1,SUM(COUNTIF($AC$3:AC18,1),COUNTIF($AC$3:AC18,-1)))),(IF(SUM(COUNTIF($AE$3:AE18,1),COUNTIF($AE$3:AE18,-1))=0,1,SUM(COUNTIF($AE$3:AE18,1),COUNTIF($AE$3:AE18,-1)))),(IF(SUM(COUNTIF($AG$3:AG18,1),COUNTIF($AG$3:AG18,-1))=0,1,SUM(COUNTIF($AG$3:AG18,1),COUNTIF($AG$3:AG18,-1)))),(IF(SUM(COUNTIF($AI$3:AI18,1),COUNTIF($AI$3:AI18,-1))=0,1,SUM(COUNTIF($AI$3:AI18,1),COUNTIF($AI$3:AI18,-1)))),(IF(SUM(COUNTIF($AK$3:AK18,1),COUNTIF($AK$3:AK18,-1))=0,1,SUM(COUNTIF($AK$3:AK18,1),COUNTIF($AK$3:AK18,-1)))))/1000) -> 0.225 | BD18: 9.455 | BF18: =+SUM(COUNTIF($AE$3:AE18,1),COUNTIF(AE$3:$AE18,-1)) -> 15 | BG18: =+SUM($Q$4:Q18) -> 1358 | BH18: 90.53333333 | BI18: =+SUM(COUNTIF($AE$3:AE18,1)) -> 6 | BJ18: =+SUM(COUNTIF($AE$3:AE18,-1)) -> 9 | BK18: -3 | BL18: =BF18*(HARMEAN((IF(SUM(COUNTIF($Z$3:Z18,1),COUNTIF($Z$3:Z18,-1))=0,1,SUM(COUNTIF($Z$3:Z18,1),COUNTIF($Z$3:Z18,-1)))),(IF(SUM(COUNTIF($AC$3:AC18,1),COUNTIF($AC$3:AC18,-1))=0,1,SUM(COUNTIF($AC$3:AC18,1),COUNTIF($AC$3:AC18,-1)))),(IF(SUM(COUNTIF($AE$3:AE18,1),COUNTIF($AE$3:AE18,-1))=0,1,SUM(COUNTIF($AE$3:AE18,1),COUNTIF($AE$3:AE18,-1)))),(IF(SUM(COUNTIF($AG$3:AG18,1),COUNTIF($AG$3:AG18,-1))=0,1,SUM(COUNTIF($AG$3:AG18,1),COUNTIF($AG$3:AG18,-1)))),(IF(SUM(COUNTIF($AI$3:AI18,1),COUNTIF($AI$3:AI18,-1))=0,1,SUM(COUNTIF($AI$3:AI18,1),COUNTIF($AI$3:AI18,-1)))),(IF(SUM(COUNTIF($AK$3:AK18,1),COUNTIF($AK$3:AK18,-1))=0,1,SUM(COUNTIF($AK$3:AK18,1),COUNTIF($AK$3:AK18,-1)))))/1000) -> 0.225 | BM18: -2.463 | BO18: =+SUM(COUNTIF($AG$3:AG18,1),COUNTIF($AG$3:AG18,-1)) -> 15 | BP18: =+SUM($S$4:S18) -> 1474 | BQ18: 98.26666667 | BR18: =+SUM(COUNTIF($AG$3:AG18,1)) -> 8 | BS18: =+SUM(COUNTIF($AG$3:AG18,-1)) -> 7 | BT18: 1 | BU18: =BO18*(HARMEAN((IF(SUM(COUNTIF($Z$3:Z18,1),COUNTIF($Z$3:Z18,-1))=0,1,SUM(COUNTIF($Z$3:Z18,1),COUNTIF($Z$3:Z18,-1)))),(IF(SUM(COUNTIF($AC$3:AC18,1),COUNTIF($AC$3:AC18,-1))=0,1,SUM(COUNTIF($AC$3:AC18,1),COUNTIF($AC$3:AC18,-1)))),(IF(SUM(COUNTIF($AE$3:AE18,1),COUNTIF($AE$3:AE18,-1))=0,1,SUM(COUNTIF($AE$3:AE18,1),COUNTIF($AE$3:AE18,-1)))),(IF(SUM(COUNTIF($AG$3:AG18,1),COUNTIF($AG$3:AG18,-1))=0,1,SUM(COUNTIF($AG$3:AG18,1),COUNTIF($AG$3:AG18,-1)))),(IF(SUM(COUNTIF($AI$3:AI18,1),COUNTIF($AI$3:AI18,-1))=0,1,SUM(COUNTIF($AI$3:AI18,1),COUNTIF($AI$3:AI18,-1)))),(IF(SUM(COUNTIF($AK$3:AK18,1),COUNTIF($AK$3:AK18,-1))=0,1,SUM(COUNTIF($AK$3:AK18,1),COUNTIF($AK$3:AK18,-1)))))/1000) -> 0.225 | BV18: 3.711 | BX18: =+SUM(COUNTIF($AI$3:AI18,1),COUNTIF($AI$3:AI18,-1)) -> 15 | BY18: =+SUM($U$4:U18) -> 1195 | BZ18: 79.66666667 | CA18: =+SUM(COUNTIF($AI$3:AI18,1)) -> 3 | CB18: =+SUM(COUNTIF($AI$3:AI18,-1)) -> 12 | CC18: -9 | CD18: =+BX18*(HARMEAN((IF(SUM(COUNTIF($Z$3:Z18,1),COUNTIF($Z$3:Z18,-1))=0,1,SUM(COUNTIF($Z$3:Z18,1),COUNTIF($Z$3:Z18,-1)))),(IF(SUM(COUNTIF($AC$3:AC18,1),COUNTIF($AC$3:AC18,-1))=0,1,SUM(COUNTIF($AC$3:AC18,1),COUNTIF($AC$3:AC18,-1)))),(IF(SUM(COUNTIF($AE$3:AE18,1),COUNTIF($AE$3:AE18,-1))=0,1,SUM(COUNTIF($AE$3:AE18,1),COUNTIF($AE$3:AE18,-1)))),(IF(SUM(COUNTIF($AG$3:AG18,1),COUNTIF($AG$3:AG18,-1))=0,1,SUM(COUNTIF($AG$3:AG18,1),COUNTIF($AG$3:AG18,-1)))),(IF(SUM(COUNTIF($AI$3:AI18,1),COUNTIF($AI$3:AI18,-1))=0,1,SUM(COUNTIF($AI$3:AI18,1),COUNTIF($AI$3:AI18,-1)))),(IF(SUM(COUNTIF($AK$3:AK18,1),COUNTIF($AK$3:AK18,-1))=0,1,SUM(COUNTIF($AK$3:AK18,1),COUNTIF($AK$3:AK18,-1)))))/1000) -> 0.225 | CE18: -11.708 | CG18: =+SUM(COUNTIF($AK$3:AK18,1),COUNTIF($AK$3:AK18,-1)) -> 15 | CH18: =+SUM($W$4:W18) -> 1143 | CI18: 76.2 | CJ18: =+SUM(COUNTIF($AK$3:AK18,1)) -> 8 | CK18: =+SUM(COUNTIF($AK$3:AK18,-1)) -> 7 | CL18: 1 | CM18: =+CG18*(HARMEAN((IF(SUM(COUNTIF($Z$3:Z18,1),COUNTIF($Z$3:Z18,-1))=0,1,SUM(COUNTIF($Z$3:Z18,1),COUNTIF($Z$3:Z18,-1)))),(IF(SUM(COUNTIF($AC$3:AC18,1),COUNTIF($AC$3:AC18,-1))=0,1,SUM(COUNTIF($AC$3:AC18,1),COUNTIF($AC$3:AC18,-1)))),(IF(SUM(COUNTIF($AE$3:AE18,1),COUNTIF($AE$3:AE18,-1))=0,1,SUM(COUNTIF($AE$3:AE18,1),COUNTIF($AE$3:AE18,-1)))),(IF(SUM(COUNTIF($AG$3:AG18,1),COUNTIF($AG$3:AG18,-1))=0,1,SUM(COUNTIF($AG$3:AG18,1),COUNTIF($AG$3:AG18,-1)))),(IF(SUM(COUNTIF($AI$3:AI18,1),COUNTIF($AI$3:AI18,-1))=0,1,SUM(COUNTIF($AI$3:AI18,1),COUNTIF($AI$3:AI18,-1)))),(IF(SUM(COUNTIF($AK$3:AK18,1),COUNTIF($AK$3:AK18,-1))=0,1,SUM(COUNTIF($AK$3:AK18,1),COUNTIF($AK$3:AK18,-1)))))/1000) -> 0.225 | CN18: 3.215
A19: 16 | B19: Yuri | D19: =+IFERROR(INDEX('Auswertung AoE II'!$AE:$AE,MATCH(A19,'Auswertung AoE II'!$AD:$AD,0)),"") ->  | E19: =+IFERROR(INDEX('Auswertung AoE III'!$AE:$AE,MATCH(A19,'Auswertung AoE III'!$AD:$AD,0)),"") ->  | F19: =+IFERROR(INDEX('Auswertung AoM'!$AE:$AE,MATCH(A19,'Auswertung AoM'!$AD:$AD,0)),"") ->  | G19: =+IFERROR(INDEX('Auswertung RA'!$AE:$AE,MATCH(A19,'Auswertung RA'!$AD:$AD,0)),"") ->  | H19: =+IFERROR(INDEX('Auswertung Yuri'!$AE:$AE,MATCH(A19,'Auswertung Yuri'!$AD:$AD,0)),"") -> Yuri | I19: =+IFERROR(INDEX('Auswertung Generals'!$AE:$AE,MATCH(A19,'Auswertung Generals'!$AD:$AD,0)),"") ->  | J19: Auswertung Yuri | M19: =+IF(ISERROR(+INDIRECT(CONCATENATE("'",J19,"'!",(ADDRESS((COUNTIF($J$3:J19,IF(B19<>0,CONCATENATE("Auswertung ",B19,""))))+2,2)))))=FALSE,+INDIRECT(CONCATENATE("'",J19,"'!",(ADDRESS((COUNTIF($J$3:J19,IF(B19<>0,CONCATENATE("Auswertung ",B19,""))))+4,2)))),"") -> 67 | N19: =IF(ISERROR(+INDIRECT(CONCATENATE("'",J19,"'!",(ADDRESS((COUNTIF($J$3:J19,IF(B19<>0,CONCATENATE("Auswertung ",B19,""))))+2,2+1)))))=FALSE,+INDIRECT(CONCATENATE("'",J19,"'!",(ADDRESS((COUNTIF($J$3:J19,IF(B19<>0,CONCATENATE("Auswertung ",B19,""))))+4,2+1)))),"") -> Irak | O19: =+IF(ISERROR(+INDIRECT(CONCATENATE("'",J19,"'!",(ADDRESS((COUNTIF($J$3:J19,IF(B19<>0,CONCATENATE("Auswertung ",B19,""))))+2,4)))))=FALSE,+INDIRECT(CONCATENATE("'",J19,"'!",(ADDRESS((COUNTIF($J$3:J19,IF(B19<>0,CONCATENATE("Auswertung ",B19,""))))+4,4)))),"") -> 74 | P19: =+IF(ISERROR(+INDIRECT(CONCATENATE("'",J19,"'!",(ADDRESS((COUNTIF($J$3:J19,IF(B19<>0,CONCATENATE("Auswertung ",B19,""))))+2,5)))))=FALSE,+INDIRECT(CONCATENATE("'",J19,"'!",(ADDRESS((COUNTIF($J$3:J19,IF(B19<>0,CONCATENATE("Auswertung ",B19,""))))+4,5)))),"") -> Irak | Q19: =+IF(ISERROR(+INDIRECT(CONCATENATE("'",J19,"'!",(ADDRESS((COUNTIF($J$3:J19,IF(B19<>0,CONCATENATE("Auswertung ",B19,""))))+2,6)))))=FALSE,+INDIRECT(CONCATENATE("'",J19,"'!",(ADDRESS((COUNTIF($J$3:J19,IF(B19<>0,CONCATENATE("Auswertung ",B19,""))))+4,6)))),"") -> 92 | R19: =+IF(ISERROR(+INDIRECT(CONCATENATE("'",J19,"'!",(ADDRESS((COUNTIF($J$3:J19,IF(B19<>0,CONCATENATE("Auswertung ",B19,""))))+2,7)))))=FALSE,+INDIRECT(CONCATENATE("'",J19,"'!",(ADDRESS((COUNTIF($J$3:J19,IF(B19<>0,CONCATENATE("Auswertung ",B19,""))))+4,7)))),"") -> Yur | S19: =+IF(ISERROR(+INDIRECT(CONCATENATE("'",J19,"'!",(ADDRESS((COUNTIF($J$3:J19,IF(B19<>0,CONCATENATE("Auswertung ",B19,""))))+2,10)))))=FALSE,+INDIRECT(CONCATENATE("'",J19,"'!",(ADDRESS((COUNTIF($J$3:J19,IF(B19<>0,CONCATENATE("Auswertung ",B19,""))))+4,8)))),"") -> 63 | T19: =+IF(ISERROR(+INDIRECT(CONCATENATE("'",J19,"'!",(ADDRESS((COUNTIF($J$3:J19,IF(B19<>0,CONCATENATE("Auswertung ",B19,""))))+2,11)))))=FALSE,+INDIRECT(CONCATENATE("'",J19,"'!",(ADDRESS((COUNTIF($J$3:J19,IF(B19<>0,CONCATENATE("Auswertung ",B19,""))))+4,9)))),"") -> Fran | U19: =+IF(ISERROR(+INDIRECT(CONCATENATE("'",J19,"'!",(ADDRESS((COUNTIF($J$3:J19,IF(B19<>0,CONCATENATE("Auswertung ",B19,""))))+2,10)))))=FALSE,+INDIRECT(CONCATENATE("'",J19,"'!",(ADDRESS((COUNTIF($J$3:J19,IF(B19<>0,CONCATENATE("Auswertung ",B19,""))))+4,10)))),"") -> 25 | V19: =+IF(ISERROR(+INDIRECT(CONCATENATE("'",J19,"'!",(ADDRESS((COUNTIF($J$3:J19,IF(B19<>0,CONCATENATE("Auswertung ",B19,""))))+2,11)))))=FALSE,+INDIRECT(CONCATENATE("'",J19,"'!",(ADDRESS((COUNTIF($J$3:J19,IF(B19<>0,CONCATENATE("Auswertung ",B19,""))))+4,11)))),"") -> Fran | W19: =+IF(ISERROR(+INDIRECT(CONCATENATE("'",J19,"'!",(ADDRESS((COUNTIF($J$3:J19,IF(D19<>0,CONCATENATE("Auswertung ",D19,""))))+2,12)))))=FALSE,+INDIRECT(CONCATENATE("'",J19,"'!",(ADDRESS((COUNTIF($J$3:J19,IF(D19<>0,CONCATENATE("Auswertung ",B19,""))))+4,12)))),"") -> 36 | X19: =+IF(ISERROR(+INDIRECT(CONCATENATE("'",J19,"'!",(ADDRESS((COUNTIF($J$3:J19,IF(D19<>0,CONCATENATE("Auswertung ",D19,""))))+2,13)))))=FALSE,+INDIRECT(CONCATENATE("'",J19,"'!",(ADDRESS((COUNTIF($J$3:J19,IF(D19<>0,CONCATENATE("Auswertung ",B19,""))))+4,13)))),"") -> Yur | Z19: =+IFERROR(INDIRECT(CONCATENATE("'",J19,"'!",(ADDRESS((COUNTIF($J$3:J19,IF(B19<>0,J19)))+4,16)))),"") -> -1 | AA19: 8.632 | AB19: =+SUM($M$4:M19)/COUNT($M$4:M19)/1000*2 -> 0.174375 | AC19: =+IFERROR(INDIRECT(CONCATENATE("'",J19,"'!",(ADDRESS((COUNTIF($J$3:J19,IF(B19<>0,J19)))+4,18)))),"") -> 1 | AD19: 11.803 | AE19: =+IFERROR(INDIRECT(CONCATENATE("'",J19,"'!",(ADDRESS((COUNTIF($J$3:J19,IF(B19<>0,J19)))+4,20)))),"") -> 1 | AF19: -0.88 | AG19: =+IFERROR(INDIRECT(CONCATENATE("'",J19,"'!",(ADDRESS((COUNTIF($J$3:J19,IF(B19<>0,J19)))+4,22)))),"") -> -1 | AH19: 2.459 | AI19: =+IFERROR(INDIRECT(CONCATENATE("'",J19,"'!",(ADDRESS((COUNTIF($J$3:J19,IF(B19<>0,J19)))+4,24)))),"") -> 1 | AJ19: -10.848 | AK19: =+IFERROR(INDIRECT(CONCATENATE("'",J19,"'!",(ADDRESS((COUNTIF($J$3:J19,IF(B19<>0,J19)))+4,26)))),"") -> -1 | AL19: 1.886 | AM19: 16 | AN19: =+SUM(COUNTIF($Z$3:Z19,1),COUNTIF($Z$3:Z19,-1)) -> 16 | AO19: =+SUM($M$4:M19) -> 1395 | AP19: 87.1875 | AQ19: =+SUM(COUNTIF($Z$3:Z19,1)) -> 10 | AR19: =+SUM(COUNTIF($Z$3:Z19,-1)) -> 6 | AS19: 4 | AT19: =AN19*(HARMEAN((IF(SUM(COUNTIF($Z$3:Z19,1),COUNTIF($Z$3:Z19,-1))=0,1,SUM(COUNTIF($Z$3:Z19,1),COUNTIF($Z$3:Z19,-1)))),(IF(SUM(COUNTIF($AC$3:AC19,1),COUNTIF($AC$3:AC19,-1))=0,1,SUM(COUNTIF($AC$3:AC19,1),COUNTIF($AC$3:AC19,-1)))),(IF(SUM(COUNTIF($AE$3:AE19,1),COUNTIF($AE$3:AE19,-1))=0,1,SUM(COUNTIF($AE$3:AE19,1),COUNTIF($AE$3:AE19,-1)))),(IF(SUM(COUNTIF($AG$3:AG19,1),COUNTIF($AG$3:AG19,-1))=0,1,SUM(COUNTIF($AG$3:AG19,1),COUNTIF($AG$3:AG19,-1)))),(IF(SUM(COUNTIF($AI$3:AI19,1),COUNTIF($AI$3:AI19,-1))=0,1,SUM(COUNTIF($AI$3:AI19,1),COUNTIF($AI$3:AI19,-1)))),(IF(SUM(COUNTIF($AK$3:AK19,1),COUNTIF($AK$3:AK19,-1))=0,1,SUM(COUNTIF($AK$3:AK19,1),COUNTIF($AK$3:AK19,-1)))))/1000) -> 0.256 | AU19: 8.632 | AW19: =+SUM(COUNTIF($AC$3:AC19,1),COUNTIF($AC$3:AC19,-1)) -> 16 | AX19: =+SUM($O$4:O19) -> 1377 | AY19: 86.0625 | AZ19: =+SUM(COUNTIF($AC$3:AC19,1)) -> 11 | BA19: =+SUM(COUNTIF($AC$3:AC19,-1)) -> 5 | BB19: 6 | BC19: =AW19*(HARMEAN((IF(SUM(COUNTIF($Z$3:Z19,1),COUNTIF($Z$3:Z19,-1))=0,1,SUM(COUNTIF($Z$3:Z19,1),COUNTIF($Z$3:Z19,-1)))),(IF(SUM(COUNTIF($AC$3:AC19,1),COUNTIF($AC$3:AC19,-1))=0,1,SUM(COUNTIF($AC$3:AC19,1),COUNTIF($AC$3:AC19,-1)))),(IF(SUM(COUNTIF($AE$3:AE19,1),COUNTIF($AE$3:AE19,-1))=0,1,SUM(COUNTIF($AE$3:AE19,1),COUNTIF($AE$3:AE19,-1)))),(IF(SUM(COUNTIF($AG$3:AG19,1),COUNTIF($AG$3:AG19,-1))=0,1,SUM(COUNTIF($AG$3:AG19,1),COUNTIF($AG$3:AG19,-1)))),(IF(SUM(COUNTIF($AI$3:AI19,1),COUNTIF($AI$3:AI19,-1))=0,1,SUM(COUNTIF($AI$3:AI19,1),COUNTIF($AI$3:AI19,-1)))),(IF(SUM(COUNTIF($AK$3:AK19,1),COUNTIF($AK$3:AK19,-1))=0,1,SUM(COUNTIF($AK$3:AK19,1),COUNTIF($AK$3:AK19,-1)))))/1000) -> 0.256 | BD19: 11.803 | BF19: =+SUM(COUNTIF($AE$3:AE19,1),COUNTIF(AE$3:$AE19,-1)) -> 16 | BG19: =+SUM($Q$4:Q19) -> 1450 | BH19: 90.625 | BI19: =+SUM(COUNTIF($AE$3:AE19,1)) -> 7 | BJ19: =+SUM(COUNTIF($AE$3:AE19,-1)) -> 9 | BK19: -2 | BL19: =BF19*(HARMEAN((IF(SUM(COUNTIF($Z$3:Z19,1),COUNTIF($Z$3:Z19,-1))=0,1,SUM(COUNTIF($Z$3:Z19,1),COUNTIF($Z$3:Z19,-1)))),(IF(SUM(COUNTIF($AC$3:AC19,1),COUNTIF($AC$3:AC19,-1))=0,1,SUM(COUNTIF($AC$3:AC19,1),COUNTIF($AC$3:AC19,-1)))),(IF(SUM(COUNTIF($AE$3:AE19,1),COUNTIF($AE$3:AE19,-1))=0,1,SUM(COUNTIF($AE$3:AE19,1),COUNTIF($AE$3:AE19,-1)))),(IF(SUM(COUNTIF($AG$3:AG19,1),COUNTIF($AG$3:AG19,-1))=0,1,SUM(COUNTIF($AG$3:AG19,1),COUNTIF($AG$3:AG19,-1)))),(IF(SUM(COUNTIF($AI$3:AI19,1),COUNTIF($AI$3:AI19,-1))=0,1,SUM(COUNTIF($AI$3:AI19,1),COUNTIF($AI$3:AI19,-1)))),(IF(SUM(COUNTIF($AK$3:AK19,1),COUNTIF($AK$3:AK19,-1))=0,1,SUM(COUNTIF($AK$3:AK19,1),COUNTIF($AK$3:AK19,-1)))))/1000) -> 0.256 | BM19: -0.88 | BO19: =+SUM(COUNTIF($AG$3:AG19,1),COUNTIF($AG$3:AG19,-1)) -> 16 | BP19: =+SUM($S$4:S19) -> 1537 | BQ19: 96.0625 | BR19: =+SUM(COUNTIF($AG$3:AG19,1)) -> 8 | BS19: =+SUM(COUNTIF($AG$3:AG19,-1)) -> 8 | BT19: 0 | BU19: =BO19*(HARMEAN((IF(SUM(COUNTIF($Z$3:Z19,1),COUNTIF($Z$3:Z19,-1))=0,1,SUM(COUNTIF($Z$3:Z19,1),COUNTIF($Z$3:Z19,-1)))),(IF(SUM(COUNTIF($AC$3:AC19,1),COUNTIF($AC$3:AC19,-1))=0,1,SUM(COUNTIF($AC$3:AC19,1),COUNTIF($AC$3:AC19,-1)))),(IF(SUM(COUNTIF($AE$3:AE19,1),COUNTIF($AE$3:AE19,-1))=0,1,SUM(COUNTIF($AE$3:AE19,1),COUNTIF($AE$3:AE19,-1)))),(IF(SUM(COUNTIF($AG$3:AG19,1),COUNTIF($AG$3:AG19,-1))=0,1,SUM(COUNTIF($AG$3:AG19,1),COUNTIF($AG$3:AG19,-1)))),(IF(SUM(COUNTIF($AI$3:AI19,1),COUNTIF($AI$3:AI19,-1))=0,1,SUM(COUNTIF($AI$3:AI19,1),COUNTIF($AI$3:AI19,-1)))),(IF(SUM(COUNTIF($AK$3:AK19,1),COUNTIF($AK$3:AK19,-1))=0,1,SUM(COUNTIF($AK$3:AK19,1),COUNTIF($AK$3:AK19,-1)))))/1000) -> 0.256 | BV19: 2.459 | BX19: =+SUM(COUNTIF($AI$3:AI19,1),COUNTIF($AI$3:AI19,-1)) -> 16 | BY19: =+SUM($U$4:U19) -> 1220 | BZ19: 76.25 | CA19: =+SUM(COUNTIF($AI$3:AI19,1)) -> 4 | CB19: =+SUM(COUNTIF($AI$3:AI19,-1)) -> 12 | CC19: -8 | CD19: =+BX19*(HARMEAN((IF(SUM(COUNTIF($Z$3:Z19,1),COUNTIF($Z$3:Z19,-1))=0,1,SUM(COUNTIF($Z$3:Z19,1),COUNTIF($Z$3:Z19,-1)))),(IF(SUM(COUNTIF($AC$3:AC19,1),COUNTIF($AC$3:AC19,-1))=0,1,SUM(COUNTIF($AC$3:AC19,1),COUNTIF($AC$3:AC19,-1)))),(IF(SUM(COUNTIF($AE$3:AE19,1),COUNTIF($AE$3:AE19,-1))=0,1,SUM(COUNTIF($AE$3:AE19,1),COUNTIF($AE$3:AE19,-1)))),(IF(SUM(COUNTIF($AG$3:AG19,1),COUNTIF($AG$3:AG19,-1))=0,1,SUM(COUNTIF($AG$3:AG19,1),COUNTIF($AG$3:AG19,-1)))),(IF(SUM(COUNTIF($AI$3:AI19,1),COUNTIF($AI$3:AI19,-1))=0,1,SUM(COUNTIF($AI$3:AI19,1),COUNTIF($AI$3:AI19,-1)))),(IF(SUM(COUNTIF($AK$3:AK19,1),COUNTIF($AK$3:AK19,-1))=0,1,SUM(COUNTIF($AK$3:AK19,1),COUNTIF($AK$3:AK19,-1)))))/1000) -> 0.256 | CE19: -10.848 | CG19: =+SUM(COUNTIF($AK$3:AK19,1),COUNTIF($AK$3:AK19,-1)) -> 16 | CH19: =+SUM($W$4:W19) -> 1179 | CI19: 73.6875 | CJ19: =+SUM(COUNTIF($AK$3:AK19,1)) -> 8 | CK19: =+SUM(COUNTIF($AK$3:AK19,-1)) -> 8 | CL19: 0 | CM19: =+CG19*(HARMEAN((IF(SUM(COUNTIF($Z$3:Z19,1),COUNTIF($Z$3:Z19,-1))=0,1,SUM(COUNTIF($Z$3:Z19,1),COUNTIF($Z$3:Z19,-1)))),(IF(SUM(COUNTIF($AC$3:AC19,1),COUNTIF($AC$3:AC19,-1))=0,1,SUM(COUNTIF($AC$3:AC19,1),COUNTIF($AC$3:AC19,-1)))),(IF(SUM(COUNTIF($AE$3:AE19,1),COUNTIF($AE$3:AE19,-1))=0,1,SUM(COUNTIF($AE$3:AE19,1),COUNTIF($AE$3:AE19,-1)))),(IF(SUM(COUNTIF($AG$3:AG19,1),COUNTIF($AG$3:AG19,-1))=0,1,SUM(COUNTIF($AG$3:AG19,1),COUNTIF($AG$3:AG19,-1)))),(IF(SUM(COUNTIF($AI$3:AI19,1),COUNTIF($AI$3:AI19,-1))=0,1,SUM(COUNTIF($AI$3:AI19,1),COUNTIF($AI$3:AI19,-1)))),(IF(SUM(COUNTIF($AK$3:AK19,1),COUNTIF($AK$3:AK19,-1))=0,1,SUM(COUNTIF($AK$3:AK19,1),COUNTIF($AK$3:AK19,-1)))))/1000) -> 0.256 | CN19: 1.886
A20: 17 | B20: Generals | D20: =+IFERROR(INDEX('Auswertung AoE II'!$AE:$AE,MATCH(A20,'Auswertung AoE II'!$AD:$AD,0)),"") ->  | E20: =+IFERROR(INDEX('Auswertung AoE III'!$AE:$AE,MATCH(A20,'Auswertung AoE III'!$AD:$AD,0)),"") ->  | F20: =+IFERROR(INDEX('Auswertung AoM'!$AE:$AE,MATCH(A20,'Auswertung AoM'!$AD:$AD,0)),"") ->  | G20: =+IFERROR(INDEX('Auswertung RA'!$AE:$AE,MATCH(A20,'Auswertung RA'!$AD:$AD,0)),"") ->  | H20: =+IFERROR(INDEX('Auswertung Yuri'!$AE:$AE,MATCH(A20,'Auswertung Yuri'!$AD:$AD,0)),"") ->  | I20: =+IFERROR(INDEX('Auswertung Generals'!$AE:$AE,MATCH(A20,'Auswertung Generals'!$AD:$AD,0)),"") -> Generals | J20: Auswertung Generals | M20: =+IF(ISERROR(+INDIRECT(CONCATENATE("'",J20,"'!",(ADDRESS((COUNTIF($J$3:J20,IF(B20<>0,CONCATENATE("Auswertung ",B20,""))))+2,2)))))=FALSE,+INDIRECT(CONCATENATE("'",J20,"'!",(ADDRESS((COUNTIF($J$3:J20,IF(B20<>0,CONCATENATE("Auswertung ",B20,""))))+4,2)))),"") -> 48 | N20: =IF(ISERROR(+INDIRECT(CONCATENATE("'",J20,"'!",(ADDRESS((COUNTIF($J$3:J20,IF(B20<>0,CONCATENATE("Auswertung ",B20,""))))+2,2+1)))))=FALSE,+INDIRECT(CONCATENATE("'",J20,"'!",(ADDRESS((COUNTIF($J$3:J20,IF(B20<>0,CONCATENATE("Auswertung ",B20,""))))+4,2+1)))),"") -> AP | O20: =+IF(ISERROR(+INDIRECT(CONCATENATE("'",J20,"'!",(ADDRESS((COUNTIF($J$3:J20,IF(B20<>0,CONCATENATE("Auswertung ",B20,""))))+2,4)))))=FALSE,+INDIRECT(CONCATENATE("'",J20,"'!",(ADDRESS((COUNTIF($J$3:J20,IF(B20<>0,CONCATENATE("Auswertung ",B20,""))))+4,4)))),"") -> 45 | P20: =+IF(ISERROR(+INDIRECT(CONCATENATE("'",J20,"'!",(ADDRESS((COUNTIF($J$3:J20,IF(B20<>0,CONCATENATE("Auswertung ",B20,""))))+2,5)))))=FALSE,+INDIRECT(CONCATENATE("'",J20,"'!",(ADDRESS((COUNTIF($J$3:J20,IF(B20<>0,CONCATENATE("Auswertung ",B20,""))))+4,5)))),"") -> IBG | Q20: =+IF(ISERROR(+INDIRECT(CONCATENATE("'",J20,"'!",(ADDRESS((COUNTIF($J$3:J20,IF(B20<>0,CONCATENATE("Auswertung ",B20,""))))+2,6)))))=FALSE,+INDIRECT(CONCATENATE("'",J20,"'!",(ADDRESS((COUNTIF($J$3:J20,IF(B20<>0,CONCATENATE("Auswertung ",B20,""))))+4,6)))),"") -> 57 | R20: =+IF(ISERROR(+INDIRECT(CONCATENATE("'",J20,"'!",(ADDRESS((COUNTIF($J$3:J20,IF(B20<>0,CONCATENATE("Auswertung ",B20,""))))+2,7)))))=FALSE,+INDIRECT(CONCATENATE("'",J20,"'!",(ADDRESS((COUNTIF($J$3:J20,IF(B20<>0,CONCATENATE("Auswertung ",B20,""))))+4,7)))),"") -> AP | S20: =+IF(ISERROR(+INDIRECT(CONCATENATE("'",J20,"'!",(ADDRESS((COUNTIF($J$3:J20,IF(B20<>0,CONCATENATE("Auswertung ",B20,""))))+2,10)))))=FALSE,+INDIRECT(CONCATENATE("'",J20,"'!",(ADDRESS((COUNTIF($J$3:J20,IF(B20<>0,CONCATENATE("Auswertung ",B20,""))))+4,8)))),"") -> 33 | T20: =+IF(ISERROR(+INDIRECT(CONCATENATE("'",J20,"'!",(ADDRESS((COUNTIF($J$3:J20,IF(B20<>0,CONCATENATE("Auswertung ",B20,""))))+2,11)))))=FALSE,+INDIRECT(CONCATENATE("'",J20,"'!",(ADDRESS((COUNTIF($J$3:J20,IF(B20<>0,CONCATENATE("Auswertung ",B20,""))))+4,9)))),"") -> AP | U20: =+IF(ISERROR(+INDIRECT(CONCATENATE("'",J20,"'!",(ADDRESS((COUNTIF($J$3:J20,IF(B20<>0,CONCATENATE("Auswertung ",B20,""))))+2,10)))))=FALSE,+INDIRECT(CONCATENATE("'",J20,"'!",(ADDRESS((COUNTIF($J$3:J20,IF(B20<>0,CONCATENATE("Auswertung ",B20,""))))+4,10)))),"") -> 22 | V20: =+IF(ISERROR(+INDIRECT(CONCATENATE("'",J20,"'!",(ADDRESS((COUNTIF($J$3:J20,IF(B20<>0,CONCATENATE("Auswertung ",B20,""))))+2,11)))))=FALSE,+INDIRECT(CONCATENATE("'",J20,"'!",(ADDRESS((COUNTIF($J$3:J20,IF(B20<>0,CONCATENATE("Auswertung ",B20,""))))+4,11)))),"") -> IBG | W20: =+IF(ISERROR(+INDIRECT(CONCATENATE("'",J20,"'!",(ADDRESS((COUNTIF($J$3:J20,IF(D20<>0,CONCATENATE("Auswertung ",D20,""))))+2,12)))))=FALSE,+INDIRECT(CONCATENATE("'",J20,"'!",(ADDRESS((COUNTIF($J$3:J20,IF(D20<>0,CONCATENATE("Auswertung ",B20,""))))+4,12)))),"") -> 16 | X20: =+IF(ISERROR(+INDIRECT(CONCATENATE("'",J20,"'!",(ADDRESS((COUNTIF($J$3:J20,IF(D20<>0,CONCATENATE("Auswertung ",D20,""))))+2,13)))))=FALSE,+INDIRECT(CONCATENATE("'",J20,"'!",(ADDRESS((COUNTIF($J$3:J20,IF(D20<>0,CONCATENATE("Auswertung ",B20,""))))+4,13)))),"") -> AP | Z20: =+IFERROR(INDIRECT(CONCATENATE("'",J20,"'!",(ADDRESS((COUNTIF($J$3:J20,IF(B20<>0,J20)))+4,16)))),"") -> 1 | AA20: 10.953 | AB20: =+SUM($M$4:M20)/COUNT($M$4:M20)/1000*2 -> 0.1697647059 | AC20: =+IFERROR(INDIRECT(CONCATENATE("'",J20,"'!",(ADDRESS((COUNTIF($J$3:J20,IF(B20<>0,J20)))+4,18)))),"") -> -1 | AD20: 10.917 | AE20: =+IFERROR(INDIRECT(CONCATENATE("'",J20,"'!",(ADDRESS((COUNTIF($J$3:J20,IF(B20<>0,J20)))+4,20)))),"") -> 1 | AF20: 0.862 | AG20: =+IFERROR(INDIRECT(CONCATENATE("'",J20,"'!",(ADDRESS((COUNTIF($J$3:J20,IF(B20<>0,J20)))+4,22)))),"") -> -1 | AH20: 0.969 | AI20: =+IFERROR(INDIRECT(CONCATENATE("'",J20,"'!",(ADDRESS((COUNTIF($J$3:J20,IF(B20<>0,J20)))+4,24)))),"") -> 1 | AJ20: -9.789 | AK20: =+IFERROR(INDIRECT(CONCATENATE("'",J20,"'!",(ADDRESS((COUNTIF($J$3:J20,IF(B20<>0,J20)))+4,26)))),"") -> -1 | AL20: 0.332 | AM20: 17 | AN20: =+SUM(COUNTIF($Z$3:Z20,1),COUNTIF($Z$3:Z20,-1)) -> 17 | AO20: =+SUM($M$4:M20) -> 1443 | AP20: 84.88235294 | AQ20: =+SUM(COUNTIF($Z$3:Z20,1)) -> 11 | AR20: =+SUM(COUNTIF($Z$3:Z20,-1)) -> 6 | AS20: 5 | AT20: =AN20*(HARMEAN((IF(SUM(COUNTIF($Z$3:Z20,1),COUNTIF($Z$3:Z20,-1))=0,1,SUM(COUNTIF($Z$3:Z20,1),COUNTIF($Z$3:Z20,-1)))),(IF(SUM(COUNTIF($AC$3:AC20,1),COUNTIF($AC$3:AC20,-1))=0,1,SUM(COUNTIF($AC$3:AC20,1),COUNTIF($AC$3:AC20,-1)))),(IF(SUM(COUNTIF($AE$3:AE20,1),COUNTIF($AE$3:AE20,-1))=0,1,SUM(COUNTIF($AE$3:AE20,1),COUNTIF($AE$3:AE20,-1)))),(IF(SUM(COUNTIF($AG$3:AG20,1),COUNTIF($AG$3:AG20,-1))=0,1,SUM(COUNTIF($AG$3:AG20,1),COUNTIF($AG$3:AG20,-1)))),(IF(SUM(COUNTIF($AI$3:AI20,1),COUNTIF($AI$3:AI20,-1))=0,1,SUM(COUNTIF($AI$3:AI20,1),COUNTIF($AI$3:AI20,-1)))),(IF(SUM(COUNTIF($AK$3:AK20,1),COUNTIF($AK$3:AK20,-1))=0,1,SUM(COUNTIF($AK$3:AK20,1),COUNTIF($AK$3:AK20,-1)))))/1000) -> 0.289 | AU20: 10.953 | AW20: =+SUM(COUNTIF($AC$3:AC20,1),COUNTIF($AC$3:AC20,-1)) -> 17 | AX20: =+SUM($O$4:O20) -> 1422 | AY20: 83.64705882 | AZ20: =+SUM(COUNTIF($AC$3:AC20,1)) -> 11 | BA20: =+SUM(COUNTIF($AC$3:AC20,-1)) -> 6 | BB20: 5 | BC20: =AW20*(HARMEAN((IF(SUM(COUNTIF($Z$3:Z20,1),COUNTIF($Z$3:Z20,-1))=0,1,SUM(COUNTIF($Z$3:Z20,1),COUNTIF($Z$3:Z20,-1)))),(IF(SUM(COUNTIF($AC$3:AC20,1),COUNTIF($AC$3:AC20,-1))=0,1,SUM(COUNTIF($AC$3:AC20,1),COUNTIF($AC$3:AC20,-1)))),(IF(SUM(COUNTIF($AE$3:AE20,1),COUNTIF($AE$3:AE20,-1))=0,1,SUM(COUNTIF($AE$3:AE20,1),COUNTIF($AE$3:AE20,-1)))),(IF(SUM(COUNTIF($AG$3:AG20,1),COUNTIF($AG$3:AG20,-1))=0,1,SUM(COUNTIF($AG$3:AG20,1),COUNTIF($AG$3:AG20,-1)))),(IF(SUM(COUNTIF($AI$3:AI20,1),COUNTIF($AI$3:AI20,-1))=0,1,SUM(COUNTIF($AI$3:AI20,1),COUNTIF($AI$3:AI20,-1)))),(IF(SUM(COUNTIF($AK$3:AK20,1),COUNTIF($AK$3:AK20,-1))=0,1,SUM(COUNTIF($AK$3:AK20,1),COUNTIF($AK$3:AK20,-1)))))/1000) -> 0.289 | BD20: 10.917 | BF20: =+SUM(COUNTIF($AE$3:AE20,1),COUNTIF(AE$3:$AE20,-1)) -> 17 | BG20: =+SUM($Q$4:Q20) -> 1507 | BH20: 88.64705882 | BI20: =+SUM(COUNTIF($AE$3:AE20,1)) -> 8 | BJ20: =+SUM(COUNTIF($AE$3:AE20,-1)) -> 9 | BK20: -1 | BL20: =BF20*(HARMEAN((IF(SUM(COUNTIF($Z$3:Z20,1),COUNTIF($Z$3:Z20,-1))=0,1,SUM(COUNTIF($Z$3:Z20,1),COUNTIF($Z$3:Z20,-1)))),(IF(SUM(COUNTIF($AC$3:AC20,1),COUNTIF($AC$3:AC20,-1))=0,1,SUM(COUNTIF($AC$3:AC20,1),COUNTIF($AC$3:AC20,-1)))),(IF(SUM(COUNTIF($AE$3:AE20,1),COUNTIF($AE$3:AE20,-1))=0,1,SUM(COUNTIF($AE$3:AE20,1),COUNTIF($AE$3:AE20,-1)))),(IF(SUM(COUNTIF($AG$3:AG20,1),COUNTIF($AG$3:AG20,-1))=0,1,SUM(COUNTIF($AG$3:AG20,1),COUNTIF($AG$3:AG20,-1)))),(IF(SUM(COUNTIF($AI$3:AI20,1),COUNTIF($AI$3:AI20,-1))=0,1,SUM(COUNTIF($AI$3:AI20,1),COUNTIF($AI$3:AI20,-1)))),(IF(SUM(COUNTIF($AK$3:AK20,1),COUNTIF($AK$3:AK20,-1))=0,1,SUM(COUNTIF($AK$3:AK20,1),COUNTIF($AK$3:AK20,-1)))))/1000) -> 0.289 | BM20: 0.862 | BO20: =+SUM(COUNTIF($AG$3:AG20,1),COUNTIF($AG$3:AG20,-1)) -> 17 | BP20: =+SUM($S$4:S20) -> 1570 | BQ20: 92.35294118 | BR20: =+SUM(COUNTIF($AG$3:AG20,1)) -> 8 | BS20: =+SUM(COUNTIF($AG$3:AG20,-1)) -> 9 | BT20: -1 | BU20: =BO20*(HARMEAN((IF(SUM(COUNTIF($Z$3:Z20,1),COUNTIF($Z$3:Z20,-1))=0,1,SUM(COUNTIF($Z$3:Z20,1),COUNTIF($Z$3:Z20,-1)))),(IF(SUM(COUNTIF($AC$3:AC20,1),COUNTIF($AC$3:AC20,-1))=0,1,SUM(COUNTIF($AC$3:AC20,1),COUNTIF($AC$3:AC20,-1)))),(IF(SUM(COUNTIF($AE$3:AE20,1),COUNTIF($AE$3:AE20,-1))=0,1,SUM(COUNTIF($AE$3:AE20,1),COUNTIF($AE$3:AE20,-1)))),(IF(SUM(COUNTIF($AG$3:AG20,1),COUNTIF($AG$3:AG20,-1))=0,1,SUM(COUNTIF($AG$3:AG20,1),COUNTIF($AG$3:AG20,-1)))),(IF(SUM(COUNTIF($AI$3:AI20,1),COUNTIF($AI$3:AI20,-1))=0,1,SUM(COUNTIF($AI$3:AI20,1),COUNTIF($AI$3:AI20,-1)))),(IF(SUM(COUNTIF($AK$3:AK20,1),COUNTIF($AK$3:AK20,-1))=0,1,SUM(COUNTIF($AK$3:AK20,1),COUNTIF($AK$3:AK20,-1)))))/1000) -> 0.289 | BV20: 0.969 | BX20: =+SUM(COUNTIF($AI$3:AI20,1),COUNTIF($AI$3:AI20,-1)) -> 17 | BY20: =+SUM($U$4:U20) -> 1242 | BZ20: 73.05882353 | CA20: =+SUM(COUNTIF($AI$3:AI20,1)) -> 5 | CB20: =+SUM(COUNTIF($AI$3:AI20,-1)) -> 12 | CC20: -7 | CD20: =+BX20*(HARMEAN((IF(SUM(COUNTIF($Z$3:Z20,1),COUNTIF($Z$3:Z20,-1))=0,1,SUM(COUNTIF($Z$3:Z20,1),COUNTIF($Z$3:Z20,-1)))),(IF(SUM(COUNTIF($AC$3:AC20,1),COUNTIF($AC$3:AC20,-1))=0,1,SUM(COUNTIF($AC$3:AC20,1),COUNTIF($AC$3:AC20,-1)))),(IF(SUM(COUNTIF($AE$3:AE20,1),COUNTIF($AE$3:AE20,-1))=0,1,SUM(COUNTIF($AE$3:AE20,1),COUNTIF($AE$3:AE20,-1)))),(IF(SUM(COUNTIF($AG$3:AG20,1),COUNTIF($AG$3:AG20,-1))=0,1,SUM(COUNTIF($AG$3:AG20,1),COUNTIF($AG$3:AG20,-1)))),(IF(SUM(COUNTIF($AI$3:AI20,1),COUNTIF($AI$3:AI20,-1))=0,1,SUM(COUNTIF($AI$3:AI20,1),COUNTIF($AI$3:AI20,-1)))),(IF(SUM(COUNTIF($AK$3:AK20,1),COUNTIF($AK$3:AK20,-1))=0,1,SUM(COUNTIF($AK$3:AK20,1),COUNTIF($AK$3:AK20,-1)))))/1000) -> 0.289 | CE20: -9.789 | CG20: =+SUM(COUNTIF($AK$3:AK20,1),COUNTIF($AK$3:AK20,-1)) -> 17 | CH20: =+SUM($W$4:W20) -> 1195 | CI20: 70.29411765 | CJ20: =+SUM(COUNTIF($AK$3:AK20,1)) -> 8 | CK20: =+SUM(COUNTIF($AK$3:AK20,-1)) -> 9 | CL20: -1 | CM20: =+CG20*(HARMEAN((IF(SUM(COUNTIF($Z$3:Z20,1),COUNTIF($Z$3:Z20,-1))=0,1,SUM(COUNTIF($Z$3:Z20,1),COUNTIF($Z$3:Z20,-1)))),(IF(SUM(COUNTIF($AC$3:AC20,1),COUNTIF($AC$3:AC20,-1))=0,1,SUM(COUNTIF($AC$3:AC20,1),COUNTIF($AC$3:AC20,-1)))),(IF(SUM(COUNTIF($AE$3:AE20,1),COUNTIF($AE$3:AE20,-1))=0,1,SUM(COUNTIF($AE$3:AE20,1),COUNTIF($AE$3:AE20,-1)))),(IF(SUM(COUNTIF($AG$3:AG20,1),COUNTIF($AG$3:AG20,-1))=0,1,SUM(COUNTIF($AG$3:AG20,1),COUNTIF($AG$3:AG20,-1)))),(IF(SUM(COUNTIF($AI$3:AI20,1),COUNTIF($AI$3:AI20,-1))=0,1,SUM(COUNTIF($AI$3:AI20,1),COUNTIF($AI$3:AI20,-1)))),(IF(SUM(COUNTIF($AK$3:AK20,1),COUNTIF($AK$3:AK20,-1))=0,1,SUM(COUNTIF($AK$3:AK20,1),COUNTIF($AK$3:AK20,-1)))))/1000) -> 0.289 | CN20: 0.332
A21: 18 | B21: AoE III | D21: =+IFERROR(INDEX('Auswertung AoE II'!$AE:$AE,MATCH(A21,'Auswertung AoE II'!$AD:$AD,0)),"") ->  | E21: =+IFERROR(INDEX('Auswertung AoE III'!$AE:$AE,MATCH(A21,'Auswertung AoE III'!$AD:$AD,0)),"") -> AoE III | F21: =+IFERROR(INDEX('Auswertung AoM'!$AE:$AE,MATCH(A21,'Auswertung AoM'!$AD:$AD,0)),"") ->  | G21: =+IFERROR(INDEX('Auswertung RA'!$AE:$AE,MATCH(A21,'Auswertung RA'!$AD:$AD,0)),"") ->  | H21: =+IFERROR(INDEX('Auswertung Yuri'!$AE:$AE,MATCH(A21,'Auswertung Yuri'!$AD:$AD,0)),"") ->  | I21: =+IFERROR(INDEX('Auswertung Generals'!$AE:$AE,MATCH(A21,'Auswertung Generals'!$AD:$AD,0)),"") ->  | J21: Auswertung AoE III | M21: =+IF(ISERROR(+INDIRECT(CONCATENATE("'",J21,"'!",(ADDRESS((COUNTIF($J$3:J21,IF(B21<>0,CONCATENATE("Auswertung ",B21,""))))+2,2)))))=FALSE,+INDIRECT(CONCATENATE("'",J21,"'!",(ADDRESS((COUNTIF($J$3:J21,IF(B21<>0,CONCATENATE("Auswertung ",B21,""))))+4,2)))),"") -> 198 | N21: =IF(ISERROR(+INDIRECT(CONCATENATE("'",J21,"'!",(ADDRESS((COUNTIF($J$3:J21,IF(B21<>0,CONCATENATE("Auswertung ",B21,""))))+2,2+1)))))=FALSE,+INDIRECT(CONCATENATE("'",J21,"'!",(ADDRESS((COUNTIF($J$3:J21,IF(B21<>0,CONCATENATE("Auswertung ",B21,""))))+4,2+1)))),"") -> Spa | O21: =+IF(ISERROR(+INDIRECT(CONCATENATE("'",J21,"'!",(ADDRESS((COUNTIF($J$3:J21,IF(B21<>0,CONCATENATE("Auswertung ",B21,""))))+2,4)))))=FALSE,+INDIRECT(CONCATENATE("'",J21,"'!",(ADDRESS((COUNTIF($J$3:J21,IF(B21<>0,CONCATENATE("Auswertung ",B21,""))))+4,4)))),"") -> 108 | P21: =+IF(ISERROR(+INDIRECT(CONCATENATE("'",J21,"'!",(ADDRESS((COUNTIF($J$3:J21,IF(B21<>0,CONCATENATE("Auswertung ",B21,""))))+2,5)))))=FALSE,+INDIRECT(CONCATENATE("'",J21,"'!",(ADDRESS((COUNTIF($J$3:J21,IF(B21<>0,CONCATENATE("Auswertung ",B21,""))))+4,5)))),"") -> Chi | Q21: =+IF(ISERROR(+INDIRECT(CONCATENATE("'",J21,"'!",(ADDRESS((COUNTIF($J$3:J21,IF(B21<>0,CONCATENATE("Auswertung ",B21,""))))+2,6)))))=FALSE,+INDIRECT(CONCATENATE("'",J21,"'!",(ADDRESS((COUNTIF($J$3:J21,IF(B21<>0,CONCATENATE("Auswertung ",B21,""))))+4,6)))),"") -> 341 | R21: =+IF(ISERROR(+INDIRECT(CONCATENATE("'",J21,"'!",(ADDRESS((COUNTIF($J$3:J21,IF(B21<>0,CONCATENATE("Auswertung ",B21,""))))+2,7)))))=FALSE,+INDIRECT(CONCATENATE("'",J21,"'!",(ADDRESS((COUNTIF($J$3:J21,IF(B21<>0,CONCATENATE("Auswertung ",B21,""))))+4,7)))),"") -> Port | S21: =+IF(ISERROR(+INDIRECT(CONCATENATE("'",J21,"'!",(ADDRESS((COUNTIF($J$3:J21,IF(B21<>0,CONCATENATE("Auswertung ",B21,""))))+2,10)))))=FALSE,+INDIRECT(CONCATENATE("'",J21,"'!",(ADDRESS((COUNTIF($J$3:J21,IF(B21<>0,CONCATENATE("Auswertung ",B21,""))))+4,8)))),"") -> 257 | T21: =+IF(ISERROR(+INDIRECT(CONCATENATE("'",J21,"'!",(ADDRESS((COUNTIF($J$3:J21,IF(B21<>0,CONCATENATE("Auswertung ",B21,""))))+2,11)))))=FALSE,+INDIRECT(CONCATENATE("'",J21,"'!",(ADDRESS((COUNTIF($J$3:J21,IF(B21<>0,CONCATENATE("Auswertung ",B21,""))))+4,9)))),"") -> Port | U21: =+IF(ISERROR(+INDIRECT(CONCATENATE("'",J21,"'!",(ADDRESS((COUNTIF($J$3:J21,IF(B21<>0,CONCATENATE("Auswertung ",B21,""))))+2,10)))))=FALSE,+INDIRECT(CONCATENATE("'",J21,"'!",(ADDRESS((COUNTIF($J$3:J21,IF(B21<>0,CONCATENATE("Auswertung ",B21,""))))+4,10)))),"") -> 253 | V21: =+IF(ISERROR(+INDIRECT(CONCATENATE("'",J21,"'!",(ADDRESS((COUNTIF($J$3:J21,IF(B21<>0,CONCATENATE("Auswertung ",B21,""))))+2,11)))))=FALSE,+INDIRECT(CONCATENATE("'",J21,"'!",(ADDRESS((COUNTIF($J$3:J21,IF(B21<>0,CONCATENATE("Auswertung ",B21,""))))+4,11)))),"") -> Chi | W21: =+IF(ISERROR(+INDIRECT(CONCATENATE("'",J21,"'!",(ADDRESS((COUNTIF($J$3:J21,IF(D21<>0,CONCATENATE("Auswertung ",D21,""))))+2,12)))))=FALSE,+INDIRECT(CONCATENATE("'",J21,"'!",(ADDRESS((COUNTIF($J$3:J21,IF(D21<>0,CONCATENATE("Auswertung ",B21,""))))+4,12)))),"") -> 230 | X21: =+IF(ISERROR(+INDIRECT(CONCATENATE("'",J21,"'!",(ADDRESS((COUNTIF($J$3:J21,IF(D21<>0,CONCATENATE("Auswertung ",D21,""))))+2,13)))))=FALSE,+INDIRECT(CONCATENATE("'",J21,"'!",(ADDRESS((COUNTIF($J$3:J21,IF(D21<>0,CONCATENATE("Auswertung ",B21,""))))+4,13)))),"") -> Spa | Z21: =+IFERROR(INDIRECT(CONCATENATE("'",J21,"'!",(ADDRESS((COUNTIF($J$3:J21,IF(B21<>0,J21)))+4,16)))),"") -> -1 | AA21: 10.154 | AB21: =+SUM($M$4:M21)/COUNT($M$4:M21)/1000*2 -> 0.1823333333 | AC21: =+IFERROR(INDIRECT(CONCATENATE("'",J21,"'!",(ADDRESS((COUNTIF($J$3:J21,IF(B21<>0,J21)))+4,18)))),"") -> -1 | AD21: 9.954 | AE21: =+IFERROR(INDIRECT(CONCATENATE("'",J21,"'!",(ADDRESS((COUNTIF($J$3:J21,IF(B21<>0,J21)))+4,20)))),"") -> 1 | AF21: 3.326 | AG21: =+IFERROR(INDIRECT(CONCATENATE("'",J21,"'!",(ADDRESS((COUNTIF($J$3:J21,IF(B21<>0,J21)))+4,22)))),"") -> -1 | AH21: -0.311 | AI21: =+IFERROR(INDIRECT(CONCATENATE("'",J21,"'!",(ADDRESS((COUNTIF($J$3:J21,IF(B21<>0,J21)))+4,24)))),"") -> 1 | AJ21: -8.109 | AK21: =+IFERROR(INDIRECT(CONCATENATE("'",J21,"'!",(ADDRESS((COUNTIF($J$3:J21,IF(B21<>0,J21)))+4,26)))),"") -> 1 | AL21: 2.565 | AM21: 18 | AN21: =+SUM(COUNTIF($Z$3:Z21,1),COUNTIF($Z$3:Z21,-1)) -> 18 | AO21: =+SUM($M$4:M21) -> 1641 | AP21: 91.16666667 | AQ21: =+SUM(COUNTIF($Z$3:Z21,1)) -> 11 | AR21: =+SUM(COUNTIF($Z$3:Z21,-1)) -> 7 | AS21: 4 | AT21: =AN21*(HARMEAN((IF(SUM(COUNTIF($Z$3:Z21,1),COUNTIF($Z$3:Z21,-1))=0,1,SUM(COUNTIF($Z$3:Z21,1),COUNTIF($Z$3:Z21,-1)))),(IF(SUM(COUNTIF($AC$3:AC21,1),COUNTIF($AC$3:AC21,-1))=0,1,SUM(COUNTIF($AC$3:AC21,1),COUNTIF($AC$3:AC21,-1)))),(IF(SUM(COUNTIF($AE$3:AE21,1),COUNTIF($AE$3:AE21,-1))=0,1,SUM(COUNTIF($AE$3:AE21,1),COUNTIF($AE$3:AE21,-1)))),(IF(SUM(COUNTIF($AG$3:AG21,1),COUNTIF($AG$3:AG21,-1))=0,1,SUM(COUNTIF($AG$3:AG21,1),COUNTIF($AG$3:AG21,-1)))),(IF(SUM(COUNTIF($AI$3:AI21,1),COUNTIF($AI$3:AI21,-1))=0,1,SUM(COUNTIF($AI$3:AI21,1),COUNTIF($AI$3:AI21,-1)))),(IF(SUM(COUNTIF($AK$3:AK21,1),COUNTIF($AK$3:AK21,-1))=0,1,SUM(COUNTIF($AK$3:AK21,1),COUNTIF($AK$3:AK21,-1)))))/1000) -> 0.324 | AU21: 10.154 | AW21: =+SUM(COUNTIF($AC$3:AC21,1),COUNTIF($AC$3:AC21,-1)) -> 18 | AX21: =+SUM($O$4:O21) -> 1530 | AY21: 85 | AZ21: =+SUM(COUNTIF($AC$3:AC21,1)) -> 11 | BA21: =+SUM(COUNTIF($AC$3:AC21,-1)) -> 7 | BB21: 4 | BC21: =AW21*(HARMEAN((IF(SUM(COUNTIF($Z$3:Z21,1),COUNTIF($Z$3:Z21,-1))=0,1,SUM(COUNTIF($Z$3:Z21,1),COUNTIF($Z$3:Z21,-1)))),(IF(SUM(COUNTIF($AC$3:AC21,1),COUNTIF($AC$3:AC21,-1))=0,1,SUM(COUNTIF($AC$3:AC21,1),COUNTIF($AC$3:AC21,-1)))),(IF(SUM(COUNTIF($AE$3:AE21,1),COUNTIF($AE$3:AE21,-1))=0,1,SUM(COUNTIF($AE$3:AE21,1),COUNTIF($AE$3:AE21,-1)))),(IF(SUM(COUNTIF($AG$3:AG21,1),COUNTIF($AG$3:AG21,-1))=0,1,SUM(COUNTIF($AG$3:AG21,1),COUNTIF($AG$3:AG21,-1)))),(IF(SUM(COUNTIF($AI$3:AI21,1),COUNTIF($AI$3:AI21,-1))=0,1,SUM(COUNTIF($AI$3:AI21,1),COUNTIF($AI$3:AI21,-1)))),(IF(SUM(COUNTIF($AK$3:AK21,1),COUNTIF($AK$3:AK21,-1))=0,1,SUM(COUNTIF($AK$3:AK21,1),COUNTIF($AK$3:AK21,-1)))))/1000) -> 0.324 | BD21: 9.954 | BF21: =+SUM(COUNTIF($AE$3:AE21,1),COUNTIF(AE$3:$AE21,-1)) -> 18 | BG21: =+SUM($Q$4:Q21) -> 1848 | BH21: 102.6666667 | BI21: =+SUM(COUNTIF($AE$3:AE21,1)) -> 9 | BJ21: =+SUM(COUNTIF($AE$3:AE21,-1)) -> 9 | BK21: 0 | BL21: =BF21*(HARMEAN((IF(SUM(COUNTIF($Z$3:Z21,1),COUNTIF($Z$3:Z21,-1))=0,1,SUM(COUNTIF($Z$3:Z21,1),COUNTIF($Z$3:Z21,-1)))),(IF(SUM(COUNTIF($AC$3:AC21,1),COUNTIF($AC$3:AC21,-1))=0,1,SUM(COUNTIF($AC$3:AC21,1),COUNTIF($AC$3:AC21,-1)))),(IF(SUM(COUNTIF($AE$3:AE21,1),COUNTIF($AE$3:AE21,-1))=0,1,SUM(COUNTIF($AE$3:AE21,1),COUNTIF($AE$3:AE21,-1)))),(IF(SUM(COUNTIF($AG$3:AG21,1),COUNTIF($AG$3:AG21,-1))=0,1,SUM(COUNTIF($AG$3:AG21,1),COUNTIF($AG$3:AG21,-1)))),(IF(SUM(COUNTIF($AI$3:AI21,1),COUNTIF($AI$3:AI21,-1))=0,1,SUM(COUNTIF($AI$3:AI21,1),COUNTIF($AI$3:AI21,-1)))),(IF(SUM(COUNTIF($AK$3:AK21,1),COUNTIF($AK$3:AK21,-1))=0,1,SUM(COUNTIF($AK$3:AK21,1),COUNTIF($AK$3:AK21,-1)))))/1000) -> 0.324 | BM21: 3.326 | BO21: =+SUM(COUNTIF($AG$3:AG21,1),COUNTIF($AG$3:AG21,-1)) -> 18 | BP21: =+SUM($S$4:S21) -> 1827 | BQ21: 101.5 | BR21: =+SUM(COUNTIF($AG$3:AG21,1)) -> 8 | BS21: =+SUM(COUNTIF($AG$3:AG21,-1)) -> 10 | BT21: -2 | BU21: =BO21*(HARMEAN((IF(SUM(COUNTIF($Z$3:Z21,1),COUNTIF($Z$3:Z21,-1))=0,1,SUM(COUNTIF($Z$3:Z21,1),COUNTIF($Z$3:Z21,-1)))),(IF(SUM(COUNTIF($AC$3:AC21,1),COUNTIF($AC$3:AC21,-1))=0,1,SUM(COUNTIF($AC$3:AC21,1),COUNTIF($AC$3:AC21,-1)))),(IF(SUM(COUNTIF($AE$3:AE21,1),COUNTIF($AE$3:AE21,-1))=0,1,SUM(COUNTIF($AE$3:AE21,1),COUNTIF($AE$3:AE21,-1)))),(IF(SUM(COUNTIF($AG$3:AG21,1),COUNTIF($AG$3:AG21,-1))=0,1,SUM(COUNTIF($AG$3:AG21,1),COUNTIF($AG$3:AG21,-1)))),(IF(SUM(COUNTIF($AI$3:AI21,1),COUNTIF($AI$3:AI21,-1))=0,1,SUM(COUNTIF($AI$3:AI21,1),COUNTIF($AI$3:AI21,-1)))),(IF(SUM(COUNTIF($AK$3:AK21,1),COUNTIF($AK$3:AK21,-1))=0,1,SUM(COUNTIF($AK$3:AK21,1),COUNTIF($AK$3:AK21,-1)))))/1000) -> 0.324 | BV21: -0.311 | BX21: =+SUM(COUNTIF($AI$3:AI21,1),COUNTIF($AI$3:AI21,-1)) -> 18 | BY21: =+SUM($U$4:U21) -> 1495 | BZ21: 83.05555556 | CA21: =+SUM(COUNTIF($AI$3:AI21,1)) -> 6 | CB21: =+SUM(COUNTIF($AI$3:AI21,-1)) -> 12 | CC21: -6 | CD21: =+BX21*(HARMEAN((IF(SUM(COUNTIF($Z$3:Z21,1),COUNTIF($Z$3:Z21,-1))=0,1,SUM(COUNTIF($Z$3:Z21,1),COUNTIF($Z$3:Z21,-1)))),(IF(SUM(COUNTIF($AC$3:AC21,1),COUNTIF($AC$3:AC21,-1))=0,1,SUM(COUNTIF($AC$3:AC21,1),COUNTIF($AC$3:AC21,-1)))),(IF(SUM(COUNTIF($AE$3:AE21,1),COUNTIF($AE$3:AE21,-1))=0,1,SUM(COUNTIF($AE$3:AE21,1),COUNTIF($AE$3:AE21,-1)))),(IF(SUM(COUNTIF($AG$3:AG21,1),COUNTIF($AG$3:AG21,-1))=0,1,SUM(COUNTIF($AG$3:AG21,1),COUNTIF($AG$3:AG21,-1)))),(IF(SUM(COUNTIF($AI$3:AI21,1),COUNTIF($AI$3:AI21,-1))=0,1,SUM(COUNTIF($AI$3:AI21,1),COUNTIF($AI$3:AI21,-1)))),(IF(SUM(COUNTIF($AK$3:AK21,1),COUNTIF($AK$3:AK21,-1))=0,1,SUM(COUNTIF($AK$3:AK21,1),COUNTIF($AK$3:AK21,-1)))))/1000) -> 0.324 | CE21: -8.109 | CG21: =+SUM(COUNTIF($AK$3:AK21,1),COUNTIF($AK$3:AK21,-1)) -> 18 | CH21: =+SUM($W$4:W21) -> 1425 | CI21: 79.16666667 | CJ21: =+SUM(COUNTIF($AK$3:AK21,1)) -> 9 | CK21: =+SUM(COUNTIF($AK$3:AK21,-1)) -> 9 | CL21: 0 | CM21: =+CG21*(HARMEAN((IF(SUM(COUNTIF($Z$3:Z21,1),COUNTIF($Z$3:Z21,-1))=0,1,SUM(COUNTIF($Z$3:Z21,1),COUNTIF($Z$3:Z21,-1)))),(IF(SUM(COUNTIF($AC$3:AC21,1),COUNTIF($AC$3:AC21,-1))=0,1,SUM(COUNTIF($AC$3:AC21,1),COUNTIF($AC$3:AC21,-1)))),(IF(SUM(COUNTIF($AE$3:AE21,1),COUNTIF($AE$3:AE21,-1))=0,1,SUM(COUNTIF($AE$3:AE21,1),COUNTIF($AE$3:AE21,-1)))),(IF(SUM(COUNTIF($AG$3:AG21,1),COUNTIF($AG$3:AG21,-1))=0,1,SUM(COUNTIF($AG$3:AG21,1),COUNTIF($AG$3:AG21,-1)))),(IF(SUM(COUNTIF($AI$3:AI21,1),COUNTIF($AI$3:AI21,-1))=0,1,SUM(COUNTIF($AI$3:AI21,1),COUNTIF($AI$3:AI21,-1)))),(IF(SUM(COUNTIF($AK$3:AK21,1),COUNTIF($AK$3:AK21,-1))=0,1,SUM(COUNTIF($AK$3:AK21,1),COUNTIF($AK$3:AK21,-1)))))/1000) -> 0.324 | CN21: 2.565
A22: 19 | B22: RA | D22: =+IFERROR(INDEX('Auswertung AoE II'!$AE:$AE,MATCH(A22,'Auswertung AoE II'!$AD:$AD,0)),"") ->  | E22: =+IFERROR(INDEX('Auswertung AoE III'!$AE:$AE,MATCH(A22,'Auswertung AoE III'!$AD:$AD,0)),"") ->  | F22: =+IFERROR(INDEX('Auswertung AoM'!$AE:$AE,MATCH(A22,'Auswertung AoM'!$AD:$AD,0)),"") ->  | G22: =+IFERROR(INDEX('Auswertung RA'!$AE:$AE,MATCH(A22,'Auswertung RA'!$AD:$AD,0)),"") -> RA | H22: =+IFERROR(INDEX('Auswertung Yuri'!$AE:$AE,MATCH(A22,'Auswertung Yuri'!$AD:$AD,0)),"") ->  | I22: =+IFERROR(INDEX('Auswertung Generals'!$AE:$AE,MATCH(A22,'Auswertung Generals'!$AD:$AD,0)),"") ->  | J22: Auswertung RA | M22: =+IF(ISERROR(+INDIRECT(CONCATENATE("'",J22,"'!",(ADDRESS((COUNTIF($J$3:J22,IF(B22<>0,CONCATENATE("Auswertung ",B22,""))))+2,2)))))=FALSE,+INDIRECT(CONCATENATE("'",J22,"'!",(ADDRESS((COUNTIF($J$3:J22,IF(B22<>0,CONCATENATE("Auswertung ",B22,""))))+4,2)))),"") -> 76 | N22: =IF(ISERROR(+INDIRECT(CONCATENATE("'",J22,"'!",(ADDRESS((COUNTIF($J$3:J22,IF(B22<>0,CONCATENATE("Auswertung ",B22,""))))+2,2+1)))))=FALSE,+INDIRECT(CONCATENATE("'",J22,"'!",(ADDRESS((COUNTIF($J$3:J22,IF(B22<>0,CONCATENATE("Auswertung ",B22,""))))+4,2+1)))),"") -> S | O22: =+IF(ISERROR(+INDIRECT(CONCATENATE("'",J22,"'!",(ADDRESS((COUNTIF($J$3:J22,IF(B22<>0,CONCATENATE("Auswertung ",B22,""))))+2,4)))))=FALSE,+INDIRECT(CONCATENATE("'",J22,"'!",(ADDRESS((COUNTIF($J$3:J22,IF(B22<>0,CONCATENATE("Auswertung ",B22,""))))+4,4)))),"") -> 37 | P22: =+IF(ISERROR(+INDIRECT(CONCATENATE("'",J22,"'!",(ADDRESS((COUNTIF($J$3:J22,IF(B22<>0,CONCATENATE("Auswertung ",B22,""))))+2,5)))))=FALSE,+INDIRECT(CONCATENATE("'",J22,"'!",(ADDRESS((COUNTIF($J$3:J22,IF(B22<>0,CONCATENATE("Auswertung ",B22,""))))+4,5)))),"") -> S | Q22: =+IF(ISERROR(+INDIRECT(CONCATENATE("'",J22,"'!",(ADDRESS((COUNTIF($J$3:J22,IF(B22<>0,CONCATENATE("Auswertung ",B22,""))))+2,6)))))=FALSE,+INDIRECT(CONCATENATE("'",J22,"'!",(ADDRESS((COUNTIF($J$3:J22,IF(B22<>0,CONCATENATE("Auswertung ",B22,""))))+4,6)))),"") -> 71 | R22: =+IF(ISERROR(+INDIRECT(CONCATENATE("'",J22,"'!",(ADDRESS((COUNTIF($J$3:J22,IF(B22<>0,CONCATENATE("Auswertung ",B22,""))))+2,7)))))=FALSE,+INDIRECT(CONCATENATE("'",J22,"'!",(ADDRESS((COUNTIF($J$3:J22,IF(B22<>0,CONCATENATE("Auswertung ",B22,""))))+4,7)))),"") -> S | S22: =+IF(ISERROR(+INDIRECT(CONCATENATE("'",J22,"'!",(ADDRESS((COUNTIF($J$3:J22,IF(B22<>0,CONCATENATE("Auswertung ",B22,""))))+2,10)))))=FALSE,+INDIRECT(CONCATENATE("'",J22,"'!",(ADDRESS((COUNTIF($J$3:J22,IF(B22<>0,CONCATENATE("Auswertung ",B22,""))))+4,8)))),"") -> 16 | T22: =+IF(ISERROR(+INDIRECT(CONCATENATE("'",J22,"'!",(ADDRESS((COUNTIF($J$3:J22,IF(B22<>0,CONCATENATE("Auswertung ",B22,""))))+2,11)))))=FALSE,+INDIRECT(CONCATENATE("'",J22,"'!",(ADDRESS((COUNTIF($J$3:J22,IF(B22<>0,CONCATENATE("Auswertung ",B22,""))))+4,9)))),"") -> S | U22: =+IF(ISERROR(+INDIRECT(CONCATENATE("'",J22,"'!",(ADDRESS((COUNTIF($J$3:J22,IF(B22<>0,CONCATENATE("Auswertung ",B22,""))))+2,10)))))=FALSE,+INDIRECT(CONCATENATE("'",J22,"'!",(ADDRESS((COUNTIF($J$3:J22,IF(B22<>0,CONCATENATE("Auswertung ",B22,""))))+4,10)))),"") -> 35 | V22: =+IF(ISERROR(+INDIRECT(CONCATENATE("'",J22,"'!",(ADDRESS((COUNTIF($J$3:J22,IF(B22<>0,CONCATENATE("Auswertung ",B22,""))))+2,11)))))=FALSE,+INDIRECT(CONCATENATE("'",J22,"'!",(ADDRESS((COUNTIF($J$3:J22,IF(B22<>0,CONCATENATE("Auswertung ",B22,""))))+4,11)))),"") -> A | W22: =+IF(ISERROR(+INDIRECT(CONCATENATE("'",J22,"'!",(ADDRESS((COUNTIF($J$3:J22,IF(D22<>0,CONCATENATE("Auswertung ",D22,""))))+2,12)))))=FALSE,+INDIRECT(CONCATENATE("'",J22,"'!",(ADDRESS((COUNTIF($J$3:J22,IF(D22<>0,CONCATENATE("Auswertung ",B22,""))))+4,12)))),"") -> 51 | X22: =+IF(ISERROR(+INDIRECT(CONCATENATE("'",J22,"'!",(ADDRESS((COUNTIF($J$3:J22,IF(D22<>0,CONCATENATE("Auswertung ",D22,""))))+2,13)))))=FALSE,+INDIRECT(CONCATENATE("'",J22,"'!",(ADDRESS((COUNTIF($J$3:J22,IF(D22<>0,CONCATENATE("Auswertung ",B22,""))))+4,13)))),"") -> A | Z22: =+IFERROR(INDIRECT(CONCATENATE("'",J22,"'!",(ADDRESS((COUNTIF($J$3:J22,IF(B22<>0,J22)))+4,16)))),"") -> -1 | AA22: 8.962 | AB22: =+SUM($M$4:M22)/COUNT($M$4:M22)/1000*2 -> 0.1807368421 | AC22: =+IFERROR(INDIRECT(CONCATENATE("'",J22,"'!",(ADDRESS((COUNTIF($J$3:J22,IF(B22<>0,J22)))+4,18)))),"") -> 1 | AD22: 12.477 | AE22: =+IFERROR(INDIRECT(CONCATENATE("'",J22,"'!",(ADDRESS((COUNTIF($J$3:J22,IF(B22<>0,J22)))+4,20)))),"") -> 1 | AF22: 5.546 | AG22: =+IFERROR(INDIRECT(CONCATENATE("'",J22,"'!",(ADDRESS((COUNTIF($J$3:J22,IF(B22<>0,J22)))+4,22)))),"") -> -1 | AH22: -2.198 | AI22: =+IFERROR(INDIRECT(CONCATENATE("'",J22,"'!",(ADDRESS((COUNTIF($J$3:J22,IF(B22<>0,J22)))+4,24)))),"") -> 1 | AJ22: -6.593 | AK22: =+IFERROR(INDIRECT(CONCATENATE("'",J22,"'!",(ADDRESS((COUNTIF($J$3:J22,IF(B22<>0,J22)))+4,26)))),"") -> -1 | AL22: 0.904 | AM22: 19 | AN22: =+SUM(COUNTIF($Z$3:Z22,1),COUNTIF($Z$3:Z22,-1)) -> 19 | AO22: =+SUM($M$4:M22) -> 1717 | AP22: 90.36842105 | AQ22: =+SUM(COUNTIF($Z$3:Z22,1)) -> 11 | AR22: =+SUM(COUNTIF($Z$3:Z22,-1)) -> 8 | AS22: 3 | AT22: =AN22*(HARMEAN((IF(SUM(COUNTIF($Z$3:Z22,1),COUNTIF($Z$3:Z22,-1))=0,1,SUM(COUNTIF($Z$3:Z22,1),COUNTIF($Z$3:Z22,-1)))),(IF(SUM(COUNTIF($AC$3:AC22,1),COUNTIF($AC$3:AC22,-1))=0,1,SUM(COUNTIF($AC$3:AC22,1),COUNTIF($AC$3:AC22,-1)))),(IF(SUM(COUNTIF($AE$3:AE22,1),COUNTIF($AE$3:AE22,-1))=0,1,SUM(COUNTIF($AE$3:AE22,1),COUNTIF($AE$3:AE22,-1)))),(IF(SUM(COUNTIF($AG$3:AG22,1),COUNTIF($AG$3:AG22,-1))=0,1,SUM(COUNTIF($AG$3:AG22,1),COUNTIF($AG$3:AG22,-1)))),(IF(SUM(COUNTIF($AI$3:AI22,1),COUNTIF($AI$3:AI22,-1))=0,1,SUM(COUNTIF($AI$3:AI22,1),COUNTIF($AI$3:AI22,-1)))),(IF(SUM(COUNTIF($AK$3:AK22,1),COUNTIF($AK$3:AK22,-1))=0,1,SUM(COUNTIF($AK$3:AK22,1),COUNTIF($AK$3:AK22,-1)))))/1000) -> 0.361 | AU22: 8.962 | AW22: =+SUM(COUNTIF($AC$3:AC22,1),COUNTIF($AC$3:AC22,-1)) -> 19 | AX22: =+SUM($O$4:O22) -> 1567 | AY22: 82.47368421 | AZ22: =+SUM(COUNTIF($AC$3:AC22,1)) -> 12 | BA22: =+SUM(COUNTIF($AC$3:AC22,-1)) -> 7 | BB22: 5 | BC22: =AW22*(HARMEAN((IF(SUM(COUNTIF($Z$3:Z22,1),COUNTIF($Z$3:Z22,-1))=0,1,SUM(COUNTIF($Z$3:Z22,1),COUNTIF($Z$3:Z22,-1)))),(IF(SUM(COUNTIF($AC$3:AC22,1),COUNTIF($AC$3:AC22,-1))=0,1,SUM(COUNTIF($AC$3:AC22,1),COUNTIF($AC$3:AC22,-1)))),(IF(SUM(COUNTIF($AE$3:AE22,1),COUNTIF($AE$3:AE22,-1))=0,1,SUM(COUNTIF($AE$3:AE22,1),COUNTIF($AE$3:AE22,-1)))),(IF(SUM(COUNTIF($AG$3:AG22,1),COUNTIF($AG$3:AG22,-1))=0,1,SUM(COUNTIF($AG$3:AG22,1),COUNTIF($AG$3:AG22,-1)))),(IF(SUM(COUNTIF($AI$3:AI22,1),COUNTIF($AI$3:AI22,-1))=0,1,SUM(COUNTIF($AI$3:AI22,1),COUNTIF($AI$3:AI22,-1)))),(IF(SUM(COUNTIF($AK$3:AK22,1),COUNTIF($AK$3:AK22,-1))=0,1,SUM(COUNTIF($AK$3:AK22,1),COUNTIF($AK$3:AK22,-1)))))/1000) -> 0.361 | BD22: 12.477 | BF22: =+SUM(COUNTIF($AE$3:AE22,1),COUNTIF(AE$3:$AE22,-1)) -> 19 | BG22: =+SUM($Q$4:Q22) -> 1919 | BH22: 101 | BI22: =+SUM(COUNTIF($AE$3:AE22,1)) -> 10 | BJ22: =+SUM(COUNTIF($AE$3:AE22,-1)) -> 9 | BK22: 1 | BL22: =BF22*(HARMEAN((IF(SUM(COUNTIF($Z$3:Z22,1),COUNTIF($Z$3:Z22,-1))=0,1,SUM(COUNTIF($Z$3:Z22,1),COUNTIF($Z$3:Z22,-1)))),(IF(SUM(COUNTIF($AC$3:AC22,1),COUNTIF($AC$3:AC22,-1))=0,1,SUM(COUNTIF($AC$3:AC22,1),COUNTIF($AC$3:AC22,-1)))),(IF(SUM(COUNTIF($AE$3:AE22,1),COUNTIF($AE$3:AE22,-1))=0,1,SUM(COUNTIF($AE$3:AE22,1),COUNTIF($AE$3:AE22,-1)))),(IF(SUM(COUNTIF($AG$3:AG22,1),COUNTIF($AG$3:AG22,-1))=0,1,SUM(COUNTIF($AG$3:AG22,1),COUNTIF($AG$3:AG22,-1)))),(IF(SUM(COUNTIF($AI$3:AI22,1),COUNTIF($AI$3:AI22,-1))=0,1,SUM(COUNTIF($AI$3:AI22,1),COUNTIF($AI$3:AI22,-1)))),(IF(SUM(COUNTIF($AK$3:AK22,1),COUNTIF($AK$3:AK22,-1))=0,1,SUM(COUNTIF($AK$3:AK22,1),COUNTIF($AK$3:AK22,-1)))))/1000) -> 0.361 | BM22: 5.546 | BO22: =+SUM(COUNTIF($AG$3:AG22,1),COUNTIF($AG$3:AG22,-1)) -> 19 | BP22: =+SUM($S$4:S22) -> 1843 | BQ22: 97 | BR22: =+SUM(COUNTIF($AG$3:AG22,1)) -> 8 | BS22: =+SUM(COUNTIF($AG$3:AG22,-1)) -> 11 | BT22: -3 | BU22: =BO22*(HARMEAN((IF(SUM(COUNTIF($Z$3:Z22,1),COUNTIF($Z$3:Z22,-1))=0,1,SUM(COUNTIF($Z$3:Z22,1),COUNTIF($Z$3:Z22,-1)))),(IF(SUM(COUNTIF($AC$3:AC22,1),COUNTIF($AC$3:AC22,-1))=0,1,SUM(COUNTIF($AC$3:AC22,1),COUNTIF($AC$3:AC22,-1)))),(IF(SUM(COUNTIF($AE$3:AE22,1),COUNTIF($AE$3:AE22,-1))=0,1,SUM(COUNTIF($AE$3:AE22,1),COUNTIF($AE$3:AE22,-1)))),(IF(SUM(COUNTIF($AG$3:AG22,1),COUNTIF($AG$3:AG22,-1))=0,1,SUM(COUNTIF($AG$3:AG22,1),COUNTIF($AG$3:AG22,-1)))),(IF(SUM(COUNTIF($AI$3:AI22,1),COUNTIF($AI$3:AI22,-1))=0,1,SUM(COUNTIF($AI$3:AI22,1),COUNTIF($AI$3:AI22,-1)))),(IF(SUM(COUNTIF($AK$3:AK22,1),COUNTIF($AK$3:AK22,-1))=0,1,SUM(COUNTIF($AK$3:AK22,1),COUNTIF($AK$3:AK22,-1)))))/1000) -> 0.361 | BV22: -2.198 | BX22: =+SUM(COUNTIF($AI$3:AI22,1),COUNTIF($AI$3:AI22,-1)) -> 19 | BY22: =+SUM($U$4:U22) -> 1530 | BZ22: 80.52631579 | CA22: =+SUM(COUNTIF($AI$3:AI22,1)) -> 7 | CB22: =+SUM(COUNTIF($AI$3:AI22,-1)) -> 12 | CC22: -5 | CD22: =+BX22*(HARMEAN((IF(SUM(COUNTIF($Z$3:Z22,1),COUNTIF($Z$3:Z22,-1))=0,1,SUM(COUNTIF($Z$3:Z22,1),COUNTIF($Z$3:Z22,-1)))),(IF(SUM(COUNTIF($AC$3:AC22,1),COUNTIF($AC$3:AC22,-1))=0,1,SUM(COUNTIF($AC$3:AC22,1),COUNTIF($AC$3:AC22,-1)))),(IF(SUM(COUNTIF($AE$3:AE22,1),COUNTIF($AE$3:AE22,-1))=0,1,SUM(COUNTIF($AE$3:AE22,1),COUNTIF($AE$3:AE22,-1)))),(IF(SUM(COUNTIF($AG$3:AG22,1),COUNTIF($AG$3:AG22,-1))=0,1,SUM(COUNTIF($AG$3:AG22,1),COUNTIF($AG$3:AG22,-1)))),(IF(SUM(COUNTIF($AI$3:AI22,1),COUNTIF($AI$3:AI22,-1))=0,1,SUM(COUNTIF($AI$3:AI22,1),COUNTIF($AI$3:AI22,-1)))),(IF(SUM(COUNTIF($AK$3:AK22,1),COUNTIF($AK$3:AK22,-1))=0,1,SUM(COUNTIF($AK$3:AK22,1),COUNTIF($AK$3:AK22,-1)))))/1000) -> 0.361 | CE22: -6.593 | CG22: =+SUM(COUNTIF($AK$3:AK22,1),COUNTIF($AK$3:AK22,-1)) -> 19 | CH22: =+SUM($W$4:W22) -> 1476 | CI22: 77.68421053 | CJ22: =+SUM(COUNTIF($AK$3:AK22,1)) -> 9 | CK22: =+SUM(COUNTIF($AK$3:AK22,-1)) -> 10 | CL22: -1 | CM22: =+CG22*(HARMEAN((IF(SUM(COUNTIF($Z$3:Z22,1),COUNTIF($Z$3:Z22,-1))=0,1,SUM(COUNTIF($Z$3:Z22,1),COUNTIF($Z$3:Z22,-1)))),(IF(SUM(COUNTIF($AC$3:AC22,1),COUNTIF($AC$3:AC22,-1))=0,1,SUM(COUNTIF($AC$3:AC22,1),COUNTIF($AC$3:AC22,-1)))),(IF(SUM(COUNTIF($AE$3:AE22,1),COUNTIF($AE$3:AE22,-1))=0,1,SUM(COUNTIF($AE$3:AE22,1),COUNTIF($AE$3:AE22,-1)))),(IF(SUM(COUNTIF($AG$3:AG22,1),COUNTIF($AG$3:AG22,-1))=0,1,SUM(COUNTIF($AG$3:AG22,1),COUNTIF($AG$3:AG22,-1)))),(IF(SUM(COUNTIF($AI$3:AI22,1),COUNTIF($AI$3:AI22,-1))=0,1,SUM(COUNTIF($AI$3:AI22,1),COUNTIF($AI$3:AI22,-1)))),(IF(SUM(COUNTIF($AK$3:AK22,1),COUNTIF($AK$3:AK22,-1))=0,1,SUM(COUNTIF($AK$3:AK22,1),COUNTIF($AK$3:AK22,-1)))))/1000) -> 0.361 | CN22: 0.904
A23: 20 | B23: AoE II | D23: =+IFERROR(INDEX('Auswertung AoE II'!$AE:$AE,MATCH(A23,'Auswertung AoE II'!$AD:$AD,0)),"") -> AoE II | E23: =+IFERROR(INDEX('Auswertung AoE III'!$AE:$AE,MATCH(A23,'Auswertung AoE III'!$AD:$AD,0)),"") ->  | F23: =+IFERROR(INDEX('Auswertung AoM'!$AE:$AE,MATCH(A23,'Auswertung AoM'!$AD:$AD,0)),"") ->  | G23: =+IFERROR(INDEX('Auswertung RA'!$AE:$AE,MATCH(A23,'Auswertung RA'!$AD:$AD,0)),"") ->  | H23: =+IFERROR(INDEX('Auswertung Yuri'!$AE:$AE,MATCH(A23,'Auswertung Yuri'!$AD:$AD,0)),"") ->  | I23: =+IFERROR(INDEX('Auswertung Generals'!$AE:$AE,MATCH(A23,'Auswertung Generals'!$AD:$AD,0)),"") ->  | J23: Auswertung AoE II | M23: =+IF(ISERROR(+INDIRECT(CONCATENATE("'",J23,"'!",(ADDRESS((COUNTIF($J$3:J23,IF(B23<>0,CONCATENATE("Auswertung ",B23,""))))+2,2)))))=FALSE,+INDIRECT(CONCATENATE("'",J23,"'!",(ADDRESS((COUNTIF($J$3:J23,IF(B23<>0,CONCATENATE("Auswertung ",B23,""))))+4,2)))),"") -> 254 | N23: =IF(ISERROR(+INDIRECT(CONCATENATE("'",J23,"'!",(ADDRESS((COUNTIF($J$3:J23,IF(B23<>0,CONCATENATE("Auswertung ",B23,""))))+2,2+1)))))=FALSE,+INDIRECT(CONCATENATE("'",J23,"'!",(ADDRESS((COUNTIF($J$3:J23,IF(B23<>0,CONCATENATE("Auswertung ",B23,""))))+4,2+1)))),"") -> Khmer | O23: =+IF(ISERROR(+INDIRECT(CONCATENATE("'",J23,"'!",(ADDRESS((COUNTIF($J$3:J23,IF(B23<>0,CONCATENATE("Auswertung ",B23,""))))+2,4)))))=FALSE,+INDIRECT(CONCATENATE("'",J23,"'!",(ADDRESS((COUNTIF($J$3:J23,IF(B23<>0,CONCATENATE("Auswertung ",B23,""))))+4,4)))),"") -> 194 | P23: =+IF(ISERROR(+INDIRECT(CONCATENATE("'",J23,"'!",(ADDRESS((COUNTIF($J$3:J23,IF(B23<>0,CONCATENATE("Auswertung ",B23,""))))+2,5)))))=FALSE,+INDIRECT(CONCATENATE("'",J23,"'!",(ADDRESS((COUNTIF($J$3:J23,IF(B23<>0,CONCATENATE("Auswertung ",B23,""))))+4,5)))),"") -> Khmer | Q23: =+IF(ISERROR(+INDIRECT(CONCATENATE("'",J23,"'!",(ADDRESS((COUNTIF($J$3:J23,IF(B23<>0,CONCATENATE("Auswertung ",B23,""))))+2,6)))))=FALSE,+INDIRECT(CONCATENATE("'",J23,"'!",(ADDRESS((COUNTIF($J$3:J23,IF(B23<>0,CONCATENATE("Auswertung ",B23,""))))+4,6)))),"") -> 247 | R23: =+IF(ISERROR(+INDIRECT(CONCATENATE("'",J23,"'!",(ADDRESS((COUNTIF($J$3:J23,IF(B23<>0,CONCATENATE("Auswertung ",B23,""))))+2,7)))))=FALSE,+INDIRECT(CONCATENATE("'",J23,"'!",(ADDRESS((COUNTIF($J$3:J23,IF(B23<>0,CONCATENATE("Auswertung ",B23,""))))+4,7)))),"") -> Jap | S23: =+IF(ISERROR(+INDIRECT(CONCATENATE("'",J23,"'!",(ADDRESS((COUNTIF($J$3:J23,IF(B23<>0,CONCATENATE("Auswertung ",B23,""))))+2,10)))))=FALSE,+INDIRECT(CONCATENATE("'",J23,"'!",(ADDRESS((COUNTIF($J$3:J23,IF(B23<>0,CONCATENATE("Auswertung ",B23,""))))+4,8)))),"") -> 379 | T23: =+IF(ISERROR(+INDIRECT(CONCATENATE("'",J23,"'!",(ADDRESS((COUNTIF($J$3:J23,IF(B23<>0,CONCATENATE("Auswertung ",B23,""))))+2,11)))))=FALSE,+INDIRECT(CONCATENATE("'",J23,"'!",(ADDRESS((COUNTIF($J$3:J23,IF(B23<>0,CONCATENATE("Auswertung ",B23,""))))+4,9)))),"") -> Inka | U23: =+IF(ISERROR(+INDIRECT(CONCATENATE("'",J23,"'!",(ADDRESS((COUNTIF($J$3:J23,IF(B23<>0,CONCATENATE("Auswertung ",B23,""))))+2,10)))))=FALSE,+INDIRECT(CONCATENATE("'",J23,"'!",(ADDRESS((COUNTIF($J$3:J23,IF(B23<>0,CONCATENATE("Auswertung ",B23,""))))+4,10)))),"") -> 183 | V23: =+IF(ISERROR(+INDIRECT(CONCATENATE("'",J23,"'!",(ADDRESS((COUNTIF($J$3:J23,IF(B23<>0,CONCATENATE("Auswertung ",B23,""))))+2,11)))))=FALSE,+INDIRECT(CONCATENATE("'",J23,"'!",(ADDRESS((COUNTIF($J$3:J23,IF(B23<>0,CONCATENATE("Auswertung ",B23,""))))+4,11)))),"") -> Jap | W23: =+IF(ISERROR(+INDIRECT(CONCATENATE("'",J23,"'!",(ADDRESS((COUNTIF($J$3:J23,IF(D23<>0,CONCATENATE("Auswertung ",D23,""))))+2,12)))))=FALSE,+INDIRECT(CONCATENATE("'",J23,"'!",(ADDRESS((COUNTIF($J$3:J23,IF(D23<>0,CONCATENATE("Auswertung ",B23,""))))+4,12)))),"") -> 211 | X23: =+IF(ISERROR(+INDIRECT(CONCATENATE("'",J23,"'!",(ADDRESS((COUNTIF($J$3:J23,IF(D23<>0,CONCATENATE("Auswertung ",D23,""))))+2,13)))))=FALSE,+INDIRECT(CONCATENATE("'",J23,"'!",(ADDRESS((COUNTIF($J$3:J23,IF(D23<>0,CONCATENATE("Auswertung ",B23,""))))+4,13)))),"") -> Inka | Z23: =+IFERROR(INDIRECT(CONCATENATE("'",J23,"'!",(ADDRESS((COUNTIF($J$3:J23,IF(B23<>0,J23)))+4,16)))),"") -> 1 | AA23: 11.942 | AB23: =+SUM($M$4:M23)/COUNT($M$4:M23)/1000*2 -> 0.1971 | AC23: =+IFERROR(INDIRECT(CONCATENATE("'",J23,"'!",(ADDRESS((COUNTIF($J$3:J23,IF(B23<>0,J23)))+4,18)))),"") -> -1 | AD23: 11.522 | AE23: =+IFERROR(INDIRECT(CONCATENATE("'",J23,"'!",(ADDRESS((COUNTIF($J$3:J23,IF(B23<>0,J23)))+4,20)))),"") -> -1 | AF23: 4.332 | AG23: =+IFERROR(INDIRECT(CONCATENATE("'",J23,"'!",(ADDRESS((COUNTIF($J$3:J23,IF(B23<>0,J23)))+4,22)))),"") -> 1 | AH23: 0.444 | AI23: =+IFERROR(INDIRECT(CONCATENATE("'",J23,"'!",(ADDRESS((COUNTIF($J$3:J23,IF(B23<>0,J23)))+4,24)))),"") -> 1 | AJ23: -4.574 | AK23: =+IFERROR(INDIRECT(CONCATENATE("'",J23,"'!",(ADDRESS((COUNTIF($J$3:J23,IF(B23<>0,J23)))+4,26)))),"") -> -1 | AL23: -0.626 | AM23: 20 | AN23: =+SUM(COUNTIF($Z$3:Z23,1),COUNTIF($Z$3:Z23,-1)) -> 20 | AO23: =+SUM($M$4:M23) -> 1971 | AP23: 98.55 | AQ23: =+SUM(COUNTIF($Z$3:Z23,1)) -> 12 | AR23: =+SUM(COUNTIF($Z$3:Z23,-1)) -> 8 | AS23: 4 | AT23: =AN23*(HARMEAN((IF(SUM(COUNTIF($Z$3:Z23,1),COUNTIF($Z$3:Z23,-1))=0,1,SUM(COUNTIF($Z$3:Z23,1),COUNTIF($Z$3:Z23,-1)))),(IF(SUM(COUNTIF($AC$3:AC23,1),COUNTIF($AC$3:AC23,-1))=0,1,SUM(COUNTIF($AC$3:AC23,1),COUNTIF($AC$3:AC23,-1)))),(IF(SUM(COUNTIF($AE$3:AE23,1),COUNTIF($AE$3:AE23,-1))=0,1,SUM(COUNTIF($AE$3:AE23,1),COUNTIF($AE$3:AE23,-1)))),(IF(SUM(COUNTIF($AG$3:AG23,1),COUNTIF($AG$3:AG23,-1))=0,1,SUM(COUNTIF($AG$3:AG23,1),COUNTIF($AG$3:AG23,-1)))),(IF(SUM(COUNTIF($AI$3:AI23,1),COUNTIF($AI$3:AI23,-1))=0,1,SUM(COUNTIF($AI$3:AI23,1),COUNTIF($AI$3:AI23,-1)))),(IF(SUM(COUNTIF($AK$3:AK23,1),COUNTIF($AK$3:AK23,-1))=0,1,SUM(COUNTIF($AK$3:AK23,1),COUNTIF($AK$3:AK23,-1)))))/1000) -> 0.4 | AU23: 11.942 | AW23: =+SUM(COUNTIF($AC$3:AC23,1),COUNTIF($AC$3:AC23,-1)) -> 20 | AX23: =+SUM($O$4:O23) -> 1761 | AY23: 88.05 | AZ23: =+SUM(COUNTIF($AC$3:AC23,1)) -> 12 | BA23: =+SUM(COUNTIF($AC$3:AC23,-1)) -> 8 | BB23: 4 | BC23: =AW23*(HARMEAN((IF(SUM(COUNTIF($Z$3:Z23,1),COUNTIF($Z$3:Z23,-1))=0,1,SUM(COUNTIF($Z$3:Z23,1),COUNTIF($Z$3:Z23,-1)))),(IF(SUM(COUNTIF($AC$3:AC23,1),COUNTIF($AC$3:AC23,-1))=0,1,SUM(COUNTIF($AC$3:AC23,1),COUNTIF($AC$3:AC23,-1)))),(IF(SUM(COUNTIF($AE$3:AE23,1),COUNTIF($AE$3:AE23,-1))=0,1,SUM(COUNTIF($AE$3:AE23,1),COUNTIF($AE$3:AE23,-1)))),(IF(SUM(COUNTIF($AG$3:AG23,1),COUNTIF($AG$3:AG23,-1))=0,1,SUM(COUNTIF($AG$3:AG23,1),COUNTIF($AG$3:AG23,-1)))),(IF(SUM(COUNTIF($AI$3:AI23,1),COUNTIF($AI$3:AI23,-1))=0,1,SUM(COUNTIF($AI$3:AI23,1),COUNTIF($AI$3:AI23,-1)))),(IF(SUM(COUNTIF($AK$3:AK23,1),COUNTIF($AK$3:AK23,-1))=0,1,SUM(COUNTIF($AK$3:AK23,1),COUNTIF($AK$3:AK23,-1)))))/1000) -> 0.4 | BD23: 11.522 | BF23: =+SUM(COUNTIF($AE$3:AE23,1),COUNTIF(AE$3:$AE23,-1)) -> 20 | BG23: =+SUM($Q$4:Q23) -> 2166 | BH23: 108.3 | BI23: =+SUM(COUNTIF($AE$3:AE23,1)) -> 10 | BJ23: =+SUM(COUNTIF($AE$3:AE23,-1)) -> 10 | BK23: 0 | BL23: =BF23*(HARMEAN((IF(SUM(COUNTIF($Z$3:Z23,1),COUNTIF($Z$3:Z23,-1))=0,1,SUM(COUNTIF($Z$3:Z23,1),COUNTIF($Z$3:Z23,-1)))),(IF(SUM(COUNTIF($AC$3:AC23,1),COUNTIF($AC$3:AC23,-1))=0,1,SUM(COUNTIF($AC$3:AC23,1),COUNTIF($AC$3:AC23,-1)))),(IF(SUM(COUNTIF($AE$3:AE23,1),COUNTIF($AE$3:AE23,-1))=0,1,SUM(COUNTIF($AE$3:AE23,1),COUNTIF($AE$3:AE23,-1)))),(IF(SUM(COUNTIF($AG$3:AG23,1),COUNTIF($AG$3:AG23,-1))=0,1,SUM(COUNTIF($AG$3:AG23,1),COUNTIF($AG$3:AG23,-1)))),(IF(SUM(COUNTIF($AI$3:AI23,1),COUNTIF($AI$3:AI23,-1))=0,1,SUM(COUNTIF($AI$3:AI23,1),COUNTIF($AI$3:AI23,-1)))),(IF(SUM(COUNTIF($AK$3:AK23,1),COUNTIF($AK$3:AK23,-1))=0,1,SUM(COUNTIF($AK$3:AK23,1),COUNTIF($AK$3:AK23,-1)))))/1000) -> 0.4 | BM23: 4.332 | BO23: =+SUM(COUNTIF($AG$3:AG23,1),COUNTIF($AG$3:AG23,-1)) -> 20 | BP23: =+SUM($S$4:S23) -> 2222 | BQ23: 111.1 | BR23: =+SUM(COUNTIF($AG$3:AG23,1)) -> 9 | BS23: =+SUM(COUNTIF($AG$3:AG23,-1)) -> 11 | BT23: -2 | BU23: =BO23*(HARMEAN((IF(SUM(COUNTIF($Z$3:Z23,1),COUNTIF($Z$3:Z23,-1))=0,1,SUM(COUNTIF($Z$3:Z23,1),COUNTIF($Z$3:Z23,-1)))),(IF(SUM(COUNTIF($AC$3:AC23,1),COUNTIF($AC$3:AC23,-1))=0,1,SUM(COUNTIF($AC$3:AC23,1),COUNTIF($AC$3:AC23,-1)))),(IF(SUM(COUNTIF($AE$3:AE23,1),COUNTIF($AE$3:AE23,-1))=0,1,SUM(COUNTIF($AE$3:AE23,1),COUNTIF($AE$3:AE23,-1)))),(IF(SUM(COUNTIF($AG$3:AG23,1),COUNTIF($AG$3:AG23,-1))=0,1,SUM(COUNTIF($AG$3:AG23,1),COUNTIF($AG$3:AG23,-1)))),(IF(SUM(COUNTIF($AI$3:AI23,1),COUNTIF($AI$3:AI23,-1))=0,1,SUM(COUNTIF($AI$3:AI23,1),COUNTIF($AI$3:AI23,-1)))),(IF(SUM(COUNTIF($AK$3:AK23,1),COUNTIF($AK$3:AK23,-1))=0,1,SUM(COUNTIF($AK$3:AK23,1),COUNTIF($AK$3:AK23,-1)))))/1000) -> 0.4 | BV23: 0.444 | BX23: =+SUM(COUNTIF($AI$3:AI23,1),COUNTIF($AI$3:AI23,-1)) -> 20 | BY23: =+SUM($U$4:U23) -> 1713 | BZ23: 85.65 | CA23: =+SUM(COUNTIF($AI$3:AI23,1)) -> 8 | CB23: =+SUM(COUNTIF($AI$3:AI23,-1)) -> 12 | CC23: -4 | CD23: =+BX23*(HARMEAN((IF(SUM(COUNTIF($Z$3:Z23,1),COUNTIF($Z$3:Z23,-1))=0,1,SUM(COUNTIF($Z$3:Z23,1),COUNTIF($Z$3:Z23,-1)))),(IF(SUM(COUNTIF($AC$3:AC23,1),COUNTIF($AC$3:AC23,-1))=0,1,SUM(COUNTIF($AC$3:AC23,1),COUNTIF($AC$3:AC23,-1)))),(IF(SUM(COUNTIF($AE$3:AE23,1),COUNTIF($AE$3:AE23,-1))=0,1,SUM(COUNTIF($AE$3:AE23,1),COUNTIF($AE$3:AE23,-1)))),(IF(SUM(COUNTIF($AG$3:AG23,1),COUNTIF($AG$3:AG23,-1))=0,1,SUM(COUNTIF($AG$3:AG23,1),COUNTIF($AG$3:AG23,-1)))),(IF(SUM(COUNTIF($AI$3:AI23,1),COUNTIF($AI$3:AI23,-1))=0,1,SUM(COUNTIF($AI$3:AI23,1),COUNTIF($AI$3:AI23,-1)))),(IF(SUM(COUNTIF($AK$3:AK23,1),COUNTIF($AK$3:AK23,-1))=0,1,SUM(COUNTIF($AK$3:AK23,1),COUNTIF($AK$3:AK23,-1)))))/1000) -> 0.4 | CE23: -4.574 | CG23: =+SUM(COUNTIF($AK$3:AK23,1),COUNTIF($AK$3:AK23,-1)) -> 20 | CH23: =+SUM($W$4:W23) -> 1687 | CI23: 84.35 | CJ23: =+SUM(COUNTIF($AK$3:AK23,1)) -> 9 | CK23: =+SUM(COUNTIF($AK$3:AK23,-1)) -> 11 | CL23: -2 | CM23: =+CG23*(HARMEAN((IF(SUM(COUNTIF($Z$3:Z23,1),COUNTIF($Z$3:Z23,-1))=0,1,SUM(COUNTIF($Z$3:Z23,1),COUNTIF($Z$3:Z23,-1)))),(IF(SUM(COUNTIF($AC$3:AC23,1),COUNTIF($AC$3:AC23,-1))=0,1,SUM(COUNTIF($AC$3:AC23,1),COUNTIF($AC$3:AC23,-1)))),(IF(SUM(COUNTIF($AE$3:AE23,1),COUNTIF($AE$3:AE23,-1))=0,1,SUM(COUNTIF($AE$3:AE23,1),COUNTIF($AE$3:AE23,-1)))),(IF(SUM(COUNTIF($AG$3:AG23,1),COUNTIF($AG$3:AG23,-1))=0,1,SUM(COUNTIF($AG$3:AG23,1),COUNTIF($AG$3:AG23,-1)))),(IF(SUM(COUNTIF($AI$3:AI23,1),COUNTIF($AI$3:AI23,-1))=0,1,SUM(COUNTIF($AI$3:AI23,1),COUNTIF($AI$3:AI23,-1)))),(IF(SUM(COUNTIF($AK$3:AK23,1),COUNTIF($AK$3:AK23,-1))=0,1,SUM(COUNTIF($AK$3:AK23,1),COUNTIF($AK$3:AK23,-1)))))/1000) -> 0.4 | CN23: -0.626
